{"text_format":"1","workbook":"xlsx","n_sheets":11,"sheets":["T1","T2","T3","T4","T5","T6","Izvoz u INO","INO","pomocna","pomocna2","pomocna3"],"not_rendered":{"charts":0,"images":1,"macros":1,"external_links":2,"defined_names":45,"comments":8,"pivot_tables":0},"unopened":[],"bounds":{"document_bytes":16777216,"sheet_cells":100000,"rows_first":2000,"rows_last":500,"rows_between":2000,"halvings":0,"cell_chars":16384,"cell_head_chars":4096},"cells_cut":0,"cells_raw":0,"read":"whole","date_system":"1900"}

{"sheet":"T1","index":0,"n_rows":1,"n_cols":8,"rows_kept":1,"cut":false,"hidden":false,"merged":[]}
["Oznaka tablice","Vrsta sloga","Razdoblje poč. odgovornosti","Oznaka osobe","Ime i prezime","Broj telefona","Broj mobitela","E-adresa"]

{"sheet":"T2","index":1,"n_rows":1,"n_cols":23,"rows_kept":1,"cut":false,"hidden":false,"merged":[]}
["Oznaka tablice","Vrsta sloga","Identifikator","Razdoblje","Osnova izvješćivanja","Vrsta instrumenta","Osiguranje izvozne agencije","ISIN","Rok - izvorno dospijeće u mjesecima","Garant","Vrsta kamatne stope","Visina kamatne stope ili marže (%)","Valuta indeksacije/otplate","Valuta ugovaranja","Iznos","Način izračuna plana","Frekvencija otplate glavnice","Razdoblje prvog plaćanja glavnice","Broj rata glavnice","Frekvencija otplate kamata","Razdoblje prvog plaćanja kamate","Broj rata kamata","Ostatak vrijednosti"]

{"sheet":"T3","index":2,"n_rows":1,"n_cols":12,"rows_kept":1,"cut":false,"hidden":false,"merged":[]}
["Oznaka tablice","Vrsta sloga","Identifikator","Razdoblje","Vrsta iznosa","Korištenje","Otplata","Pretvaranje duga u vl. ulog","Oprost/ otpust duga","Otpis","Završno stanje","Indeks tržišne vrijednosti"]

{"sheet":"T4","index":3,"n_rows":1,"n_cols":5,"rows_kept":1,"cut":false,"hidden":false,"merged":[]}
["Oznaka tablice","Identifikator","Razdoblje dospijeća","Vrsta plana","Iznos"]

{"sheet":"T5","index":4,"n_rows":907,"n_cols":14,"rows_kept":907,"cut":false,"hidden":false,"merged":[]}
["Oznaka tablice","Vrsta sloga","Identifikator","Razdoblje","Država/MF nerezidenta - šifra","Sektor nerezidenta - šifra","Šifra nerezidenta","Ulagački odnos - šifra","Udio nerezidenta (%)","Država konačnoga kontrolnog vlasnika - šifra","Država nerezidenta / Međunarodna institucija","Sektor nerezidenta","Ulagački odnos","Država konačnoga kontrolnog vlasnika "]
[null,null,null,null,{"$f":"+IFERROR(VLOOKUP(K2,pomocna2!A:B,2,FALSE),\"\")","v":""},{"$f":"+IFERROR((VLOOKUP(L2,pomocna!$AC$4:$AD$20,2,FALSE)),\"\")","v":""},null,{"$f":"+IFERROR(VLOOKUP(M2,pomocna3!$F$2:$G$7,2,FALSE),\"\")","v":""},null,{"$f":"+IFERROR(VLOOKUP(N2,pomocna2!A:B,2,FALSE),\"\")","v":""}]
[null,null,null,null,{"$f":"+IFERROR(VLOOKUP(K3,pomocna2!A:B,2,FALSE),\"\")","v":""},{"$f":"+IFERROR((VLOOKUP(L3,pomocna!$AC$4:$AD$20,2,FALSE)),\"\")","v":""},null,{"$f":"+IFERROR(VLOOKUP(M3,pomocna3!$F$2:$G$7,2,FALSE),\"\")","v":""},null,{"$f":"+IFERROR(VLOOKUP(N3,pomocna2!A:B,2,FALSE),\"\")","v":""}]
[null,null,null,null,{"$f":"+IFERROR(VLOOKUP(K4,pomocna2!A:B,2,FALSE),\"\")","v":""},{"$f":"+IFERROR((VLOOKUP(L4,pomocna!$AC$4:$AD$20,2,FALSE)),\"\")","v":""},null,{"$f":"+IFERROR(VLOOKUP(M4,pomocna3!$F$2:$G$7,2,FALSE),\"\")","v":""},null,{"$f":"+IFERROR(VLOOKUP(N4,pomocna2!A:B,2,FALSE),\"\")","v":""}]
[null,null,null,null,{"$f":"+IFERROR(VLOOKUP(K5,pomocna2!A:B,2,FALSE),\"\")","v":""},{"$f":"+IFERROR((VLOOKUP(L5,pomocna!$AC$4:$AD$20,2,FALSE)),\"\")","v":""},null,{"$f":"+IFERROR(VLOOKUP(M5,pomocna3!$F$2:$G$7,2,FALSE),\"\")","v":""},null,{"$f":"+IFERROR(VLOOKUP(N5,pomocna2!A:B,2,FALSE),\"\")","v":""}]
[null,null,null,null,{"$f":"+IFERROR(VLOOKUP(K6,pomocna2!A:B,2,FALSE),\"\")","v":""},{"$f":"+IFERROR((VLOOKUP(L6,pomocna!$AC$4:$AD$20,2,FALSE)),\"\")","v":""},null,{"$f":"+IFERROR(VLOOKUP(M6,pomocna3!$F$2:$G$7,2,FALSE),\"\")","v":""},null,{"$f":"+IFERROR(VLOOKUP(N6,pomocna2!A:B,2,FALSE),\"\")","v":""}]
[null,null,null,null,{"$f":"+IFERROR(VLOOKUP(K7,pomocna2!A:B,2,FALSE),\"\")","v":""},{"$f":"+IFERROR((VLOOKUP(L7,pomocna!$AC$4:$AD$20,2,FALSE)),\"\")","v":""},null,{"$f":"+IFERROR(VLOOKUP(M7,pomocna3!$F$2:$G$7,2,FALSE),\"\")","v":""},null,{"$f":"+IFERROR(VLOOKUP(N7,pomocna2!A:B,2,FALSE),\"\")","v":""}]
[null,null,null,null,{"$f":"+IFERROR(VLOOKUP(K8,pomocna2!A:B,2,FALSE),\"\")","v":""},{"$f":"+IFERROR((VLOOKUP(L8,pomocna!$AC$4:$AD$20,2,FALSE)),\"\")","v":""},null,{"$f":"+IFERROR(VLOOKUP(M8,pomocna3!$F$2:$G$7,2,FALSE),\"\")","v":""},null,{"$f":"+IFERROR(VLOOKUP(N8,pomocna2!A:B,2,FALSE),\"\")","v":""}]
[null,null,null,null,{"$f":"+IFERROR(VLOOKUP(K9,pomocna2!A:B,2,FALSE),\"\")","v":""},{"$f":"+IFERROR((VLOOKUP(L9,pomocna!$AC$4:$AD$20,2,FALSE)),\"\")","v":""},null,{"$f":"+IFERROR(VLOOKUP(M9,pomocna3!$F$2:$G$7,2,FALSE),\"\")","v":""},null,{"$f":"+IFERROR(VLOOKUP(N9,pomocna2!A:B,2,FALSE),\"\")","v":""}]
[null,null,null,null,{"$f":"+IFERROR(VLOOKUP(K10,pomocna2!A:B,2,FALSE),\"\")","v":""},{"$f":"+IFERROR((VLOOKUP(L10,pomocna!$AC$4:$AD$20,2,FALSE)),\"\")","v":""},null,{"$f":"+IFERROR(VLOOKUP(M10,pomocna3!$F$2:$G$7,2,FALSE),\"\")","v":""},null,{"$f":"+IFERROR(VLOOKUP(N10,pomocna2!A:B,2,FALSE),\"\")","v":""}]
[null,null,null,null,{"$f":"+IFERROR(VLOOKUP(K11,pomocna2!A:B,2,FALSE),\"\")","v":""},{"$f":"+IFERROR((VLOOKUP(L11,pomocna!$AC$4:$AD$20,2,FALSE)),\"\")","v":""},null,{"$f":"+IFERROR(VLOOKUP(M11,pomocna3!$F$2:$G$7,2,FALSE),\"\")","v":""},null,{"$f":"+IFERROR(VLOOKUP(N11,pomocna2!A:B,2,FALSE),\"\")","v":""}]
[null,null,null,null,{"$f":"+IFERROR(VLOOKUP(K12,pomocna2!A:B,2,FALSE),\"\")","v":""},{"$f":"+IFERROR((VLOOKUP(L12,pomocna!$AC$4:$AD$20,2,FALSE)),\"\")","v":""},null,{"$f":"+IFERROR(VLOOKUP(M12,pomocna3!$F$2:$G$7,2,FALSE),\"\")","v":""},null,{"$f":"+IFERROR(VLOOKUP(N12,pomocna2!A:B,2,FALSE),\"\")","v":""}]
[null,null,null,null,{"$f":"+IFERROR(VLOOKUP(K13,pomocna2!A:B,2,FALSE),\"\")","v":""},{"$f":"+IFERROR((VLOOKUP(L13,pomocna!$AC$4:$AD$20,2,FALSE)),\"\")","v":""},null,{"$f":"+IFERROR(VLOOKUP(M13,pomocna3!$F$2:$G$7,2,FALSE),\"\")","v":""},null,{"$f":"+IFERROR(VLOOKUP(N13,pomocna2!A:B,2,FALSE),\"\")","v":""}]
[null,null,null,null,{"$f":"+IFERROR(VLOOKUP(K14,pomocna2!A:B,2,FALSE),\"\")","v":""},{"$f":"+IFERROR((VLOOKUP(L14,pomocna!$AC$4:$AD$20,2,FALSE)),\"\")","v":""},null,{"$f":"+IFERROR(VLOOKUP(M14,pomocna3!$F$2:$G$7,2,FALSE),\"\")","v":""},null,{"$f":"+IFERROR(VLOOKUP(N14,pomocna2!A:B,2,FALSE),\"\")","v":""}]
[null,null,null,null,{"$f":"+IFERROR(VLOOKUP(K15,pomocna2!A:B,2,FALSE),\"\")","v":""},{"$f":"+IFERROR((VLOOKUP(L15,pomocna!$AC$4:$AD$20,2,FALSE)),\"\")","v":""},null,{"$f":"+IFERROR(VLOOKUP(M15,pomocna3!$F$2:$G$7,2,FALSE),\"\")","v":""},null,{"$f":"+IFERROR(VLOOKUP(N15,pomocna2!A:B,2,FALSE),\"\")","v":""}]
[null,null,null,null,{"$f":"+IFERROR(VLOOKUP(K16,pomocna2!A:B,2,FALSE),\"\")","v":""},{"$f":"+IFERROR((VLOOKUP(L16,pomocna!$AC$4:$AD$20,2,FALSE)),\"\")","v":""},null,{"$f":"+IFERROR(VLOOKUP(M16,pomocna3!$F$2:$G$7,2,FALSE),\"\")","v":""},null,{"$f":"+IFERROR(VLOOKUP(N16,pomocna2!A:B,2,FALSE),\"\")","v":""}]
[null,null,null,null,{"$f":"+IFERROR(VLOOKUP(K17,pomocna2!A:B,2,FALSE),\"\")","v":""},{"$f":"+IFERROR((VLOOKUP(L17,pomocna!$AC$4:$AD$20,2,FALSE)),\"\")","v":""},null,{"$f":"+IFERROR(VLOOKUP(M17,pomocna3!$F$2:$G$7,2,FALSE),\"\")","v":""},null,{"$f":"+IFERROR(VLOOKUP(N17,pomocna2!A:B,2,FALSE),\"\")","v":""}]
[null,null,null,null,{"$f":"+IFERROR(VLOOKUP(K18,pomocna2!A:B,2,FALSE),\"\")","v":""},{"$f":"+IFERROR((VLOOKUP(L18,pomocna!$AC$4:$AD$20,2,FALSE)),\"\")","v":""},null,{"$f":"+IFERROR(VLOOKUP(M18,pomocna3!$F$2:$G$7,2,FALSE),\"\")","v":""},null,{"$f":"+IFERROR(VLOOKUP(N18,pomocna2!A:B,2,FALSE),\"\")","v":""}]
[null,null,null,null,{"$f":"+IFERROR(VLOOKUP(K19,pomocna2!A:B,2,FALSE),\"\")","v":""},{"$f":"+IFERROR((VLOOKUP(L19,pomocna!$AC$4:$AD$20,2,FALSE)),\"\")","v":""},null,{"$f":"+IFERROR(VLOOKUP(M19,pomocna3!$F$2:$G$7,2,FALSE),\"\")","v":""},null,{"$f":"+IFERROR(VLOOKUP(N19,pomocna2!A:B,2,FALSE),\"\")","v":""}]
[null,null,null,null,{"$f":"+IFERROR(VLOOKUP(K20,pomocna2!A:B,2,FALSE),\"\")","v":""},{"$f":"+IFERROR((VLOOKUP(L20,pomocna!$AC$4:$AD$20,2,FALSE)),\"\")","v":""},null,{"$f":"+IFERROR(VLOOKUP(M20,pomocna3!$F$2:$G$7,2,FALSE),\"\")","v":""},null,{"$f":"+IFERROR(VLOOKUP(N20,pomocna2!A:B,2,FALSE),\"\")","v":""}]
[null,null,null,null,{"$f":"+IFERROR(VLOOKUP(K21,pomocna2!A:B,2,FALSE),\"\")","v":""},{"$f":"+IFERROR((VLOOKUP(L21,pomocna!$AC$4:$AD$20,2,FALSE)),\"\")","v":""},null,{"$f":"+IFERROR(VLOOKUP(M21,pomocna3!$F$2:$G$7,2,FALSE),\"\")","v":""},null,{"$f":"+IFERROR(VLOOKUP(N21,pomocna2!A:B,2,FALSE),\"\")","v":""}]
[null,null,null,null,{"$f":"+IFERROR(VLOOKUP(K22,pomocna2!A:B,2,FALSE),\"\")","v":""},{"$f":"+IFERROR((VLOOKUP(L22,pomocna!$AC$4:$AD$20,2,FALSE)),\"\")","v":""},null,{"$f":"+IFERROR(VLOOKUP(M22,pomocna3!$F$2:$G$7,2,FALSE),\"\")","v":""},null,{"$f":"+IFERROR(VLOOKUP(N22,pomocna2!A:B,2,FALSE),\"\")","v":""}]
[null,null,null,null,{"$f":"+IFERROR(VLOOKUP(K23,pomocna2!A:B,2,FALSE),\"\")","v":""},{"$f":"+IFERROR((VLOOKUP(L23,pomocna!$AC$4:$AD$20,2,FALSE)),\"\")","v":""},null,{"$f":"+IFERROR(VLOOKUP(M23,pomocna3!$F$2:$G$7,2,FALSE),\"\")","v":""},null,{"$f":"+IFERROR(VLOOKUP(N23,pomocna2!A:B,2,FALSE),\"\")","v":""}]
[null,null,null,null,{"$f":"+IFERROR(VLOOKUP(K24,pomocna2!A:B,2,FALSE),\"\")","v":""},{"$f":"+IFERROR((VLOOKUP(L24,pomocna!$AC$4:$AD$20,2,FALSE)),\"\")","v":""},null,{"$f":"+IFERROR(VLOOKUP(M24,pomocna3!$F$2:$G$7,2,FALSE),\"\")","v":""},null,{"$f":"+IFERROR(VLOOKUP(N24,pomocna2!A:B,2,FALSE),\"\")","v":""}]
[null,null,null,null,{"$f":"+IFERROR(VLOOKUP(K25,pomocna2!A:B,2,FALSE),\"\")","v":""},{"$f":"+IFERROR((VLOOKUP(L25,pomocna!$AC$4:$AD$20,2,FALSE)),\"\")","v":""},null,{"$f":"+IFERROR(VLOOKUP(M25,pomocna3!$F$2:$G$7,2,FALSE),\"\")","v":""},null,{"$f":"+IFERROR(VLOOKUP(N25,pomocna2!A:B,2,FALSE),\"\")","v":""}]
[null,null,null,null,{"$f":"+IFERROR(VLOOKUP(K26,pomocna2!A:B,2,FALSE),\"\")","v":""},{"$f":"+IFERROR((VLOOKUP(L26,pomocna!$AC$4:$AD$20,2,FALSE)),\"\")","v":""},null,{"$f":"+IFERROR(VLOOKUP(M26,pomocna3!$F$2:$G$7,2,FALSE),\"\")","v":""},null,{"$f":"+IFERROR(VLOOKUP(N26,pomocna2!A:B,2,FALSE),\"\")","v":""}]
[null,null,null,null,{"$f":"+IFERROR(VLOOKUP(K27,pomocna2!A:B,2,FALSE),\"\")","v":""},{"$f":"+IFERROR((VLOOKUP(L27,pomocna!$AC$4:$AD$20,2,FALSE)),\"\")","v":""},null,{"$f":"+IFERROR(VLOOKUP(M27,pomocna3!$F$2:$G$7,2,FALSE),\"\")","v":""},null,{"$f":"+IFERROR(VLOOKUP(N27,pomocna2!A:B,2,FALSE),\"\")","v":""}]
[null,null,null,null,{"$f":"+IFERROR(VLOOKUP(K28,pomocna2!A:B,2,FALSE),\"\")","v":""},{"$f":"+IFERROR((VLOOKUP(L28,pomocna!$AC$4:$AD$20,2,FALSE)),\"\")","v":""},null,{"$f":"+IFERROR(VLOOKUP(M28,pomocna3!$F$2:$G$7,2,FALSE),\"\")","v":""},null,{"$f":"+IFERROR(VLOOKUP(N28,pomocna2!A:B,2,FALSE),\"\")","v":""}]
[null,null,null,null,{"$f":"+IFERROR(VLOOKUP(K29,pomocna2!A:B,2,FALSE),\"\")","v":""},{"$f":"+IFERROR((VLOOKUP(L29,pomocna!$AC$4:$AD$20,2,FALSE)),\"\")","v":""},null,{"$f":"+IFERROR(VLOOKUP(M29,pomocna3!$F$2:$G$7,2,FALSE),\"\")","v":""},null,{"$f":"+IFERROR(VLOOKUP(N29,pomocna2!A:B,2,FALSE),\"\")","v":""}]
[null,null,null,null,{"$f":"+IFERROR(VLOOKUP(K30,pomocna2!A:B,2,FALSE),\"\")","v":""},{"$f":"+IFERROR((VLOOKUP(L30,pomocna!$AC$4:$AD$20,2,FALSE)),\"\")","v":""},null,{"$f":"+IFERROR(VLOOKUP(M30,pomocna3!$F$2:$G$7,2,FALSE),\"\")","v":""},null,{"$f":"+IFERROR(VLOOKUP(N30,pomocna2!A:B,2,FALSE),\"\")","v":""}]
[null,null,null,null,{"$f":"+IFERROR(VLOOKUP(K31,pomocna2!A:B,2,FALSE),\"\")","v":""},{"$f":"+IFERROR((VLOOKUP(L31,pomocna!$AC$4:$AD$20,2,FALSE)),\"\")","v":""},null,{"$f":"+IFERROR(VLOOKUP(M31,pomocna3!$F$2:$G$7,2,FALSE),\"\")","v":""},null,{"$f":"+IFERROR(VLOOKUP(N31,pomocna2!A:B,2,FALSE),\"\")","v":""}]
[null,null,null,null,{"$f":"+IFERROR(VLOOKUP(K32,pomocna2!A:B,2,FALSE),\"\")","v":""},{"$f":"+IFERROR((VLOOKUP(L32,pomocna!$AC$4:$AD$20,2,FALSE)),\"\")","v":""},null,{"$f":"+IFERROR(VLOOKUP(M32,pomocna3!$F$2:$G$7,2,FALSE),\"\")","v":""},null,{"$f":"+IFERROR(VLOOKUP(N32,pomocna2!A:B,2,FALSE),\"\")","v":""}]
[null,null,null,null,{"$f":"+IFERROR(VLOOKUP(K33,pomocna2!A:B,2,FALSE),\"\")","v":""},{"$f":"+IFERROR((VLOOKUP(L33,pomocna!$AC$4:$AD$20,2,FALSE)),\"\")","v":""},null,{"$f":"+IFERROR(VLOOKUP(M33,pomocna3!$F$2:$G$7,2,FALSE),\"\")","v":""},null,{"$f":"+IFERROR(VLOOKUP(N33,pomocna2!A:B,2,FALSE),\"\")","v":""}]
[null,null,null,null,{"$f":"+IFERROR(VLOOKUP(K34,pomocna2!A:B,2,FALSE),\"\")","v":""},{"$f":"+IFERROR((VLOOKUP(L34,pomocna!$AC$4:$AD$20,2,FALSE)),\"\")","v":""},null,{"$f":"+IFERROR(VLOOKUP(M34,pomocna3!$F$2:$G$7,2,FALSE),\"\")","v":""},null,{"$f":"+IFERROR(VLOOKUP(N34,pomocna2!A:B,2,FALSE),\"\")","v":""}]
[null,null,null,null,{"$f":"+IFERROR(VLOOKUP(K35,pomocna2!A:B,2,FALSE),\"\")","v":""},{"$f":"+IFERROR((VLOOKUP(L35,pomocna!$AC$4:$AD$20,2,FALSE)),\"\")","v":""},null,{"$f":"+IFERROR(VLOOKUP(M35,pomocna3!$F$2:$G$7,2,FALSE),\"\")","v":""},null,{"$f":"+IFERROR(VLOOKUP(N35,pomocna2!A:B,2,FALSE),\"\")","v":""}]
[null,null,null,null,{"$f":"+IFERROR(VLOOKUP(K36,pomocna2!A:B,2,FALSE),\"\")","v":""},{"$f":"+IFERROR((VLOOKUP(L36,pomocna!$AC$4:$AD$20,2,FALSE)),\"\")","v":""},null,{"$f":"+IFERROR(VLOOKUP(M36,pomocna3!$F$2:$G$7,2,FALSE),\"\")","v":""},null,{"$f":"+IFERROR(VLOOKUP(N36,pomocna2!A:B,2,FALSE),\"\")","v":""}]
[null,null,null,null,{"$f":"+IFERROR(VLOOKUP(K37,pomocna2!A:B,2,FALSE),\"\")","v":""},{"$f":"+IFERROR((VLOOKUP(L37,pomocna!$AC$4:$AD$20,2,FALSE)),\"\")","v":""},null,{"$f":"+IFERROR(VLOOKUP(M37,pomocna3!$F$2:$G$7,2,FALSE),\"\")","v":""},null,{"$f":"+IFERROR(VLOOKUP(N37,pomocna2!A:B,2,FALSE),\"\")","v":""}]
[null,null,null,null,{"$f":"+IFERROR(VLOOKUP(K38,pomocna2!A:B,2,FALSE),\"\")","v":""},{"$f":"+IFERROR((VLOOKUP(L38,pomocna!$AC$4:$AD$20,2,FALSE)),\"\")","v":""},null,{"$f":"+IFERROR(VLOOKUP(M38,pomocna3!$F$2:$G$7,2,FALSE),\"\")","v":""},null,{"$f":"+IFERROR(VLOOKUP(N38,pomocna2!A:B,2,FALSE),\"\")","v":""}]
[null,null,null,null,{"$f":"+IFERROR(VLOOKUP(K39,pomocna2!A:B,2,FALSE),\"\")","v":""},{"$f":"+IFERROR((VLOOKUP(L39,pomocna!$AC$4:$AD$20,2,FALSE)),\"\")","v":""},null,{"$f":"+IFERROR(VLOOKUP(M39,pomocna3!$F$2:$G$7,2,FALSE),\"\")","v":""},null,{"$f":"+IFERROR(VLOOKUP(N39,pomocna2!A:B,2,FALSE),\"\")","v":""}]
[null,null,null,null,{"$f":"+IFERROR(VLOOKUP(K40,pomocna2!A:B,2,FALSE),\"\")","v":""},{"$f":"+IFERROR((VLOOKUP(L40,pomocna!$AC$4:$AD$20,2,FALSE)),\"\")","v":""},null,{"$f":"+IFERROR(VLOOKUP(M40,pomocna3!$F$2:$G$7,2,FALSE),\"\")","v":""},null,{"$f":"+IFERROR(VLOOKUP(N40,pomocna2!A:B,2,FALSE),\"\")","v":""}]
[null,null,null,null,{"$f":"+IFERROR(VLOOKUP(K41,pomocna2!A:B,2,FALSE),\"\")","v":""},{"$f":"+IFERROR((VLOOKUP(L41,pomocna!$AC$4:$AD$20,2,FALSE)),\"\")","v":""},null,{"$f":"+IFERROR(VLOOKUP(M41,pomocna3!$F$2:$G$7,2,FALSE),\"\")","v":""},null,{"$f":"+IFERROR(VLOOKUP(N41,pomocna2!A:B,2,FALSE),\"\")","v":""}]
[null,null,null,null,{"$f":"+IFERROR(VLOOKUP(K42,pomocna2!A:B,2,FALSE),\"\")","v":""},{"$f":"+IFERROR((VLOOKUP(L42,pomocna!$AC$4:$AD$20,2,FALSE)),\"\")","v":""},null,{"$f":"+IFERROR(VLOOKUP(M42,pomocna3!$F$2:$G$7,2,FALSE),\"\")","v":""},null,{"$f":"+IFERROR(VLOOKUP(N42,pomocna2!A:B,2,FALSE),\"\")","v":""}]
[null,null,null,null,{"$f":"+IFERROR(VLOOKUP(K43,pomocna2!A:B,2,FALSE),\"\")","v":""},{"$f":"+IFERROR((VLOOKUP(L43,pomocna!$AC$4:$AD$20,2,FALSE)),\"\")","v":""},null,{"$f":"+IFERROR(VLOOKUP(M43,pomocna3!$F$2:$G$7,2,FALSE),\"\")","v":""},null,{"$f":"+IFERROR(VLOOKUP(N43,pomocna2!A:B,2,FALSE),\"\")","v":""}]
[null,null,null,null,{"$f":"+IFERROR(VLOOKUP(K44,pomocna2!A:B,2,FALSE),\"\")","v":""},{"$f":"+IFERROR((VLOOKUP(L44,pomocna!$AC$4:$AD$20,2,FALSE)),\"\")","v":""},null,{"$f":"+IFERROR(VLOOKUP(M44,pomocna3!$F$2:$G$7,2,FALSE),\"\")","v":""},null,{"$f":"+IFERROR(VLOOKUP(N44,pomocna2!A:B,2,FALSE),\"\")","v":""}]
[null,null,null,null,{"$f":"+IFERROR(VLOOKUP(K45,pomocna2!A:B,2,FALSE),\"\")","v":""},{"$f":"+IFERROR((VLOOKUP(L45,pomocna!$AC$4:$AD$20,2,FALSE)),\"\")","v":""},null,{"$f":"+IFERROR(VLOOKUP(M45,pomocna3!$F$2:$G$7,2,FALSE),\"\")","v":""},null,{"$f":"+IFERROR(VLOOKUP(N45,pomocna2!A:B,2,FALSE),\"\")","v":""}]
[null,null,null,null,{"$f":"+IFERROR(VLOOKUP(K46,pomocna2!A:B,2,FALSE),\"\")","v":""},{"$f":"+IFERROR((VLOOKUP(L46,pomocna!$AC$4:$AD$20,2,FALSE)),\"\")","v":""},null,{"$f":"+IFERROR(VLOOKUP(M46,pomocna3!$F$2:$G$7,2,FALSE),\"\")","v":""},null,{"$f":"+IFERROR(VLOOKUP(N46,pomocna2!A:B,2,FALSE),\"\")","v":""}]
[null,null,null,null,{"$f":"+IFERROR(VLOOKUP(K47,pomocna2!A:B,2,FALSE),\"\")","v":""},{"$f":"+IFERROR((VLOOKUP(L47,pomocna!$AC$4:$AD$20,2,FALSE)),\"\")","v":""},null,{"$f":"+IFERROR(VLOOKUP(M47,pomocna3!$F$2:$G$7,2,FALSE),\"\")","v":""},null,{"$f":"+IFERROR(VLOOKUP(N47,pomocna2!A:B,2,FALSE),\"\")","v":""}]
[null,null,null,null,{"$f":"+IFERROR(VLOOKUP(K48,pomocna2!A:B,2,FALSE),\"\")","v":""},{"$f":"+IFERROR((VLOOKUP(L48,pomocna!$AC$4:$AD$20,2,FALSE)),\"\")","v":""},null,{"$f":"+IFERROR(VLOOKUP(M48,pomocna3!$F$2:$G$7,2,FALSE),\"\")","v":""},null,{"$f":"+IFERROR(VLOOKUP(N48,pomocna2!A:B,2,FALSE),\"\")","v":""}]
[null,null,null,null,{"$f":"+IFERROR(VLOOKUP(K49,pomocna2!A:B,2,FALSE),\"\")","v":""},{"$f":"+IFERROR((VLOOKUP(L49,pomocna!$AC$4:$AD$20,2,FALSE)),\"\")","v":""},null,{"$f":"+IFERROR(VLOOKUP(M49,pomocna3!$F$2:$G$7,2,FALSE),\"\")","v":""},null,{"$f":"+IFERROR(VLOOKUP(N49,pomocna2!A:B,2,FALSE),\"\")","v":""}]
[null,null,null,null,{"$f":"+IFERROR(VLOOKUP(K50,pomocna2!A:B,2,FALSE),\"\")","v":""},{"$f":"+IFERROR((VLOOKUP(L50,pomocna!$AC$4:$AD$20,2,FALSE)),\"\")","v":""},null,{"$f":"+IFERROR(VLOOKUP(M50,pomocna3!$F$2:$G$7,2,FALSE),\"\")","v":""},null,{"$f":"+IFERROR(VLOOKUP(N50,pomocna2!A:B,2,FALSE),\"\")","v":""}]
[null,null,null,null,{"$f":"+IFERROR(VLOOKUP(K51,pomocna2!A:B,2,FALSE),\"\")","v":""},{"$f":"+IFERROR((VLOOKUP(L51,pomocna!$AC$4:$AD$20,2,FALSE)),\"\")","v":""},null,{"$f":"+IFERROR(VLOOKUP(M51,pomocna3!$F$2:$G$7,2,FALSE),\"\")","v":""},null,{"$f":"+IFERROR(VLOOKUP(N51,pomocna2!A:B,2,FALSE),\"\")","v":""}]
[null,null,null,null,{"$f":"+IFERROR(VLOOKUP(K52,pomocna2!A:B,2,FALSE),\"\")","v":""},{"$f":"+IFERROR((VLOOKUP(L52,pomocna!$AC$4:$AD$20,2,FALSE)),\"\")","v":""},null,{"$f":"+IFERROR(VLOOKUP(M52,pomocna3!$F$2:$G$7,2,FALSE),\"\")","v":""},null,{"$f":"+IFERROR(VLOOKUP(N52,pomocna2!A:B,2,FALSE),\"\")","v":""}]
[null,null,null,null,{"$f":"+IFERROR(VLOOKUP(K53,pomocna2!A:B,2,FALSE),\"\")","v":""},{"$f":"+IFERROR((VLOOKUP(L53,pomocna!$AC$4:$AD$20,2,FALSE)),\"\")","v":""},null,{"$f":"+IFERROR(VLOOKUP(M53,pomocna3!$F$2:$G$7,2,FALSE),\"\")","v":""},null,{"$f":"+IFERROR(VLOOKUP(N53,pomocna2!A:B,2,FALSE),\"\")","v":""}]
[null,null,null,null,{"$f":"+IFERROR(VLOOKUP(K54,pomocna2!A:B,2,FALSE),\"\")","v":""},{"$f":"+IFERROR((VLOOKUP(L54,pomocna!$AC$4:$AD$20,2,FALSE)),\"\")","v":""},null,{"$f":"+IFERROR(VLOOKUP(M54,pomocna3!$F$2:$G$7,2,FALSE),\"\")","v":""},null,{"$f":"+IFERROR(VLOOKUP(N54,pomocna2!A:B,2,FALSE),\"\")","v":""}]
[null,null,null,null,{"$f":"+IFERROR(VLOOKUP(K55,pomocna2!A:B,2,FALSE),\"\")","v":""},{"$f":"+IFERROR((VLOOKUP(L55,pomocna!$AC$4:$AD$20,2,FALSE)),\"\")","v":""},null,{"$f":"+IFERROR(VLOOKUP(M55,pomocna3!$F$2:$G$7,2,FALSE),\"\")","v":""},null,{"$f":"+IFERROR(VLOOKUP(N55,pomocna2!A:B,2,FALSE),\"\")","v":""}]
[null,null,null,null,{"$f":"+IFERROR(VLOOKUP(K56,pomocna2!A:B,2,FALSE),\"\")","v":""},{"$f":"+IFERROR((VLOOKUP(L56,pomocna!$AC$4:$AD$20,2,FALSE)),\"\")","v":""},null,{"$f":"+IFERROR(VLOOKUP(M56,pomocna3!$F$2:$G$7,2,FALSE),\"\")","v":""},null,{"$f":"+IFERROR(VLOOKUP(N56,pomocna2!A:B,2,FALSE),\"\")","v":""}]
[null,null,null,null,{"$f":"+IFERROR(VLOOKUP(K57,pomocna2!A:B,2,FALSE),\"\")","v":""},{"$f":"+IFERROR((VLOOKUP(L57,pomocna!$AC$4:$AD$20,2,FALSE)),\"\")","v":""},null,{"$f":"+IFERROR(VLOOKUP(M57,pomocna3!$F$2:$G$7,2,FALSE),\"\")","v":""},null,{"$f":"+IFERROR(VLOOKUP(N57,pomocna2!A:B,2,FALSE),\"\")","v":""}]
[null,null,null,null,{"$f":"+IFERROR(VLOOKUP(K58,pomocna2!A:B,2,FALSE),\"\")","v":""},{"$f":"+IFERROR((VLOOKUP(L58,pomocna!$AC$4:$AD$20,2,FALSE)),\"\")","v":""},null,{"$f":"+IFERROR(VLOOKUP(M58,pomocna3!$F$2:$G$7,2,FALSE),\"\")","v":""},null,{"$f":"+IFERROR(VLOOKUP(N58,pomocna2!A:B,2,FALSE),\"\")","v":""}]
[null,null,null,null,{"$f":"+IFERROR(VLOOKUP(K59,pomocna2!A:B,2,FALSE),\"\")","v":""},{"$f":"+IFERROR((VLOOKUP(L59,pomocna!$AC$4:$AD$20,2,FALSE)),\"\")","v":""},null,{"$f":"+IFERROR(VLOOKUP(M59,pomocna3!$F$2:$G$7,2,FALSE),\"\")","v":""},null,{"$f":"+IFERROR(VLOOKUP(N59,pomocna2!A:B,2,FALSE),\"\")","v":""}]
[null,null,null,null,{"$f":"+IFERROR(VLOOKUP(K60,pomocna2!A:B,2,FALSE),\"\")","v":""},{"$f":"+IFERROR((VLOOKUP(L60,pomocna!$AC$4:$AD$20,2,FALSE)),\"\")","v":""},null,{"$f":"+IFERROR(VLOOKUP(M60,pomocna3!$F$2:$G$7,2,FALSE),\"\")","v":""},null,{"$f":"+IFERROR(VLOOKUP(N60,pomocna2!A:B,2,FALSE),\"\")","v":""}]
[null,null,null,null,{"$f":"+IFERROR(VLOOKUP(K61,pomocna2!A:B,2,FALSE),\"\")","v":""},{"$f":"+IFERROR((VLOOKUP(L61,pomocna!$AC$4:$AD$20,2,FALSE)),\"\")","v":""},null,{"$f":"+IFERROR(VLOOKUP(M61,pomocna3!$F$2:$G$7,2,FALSE),\"\")","v":""},null,{"$f":"+IFERROR(VLOOKUP(N61,pomocna2!A:B,2,FALSE),\"\")","v":""}]
[null,null,null,null,{"$f":"+IFERROR(VLOOKUP(K62,pomocna2!A:B,2,FALSE),\"\")","v":""},{"$f":"+IFERROR((VLOOKUP(L62,pomocna!$AC$4:$AD$20,2,FALSE)),\"\")","v":""},null,{"$f":"+IFERROR(VLOOKUP(M62,pomocna3!$F$2:$G$7,2,FALSE),\"\")","v":""},null,{"$f":"+IFERROR(VLOOKUP(N62,pomocna2!A:B,2,FALSE),\"\")","v":""}]
[null,null,null,null,{"$f":"+IFERROR(VLOOKUP(K63,pomocna2!A:B,2,FALSE),\"\")","v":""},{"$f":"+IFERROR((VLOOKUP(L63,pomocna!$AC$4:$AD$20,2,FALSE)),\"\")","v":""},null,{"$f":"+IFERROR(VLOOKUP(M63,pomocna3!$F$2:$G$7,2,FALSE),\"\")","v":""},null,{"$f":"+IFERROR(VLOOKUP(N63,pomocna2!A:B,2,FALSE),\"\")","v":""}]
[null,null,null,null,{"$f":"+IFERROR(VLOOKUP(K64,pomocna2!A:B,2,FALSE),\"\")","v":""},{"$f":"+IFERROR((VLOOKUP(L64,pomocna!$AC$4:$AD$20,2,FALSE)),\"\")","v":""},null,{"$f":"+IFERROR(VLOOKUP(M64,pomocna3!$F$2:$G$7,2,FALSE),\"\")","v":""},null,{"$f":"+IFERROR(VLOOKUP(N64,pomocna2!A:B,2,FALSE),\"\")","v":""}]
[null,null,null,null,{"$f":"+IFERROR(VLOOKUP(K65,pomocna2!A:B,2,FALSE),\"\")","v":""},{"$f":"+IFERROR((VLOOKUP(L65,pomocna!$AC$4:$AD$20,2,FALSE)),\"\")","v":""},null,{"$f":"+IFERROR(VLOOKUP(M65,pomocna3!$F$2:$G$7,2,FALSE),\"\")","v":""},null,{"$f":"+IFERROR(VLOOKUP(N65,pomocna2!A:B,2,FALSE),\"\")","v":""}]
[null,null,null,null,{"$f":"+IFERROR(VLOOKUP(K66,pomocna2!A:B,2,FALSE),\"\")","v":""},{"$f":"+IFERROR((VLOOKUP(L66,pomocna!$AC$4:$AD$20,2,FALSE)),\"\")","v":""},null,{"$f":"+IFERROR(VLOOKUP(M66,pomocna3!$F$2:$G$7,2,FALSE),\"\")","v":""},null,{"$f":"+IFERROR(VLOOKUP(N66,pomocna2!A:B,2,FALSE),\"\")","v":""}]
[null,null,null,null,{"$f":"+IFERROR(VLOOKUP(K67,pomocna2!A:B,2,FALSE),\"\")","v":""},{"$f":"+IFERROR((VLOOKUP(L67,pomocna!$AC$4:$AD$20,2,FALSE)),\"\")","v":""},null,{"$f":"+IFERROR(VLOOKUP(M67,pomocna3!$F$2:$G$7,2,FALSE),\"\")","v":""},null,{"$f":"+IFERROR(VLOOKUP(N67,pomocna2!A:B,2,FALSE),\"\")","v":""}]
[null,null,null,null,{"$f":"+IFERROR(VLOOKUP(K68,pomocna2!A:B,2,FALSE),\"\")","v":""},{"$f":"+IFERROR((VLOOKUP(L68,pomocna!$AC$4:$AD$20,2,FALSE)),\"\")","v":""},null,{"$f":"+IFERROR(VLOOKUP(M68,pomocna3!$F$2:$G$7,2,FALSE),\"\")","v":""},null,{"$f":"+IFERROR(VLOOKUP(N68,pomocna2!A:B,2,FALSE),\"\")","v":""}]
[null,null,null,null,{"$f":"+IFERROR(VLOOKUP(K69,pomocna2!A:B,2,FALSE),\"\")","v":""},{"$f":"+IFERROR((VLOOKUP(L69,pomocna!$AC$4:$AD$20,2,FALSE)),\"\")","v":""},null,{"$f":"+IFERROR(VLOOKUP(M69,pomocna3!$F$2:$G$7,2,FALSE),\"\")","v":""},null,{"$f":"+IFERROR(VLOOKUP(N69,pomocna2!A:B,2,FALSE),\"\")","v":""}]
[null,null,null,null,{"$f":"+IFERROR(VLOOKUP(K70,pomocna2!A:B,2,FALSE),\"\")","v":""},{"$f":"+IFERROR((VLOOKUP(L70,pomocna!$AC$4:$AD$20,2,FALSE)),\"\")","v":""},null,{"$f":"+IFERROR(VLOOKUP(M70,pomocna3!$F$2:$G$7,2,FALSE),\"\")","v":""},null,{"$f":"+IFERROR(VLOOKUP(N70,pomocna2!A:B,2,FALSE),\"\")","v":""}]
[null,null,null,null,{"$f":"+IFERROR(VLOOKUP(K71,pomocna2!A:B,2,FALSE),\"\")","v":""},{"$f":"+IFERROR((VLOOKUP(L71,pomocna!$AC$4:$AD$20,2,FALSE)),\"\")","v":""},null,{"$f":"+IFERROR(VLOOKUP(M71,pomocna3!$F$2:$G$7,2,FALSE),\"\")","v":""},null,{"$f":"+IFERROR(VLOOKUP(N71,pomocna2!A:B,2,FALSE),\"\")","v":""}]
[null,null,null,null,{"$f":"+IFERROR(VLOOKUP(K72,pomocna2!A:B,2,FALSE),\"\")","v":""},{"$f":"+IFERROR((VLOOKUP(L72,pomocna!$AC$4:$AD$20,2,FALSE)),\"\")","v":""},null,{"$f":"+IFERROR(VLOOKUP(M72,pomocna3!$F$2:$G$7,2,FALSE),\"\")","v":""},null,{"$f":"+IFERROR(VLOOKUP(N72,pomocna2!A:B,2,FALSE),\"\")","v":""}]
[null,null,null,null,{"$f":"+IFERROR(VLOOKUP(K73,pomocna2!A:B,2,FALSE),\"\")","v":""},{"$f":"+IFERROR((VLOOKUP(L73,pomocna!$AC$4:$AD$20,2,FALSE)),\"\")","v":""},null,{"$f":"+IFERROR(VLOOKUP(M73,pomocna3!$F$2:$G$7,2,FALSE),\"\")","v":""},null,{"$f":"+IFERROR(VLOOKUP(N73,pomocna2!A:B,2,FALSE),\"\")","v":""}]
[null,null,null,null,{"$f":"+IFERROR(VLOOKUP(K74,pomocna2!A:B,2,FALSE),\"\")","v":""},{"$f":"+IFERROR((VLOOKUP(L74,pomocna!$AC$4:$AD$20,2,FALSE)),\"\")","v":""},null,{"$f":"+IFERROR(VLOOKUP(M74,pomocna3!$F$2:$G$7,2,FALSE),\"\")","v":""},null,{"$f":"+IFERROR(VLOOKUP(N74,pomocna2!A:B,2,FALSE),\"\")","v":""}]
[null,null,null,null,{"$f":"+IFERROR(VLOOKUP(K75,pomocna2!A:B,2,FALSE),\"\")","v":""},{"$f":"+IFERROR((VLOOKUP(L75,pomocna!$AC$4:$AD$20,2,FALSE)),\"\")","v":""},null,{"$f":"+IFERROR(VLOOKUP(M75,pomocna3!$F$2:$G$7,2,FALSE),\"\")","v":""},null,{"$f":"+IFERROR(VLOOKUP(N75,pomocna2!A:B,2,FALSE),\"\")","v":""}]
[null,null,null,null,{"$f":"+IFERROR(VLOOKUP(K76,pomocna2!A:B,2,FALSE),\"\")","v":""},{"$f":"+IFERROR((VLOOKUP(L76,pomocna!$AC$4:$AD$20,2,FALSE)),\"\")","v":""},null,{"$f":"+IFERROR(VLOOKUP(M76,pomocna3!$F$2:$G$7,2,FALSE),\"\")","v":""},null,{"$f":"+IFERROR(VLOOKUP(N76,pomocna2!A:B,2,FALSE),\"\")","v":""}]
[null,null,null,null,{"$f":"+IFERROR(VLOOKUP(K77,pomocna2!A:B,2,FALSE),\"\")","v":""},{"$f":"+IFERROR((VLOOKUP(L77,pomocna!$AC$4:$AD$20,2,FALSE)),\"\")","v":""},null,{"$f":"+IFERROR(VLOOKUP(M77,pomocna3!$F$2:$G$7,2,FALSE),\"\")","v":""},null,{"$f":"+IFERROR(VLOOKUP(N77,pomocna2!A:B,2,FALSE),\"\")","v":""}]
[null,null,null,null,{"$f":"+IFERROR(VLOOKUP(K78,pomocna2!A:B,2,FALSE),\"\")","v":""},{"$f":"+IFERROR((VLOOKUP(L78,pomocna!$AC$4:$AD$20,2,FALSE)),\"\")","v":""},null,{"$f":"+IFERROR(VLOOKUP(M78,pomocna3!$F$2:$G$7,2,FALSE),\"\")","v":""},null,{"$f":"+IFERROR(VLOOKUP(N78,pomocna2!A:B,2,FALSE),\"\")","v":""}]
[null,null,null,null,{"$f":"+IFERROR(VLOOKUP(K79,pomocna2!A:B,2,FALSE),\"\")","v":""},{"$f":"+IFERROR((VLOOKUP(L79,pomocna!$AC$4:$AD$20,2,FALSE)),\"\")","v":""},null,{"$f":"+IFERROR(VLOOKUP(M79,pomocna3!$F$2:$G$7,2,FALSE),\"\")","v":""},null,{"$f":"+IFERROR(VLOOKUP(N79,pomocna2!A:B,2,FALSE),\"\")","v":""}]
[null,null,null,null,{"$f":"+IFERROR(VLOOKUP(K80,pomocna2!A:B,2,FALSE),\"\")","v":""},{"$f":"+IFERROR((VLOOKUP(L80,pomocna!$AC$4:$AD$20,2,FALSE)),\"\")","v":""},null,{"$f":"+IFERROR(VLOOKUP(M80,pomocna3!$F$2:$G$7,2,FALSE),\"\")","v":""},null,{"$f":"+IFERROR(VLOOKUP(N80,pomocna2!A:B,2,FALSE),\"\")","v":""}]
[null,null,null,null,{"$f":"+IFERROR(VLOOKUP(K81,pomocna2!A:B,2,FALSE),\"\")","v":""},{"$f":"+IFERROR((VLOOKUP(L81,pomocna!$AC$4:$AD$20,2,FALSE)),\"\")","v":""},null,{"$f":"+IFERROR(VLOOKUP(M81,pomocna3!$F$2:$G$7,2,FALSE),\"\")","v":""},null,{"$f":"+IFERROR(VLOOKUP(N81,pomocna2!A:B,2,FALSE),\"\")","v":""}]
[null,null,null,null,{"$f":"+IFERROR(VLOOKUP(K82,pomocna2!A:B,2,FALSE),\"\")","v":""},{"$f":"+IFERROR((VLOOKUP(L82,pomocna!$AC$4:$AD$20,2,FALSE)),\"\")","v":""},null,{"$f":"+IFERROR(VLOOKUP(M82,pomocna3!$F$2:$G$7,2,FALSE),\"\")","v":""},null,{"$f":"+IFERROR(VLOOKUP(N82,pomocna2!A:B,2,FALSE),\"\")","v":""}]
[null,null,null,null,{"$f":"+IFERROR(VLOOKUP(K83,pomocna2!A:B,2,FALSE),\"\")","v":""},{"$f":"+IFERROR((VLOOKUP(L83,pomocna!$AC$4:$AD$20,2,FALSE)),\"\")","v":""},null,{"$f":"+IFERROR(VLOOKUP(M83,pomocna3!$F$2:$G$7,2,FALSE),\"\")","v":""},null,{"$f":"+IFERROR(VLOOKUP(N83,pomocna2!A:B,2,FALSE),\"\")","v":""}]
[null,null,null,null,{"$f":"+IFERROR(VLOOKUP(K84,pomocna2!A:B,2,FALSE),\"\")","v":""},{"$f":"+IFERROR((VLOOKUP(L84,pomocna!$AC$4:$AD$20,2,FALSE)),\"\")","v":""},null,{"$f":"+IFERROR(VLOOKUP(M84,pomocna3!$F$2:$G$7,2,FALSE),\"\")","v":""},null,{"$f":"+IFERROR(VLOOKUP(N84,pomocna2!A:B,2,FALSE),\"\")","v":""}]
[null,null,null,null,{"$f":"+IFERROR(VLOOKUP(K85,pomocna2!A:B,2,FALSE),\"\")","v":""},{"$f":"+IFERROR((VLOOKUP(L85,pomocna!$AC$4:$AD$20,2,FALSE)),\"\")","v":""},null,{"$f":"+IFERROR(VLOOKUP(M85,pomocna3!$F$2:$G$7,2,FALSE),\"\")","v":""},null,{"$f":"+IFERROR(VLOOKUP(N85,pomocna2!A:B,2,FALSE),\"\")","v":""}]
[null,null,null,null,{"$f":"+IFERROR(VLOOKUP(K86,pomocna2!A:B,2,FALSE),\"\")","v":""},{"$f":"+IFERROR((VLOOKUP(L86,pomocna!$AC$4:$AD$20,2,FALSE)),\"\")","v":""},null,{"$f":"+IFERROR(VLOOKUP(M86,pomocna3!$F$2:$G$7,2,FALSE),\"\")","v":""},null,{"$f":"+IFERROR(VLOOKUP(N86,pomocna2!A:B,2,FALSE),\"\")","v":""}]
[null,null,null,null,{"$f":"+IFERROR(VLOOKUP(K87,pomocna2!A:B,2,FALSE),\"\")","v":""},{"$f":"+IFERROR((VLOOKUP(L87,pomocna!$AC$4:$AD$20,2,FALSE)),\"\")","v":""},null,{"$f":"+IFERROR(VLOOKUP(M87,pomocna3!$F$2:$G$7,2,FALSE),\"\")","v":""},null,{"$f":"+IFERROR(VLOOKUP(N87,pomocna2!A:B,2,FALSE),\"\")","v":""}]
[null,null,null,null,{"$f":"+IFERROR(VLOOKUP(K88,pomocna2!A:B,2,FALSE),\"\")","v":""},{"$f":"+IFERROR((VLOOKUP(L88,pomocna!$AC$4:$AD$20,2,FALSE)),\"\")","v":""},null,{"$f":"+IFERROR(VLOOKUP(M88,pomocna3!$F$2:$G$7,2,FALSE),\"\")","v":""},null,{"$f":"+IFERROR(VLOOKUP(N88,pomocna2!A:B,2,FALSE),\"\")","v":""}]
[null,null,null,null,{"$f":"+IFERROR(VLOOKUP(K89,pomocna2!A:B,2,FALSE),\"\")","v":""},{"$f":"+IFERROR((VLOOKUP(L89,pomocna!$AC$4:$AD$20,2,FALSE)),\"\")","v":""},null,{"$f":"+IFERROR(VLOOKUP(M89,pomocna3!$F$2:$G$7,2,FALSE),\"\")","v":""},null,{"$f":"+IFERROR(VLOOKUP(N89,pomocna2!A:B,2,FALSE),\"\")","v":""}]
[null,null,null,null,{"$f":"+IFERROR(VLOOKUP(K90,pomocna2!A:B,2,FALSE),\"\")","v":""},{"$f":"+IFERROR((VLOOKUP(L90,pomocna!$AC$4:$AD$20,2,FALSE)),\"\")","v":""},null,{"$f":"+IFERROR(VLOOKUP(M90,pomocna3!$F$2:$G$7,2,FALSE),\"\")","v":""},null,{"$f":"+IFERROR(VLOOKUP(N90,pomocna2!A:B,2,FALSE),\"\")","v":""}]
[null,null,null,null,{"$f":"+IFERROR(VLOOKUP(K91,pomocna2!A:B,2,FALSE),\"\")","v":""},{"$f":"+IFERROR((VLOOKUP(L91,pomocna!$AC$4:$AD$20,2,FALSE)),\"\")","v":""},null,{"$f":"+IFERROR(VLOOKUP(M91,pomocna3!$F$2:$G$7,2,FALSE),\"\")","v":""},null,{"$f":"+IFERROR(VLOOKUP(N91,pomocna2!A:B,2,FALSE),\"\")","v":""}]
[null,null,null,null,{"$f":"+IFERROR(VLOOKUP(K92,pomocna2!A:B,2,FALSE),\"\")","v":""},{"$f":"+IFERROR((VLOOKUP(L92,pomocna!$AC$4:$AD$20,2,FALSE)),\"\")","v":""},null,{"$f":"+IFERROR(VLOOKUP(M92,pomocna3!$F$2:$G$7,2,FALSE),\"\")","v":""},null,{"$f":"+IFERROR(VLOOKUP(N92,pomocna2!A:B,2,FALSE),\"\")","v":""}]
[null,null,null,null,{"$f":"+IFERROR(VLOOKUP(K93,pomocna2!A:B,2,FALSE),\"\")","v":""},{"$f":"+IFERROR((VLOOKUP(L93,pomocna!$AC$4:$AD$20,2,FALSE)),\"\")","v":""},null,{"$f":"+IFERROR(VLOOKUP(M93,pomocna3!$F$2:$G$7,2,FALSE),\"\")","v":""},null,{"$f":"+IFERROR(VLOOKUP(N93,pomocna2!A:B,2,FALSE),\"\")","v":""}]
[null,null,null,null,{"$f":"+IFERROR(VLOOKUP(K94,pomocna2!A:B,2,FALSE),\"\")","v":""},{"$f":"+IFERROR((VLOOKUP(L94,pomocna!$AC$4:$AD$20,2,FALSE)),\"\")","v":""},null,{"$f":"+IFERROR(VLOOKUP(M94,pomocna3!$F$2:$G$7,2,FALSE),\"\")","v":""},null,{"$f":"+IFERROR(VLOOKUP(N94,pomocna2!A:B,2,FALSE),\"\")","v":""}]
[null,null,null,null,{"$f":"+IFERROR(VLOOKUP(K95,pomocna2!A:B,2,FALSE),\"\")","v":""},{"$f":"+IFERROR((VLOOKUP(L95,pomocna!$AC$4:$AD$20,2,FALSE)),\"\")","v":""},null,{"$f":"+IFERROR(VLOOKUP(M95,pomocna3!$F$2:$G$7,2,FALSE),\"\")","v":""},null,{"$f":"+IFERROR(VLOOKUP(N95,pomocna2!A:B,2,FALSE),\"\")","v":""}]
[null,null,null,null,{"$f":"+IFERROR(VLOOKUP(K96,pomocna2!A:B,2,FALSE),\"\")","v":""},{"$f":"+IFERROR((VLOOKUP(L96,pomocna!$AC$4:$AD$20,2,FALSE)),\"\")","v":""},null,{"$f":"+IFERROR(VLOOKUP(M96,pomocna3!$F$2:$G$7,2,FALSE),\"\")","v":""},null,{"$f":"+IFERROR(VLOOKUP(N96,pomocna2!A:B,2,FALSE),\"\")","v":""}]
[null,null,null,null,{"$f":"+IFERROR(VLOOKUP(K97,pomocna2!A:B,2,FALSE),\"\")","v":""},{"$f":"+IFERROR((VLOOKUP(L97,pomocna!$AC$4:$AD$20,2,FALSE)),\"\")","v":""},null,{"$f":"+IFERROR(VLOOKUP(M97,pomocna3!$F$2:$G$7,2,FALSE),\"\")","v":""},null,{"$f":"+IFERROR(VLOOKUP(N97,pomocna2!A:B,2,FALSE),\"\")","v":""}]
[null,null,null,null,{"$f":"+IFERROR(VLOOKUP(K98,pomocna2!A:B,2,FALSE),\"\")","v":""},{"$f":"+IFERROR((VLOOKUP(L98,pomocna!$AC$4:$AD$20,2,FALSE)),\"\")","v":""},null,{"$f":"+IFERROR(VLOOKUP(M98,pomocna3!$F$2:$G$7,2,FALSE),\"\")","v":""},null,{"$f":"+IFERROR(VLOOKUP(N98,pomocna2!A:B,2,FALSE),\"\")","v":""}]
[null,null,null,null,{"$f":"+IFERROR(VLOOKUP(K99,pomocna2!A:B,2,FALSE),\"\")","v":""},{"$f":"+IFERROR((VLOOKUP(L99,pomocna!$AC$4:$AD$20,2,FALSE)),\"\")","v":""},null,{"$f":"+IFERROR(VLOOKUP(M99,pomocna3!$F$2:$G$7,2,FALSE),\"\")","v":""},null,{"$f":"+IFERROR(VLOOKUP(N99,pomocna2!A:B,2,FALSE),\"\")","v":""}]
[null,null,null,null,{"$f":"+IFERROR(VLOOKUP(K100,pomocna2!A:B,2,FALSE),\"\")","v":""},{"$f":"+IFERROR((VLOOKUP(L100,pomocna!$AC$4:$AD$20,2,FALSE)),\"\")","v":""},null,{"$f":"+IFERROR(VLOOKUP(M100,pomocna3!$F$2:$G$7,2,FALSE),\"\")","v":""},null,{"$f":"+IFERROR(VLOOKUP(N100,pomocna2!A:B,2,FALSE),\"\")","v":""}]
[null,null,null,null,{"$f":"+IFERROR(VLOOKUP(K101,pomocna2!A:B,2,FALSE),\"\")","v":""},{"$f":"+IFERROR((VLOOKUP(L101,pomocna!$AC$4:$AD$20,2,FALSE)),\"\")","v":""},null,{"$f":"+IFERROR(VLOOKUP(M101,pomocna3!$F$2:$G$7,2,FALSE),\"\")","v":""},null,{"$f":"+IFERROR(VLOOKUP(N101,pomocna2!A:B,2,FALSE),\"\")","v":""}]
[null,null,null,null,{"$f":"+IFERROR(VLOOKUP(K102,pomocna2!A:B,2,FALSE),\"\")","v":""},{"$f":"+IFERROR((VLOOKUP(L102,pomocna!$AC$4:$AD$20,2,FALSE)),\"\")","v":""},null,{"$f":"+IFERROR(VLOOKUP(M102,pomocna3!$F$2:$G$7,2,FALSE),\"\")","v":""},null,{"$f":"+IFERROR(VLOOKUP(N102,pomocna2!A:B,2,FALSE),\"\")","v":""}]
[null,null,null,null,{"$f":"+IFERROR(VLOOKUP(K103,pomocna2!A:B,2,FALSE),\"\")","v":""},{"$f":"+IFERROR((VLOOKUP(L103,pomocna!$AC$4:$AD$20,2,FALSE)),\"\")","v":""},null,{"$f":"+IFERROR(VLOOKUP(M103,pomocna3!$F$2:$G$7,2,FALSE),\"\")","v":""},null,{"$f":"+IFERROR(VLOOKUP(N103,pomocna2!A:B,2,FALSE),\"\")","v":""}]
[null,null,null,null,{"$f":"+IFERROR(VLOOKUP(K104,pomocna2!A:B,2,FALSE),\"\")","v":""},{"$f":"+IFERROR((VLOOKUP(L104,pomocna!$AC$4:$AD$20,2,FALSE)),\"\")","v":""},null,{"$f":"+IFERROR(VLOOKUP(M104,pomocna3!$F$2:$G$7,2,FALSE),\"\")","v":""},null,{"$f":"+IFERROR(VLOOKUP(N104,pomocna2!A:B,2,FALSE),\"\")","v":""}]
[null,null,null,null,{"$f":"+IFERROR(VLOOKUP(K105,pomocna2!A:B,2,FALSE),\"\")","v":""},{"$f":"+IFERROR((VLOOKUP(L105,pomocna!$AC$4:$AD$20,2,FALSE)),\"\")","v":""},null,{"$f":"+IFERROR(VLOOKUP(M105,pomocna3!$F$2:$G$7,2,FALSE),\"\")","v":""},null,{"$f":"+IFERROR(VLOOKUP(N105,pomocna2!A:B,2,FALSE),\"\")","v":""}]
[null,null,null,null,{"$f":"+IFERROR(VLOOKUP(K106,pomocna2!A:B,2,FALSE),\"\")","v":""},{"$f":"+IFERROR((VLOOKUP(L106,pomocna!$AC$4:$AD$20,2,FALSE)),\"\")","v":""},null,{"$f":"+IFERROR(VLOOKUP(M106,pomocna3!$F$2:$G$7,2,FALSE),\"\")","v":""},null,{"$f":"+IFERROR(VLOOKUP(N106,pomocna2!A:B,2,FALSE),\"\")","v":""}]
[null,null,null,null,{"$f":"+IFERROR(VLOOKUP(K107,pomocna2!A:B,2,FALSE),\"\")","v":""},{"$f":"+IFERROR((VLOOKUP(L107,pomocna!$AC$4:$AD$20,2,FALSE)),\"\")","v":""},null,{"$f":"+IFERROR(VLOOKUP(M107,pomocna3!$F$2:$G$7,2,FALSE),\"\")","v":""},null,{"$f":"+IFERROR(VLOOKUP(N107,pomocna2!A:B,2,FALSE),\"\")","v":""}]
[null,null,null,null,{"$f":"+IFERROR(VLOOKUP(K108,pomocna2!A:B,2,FALSE),\"\")","v":""},{"$f":"+IFERROR((VLOOKUP(L108,pomocna!$AC$4:$AD$20,2,FALSE)),\"\")","v":""},null,{"$f":"+IFERROR(VLOOKUP(M108,pomocna3!$F$2:$G$7,2,FALSE),\"\")","v":""},null,{"$f":"+IFERROR(VLOOKUP(N108,pomocna2!A:B,2,FALSE),\"\")","v":""}]
[null,null,null,null,{"$f":"+IFERROR(VLOOKUP(K109,pomocna2!A:B,2,FALSE),\"\")","v":""},{"$f":"+IFERROR((VLOOKUP(L109,pomocna!$AC$4:$AD$20,2,FALSE)),\"\")","v":""},null,{"$f":"+IFERROR(VLOOKUP(M109,pomocna3!$F$2:$G$7,2,FALSE),\"\")","v":""},null,{"$f":"+IFERROR(VLOOKUP(N109,pomocna2!A:B,2,FALSE),\"\")","v":""}]
[null,null,null,null,{"$f":"+IFERROR(VLOOKUP(K110,pomocna2!A:B,2,FALSE),\"\")","v":""},{"$f":"+IFERROR((VLOOKUP(L110,pomocna!$AC$4:$AD$20,2,FALSE)),\"\")","v":""},null,{"$f":"+IFERROR(VLOOKUP(M110,pomocna3!$F$2:$G$7,2,FALSE),\"\")","v":""},null,{"$f":"+IFERROR(VLOOKUP(N110,pomocna2!A:B,2,FALSE),\"\")","v":""}]
[null,null,null,null,{"$f":"+IFERROR(VLOOKUP(K111,pomocna2!A:B,2,FALSE),\"\")","v":""},{"$f":"+IFERROR((VLOOKUP(L111,pomocna!$AC$4:$AD$20,2,FALSE)),\"\")","v":""},null,{"$f":"+IFERROR(VLOOKUP(M111,pomocna3!$F$2:$G$7,2,FALSE),\"\")","v":""},null,{"$f":"+IFERROR(VLOOKUP(N111,pomocna2!A:B,2,FALSE),\"\")","v":""}]
[null,null,null,null,{"$f":"+IFERROR(VLOOKUP(K112,pomocna2!A:B,2,FALSE),\"\")","v":""},{"$f":"+IFERROR((VLOOKUP(L112,pomocna!$AC$4:$AD$20,2,FALSE)),\"\")","v":""},null,{"$f":"+IFERROR(VLOOKUP(M112,pomocna3!$F$2:$G$7,2,FALSE),\"\")","v":""},null,{"$f":"+IFERROR(VLOOKUP(N112,pomocna2!A:B,2,FALSE),\"\")","v":""}]
[null,null,null,null,{"$f":"+IFERROR(VLOOKUP(K113,pomocna2!A:B,2,FALSE),\"\")","v":""},{"$f":"+IFERROR((VLOOKUP(L113,pomocna!$AC$4:$AD$20,2,FALSE)),\"\")","v":""},null,{"$f":"+IFERROR(VLOOKUP(M113,pomocna3!$F$2:$G$7,2,FALSE),\"\")","v":""},null,{"$f":"+IFERROR(VLOOKUP(N113,pomocna2!A:B,2,FALSE),\"\")","v":""}]
[null,null,null,null,{"$f":"+IFERROR(VLOOKUP(K114,pomocna2!A:B,2,FALSE),\"\")","v":""},{"$f":"+IFERROR((VLOOKUP(L114,pomocna!$AC$4:$AD$20,2,FALSE)),\"\")","v":""},null,{"$f":"+IFERROR(VLOOKUP(M114,pomocna3!$F$2:$G$7,2,FALSE),\"\")","v":""},null,{"$f":"+IFERROR(VLOOKUP(N114,pomocna2!A:B,2,FALSE),\"\")","v":""}]
[null,null,null,null,{"$f":"+IFERROR(VLOOKUP(K115,pomocna2!A:B,2,FALSE),\"\")","v":""},{"$f":"+IFERROR((VLOOKUP(L115,pomocna!$AC$4:$AD$20,2,FALSE)),\"\")","v":""},null,{"$f":"+IFERROR(VLOOKUP(M115,pomocna3!$F$2:$G$7,2,FALSE),\"\")","v":""},null,{"$f":"+IFERROR(VLOOKUP(N115,pomocna2!A:B,2,FALSE),\"\")","v":""}]
[null,null,null,null,{"$f":"+IFERROR(VLOOKUP(K116,pomocna2!A:B,2,FALSE),\"\")","v":""},{"$f":"+IFERROR((VLOOKUP(L116,pomocna!$AC$4:$AD$20,2,FALSE)),\"\")","v":""},null,{"$f":"+IFERROR(VLOOKUP(M116,pomocna3!$F$2:$G$7,2,FALSE),\"\")","v":""},null,{"$f":"+IFERROR(VLOOKUP(N116,pomocna2!A:B,2,FALSE),\"\")","v":""}]
[null,null,null,null,{"$f":"+IFERROR(VLOOKUP(K117,pomocna2!A:B,2,FALSE),\"\")","v":""},{"$f":"+IFERROR((VLOOKUP(L117,pomocna!$AC$4:$AD$20,2,FALSE)),\"\")","v":""},null,{"$f":"+IFERROR(VLOOKUP(M117,pomocna3!$F$2:$G$7,2,FALSE),\"\")","v":""},null,{"$f":"+IFERROR(VLOOKUP(N117,pomocna2!A:B,2,FALSE),\"\")","v":""}]
[null,null,null,null,{"$f":"+IFERROR(VLOOKUP(K118,pomocna2!A:B,2,FALSE),\"\")","v":""},{"$f":"+IFERROR((VLOOKUP(L118,pomocna!$AC$4:$AD$20,2,FALSE)),\"\")","v":""},null,{"$f":"+IFERROR(VLOOKUP(M118,pomocna3!$F$2:$G$7,2,FALSE),\"\")","v":""},null,{"$f":"+IFERROR(VLOOKUP(N118,pomocna2!A:B,2,FALSE),\"\")","v":""}]
[null,null,null,null,{"$f":"+IFERROR(VLOOKUP(K119,pomocna2!A:B,2,FALSE),\"\")","v":""},{"$f":"+IFERROR((VLOOKUP(L119,pomocna!$AC$4:$AD$20,2,FALSE)),\"\")","v":""},null,{"$f":"+IFERROR(VLOOKUP(M119,pomocna3!$F$2:$G$7,2,FALSE),\"\")","v":""},null,{"$f":"+IFERROR(VLOOKUP(N119,pomocna2!A:B,2,FALSE),\"\")","v":""}]
[null,null,null,null,{"$f":"+IFERROR(VLOOKUP(K120,pomocna2!A:B,2,FALSE),\"\")","v":""},{"$f":"+IFERROR((VLOOKUP(L120,pomocna!$AC$4:$AD$20,2,FALSE)),\"\")","v":""},null,{"$f":"+IFERROR(VLOOKUP(M120,pomocna3!$F$2:$G$7,2,FALSE),\"\")","v":""},null,{"$f":"+IFERROR(VLOOKUP(N120,pomocna2!A:B,2,FALSE),\"\")","v":""}]
[null,null,null,null,{"$f":"+IFERROR(VLOOKUP(K121,pomocna2!A:B,2,FALSE),\"\")","v":""},{"$f":"+IFERROR((VLOOKUP(L121,pomocna!$AC$4:$AD$20,2,FALSE)),\"\")","v":""},null,{"$f":"+IFERROR(VLOOKUP(M121,pomocna3!$F$2:$G$7,2,FALSE),\"\")","v":""},null,{"$f":"+IFERROR(VLOOKUP(N121,pomocna2!A:B,2,FALSE),\"\")","v":""}]
[null,null,null,null,{"$f":"+IFERROR(VLOOKUP(K122,pomocna2!A:B,2,FALSE),\"\")","v":""},{"$f":"+IFERROR((VLOOKUP(L122,pomocna!$AC$4:$AD$20,2,FALSE)),\"\")","v":""},null,{"$f":"+IFERROR(VLOOKUP(M122,pomocna3!$F$2:$G$7,2,FALSE),\"\")","v":""},null,{"$f":"+IFERROR(VLOOKUP(N122,pomocna2!A:B,2,FALSE),\"\")","v":""}]
[null,null,null,null,{"$f":"+IFERROR(VLOOKUP(K123,pomocna2!A:B,2,FALSE),\"\")","v":""},{"$f":"+IFERROR((VLOOKUP(L123,pomocna!$AC$4:$AD$20,2,FALSE)),\"\")","v":""},null,{"$f":"+IFERROR(VLOOKUP(M123,pomocna3!$F$2:$G$7,2,FALSE),\"\")","v":""},null,{"$f":"+IFERROR(VLOOKUP(N123,pomocna2!A:B,2,FALSE),\"\")","v":""}]
[null,null,null,null,{"$f":"+IFERROR(VLOOKUP(K124,pomocna2!A:B,2,FALSE),\"\")","v":""},{"$f":"+IFERROR((VLOOKUP(L124,pomocna!$AC$4:$AD$20,2,FALSE)),\"\")","v":""},null,{"$f":"+IFERROR(VLOOKUP(M124,pomocna3!$F$2:$G$7,2,FALSE),\"\")","v":""},null,{"$f":"+IFERROR(VLOOKUP(N124,pomocna2!A:B,2,FALSE),\"\")","v":""}]
[null,null,null,null,{"$f":"+IFERROR(VLOOKUP(K125,pomocna2!A:B,2,FALSE),\"\")","v":""},{"$f":"+IFERROR((VLOOKUP(L125,pomocna!$AC$4:$AD$20,2,FALSE)),\"\")","v":""},null,{"$f":"+IFERROR(VLOOKUP(M125,pomocna3!$F$2:$G$7,2,FALSE),\"\")","v":""},null,{"$f":"+IFERROR(VLOOKUP(N125,pomocna2!A:B,2,FALSE),\"\")","v":""}]
[null,null,null,null,{"$f":"+IFERROR(VLOOKUP(K126,pomocna2!A:B,2,FALSE),\"\")","v":""},{"$f":"+IFERROR((VLOOKUP(L126,pomocna!$AC$4:$AD$20,2,FALSE)),\"\")","v":""},null,{"$f":"+IFERROR(VLOOKUP(M126,pomocna3!$F$2:$G$7,2,FALSE),\"\")","v":""},null,{"$f":"+IFERROR(VLOOKUP(N126,pomocna2!A:B,2,FALSE),\"\")","v":""}]
[null,null,null,null,{"$f":"+IFERROR(VLOOKUP(K127,pomocna2!A:B,2,FALSE),\"\")","v":""},{"$f":"+IFERROR((VLOOKUP(L127,pomocna!$AC$4:$AD$20,2,FALSE)),\"\")","v":""},null,{"$f":"+IFERROR(VLOOKUP(M127,pomocna3!$F$2:$G$7,2,FALSE),\"\")","v":""},null,{"$f":"+IFERROR(VLOOKUP(N127,pomocna2!A:B,2,FALSE),\"\")","v":""}]
[null,null,null,null,{"$f":"+IFERROR(VLOOKUP(K128,pomocna2!A:B,2,FALSE),\"\")","v":""},{"$f":"+IFERROR((VLOOKUP(L128,pomocna!$AC$4:$AD$20,2,FALSE)),\"\")","v":""},null,{"$f":"+IFERROR(VLOOKUP(M128,pomocna3!$F$2:$G$7,2,FALSE),\"\")","v":""},null,{"$f":"+IFERROR(VLOOKUP(N128,pomocna2!A:B,2,FALSE),\"\")","v":""}]
[null,null,null,null,{"$f":"+IFERROR(VLOOKUP(K129,pomocna2!A:B,2,FALSE),\"\")","v":""},{"$f":"+IFERROR((VLOOKUP(L129,pomocna!$AC$4:$AD$20,2,FALSE)),\"\")","v":""},null,{"$f":"+IFERROR(VLOOKUP(M129,pomocna3!$F$2:$G$7,2,FALSE),\"\")","v":""},null,{"$f":"+IFERROR(VLOOKUP(N129,pomocna2!A:B,2,FALSE),\"\")","v":""}]
[null,null,null,null,{"$f":"+IFERROR(VLOOKUP(K130,pomocna2!A:B,2,FALSE),\"\")","v":""},{"$f":"+IFERROR((VLOOKUP(L130,pomocna!$AC$4:$AD$20,2,FALSE)),\"\")","v":""},null,{"$f":"+IFERROR(VLOOKUP(M130,pomocna3!$F$2:$G$7,2,FALSE),\"\")","v":""},null,{"$f":"+IFERROR(VLOOKUP(N130,pomocna2!A:B,2,FALSE),\"\")","v":""}]
[null,null,null,null,{"$f":"+IFERROR(VLOOKUP(K131,pomocna2!A:B,2,FALSE),\"\")","v":""},{"$f":"+IFERROR((VLOOKUP(L131,pomocna!$AC$4:$AD$20,2,FALSE)),\"\")","v":""},null,{"$f":"+IFERROR(VLOOKUP(M131,pomocna3!$F$2:$G$7,2,FALSE),\"\")","v":""},null,{"$f":"+IFERROR(VLOOKUP(N131,pomocna2!A:B,2,FALSE),\"\")","v":""}]
[null,null,null,null,{"$f":"+IFERROR(VLOOKUP(K132,pomocna2!A:B,2,FALSE),\"\")","v":""},{"$f":"+IFERROR((VLOOKUP(L132,pomocna!$AC$4:$AD$20,2,FALSE)),\"\")","v":""},null,{"$f":"+IFERROR(VLOOKUP(M132,pomocna3!$F$2:$G$7,2,FALSE),\"\")","v":""},null,{"$f":"+IFERROR(VLOOKUP(N132,pomocna2!A:B,2,FALSE),\"\")","v":""}]
[null,null,null,null,{"$f":"+IFERROR(VLOOKUP(K133,pomocna2!A:B,2,FALSE),\"\")","v":""},{"$f":"+IFERROR((VLOOKUP(L133,pomocna!$AC$4:$AD$20,2,FALSE)),\"\")","v":""},null,{"$f":"+IFERROR(VLOOKUP(M133,pomocna3!$F$2:$G$7,2,FALSE),\"\")","v":""},null,{"$f":"+IFERROR(VLOOKUP(N133,pomocna2!A:B,2,FALSE),\"\")","v":""}]
[null,null,null,null,{"$f":"+IFERROR(VLOOKUP(K134,pomocna2!A:B,2,FALSE),\"\")","v":""},{"$f":"+IFERROR((VLOOKUP(L134,pomocna!$AC$4:$AD$20,2,FALSE)),\"\")","v":""},null,{"$f":"+IFERROR(VLOOKUP(M134,pomocna3!$F$2:$G$7,2,FALSE),\"\")","v":""},null,{"$f":"+IFERROR(VLOOKUP(N134,pomocna2!A:B,2,FALSE),\"\")","v":""}]
[null,null,null,null,{"$f":"+IFERROR(VLOOKUP(K135,pomocna2!A:B,2,FALSE),\"\")","v":""},{"$f":"+IFERROR((VLOOKUP(L135,pomocna!$AC$4:$AD$20,2,FALSE)),\"\")","v":""},null,{"$f":"+IFERROR(VLOOKUP(M135,pomocna3!$F$2:$G$7,2,FALSE),\"\")","v":""},null,{"$f":"+IFERROR(VLOOKUP(N135,pomocna2!A:B,2,FALSE),\"\")","v":""}]
[null,null,null,null,{"$f":"+IFERROR(VLOOKUP(K136,pomocna2!A:B,2,FALSE),\"\")","v":""},{"$f":"+IFERROR((VLOOKUP(L136,pomocna!$AC$4:$AD$20,2,FALSE)),\"\")","v":""},null,{"$f":"+IFERROR(VLOOKUP(M136,pomocna3!$F$2:$G$7,2,FALSE),\"\")","v":""},null,{"$f":"+IFERROR(VLOOKUP(N136,pomocna2!A:B,2,FALSE),\"\")","v":""}]
[null,null,null,null,{"$f":"+IFERROR(VLOOKUP(K137,pomocna2!A:B,2,FALSE),\"\")","v":""},{"$f":"+IFERROR((VLOOKUP(L137,pomocna!$AC$4:$AD$20,2,FALSE)),\"\")","v":""},null,{"$f":"+IFERROR(VLOOKUP(M137,pomocna3!$F$2:$G$7,2,FALSE),\"\")","v":""},null,{"$f":"+IFERROR(VLOOKUP(N137,pomocna2!A:B,2,FALSE),\"\")","v":""}]
[null,null,null,null,{"$f":"+IFERROR(VLOOKUP(K138,pomocna2!A:B,2,FALSE),\"\")","v":""},{"$f":"+IFERROR((VLOOKUP(L138,pomocna!$AC$4:$AD$20,2,FALSE)),\"\")","v":""},null,{"$f":"+IFERROR(VLOOKUP(M138,pomocna3!$F$2:$G$7,2,FALSE),\"\")","v":""},null,{"$f":"+IFERROR(VLOOKUP(N138,pomocna2!A:B,2,FALSE),\"\")","v":""}]
[null,null,null,null,{"$f":"+IFERROR(VLOOKUP(K139,pomocna2!A:B,2,FALSE),\"\")","v":""},{"$f":"+IFERROR((VLOOKUP(L139,pomocna!$AC$4:$AD$20,2,FALSE)),\"\")","v":""},null,{"$f":"+IFERROR(VLOOKUP(M139,pomocna3!$F$2:$G$7,2,FALSE),\"\")","v":""},null,{"$f":"+IFERROR(VLOOKUP(N139,pomocna2!A:B,2,FALSE),\"\")","v":""}]
[null,null,null,null,{"$f":"+IFERROR(VLOOKUP(K140,pomocna2!A:B,2,FALSE),\"\")","v":""},{"$f":"+IFERROR((VLOOKUP(L140,pomocna!$AC$4:$AD$20,2,FALSE)),\"\")","v":""},null,{"$f":"+IFERROR(VLOOKUP(M140,pomocna3!$F$2:$G$7,2,FALSE),\"\")","v":""},null,{"$f":"+IFERROR(VLOOKUP(N140,pomocna2!A:B,2,FALSE),\"\")","v":""}]
[null,null,null,null,{"$f":"+IFERROR(VLOOKUP(K141,pomocna2!A:B,2,FALSE),\"\")","v":""},{"$f":"+IFERROR((VLOOKUP(L141,pomocna!$AC$4:$AD$20,2,FALSE)),\"\")","v":""},null,{"$f":"+IFERROR(VLOOKUP(M141,pomocna3!$F$2:$G$7,2,FALSE),\"\")","v":""},null,{"$f":"+IFERROR(VLOOKUP(N141,pomocna2!A:B,2,FALSE),\"\")","v":""}]
[null,null,null,null,{"$f":"+IFERROR(VLOOKUP(K142,pomocna2!A:B,2,FALSE),\"\")","v":""},{"$f":"+IFERROR((VLOOKUP(L142,pomocna!$AC$4:$AD$20,2,FALSE)),\"\")","v":""},null,{"$f":"+IFERROR(VLOOKUP(M142,pomocna3!$F$2:$G$7,2,FALSE),\"\")","v":""},null,{"$f":"+IFERROR(VLOOKUP(N142,pomocna2!A:B,2,FALSE),\"\")","v":""}]
[null,null,null,null,{"$f":"+IFERROR(VLOOKUP(K143,pomocna2!A:B,2,FALSE),\"\")","v":""},{"$f":"+IFERROR((VLOOKUP(L143,pomocna!$AC$4:$AD$20,2,FALSE)),\"\")","v":""},null,{"$f":"+IFERROR(VLOOKUP(M143,pomocna3!$F$2:$G$7,2,FALSE),\"\")","v":""},null,{"$f":"+IFERROR(VLOOKUP(N143,pomocna2!A:B,2,FALSE),\"\")","v":""}]
[null,null,null,null,{"$f":"+IFERROR(VLOOKUP(K144,pomocna2!A:B,2,FALSE),\"\")","v":""},{"$f":"+IFERROR((VLOOKUP(L144,pomocna!$AC$4:$AD$20,2,FALSE)),\"\")","v":""},null,{"$f":"+IFERROR(VLOOKUP(M144,pomocna3!$F$2:$G$7,2,FALSE),\"\")","v":""},null,{"$f":"+IFERROR(VLOOKUP(N144,pomocna2!A:B,2,FALSE),\"\")","v":""}]
[null,null,null,null,{"$f":"+IFERROR(VLOOKUP(K145,pomocna2!A:B,2,FALSE),\"\")","v":""},{"$f":"+IFERROR((VLOOKUP(L145,pomocna!$AC$4:$AD$20,2,FALSE)),\"\")","v":""},null,{"$f":"+IFERROR(VLOOKUP(M145,pomocna3!$F$2:$G$7,2,FALSE),\"\")","v":""},null,{"$f":"+IFERROR(VLOOKUP(N145,pomocna2!A:B,2,FALSE),\"\")","v":""}]
[null,null,null,null,{"$f":"+IFERROR(VLOOKUP(K146,pomocna2!A:B,2,FALSE),\"\")","v":""},{"$f":"+IFERROR((VLOOKUP(L146,pomocna!$AC$4:$AD$20,2,FALSE)),\"\")","v":""},null,{"$f":"+IFERROR(VLOOKUP(M146,pomocna3!$F$2:$G$7,2,FALSE),\"\")","v":""},null,{"$f":"+IFERROR(VLOOKUP(N146,pomocna2!A:B,2,FALSE),\"\")","v":""}]
[null,null,null,null,{"$f":"+IFERROR(VLOOKUP(K147,pomocna2!A:B,2,FALSE),\"\")","v":""},{"$f":"+IFERROR((VLOOKUP(L147,pomocna!$AC$4:$AD$20,2,FALSE)),\"\")","v":""},null,{"$f":"+IFERROR(VLOOKUP(M147,pomocna3!$F$2:$G$7,2,FALSE),\"\")","v":""},null,{"$f":"+IFERROR(VLOOKUP(N147,pomocna2!A:B,2,FALSE),\"\")","v":""}]
[null,null,null,null,{"$f":"+IFERROR(VLOOKUP(K148,pomocna2!A:B,2,FALSE),\"\")","v":""},{"$f":"+IFERROR((VLOOKUP(L148,pomocna!$AC$4:$AD$20,2,FALSE)),\"\")","v":""},null,{"$f":"+IFERROR(VLOOKUP(M148,pomocna3!$F$2:$G$7,2,FALSE),\"\")","v":""},null,{"$f":"+IFERROR(VLOOKUP(N148,pomocna2!A:B,2,FALSE),\"\")","v":""}]
[null,null,null,null,{"$f":"+IFERROR(VLOOKUP(K149,pomocna2!A:B,2,FALSE),\"\")","v":""},{"$f":"+IFERROR((VLOOKUP(L149,pomocna!$AC$4:$AD$20,2,FALSE)),\"\")","v":""},null,{"$f":"+IFERROR(VLOOKUP(M149,pomocna3!$F$2:$G$7,2,FALSE),\"\")","v":""},null,{"$f":"+IFERROR(VLOOKUP(N149,pomocna2!A:B,2,FALSE),\"\")","v":""}]
[null,null,null,null,{"$f":"+IFERROR(VLOOKUP(K150,pomocna2!A:B,2,FALSE),\"\")","v":""},{"$f":"+IFERROR((VLOOKUP(L150,pomocna!$AC$4:$AD$20,2,FALSE)),\"\")","v":""},null,{"$f":"+IFERROR(VLOOKUP(M150,pomocna3!$F$2:$G$7,2,FALSE),\"\")","v":""},null,{"$f":"+IFERROR(VLOOKUP(N150,pomocna2!A:B,2,FALSE),\"\")","v":""}]
[null,null,null,null,{"$f":"+IFERROR(VLOOKUP(K151,pomocna2!A:B,2,FALSE),\"\")","v":""},{"$f":"+IFERROR((VLOOKUP(L151,pomocna!$AC$4:$AD$20,2,FALSE)),\"\")","v":""},null,{"$f":"+IFERROR(VLOOKUP(M151,pomocna3!$F$2:$G$7,2,FALSE),\"\")","v":""},null,{"$f":"+IFERROR(VLOOKUP(N151,pomocna2!A:B,2,FALSE),\"\")","v":""}]
[null,null,null,null,{"$f":"+IFERROR(VLOOKUP(K152,pomocna2!A:B,2,FALSE),\"\")","v":""},{"$f":"+IFERROR((VLOOKUP(L152,pomocna!$AC$4:$AD$20,2,FALSE)),\"\")","v":""},null,{"$f":"+IFERROR(VLOOKUP(M152,pomocna3!$F$2:$G$7,2,FALSE),\"\")","v":""},null,{"$f":"+IFERROR(VLOOKUP(N152,pomocna2!A:B,2,FALSE),\"\")","v":""}]
[null,null,null,null,{"$f":"+IFERROR(VLOOKUP(K153,pomocna2!A:B,2,FALSE),\"\")","v":""},{"$f":"+IFERROR((VLOOKUP(L153,pomocna!$AC$4:$AD$20,2,FALSE)),\"\")","v":""},null,{"$f":"+IFERROR(VLOOKUP(M153,pomocna3!$F$2:$G$7,2,FALSE),\"\")","v":""},null,{"$f":"+IFERROR(VLOOKUP(N153,pomocna2!A:B,2,FALSE),\"\")","v":""}]
[null,null,null,null,{"$f":"+IFERROR(VLOOKUP(K154,pomocna2!A:B,2,FALSE),\"\")","v":""},{"$f":"+IFERROR((VLOOKUP(L154,pomocna!$AC$4:$AD$20,2,FALSE)),\"\")","v":""},null,{"$f":"+IFERROR(VLOOKUP(M154,pomocna3!$F$2:$G$7,2,FALSE),\"\")","v":""},null,{"$f":"+IFERROR(VLOOKUP(N154,pomocna2!A:B,2,FALSE),\"\")","v":""}]
[null,null,null,null,{"$f":"+IFERROR(VLOOKUP(K155,pomocna2!A:B,2,FALSE),\"\")","v":""},{"$f":"+IFERROR((VLOOKUP(L155,pomocna!$AC$4:$AD$20,2,FALSE)),\"\")","v":""},null,{"$f":"+IFERROR(VLOOKUP(M155,pomocna3!$F$2:$G$7,2,FALSE),\"\")","v":""},null,{"$f":"+IFERROR(VLOOKUP(N155,pomocna2!A:B,2,FALSE),\"\")","v":""}]
[null,null,null,null,{"$f":"+IFERROR(VLOOKUP(K156,pomocna2!A:B,2,FALSE),\"\")","v":""},{"$f":"+IFERROR((VLOOKUP(L156,pomocna!$AC$4:$AD$20,2,FALSE)),\"\")","v":""},null,{"$f":"+IFERROR(VLOOKUP(M156,pomocna3!$F$2:$G$7,2,FALSE),\"\")","v":""},null,{"$f":"+IFERROR(VLOOKUP(N156,pomocna2!A:B,2,FALSE),\"\")","v":""}]
[null,null,null,null,{"$f":"+IFERROR(VLOOKUP(K157,pomocna2!A:B,2,FALSE),\"\")","v":""},{"$f":"+IFERROR((VLOOKUP(L157,pomocna!$AC$4:$AD$20,2,FALSE)),\"\")","v":""},null,{"$f":"+IFERROR(VLOOKUP(M157,pomocna3!$F$2:$G$7,2,FALSE),\"\")","v":""},null,{"$f":"+IFERROR(VLOOKUP(N157,pomocna2!A:B,2,FALSE),\"\")","v":""}]
[null,null,null,null,{"$f":"+IFERROR(VLOOKUP(K158,pomocna2!A:B,2,FALSE),\"\")","v":""},{"$f":"+IFERROR((VLOOKUP(L158,pomocna!$AC$4:$AD$20,2,FALSE)),\"\")","v":""},null,{"$f":"+IFERROR(VLOOKUP(M158,pomocna3!$F$2:$G$7,2,FALSE),\"\")","v":""},null,{"$f":"+IFERROR(VLOOKUP(N158,pomocna2!A:B,2,FALSE),\"\")","v":""}]
[null,null,null,null,{"$f":"+IFERROR(VLOOKUP(K159,pomocna2!A:B,2,FALSE),\"\")","v":""},{"$f":"+IFERROR((VLOOKUP(L159,pomocna!$AC$4:$AD$20,2,FALSE)),\"\")","v":""},null,{"$f":"+IFERROR(VLOOKUP(M159,pomocna3!$F$2:$G$7,2,FALSE),\"\")","v":""},null,{"$f":"+IFERROR(VLOOKUP(N159,pomocna2!A:B,2,FALSE),\"\")","v":""}]
[null,null,null,null,{"$f":"+IFERROR(VLOOKUP(K160,pomocna2!A:B,2,FALSE),\"\")","v":""},{"$f":"+IFERROR((VLOOKUP(L160,pomocna!$AC$4:$AD$20,2,FALSE)),\"\")","v":""},null,{"$f":"+IFERROR(VLOOKUP(M160,pomocna3!$F$2:$G$7,2,FALSE),\"\")","v":""},null,{"$f":"+IFERROR(VLOOKUP(N160,pomocna2!A:B,2,FALSE),\"\")","v":""}]
[null,null,null,null,{"$f":"+IFERROR(VLOOKUP(K161,pomocna2!A:B,2,FALSE),\"\")","v":""},{"$f":"+IFERROR((VLOOKUP(L161,pomocna!$AC$4:$AD$20,2,FALSE)),\"\")","v":""},null,{"$f":"+IFERROR(VLOOKUP(M161,pomocna3!$F$2:$G$7,2,FALSE),\"\")","v":""},null,{"$f":"+IFERROR(VLOOKUP(N161,pomocna2!A:B,2,FALSE),\"\")","v":""}]
[null,null,null,null,{"$f":"+IFERROR(VLOOKUP(K162,pomocna2!A:B,2,FALSE),\"\")","v":""},{"$f":"+IFERROR((VLOOKUP(L162,pomocna!$AC$4:$AD$20,2,FALSE)),\"\")","v":""},null,{"$f":"+IFERROR(VLOOKUP(M162,pomocna3!$F$2:$G$7,2,FALSE),\"\")","v":""},null,{"$f":"+IFERROR(VLOOKUP(N162,pomocna2!A:B,2,FALSE),\"\")","v":""}]
[null,null,null,null,{"$f":"+IFERROR(VLOOKUP(K163,pomocna2!A:B,2,FALSE),\"\")","v":""},{"$f":"+IFERROR((VLOOKUP(L163,pomocna!$AC$4:$AD$20,2,FALSE)),\"\")","v":""},null,{"$f":"+IFERROR(VLOOKUP(M163,pomocna3!$F$2:$G$7,2,FALSE),\"\")","v":""},null,{"$f":"+IFERROR(VLOOKUP(N163,pomocna2!A:B,2,FALSE),\"\")","v":""}]
[null,null,null,null,{"$f":"+IFERROR(VLOOKUP(K164,pomocna2!A:B,2,FALSE),\"\")","v":""},{"$f":"+IFERROR((VLOOKUP(L164,pomocna!$AC$4:$AD$20,2,FALSE)),\"\")","v":""},null,{"$f":"+IFERROR(VLOOKUP(M164,pomocna3!$F$2:$G$7,2,FALSE),\"\")","v":""},null,{"$f":"+IFERROR(VLOOKUP(N164,pomocna2!A:B,2,FALSE),\"\")","v":""}]
[null,null,null,null,{"$f":"+IFERROR(VLOOKUP(K165,pomocna2!A:B,2,FALSE),\"\")","v":""},{"$f":"+IFERROR((VLOOKUP(L165,pomocna!$AC$4:$AD$20,2,FALSE)),\"\")","v":""},null,{"$f":"+IFERROR(VLOOKUP(M165,pomocna3!$F$2:$G$7,2,FALSE),\"\")","v":""},null,{"$f":"+IFERROR(VLOOKUP(N165,pomocna2!A:B,2,FALSE),\"\")","v":""}]
[null,null,null,null,{"$f":"+IFERROR(VLOOKUP(K166,pomocna2!A:B,2,FALSE),\"\")","v":""},{"$f":"+IFERROR((VLOOKUP(L166,pomocna!$AC$4:$AD$20,2,FALSE)),\"\")","v":""},null,{"$f":"+IFERROR(VLOOKUP(M166,pomocna3!$F$2:$G$7,2,FALSE),\"\")","v":""},null,{"$f":"+IFERROR(VLOOKUP(N166,pomocna2!A:B,2,FALSE),\"\")","v":""}]
[null,null,null,null,{"$f":"+IFERROR(VLOOKUP(K167,pomocna2!A:B,2,FALSE),\"\")","v":""},{"$f":"+IFERROR((VLOOKUP(L167,pomocna!$AC$4:$AD$20,2,FALSE)),\"\")","v":""},null,{"$f":"+IFERROR(VLOOKUP(M167,pomocna3!$F$2:$G$7,2,FALSE),\"\")","v":""},null,{"$f":"+IFERROR(VLOOKUP(N167,pomocna2!A:B,2,FALSE),\"\")","v":""}]
[null,null,null,null,{"$f":"+IFERROR(VLOOKUP(K168,pomocna2!A:B,2,FALSE),\"\")","v":""},{"$f":"+IFERROR((VLOOKUP(L168,pomocna!$AC$4:$AD$20,2,FALSE)),\"\")","v":""},null,{"$f":"+IFERROR(VLOOKUP(M168,pomocna3!$F$2:$G$7,2,FALSE),\"\")","v":""},null,{"$f":"+IFERROR(VLOOKUP(N168,pomocna2!A:B,2,FALSE),\"\")","v":""}]
[null,null,null,null,{"$f":"+IFERROR(VLOOKUP(K169,pomocna2!A:B,2,FALSE),\"\")","v":""},{"$f":"+IFERROR((VLOOKUP(L169,pomocna!$AC$4:$AD$20,2,FALSE)),\"\")","v":""},null,{"$f":"+IFERROR(VLOOKUP(M169,pomocna3!$F$2:$G$7,2,FALSE),\"\")","v":""},null,{"$f":"+IFERROR(VLOOKUP(N169,pomocna2!A:B,2,FALSE),\"\")","v":""}]
[null,null,null,null,{"$f":"+IFERROR(VLOOKUP(K170,pomocna2!A:B,2,FALSE),\"\")","v":""},{"$f":"+IFERROR((VLOOKUP(L170,pomocna!$AC$4:$AD$20,2,FALSE)),\"\")","v":""},null,{"$f":"+IFERROR(VLOOKUP(M170,pomocna3!$F$2:$G$7,2,FALSE),\"\")","v":""},null,{"$f":"+IFERROR(VLOOKUP(N170,pomocna2!A:B,2,FALSE),\"\")","v":""}]
[null,null,null,null,{"$f":"+IFERROR(VLOOKUP(K171,pomocna2!A:B,2,FALSE),\"\")","v":""},{"$f":"+IFERROR((VLOOKUP(L171,pomocna!$AC$4:$AD$20,2,FALSE)),\"\")","v":""},null,{"$f":"+IFERROR(VLOOKUP(M171,pomocna3!$F$2:$G$7,2,FALSE),\"\")","v":""},null,{"$f":"+IFERROR(VLOOKUP(N171,pomocna2!A:B,2,FALSE),\"\")","v":""}]
[null,null,null,null,{"$f":"+IFERROR(VLOOKUP(K172,pomocna2!A:B,2,FALSE),\"\")","v":""},{"$f":"+IFERROR((VLOOKUP(L172,pomocna!$AC$4:$AD$20,2,FALSE)),\"\")","v":""},null,{"$f":"+IFERROR(VLOOKUP(M172,pomocna3!$F$2:$G$7,2,FALSE),\"\")","v":""},null,{"$f":"+IFERROR(VLOOKUP(N172,pomocna2!A:B,2,FALSE),\"\")","v":""}]
[null,null,null,null,{"$f":"+IFERROR(VLOOKUP(K173,pomocna2!A:B,2,FALSE),\"\")","v":""},{"$f":"+IFERROR((VLOOKUP(L173,pomocna!$AC$4:$AD$20,2,FALSE)),\"\")","v":""},null,{"$f":"+IFERROR(VLOOKUP(M173,pomocna3!$F$2:$G$7,2,FALSE),\"\")","v":""},null,{"$f":"+IFERROR(VLOOKUP(N173,pomocna2!A:B,2,FALSE),\"\")","v":""}]
[null,null,null,null,{"$f":"+IFERROR(VLOOKUP(K174,pomocna2!A:B,2,FALSE),\"\")","v":""},{"$f":"+IFERROR((VLOOKUP(L174,pomocna!$AC$4:$AD$20,2,FALSE)),\"\")","v":""},null,{"$f":"+IFERROR(VLOOKUP(M174,pomocna3!$F$2:$G$7,2,FALSE),\"\")","v":""},null,{"$f":"+IFERROR(VLOOKUP(N174,pomocna2!A:B,2,FALSE),\"\")","v":""}]
[null,null,null,null,{"$f":"+IFERROR(VLOOKUP(K175,pomocna2!A:B,2,FALSE),\"\")","v":""},{"$f":"+IFERROR((VLOOKUP(L175,pomocna!$AC$4:$AD$20,2,FALSE)),\"\")","v":""},null,{"$f":"+IFERROR(VLOOKUP(M175,pomocna3!$F$2:$G$7,2,FALSE),\"\")","v":""},null,{"$f":"+IFERROR(VLOOKUP(N175,pomocna2!A:B,2,FALSE),\"\")","v":""}]
[null,null,null,null,{"$f":"+IFERROR(VLOOKUP(K176,pomocna2!A:B,2,FALSE),\"\")","v":""},{"$f":"+IFERROR((VLOOKUP(L176,pomocna!$AC$4:$AD$20,2,FALSE)),\"\")","v":""},null,{"$f":"+IFERROR(VLOOKUP(M176,pomocna3!$F$2:$G$7,2,FALSE),\"\")","v":""},null,{"$f":"+IFERROR(VLOOKUP(N176,pomocna2!A:B,2,FALSE),\"\")","v":""}]
[null,null,null,null,{"$f":"+IFERROR(VLOOKUP(K177,pomocna2!A:B,2,FALSE),\"\")","v":""},{"$f":"+IFERROR((VLOOKUP(L177,pomocna!$AC$4:$AD$20,2,FALSE)),\"\")","v":""},null,{"$f":"+IFERROR(VLOOKUP(M177,pomocna3!$F$2:$G$7,2,FALSE),\"\")","v":""},null,{"$f":"+IFERROR(VLOOKUP(N177,pomocna2!A:B,2,FALSE),\"\")","v":""}]
[null,null,null,null,{"$f":"+IFERROR(VLOOKUP(K178,pomocna2!A:B,2,FALSE),\"\")","v":""},{"$f":"+IFERROR((VLOOKUP(L178,pomocna!$AC$4:$AD$20,2,FALSE)),\"\")","v":""},null,{"$f":"+IFERROR(VLOOKUP(M178,pomocna3!$F$2:$G$7,2,FALSE),\"\")","v":""},null,{"$f":"+IFERROR(VLOOKUP(N178,pomocna2!A:B,2,FALSE),\"\")","v":""}]
[null,null,null,null,{"$f":"+IFERROR(VLOOKUP(K179,pomocna2!A:B,2,FALSE),\"\")","v":""},{"$f":"+IFERROR((VLOOKUP(L179,pomocna!$AC$4:$AD$20,2,FALSE)),\"\")","v":""},null,{"$f":"+IFERROR(VLOOKUP(M179,pomocna3!$F$2:$G$7,2,FALSE),\"\")","v":""},null,{"$f":"+IFERROR(VLOOKUP(N179,pomocna2!A:B,2,FALSE),\"\")","v":""}]
[null,null,null,null,{"$f":"+IFERROR(VLOOKUP(K180,pomocna2!A:B,2,FALSE),\"\")","v":""},{"$f":"+IFERROR((VLOOKUP(L180,pomocna!$AC$4:$AD$20,2,FALSE)),\"\")","v":""},null,{"$f":"+IFERROR(VLOOKUP(M180,pomocna3!$F$2:$G$7,2,FALSE),\"\")","v":""},null,{"$f":"+IFERROR(VLOOKUP(N180,pomocna2!A:B,2,FALSE),\"\")","v":""}]
[null,null,null,null,{"$f":"+IFERROR(VLOOKUP(K181,pomocna2!A:B,2,FALSE),\"\")","v":""},{"$f":"+IFERROR((VLOOKUP(L181,pomocna!$AC$4:$AD$20,2,FALSE)),\"\")","v":""},null,{"$f":"+IFERROR(VLOOKUP(M181,pomocna3!$F$2:$G$7,2,FALSE),\"\")","v":""},null,{"$f":"+IFERROR(VLOOKUP(N181,pomocna2!A:B,2,FALSE),\"\")","v":""}]
[null,null,null,null,{"$f":"+IFERROR(VLOOKUP(K182,pomocna2!A:B,2,FALSE),\"\")","v":""},{"$f":"+IFERROR((VLOOKUP(L182,pomocna!$AC$4:$AD$20,2,FALSE)),\"\")","v":""},null,{"$f":"+IFERROR(VLOOKUP(M182,pomocna3!$F$2:$G$7,2,FALSE),\"\")","v":""},null,{"$f":"+IFERROR(VLOOKUP(N182,pomocna2!A:B,2,FALSE),\"\")","v":""}]
[null,null,null,null,{"$f":"+IFERROR(VLOOKUP(K183,pomocna2!A:B,2,FALSE),\"\")","v":""},{"$f":"+IFERROR((VLOOKUP(L183,pomocna!$AC$4:$AD$20,2,FALSE)),\"\")","v":""},null,{"$f":"+IFERROR(VLOOKUP(M183,pomocna3!$F$2:$G$7,2,FALSE),\"\")","v":""},null,{"$f":"+IFERROR(VLOOKUP(N183,pomocna2!A:B,2,FALSE),\"\")","v":""}]
[null,null,null,null,{"$f":"+IFERROR(VLOOKUP(K184,pomocna2!A:B,2,FALSE),\"\")","v":""},{"$f":"+IFERROR((VLOOKUP(L184,pomocna!$AC$4:$AD$20,2,FALSE)),\"\")","v":""},null,{"$f":"+IFERROR(VLOOKUP(M184,pomocna3!$F$2:$G$7,2,FALSE),\"\")","v":""},null,{"$f":"+IFERROR(VLOOKUP(N184,pomocna2!A:B,2,FALSE),\"\")","v":""}]
[null,null,null,null,{"$f":"+IFERROR(VLOOKUP(K185,pomocna2!A:B,2,FALSE),\"\")","v":""},{"$f":"+IFERROR((VLOOKUP(L185,pomocna!$AC$4:$AD$20,2,FALSE)),\"\")","v":""},null,{"$f":"+IFERROR(VLOOKUP(M185,pomocna3!$F$2:$G$7,2,FALSE),\"\")","v":""},null,{"$f":"+IFERROR(VLOOKUP(N185,pomocna2!A:B,2,FALSE),\"\")","v":""}]
[null,null,null,null,{"$f":"+IFERROR(VLOOKUP(K186,pomocna2!A:B,2,FALSE),\"\")","v":""},{"$f":"+IFERROR((VLOOKUP(L186,pomocna!$AC$4:$AD$20,2,FALSE)),\"\")","v":""},null,{"$f":"+IFERROR(VLOOKUP(M186,pomocna3!$F$2:$G$7,2,FALSE),\"\")","v":""},null,{"$f":"+IFERROR(VLOOKUP(N186,pomocna2!A:B,2,FALSE),\"\")","v":""}]
[null,null,null,null,{"$f":"+IFERROR(VLOOKUP(K187,pomocna2!A:B,2,FALSE),\"\")","v":""},{"$f":"+IFERROR((VLOOKUP(L187,pomocna!$AC$4:$AD$20,2,FALSE)),\"\")","v":""},null,{"$f":"+IFERROR(VLOOKUP(M187,pomocna3!$F$2:$G$7,2,FALSE),\"\")","v":""},null,{"$f":"+IFERROR(VLOOKUP(N187,pomocna2!A:B,2,FALSE),\"\")","v":""}]
[null,null,null,null,{"$f":"+IFERROR(VLOOKUP(K188,pomocna2!A:B,2,FALSE),\"\")","v":""},{"$f":"+IFERROR((VLOOKUP(L188,pomocna!$AC$4:$AD$20,2,FALSE)),\"\")","v":""},null,{"$f":"+IFERROR(VLOOKUP(M188,pomocna3!$F$2:$G$7,2,FALSE),\"\")","v":""},null,{"$f":"+IFERROR(VLOOKUP(N188,pomocna2!A:B,2,FALSE),\"\")","v":""}]
[null,null,null,null,{"$f":"+IFERROR(VLOOKUP(K189,pomocna2!A:B,2,FALSE),\"\")","v":""},{"$f":"+IFERROR((VLOOKUP(L189,pomocna!$AC$4:$AD$20,2,FALSE)),\"\")","v":""},null,{"$f":"+IFERROR(VLOOKUP(M189,pomocna3!$F$2:$G$7,2,FALSE),\"\")","v":""},null,{"$f":"+IFERROR(VLOOKUP(N189,pomocna2!A:B,2,FALSE),\"\")","v":""}]
[null,null,null,null,{"$f":"+IFERROR(VLOOKUP(K190,pomocna2!A:B,2,FALSE),\"\")","v":""},{"$f":"+IFERROR((VLOOKUP(L190,pomocna!$AC$4:$AD$20,2,FALSE)),\"\")","v":""},null,{"$f":"+IFERROR(VLOOKUP(M190,pomocna3!$F$2:$G$7,2,FALSE),\"\")","v":""},null,{"$f":"+IFERROR(VLOOKUP(N190,pomocna2!A:B,2,FALSE),\"\")","v":""}]
[null,null,null,null,{"$f":"+IFERROR(VLOOKUP(K191,pomocna2!A:B,2,FALSE),\"\")","v":""},{"$f":"+IFERROR((VLOOKUP(L191,pomocna!$AC$4:$AD$20,2,FALSE)),\"\")","v":""},null,{"$f":"+IFERROR(VLOOKUP(M191,pomocna3!$F$2:$G$7,2,FALSE),\"\")","v":""},null,{"$f":"+IFERROR(VLOOKUP(N191,pomocna2!A:B,2,FALSE),\"\")","v":""}]
[null,null,null,null,{"$f":"+IFERROR(VLOOKUP(K192,pomocna2!A:B,2,FALSE),\"\")","v":""},{"$f":"+IFERROR((VLOOKUP(L192,pomocna!$AC$4:$AD$20,2,FALSE)),\"\")","v":""},null,{"$f":"+IFERROR(VLOOKUP(M192,pomocna3!$F$2:$G$7,2,FALSE),\"\")","v":""},null,{"$f":"+IFERROR(VLOOKUP(N192,pomocna2!A:B,2,FALSE),\"\")","v":""}]
[null,null,null,null,{"$f":"+IFERROR(VLOOKUP(K193,pomocna2!A:B,2,FALSE),\"\")","v":""},{"$f":"+IFERROR((VLOOKUP(L193,pomocna!$AC$4:$AD$20,2,FALSE)),\"\")","v":""},null,{"$f":"+IFERROR(VLOOKUP(M193,pomocna3!$F$2:$G$7,2,FALSE),\"\")","v":""},null,{"$f":"+IFERROR(VLOOKUP(N193,pomocna2!A:B,2,FALSE),\"\")","v":""}]
[null,null,null,null,{"$f":"+IFERROR(VLOOKUP(K194,pomocna2!A:B,2,FALSE),\"\")","v":""},{"$f":"+IFERROR((VLOOKUP(L194,pomocna!$AC$4:$AD$20,2,FALSE)),\"\")","v":""},null,{"$f":"+IFERROR(VLOOKUP(M194,pomocna3!$F$2:$G$7,2,FALSE),\"\")","v":""},null,{"$f":"+IFERROR(VLOOKUP(N194,pomocna2!A:B,2,FALSE),\"\")","v":""}]
[null,null,null,null,{"$f":"+IFERROR(VLOOKUP(K195,pomocna2!A:B,2,FALSE),\"\")","v":""},{"$f":"+IFERROR((VLOOKUP(L195,pomocna!$AC$4:$AD$20,2,FALSE)),\"\")","v":""},null,{"$f":"+IFERROR(VLOOKUP(M195,pomocna3!$F$2:$G$7,2,FALSE),\"\")","v":""},null,{"$f":"+IFERROR(VLOOKUP(N195,pomocna2!A:B,2,FALSE),\"\")","v":""}]
[null,null,null,null,{"$f":"+IFERROR(VLOOKUP(K196,pomocna2!A:B,2,FALSE),\"\")","v":""},{"$f":"+IFERROR((VLOOKUP(L196,pomocna!$AC$4:$AD$20,2,FALSE)),\"\")","v":""},null,{"$f":"+IFERROR(VLOOKUP(M196,pomocna3!$F$2:$G$7,2,FALSE),\"\")","v":""},null,{"$f":"+IFERROR(VLOOKUP(N196,pomocna2!A:B,2,FALSE),\"\")","v":""}]
[null,null,null,null,{"$f":"+IFERROR(VLOOKUP(K197,pomocna2!A:B,2,FALSE),\"\")","v":""},{"$f":"+IFERROR((VLOOKUP(L197,pomocna!$AC$4:$AD$20,2,FALSE)),\"\")","v":""},null,{"$f":"+IFERROR(VLOOKUP(M197,pomocna3!$F$2:$G$7,2,FALSE),\"\")","v":""},null,{"$f":"+IFERROR(VLOOKUP(N197,pomocna2!A:B,2,FALSE),\"\")","v":""}]
[null,null,null,null,{"$f":"+IFERROR(VLOOKUP(K198,pomocna2!A:B,2,FALSE),\"\")","v":""},{"$f":"+IFERROR((VLOOKUP(L198,pomocna!$AC$4:$AD$20,2,FALSE)),\"\")","v":""},null,{"$f":"+IFERROR(VLOOKUP(M198,pomocna3!$F$2:$G$7,2,FALSE),\"\")","v":""},null,{"$f":"+IFERROR(VLOOKUP(N198,pomocna2!A:B,2,FALSE),\"\")","v":""}]
[null,null,null,null,{"$f":"+IFERROR(VLOOKUP(K199,pomocna2!A:B,2,FALSE),\"\")","v":""},{"$f":"+IFERROR((VLOOKUP(L199,pomocna!$AC$4:$AD$20,2,FALSE)),\"\")","v":""},null,{"$f":"+IFERROR(VLOOKUP(M199,pomocna3!$F$2:$G$7,2,FALSE),\"\")","v":""},null,{"$f":"+IFERROR(VLOOKUP(N199,pomocna2!A:B,2,FALSE),\"\")","v":""}]
[null,null,null,null,{"$f":"+IFERROR(VLOOKUP(K200,pomocna2!A:B,2,FALSE),\"\")","v":""},{"$f":"+IFERROR((VLOOKUP(L200,pomocna!$AC$4:$AD$20,2,FALSE)),\"\")","v":""},null,{"$f":"+IFERROR(VLOOKUP(M200,pomocna3!$F$2:$G$7,2,FALSE),\"\")","v":""},null,{"$f":"+IFERROR(VLOOKUP(N200,pomocna2!A:B,2,FALSE),\"\")","v":""}]
[null,null,null,null,{"$f":"+IFERROR(VLOOKUP(K201,pomocna2!A:B,2,FALSE),\"\")","v":""},{"$f":"+IFERROR((VLOOKUP(L201,pomocna!$AC$4:$AD$20,2,FALSE)),\"\")","v":""},null,{"$f":"+IFERROR(VLOOKUP(M201,pomocna3!$F$2:$G$7,2,FALSE),\"\")","v":""},null,{"$f":"+IFERROR(VLOOKUP(N201,pomocna2!A:B,2,FALSE),\"\")","v":""}]
[null,null,null,null,{"$f":"+IFERROR(VLOOKUP(K202,pomocna2!A:B,2,FALSE),\"\")","v":""},{"$f":"+IFERROR((VLOOKUP(L202,pomocna!$AC$4:$AD$20,2,FALSE)),\"\")","v":""},null,{"$f":"+IFERROR(VLOOKUP(M202,pomocna3!$F$2:$G$7,2,FALSE),\"\")","v":""},null,{"$f":"+IFERROR(VLOOKUP(N202,pomocna2!A:B,2,FALSE),\"\")","v":""}]
[null,null,null,null,{"$f":"+IFERROR(VLOOKUP(K203,pomocna2!A:B,2,FALSE),\"\")","v":""},{"$f":"+IFERROR((VLOOKUP(L203,pomocna!$AC$4:$AD$20,2,FALSE)),\"\")","v":""},null,{"$f":"+IFERROR(VLOOKUP(M203,pomocna3!$F$2:$G$7,2,FALSE),\"\")","v":""},null,{"$f":"+IFERROR(VLOOKUP(N203,pomocna2!A:B,2,FALSE),\"\")","v":""}]
[null,null,null,null,{"$f":"+IFERROR(VLOOKUP(K204,pomocna2!A:B,2,FALSE),\"\")","v":""},{"$f":"+IFERROR((VLOOKUP(L204,pomocna!$AC$4:$AD$20,2,FALSE)),\"\")","v":""},null,{"$f":"+IFERROR(VLOOKUP(M204,pomocna3!$F$2:$G$7,2,FALSE),\"\")","v":""},null,{"$f":"+IFERROR(VLOOKUP(N204,pomocna2!A:B,2,FALSE),\"\")","v":""}]
[null,null,null,null,{"$f":"+IFERROR(VLOOKUP(K205,pomocna2!A:B,2,FALSE),\"\")","v":""},{"$f":"+IFERROR((VLOOKUP(L205,pomocna!$AC$4:$AD$20,2,FALSE)),\"\")","v":""},null,{"$f":"+IFERROR(VLOOKUP(M205,pomocna3!$F$2:$G$7,2,FALSE),\"\")","v":""},null,{"$f":"+IFERROR(VLOOKUP(N205,pomocna2!A:B,2,FALSE),\"\")","v":""}]
[null,null,null,null,{"$f":"+IFERROR(VLOOKUP(K206,pomocna2!A:B,2,FALSE),\"\")","v":""},{"$f":"+IFERROR((VLOOKUP(L206,pomocna!$AC$4:$AD$20,2,FALSE)),\"\")","v":""},null,{"$f":"+IFERROR(VLOOKUP(M206,pomocna3!$F$2:$G$7,2,FALSE),\"\")","v":""},null,{"$f":"+IFERROR(VLOOKUP(N206,pomocna2!A:B,2,FALSE),\"\")","v":""}]
[null,null,null,null,{"$f":"+IFERROR(VLOOKUP(K207,pomocna2!A:B,2,FALSE),\"\")","v":""},{"$f":"+IFERROR((VLOOKUP(L207,pomocna!$AC$4:$AD$20,2,FALSE)),\"\")","v":""},null,{"$f":"+IFERROR(VLOOKUP(M207,pomocna3!$F$2:$G$7,2,FALSE),\"\")","v":""},null,{"$f":"+IFERROR(VLOOKUP(N207,pomocna2!A:B,2,FALSE),\"\")","v":""}]
[null,null,null,null,{"$f":"+IFERROR(VLOOKUP(K208,pomocna2!A:B,2,FALSE),\"\")","v":""},{"$f":"+IFERROR((VLOOKUP(L208,pomocna!$AC$4:$AD$20,2,FALSE)),\"\")","v":""},null,{"$f":"+IFERROR(VLOOKUP(M208,pomocna3!$F$2:$G$7,2,FALSE),\"\")","v":""},null,{"$f":"+IFERROR(VLOOKUP(N208,pomocna2!A:B,2,FALSE),\"\")","v":""}]
[null,null,null,null,{"$f":"+IFERROR(VLOOKUP(K209,pomocna2!A:B,2,FALSE),\"\")","v":""},{"$f":"+IFERROR((VLOOKUP(L209,pomocna!$AC$4:$AD$20,2,FALSE)),\"\")","v":""},null,{"$f":"+IFERROR(VLOOKUP(M209,pomocna3!$F$2:$G$7,2,FALSE),\"\")","v":""},null,{"$f":"+IFERROR(VLOOKUP(N209,pomocna2!A:B,2,FALSE),\"\")","v":""}]
[null,null,null,null,{"$f":"+IFERROR(VLOOKUP(K210,pomocna2!A:B,2,FALSE),\"\")","v":""},{"$f":"+IFERROR((VLOOKUP(L210,pomocna!$AC$4:$AD$20,2,FALSE)),\"\")","v":""},null,{"$f":"+IFERROR(VLOOKUP(M210,pomocna3!$F$2:$G$7,2,FALSE),\"\")","v":""},null,{"$f":"+IFERROR(VLOOKUP(N210,pomocna2!A:B,2,FALSE),\"\")","v":""}]
[null,null,null,null,{"$f":"+IFERROR(VLOOKUP(K211,pomocna2!A:B,2,FALSE),\"\")","v":""},{"$f":"+IFERROR((VLOOKUP(L211,pomocna!$AC$4:$AD$20,2,FALSE)),\"\")","v":""},null,{"$f":"+IFERROR(VLOOKUP(M211,pomocna3!$F$2:$G$7,2,FALSE),\"\")","v":""},null,{"$f":"+IFERROR(VLOOKUP(N211,pomocna2!A:B,2,FALSE),\"\")","v":""}]
[null,null,null,null,{"$f":"+IFERROR(VLOOKUP(K212,pomocna2!A:B,2,FALSE),\"\")","v":""},{"$f":"+IFERROR((VLOOKUP(L212,pomocna!$AC$4:$AD$20,2,FALSE)),\"\")","v":""},null,{"$f":"+IFERROR(VLOOKUP(M212,pomocna3!$F$2:$G$7,2,FALSE),\"\")","v":""},null,{"$f":"+IFERROR(VLOOKUP(N212,pomocna2!A:B,2,FALSE),\"\")","v":""}]
[null,null,null,null,{"$f":"+IFERROR(VLOOKUP(K213,pomocna2!A:B,2,FALSE),\"\")","v":""},{"$f":"+IFERROR((VLOOKUP(L213,pomocna!$AC$4:$AD$20,2,FALSE)),\"\")","v":""},null,{"$f":"+IFERROR(VLOOKUP(M213,pomocna3!$F$2:$G$7,2,FALSE),\"\")","v":""},null,{"$f":"+IFERROR(VLOOKUP(N213,pomocna2!A:B,2,FALSE),\"\")","v":""}]
[null,null,null,null,{"$f":"+IFERROR(VLOOKUP(K214,pomocna2!A:B,2,FALSE),\"\")","v":""},{"$f":"+IFERROR((VLOOKUP(L214,pomocna!$AC$4:$AD$20,2,FALSE)),\"\")","v":""},null,{"$f":"+IFERROR(VLOOKUP(M214,pomocna3!$F$2:$G$7,2,FALSE),\"\")","v":""},null,{"$f":"+IFERROR(VLOOKUP(N214,pomocna2!A:B,2,FALSE),\"\")","v":""}]
[null,null,null,null,{"$f":"+IFERROR(VLOOKUP(K215,pomocna2!A:B,2,FALSE),\"\")","v":""},{"$f":"+IFERROR((VLOOKUP(L215,pomocna!$AC$4:$AD$20,2,FALSE)),\"\")","v":""},null,{"$f":"+IFERROR(VLOOKUP(M215,pomocna3!$F$2:$G$7,2,FALSE),\"\")","v":""},null,{"$f":"+IFERROR(VLOOKUP(N215,pomocna2!A:B,2,FALSE),\"\")","v":""}]
[null,null,null,null,{"$f":"+IFERROR(VLOOKUP(K216,pomocna2!A:B,2,FALSE),\"\")","v":""},{"$f":"+IFERROR((VLOOKUP(L216,pomocna!$AC$4:$AD$20,2,FALSE)),\"\")","v":""},null,{"$f":"+IFERROR(VLOOKUP(M216,pomocna3!$F$2:$G$7,2,FALSE),\"\")","v":""},null,{"$f":"+IFERROR(VLOOKUP(N216,pomocna2!A:B,2,FALSE),\"\")","v":""}]
[null,null,null,null,{"$f":"+IFERROR(VLOOKUP(K217,pomocna2!A:B,2,FALSE),\"\")","v":""},{"$f":"+IFERROR((VLOOKUP(L217,pomocna!$AC$4:$AD$20,2,FALSE)),\"\")","v":""},null,{"$f":"+IFERROR(VLOOKUP(M217,pomocna3!$F$2:$G$7,2,FALSE),\"\")","v":""},null,{"$f":"+IFERROR(VLOOKUP(N217,pomocna2!A:B,2,FALSE),\"\")","v":""}]
[null,null,null,null,{"$f":"+IFERROR(VLOOKUP(K218,pomocna2!A:B,2,FALSE),\"\")","v":""},{"$f":"+IFERROR((VLOOKUP(L218,pomocna!$AC$4:$AD$20,2,FALSE)),\"\")","v":""},null,{"$f":"+IFERROR(VLOOKUP(M218,pomocna3!$F$2:$G$7,2,FALSE),\"\")","v":""},null,{"$f":"+IFERROR(VLOOKUP(N218,pomocna2!A:B,2,FALSE),\"\")","v":""}]
[null,null,null,null,{"$f":"+IFERROR(VLOOKUP(K219,pomocna2!A:B,2,FALSE),\"\")","v":""},{"$f":"+IFERROR((VLOOKUP(L219,pomocna!$AC$4:$AD$20,2,FALSE)),\"\")","v":""},null,{"$f":"+IFERROR(VLOOKUP(M219,pomocna3!$F$2:$G$7,2,FALSE),\"\")","v":""},null,{"$f":"+IFERROR(VLOOKUP(N219,pomocna2!A:B,2,FALSE),\"\")","v":""}]
[null,null,null,null,{"$f":"+IFERROR(VLOOKUP(K220,pomocna2!A:B,2,FALSE),\"\")","v":""},{"$f":"+IFERROR((VLOOKUP(L220,pomocna!$AC$4:$AD$20,2,FALSE)),\"\")","v":""},null,{"$f":"+IFERROR(VLOOKUP(M220,pomocna3!$F$2:$G$7,2,FALSE),\"\")","v":""},null,{"$f":"+IFERROR(VLOOKUP(N220,pomocna2!A:B,2,FALSE),\"\")","v":""}]
[null,null,null,null,{"$f":"+IFERROR(VLOOKUP(K221,pomocna2!A:B,2,FALSE),\"\")","v":""},{"$f":"+IFERROR((VLOOKUP(L221,pomocna!$AC$4:$AD$20,2,FALSE)),\"\")","v":""},null,{"$f":"+IFERROR(VLOOKUP(M221,pomocna3!$F$2:$G$7,2,FALSE),\"\")","v":""},null,{"$f":"+IFERROR(VLOOKUP(N221,pomocna2!A:B,2,FALSE),\"\")","v":""}]
[null,null,null,null,{"$f":"+IFERROR(VLOOKUP(K222,pomocna2!A:B,2,FALSE),\"\")","v":""},{"$f":"+IFERROR((VLOOKUP(L222,pomocna!$AC$4:$AD$20,2,FALSE)),\"\")","v":""},null,{"$f":"+IFERROR(VLOOKUP(M222,pomocna3!$F$2:$G$7,2,FALSE),\"\")","v":""},null,{"$f":"+IFERROR(VLOOKUP(N222,pomocna2!A:B,2,FALSE),\"\")","v":""}]
[null,null,null,null,{"$f":"+IFERROR(VLOOKUP(K223,pomocna2!A:B,2,FALSE),\"\")","v":""},{"$f":"+IFERROR((VLOOKUP(L223,pomocna!$AC$4:$AD$20,2,FALSE)),\"\")","v":""},null,{"$f":"+IFERROR(VLOOKUP(M223,pomocna3!$F$2:$G$7,2,FALSE),\"\")","v":""},null,{"$f":"+IFERROR(VLOOKUP(N223,pomocna2!A:B,2,FALSE),\"\")","v":""}]
[null,null,null,null,{"$f":"+IFERROR(VLOOKUP(K224,pomocna2!A:B,2,FALSE),\"\")","v":""},{"$f":"+IFERROR((VLOOKUP(L224,pomocna!$AC$4:$AD$20,2,FALSE)),\"\")","v":""},null,{"$f":"+IFERROR(VLOOKUP(M224,pomocna3!$F$2:$G$7,2,FALSE),\"\")","v":""},null,{"$f":"+IFERROR(VLOOKUP(N224,pomocna2!A:B,2,FALSE),\"\")","v":""}]
[null,null,null,null,{"$f":"+IFERROR(VLOOKUP(K225,pomocna2!A:B,2,FALSE),\"\")","v":""},{"$f":"+IFERROR((VLOOKUP(L225,pomocna!$AC$4:$AD$20,2,FALSE)),\"\")","v":""},null,{"$f":"+IFERROR(VLOOKUP(M225,pomocna3!$F$2:$G$7,2,FALSE),\"\")","v":""},null,{"$f":"+IFERROR(VLOOKUP(N225,pomocna2!A:B,2,FALSE),\"\")","v":""}]
[null,null,null,null,{"$f":"+IFERROR(VLOOKUP(K226,pomocna2!A:B,2,FALSE),\"\")","v":""},{"$f":"+IFERROR((VLOOKUP(L226,pomocna!$AC$4:$AD$20,2,FALSE)),\"\")","v":""},null,{"$f":"+IFERROR(VLOOKUP(M226,pomocna3!$F$2:$G$7,2,FALSE),\"\")","v":""},null,{"$f":"+IFERROR(VLOOKUP(N226,pomocna2!A:B,2,FALSE),\"\")","v":""}]
[null,null,null,null,{"$f":"+IFERROR(VLOOKUP(K227,pomocna2!A:B,2,FALSE),\"\")","v":""},{"$f":"+IFERROR((VLOOKUP(L227,pomocna!$AC$4:$AD$20,2,FALSE)),\"\")","v":""},null,{"$f":"+IFERROR(VLOOKUP(M227,pomocna3!$F$2:$G$7,2,FALSE),\"\")","v":""},null,{"$f":"+IFERROR(VLOOKUP(N227,pomocna2!A:B,2,FALSE),\"\")","v":""}]
[null,null,null,null,{"$f":"+IFERROR(VLOOKUP(K228,pomocna2!A:B,2,FALSE),\"\")","v":""},{"$f":"+IFERROR((VLOOKUP(L228,pomocna!$AC$4:$AD$20,2,FALSE)),\"\")","v":""},null,{"$f":"+IFERROR(VLOOKUP(M228,pomocna3!$F$2:$G$7,2,FALSE),\"\")","v":""},null,{"$f":"+IFERROR(VLOOKUP(N228,pomocna2!A:B,2,FALSE),\"\")","v":""}]
[null,null,null,null,{"$f":"+IFERROR(VLOOKUP(K229,pomocna2!A:B,2,FALSE),\"\")","v":""},{"$f":"+IFERROR((VLOOKUP(L229,pomocna!$AC$4:$AD$20,2,FALSE)),\"\")","v":""},null,{"$f":"+IFERROR(VLOOKUP(M229,pomocna3!$F$2:$G$7,2,FALSE),\"\")","v":""},null,{"$f":"+IFERROR(VLOOKUP(N229,pomocna2!A:B,2,FALSE),\"\")","v":""}]
[null,null,null,null,{"$f":"+IFERROR(VLOOKUP(K230,pomocna2!A:B,2,FALSE),\"\")","v":""},{"$f":"+IFERROR((VLOOKUP(L230,pomocna!$AC$4:$AD$20,2,FALSE)),\"\")","v":""},null,{"$f":"+IFERROR(VLOOKUP(M230,pomocna3!$F$2:$G$7,2,FALSE),\"\")","v":""},null,{"$f":"+IFERROR(VLOOKUP(N230,pomocna2!A:B,2,FALSE),\"\")","v":""}]
[null,null,null,null,{"$f":"+IFERROR(VLOOKUP(K231,pomocna2!A:B,2,FALSE),\"\")","v":""},{"$f":"+IFERROR((VLOOKUP(L231,pomocna!$AC$4:$AD$20,2,FALSE)),\"\")","v":""},null,{"$f":"+IFERROR(VLOOKUP(M231,pomocna3!$F$2:$G$7,2,FALSE),\"\")","v":""},null,{"$f":"+IFERROR(VLOOKUP(N231,pomocna2!A:B,2,FALSE),\"\")","v":""}]
[null,null,null,null,{"$f":"+IFERROR(VLOOKUP(K232,pomocna2!A:B,2,FALSE),\"\")","v":""},{"$f":"+IFERROR((VLOOKUP(L232,pomocna!$AC$4:$AD$20,2,FALSE)),\"\")","v":""},null,{"$f":"+IFERROR(VLOOKUP(M232,pomocna3!$F$2:$G$7,2,FALSE),\"\")","v":""},null,{"$f":"+IFERROR(VLOOKUP(N232,pomocna2!A:B,2,FALSE),\"\")","v":""}]
[null,null,null,null,{"$f":"+IFERROR(VLOOKUP(K233,pomocna2!A:B,2,FALSE),\"\")","v":""},{"$f":"+IFERROR((VLOOKUP(L233,pomocna!$AC$4:$AD$20,2,FALSE)),\"\")","v":""},null,{"$f":"+IFERROR(VLOOKUP(M233,pomocna3!$F$2:$G$7,2,FALSE),\"\")","v":""},null,{"$f":"+IFERROR(VLOOKUP(N233,pomocna2!A:B,2,FALSE),\"\")","v":""}]
[null,null,null,null,{"$f":"+IFERROR(VLOOKUP(K234,pomocna2!A:B,2,FALSE),\"\")","v":""},{"$f":"+IFERROR((VLOOKUP(L234,pomocna!$AC$4:$AD$20,2,FALSE)),\"\")","v":""},null,{"$f":"+IFERROR(VLOOKUP(M234,pomocna3!$F$2:$G$7,2,FALSE),\"\")","v":""},null,{"$f":"+IFERROR(VLOOKUP(N234,pomocna2!A:B,2,FALSE),\"\")","v":""}]
[null,null,null,null,{"$f":"+IFERROR(VLOOKUP(K235,pomocna2!A:B,2,FALSE),\"\")","v":""},{"$f":"+IFERROR((VLOOKUP(L235,pomocna!$AC$4:$AD$20,2,FALSE)),\"\")","v":""},null,{"$f":"+IFERROR(VLOOKUP(M235,pomocna3!$F$2:$G$7,2,FALSE),\"\")","v":""},null,{"$f":"+IFERROR(VLOOKUP(N235,pomocna2!A:B,2,FALSE),\"\")","v":""}]
[null,null,null,null,{"$f":"+IFERROR(VLOOKUP(K236,pomocna2!A:B,2,FALSE),\"\")","v":""},{"$f":"+IFERROR((VLOOKUP(L236,pomocna!$AC$4:$AD$20,2,FALSE)),\"\")","v":""},null,{"$f":"+IFERROR(VLOOKUP(M236,pomocna3!$F$2:$G$7,2,FALSE),\"\")","v":""},null,{"$f":"+IFERROR(VLOOKUP(N236,pomocna2!A:B,2,FALSE),\"\")","v":""}]
[null,null,null,null,{"$f":"+IFERROR(VLOOKUP(K237,pomocna2!A:B,2,FALSE),\"\")","v":""},{"$f":"+IFERROR((VLOOKUP(L237,pomocna!$AC$4:$AD$20,2,FALSE)),\"\")","v":""},null,{"$f":"+IFERROR(VLOOKUP(M237,pomocna3!$F$2:$G$7,2,FALSE),\"\")","v":""},null,{"$f":"+IFERROR(VLOOKUP(N237,pomocna2!A:B,2,FALSE),\"\")","v":""}]
[null,null,null,null,{"$f":"+IFERROR(VLOOKUP(K238,pomocna2!A:B,2,FALSE),\"\")","v":""},{"$f":"+IFERROR((VLOOKUP(L238,pomocna!$AC$4:$AD$20,2,FALSE)),\"\")","v":""},null,{"$f":"+IFERROR(VLOOKUP(M238,pomocna3!$F$2:$G$7,2,FALSE),\"\")","v":""},null,{"$f":"+IFERROR(VLOOKUP(N238,pomocna2!A:B,2,FALSE),\"\")","v":""}]
[null,null,null,null,{"$f":"+IFERROR(VLOOKUP(K239,pomocna2!A:B,2,FALSE),\"\")","v":""},{"$f":"+IFERROR((VLOOKUP(L239,pomocna!$AC$4:$AD$20,2,FALSE)),\"\")","v":""},null,{"$f":"+IFERROR(VLOOKUP(M239,pomocna3!$F$2:$G$7,2,FALSE),\"\")","v":""},null,{"$f":"+IFERROR(VLOOKUP(N239,pomocna2!A:B,2,FALSE),\"\")","v":""}]
[null,null,null,null,{"$f":"+IFERROR(VLOOKUP(K240,pomocna2!A:B,2,FALSE),\"\")","v":""},{"$f":"+IFERROR((VLOOKUP(L240,pomocna!$AC$4:$AD$20,2,FALSE)),\"\")","v":""},null,{"$f":"+IFERROR(VLOOKUP(M240,pomocna3!$F$2:$G$7,2,FALSE),\"\")","v":""},null,{"$f":"+IFERROR(VLOOKUP(N240,pomocna2!A:B,2,FALSE),\"\")","v":""}]
[null,null,null,null,{"$f":"+IFERROR(VLOOKUP(K241,pomocna2!A:B,2,FALSE),\"\")","v":""},{"$f":"+IFERROR((VLOOKUP(L241,pomocna!$AC$4:$AD$20,2,FALSE)),\"\")","v":""},null,{"$f":"+IFERROR(VLOOKUP(M241,pomocna3!$F$2:$G$7,2,FALSE),\"\")","v":""},null,{"$f":"+IFERROR(VLOOKUP(N241,pomocna2!A:B,2,FALSE),\"\")","v":""}]
[null,null,null,null,{"$f":"+IFERROR(VLOOKUP(K242,pomocna2!A:B,2,FALSE),\"\")","v":""},{"$f":"+IFERROR((VLOOKUP(L242,pomocna!$AC$4:$AD$20,2,FALSE)),\"\")","v":""},null,{"$f":"+IFERROR(VLOOKUP(M242,pomocna3!$F$2:$G$7,2,FALSE),\"\")","v":""},null,{"$f":"+IFERROR(VLOOKUP(N242,pomocna2!A:B,2,FALSE),\"\")","v":""}]
[null,null,null,null,{"$f":"+IFERROR(VLOOKUP(K243,pomocna2!A:B,2,FALSE),\"\")","v":""},{"$f":"+IFERROR((VLOOKUP(L243,pomocna!$AC$4:$AD$20,2,FALSE)),\"\")","v":""},null,{"$f":"+IFERROR(VLOOKUP(M243,pomocna3!$F$2:$G$7,2,FALSE),\"\")","v":""},null,{"$f":"+IFERROR(VLOOKUP(N243,pomocna2!A:B,2,FALSE),\"\")","v":""}]
[null,null,null,null,{"$f":"+IFERROR(VLOOKUP(K244,pomocna2!A:B,2,FALSE),\"\")","v":""},{"$f":"+IFERROR((VLOOKUP(L244,pomocna!$AC$4:$AD$20,2,FALSE)),\"\")","v":""},null,{"$f":"+IFERROR(VLOOKUP(M244,pomocna3!$F$2:$G$7,2,FALSE),\"\")","v":""},null,{"$f":"+IFERROR(VLOOKUP(N244,pomocna2!A:B,2,FALSE),\"\")","v":""}]
[null,null,null,null,{"$f":"+IFERROR(VLOOKUP(K245,pomocna2!A:B,2,FALSE),\"\")","v":""},{"$f":"+IFERROR((VLOOKUP(L245,pomocna!$AC$4:$AD$20,2,FALSE)),\"\")","v":""},null,{"$f":"+IFERROR(VLOOKUP(M245,pomocna3!$F$2:$G$7,2,FALSE),\"\")","v":""},null,{"$f":"+IFERROR(VLOOKUP(N245,pomocna2!A:B,2,FALSE),\"\")","v":""}]
[null,null,null,null,{"$f":"+IFERROR(VLOOKUP(K246,pomocna2!A:B,2,FALSE),\"\")","v":""},{"$f":"+IFERROR((VLOOKUP(L246,pomocna!$AC$4:$AD$20,2,FALSE)),\"\")","v":""},null,{"$f":"+IFERROR(VLOOKUP(M246,pomocna3!$F$2:$G$7,2,FALSE),\"\")","v":""},null,{"$f":"+IFERROR(VLOOKUP(N246,pomocna2!A:B,2,FALSE),\"\")","v":""}]
[null,null,null,null,{"$f":"+IFERROR(VLOOKUP(K247,pomocna2!A:B,2,FALSE),\"\")","v":""},{"$f":"+IFERROR((VLOOKUP(L247,pomocna!$AC$4:$AD$20,2,FALSE)),\"\")","v":""},null,{"$f":"+IFERROR(VLOOKUP(M247,pomocna3!$F$2:$G$7,2,FALSE),\"\")","v":""},null,{"$f":"+IFERROR(VLOOKUP(N247,pomocna2!A:B,2,FALSE),\"\")","v":""}]
[null,null,null,null,{"$f":"+IFERROR(VLOOKUP(K248,pomocna2!A:B,2,FALSE),\"\")","v":""},{"$f":"+IFERROR((VLOOKUP(L248,pomocna!$AC$4:$AD$20,2,FALSE)),\"\")","v":""},null,{"$f":"+IFERROR(VLOOKUP(M248,pomocna3!$F$2:$G$7,2,FALSE),\"\")","v":""},null,{"$f":"+IFERROR(VLOOKUP(N248,pomocna2!A:B,2,FALSE),\"\")","v":""}]
[null,null,null,null,{"$f":"+IFERROR(VLOOKUP(K249,pomocna2!A:B,2,FALSE),\"\")","v":""},{"$f":"+IFERROR((VLOOKUP(L249,pomocna!$AC$4:$AD$20,2,FALSE)),\"\")","v":""},null,{"$f":"+IFERROR(VLOOKUP(M249,pomocna3!$F$2:$G$7,2,FALSE),\"\")","v":""},null,{"$f":"+IFERROR(VLOOKUP(N249,pomocna2!A:B,2,FALSE),\"\")","v":""}]
[null,null,null,null,{"$f":"+IFERROR(VLOOKUP(K250,pomocna2!A:B,2,FALSE),\"\")","v":""},{"$f":"+IFERROR((VLOOKUP(L250,pomocna!$AC$4:$AD$20,2,FALSE)),\"\")","v":""},null,{"$f":"+IFERROR(VLOOKUP(M250,pomocna3!$F$2:$G$7,2,FALSE),\"\")","v":""},null,{"$f":"+IFERROR(VLOOKUP(N250,pomocna2!A:B,2,FALSE),\"\")","v":""}]
[null,null,null,null,{"$f":"+IFERROR(VLOOKUP(K251,pomocna2!A:B,2,FALSE),\"\")","v":""},{"$f":"+IFERROR((VLOOKUP(L251,pomocna!$AC$4:$AD$20,2,FALSE)),\"\")","v":""},null,{"$f":"+IFERROR(VLOOKUP(M251,pomocna3!$F$2:$G$7,2,FALSE),\"\")","v":""},null,{"$f":"+IFERROR(VLOOKUP(N251,pomocna2!A:B,2,FALSE),\"\")","v":""}]
[null,null,null,null,{"$f":"+IFERROR(VLOOKUP(K252,pomocna2!A:B,2,FALSE),\"\")","v":""},{"$f":"+IFERROR((VLOOKUP(L252,pomocna!$AC$4:$AD$20,2,FALSE)),\"\")","v":""},null,{"$f":"+IFERROR(VLOOKUP(M252,pomocna3!$F$2:$G$7,2,FALSE),\"\")","v":""},null,{"$f":"+IFERROR(VLOOKUP(N252,pomocna2!A:B,2,FALSE),\"\")","v":""}]
[null,null,null,null,{"$f":"+IFERROR(VLOOKUP(K253,pomocna2!A:B,2,FALSE),\"\")","v":""},{"$f":"+IFERROR((VLOOKUP(L253,pomocna!$AC$4:$AD$20,2,FALSE)),\"\")","v":""},null,{"$f":"+IFERROR(VLOOKUP(M253,pomocna3!$F$2:$G$7,2,FALSE),\"\")","v":""},null,{"$f":"+IFERROR(VLOOKUP(N253,pomocna2!A:B,2,FALSE),\"\")","v":""}]
[null,null,null,null,{"$f":"+IFERROR(VLOOKUP(K254,pomocna2!A:B,2,FALSE),\"\")","v":""},{"$f":"+IFERROR((VLOOKUP(L254,pomocna!$AC$4:$AD$20,2,FALSE)),\"\")","v":""},null,{"$f":"+IFERROR(VLOOKUP(M254,pomocna3!$F$2:$G$7,2,FALSE),\"\")","v":""},null,{"$f":"+IFERROR(VLOOKUP(N254,pomocna2!A:B,2,FALSE),\"\")","v":""}]
[null,null,null,null,{"$f":"+IFERROR(VLOOKUP(K255,pomocna2!A:B,2,FALSE),\"\")","v":""},{"$f":"+IFERROR((VLOOKUP(L255,pomocna!$AC$4:$AD$20,2,FALSE)),\"\")","v":""},null,{"$f":"+IFERROR(VLOOKUP(M255,pomocna3!$F$2:$G$7,2,FALSE),\"\")","v":""},null,{"$f":"+IFERROR(VLOOKUP(N255,pomocna2!A:B,2,FALSE),\"\")","v":""}]
[null,null,null,null,{"$f":"+IFERROR(VLOOKUP(K256,pomocna2!A:B,2,FALSE),\"\")","v":""},{"$f":"+IFERROR((VLOOKUP(L256,pomocna!$AC$4:$AD$20,2,FALSE)),\"\")","v":""},null,{"$f":"+IFERROR(VLOOKUP(M256,pomocna3!$F$2:$G$7,2,FALSE),\"\")","v":""},null,{"$f":"+IFERROR(VLOOKUP(N256,pomocna2!A:B,2,FALSE),\"\")","v":""}]
[null,null,null,null,{"$f":"+IFERROR(VLOOKUP(K257,pomocna2!A:B,2,FALSE),\"\")","v":""},{"$f":"+IFERROR((VLOOKUP(L257,pomocna!$AC$4:$AD$20,2,FALSE)),\"\")","v":""},null,{"$f":"+IFERROR(VLOOKUP(M257,pomocna3!$F$2:$G$7,2,FALSE),\"\")","v":""},null,{"$f":"+IFERROR(VLOOKUP(N257,pomocna2!A:B,2,FALSE),\"\")","v":""}]
[null,null,null,null,{"$f":"+IFERROR(VLOOKUP(K258,pomocna2!A:B,2,FALSE),\"\")","v":""},{"$f":"+IFERROR((VLOOKUP(L258,pomocna!$AC$4:$AD$20,2,FALSE)),\"\")","v":""},null,{"$f":"+IFERROR(VLOOKUP(M258,pomocna3!$F$2:$G$7,2,FALSE),\"\")","v":""},null,{"$f":"+IFERROR(VLOOKUP(N258,pomocna2!A:B,2,FALSE),\"\")","v":""}]
[null,null,null,null,{"$f":"+IFERROR(VLOOKUP(K259,pomocna2!A:B,2,FALSE),\"\")","v":""},{"$f":"+IFERROR((VLOOKUP(L259,pomocna!$AC$4:$AD$20,2,FALSE)),\"\")","v":""},null,{"$f":"+IFERROR(VLOOKUP(M259,pomocna3!$F$2:$G$7,2,FALSE),\"\")","v":""},null,{"$f":"+IFERROR(VLOOKUP(N259,pomocna2!A:B,2,FALSE),\"\")","v":""}]
[null,null,null,null,{"$f":"+IFERROR(VLOOKUP(K260,pomocna2!A:B,2,FALSE),\"\")","v":""},{"$f":"+IFERROR((VLOOKUP(L260,pomocna!$AC$4:$AD$20,2,FALSE)),\"\")","v":""},null,{"$f":"+IFERROR(VLOOKUP(M260,pomocna3!$F$2:$G$7,2,FALSE),\"\")","v":""},null,{"$f":"+IFERROR(VLOOKUP(N260,pomocna2!A:B,2,FALSE),\"\")","v":""}]
[null,null,null,null,{"$f":"+IFERROR(VLOOKUP(K261,pomocna2!A:B,2,FALSE),\"\")","v":""},{"$f":"+IFERROR((VLOOKUP(L261,pomocna!$AC$4:$AD$20,2,FALSE)),\"\")","v":""},null,{"$f":"+IFERROR(VLOOKUP(M261,pomocna3!$F$2:$G$7,2,FALSE),\"\")","v":""},null,{"$f":"+IFERROR(VLOOKUP(N261,pomocna2!A:B,2,FALSE),\"\")","v":""}]
[null,null,null,null,{"$f":"+IFERROR(VLOOKUP(K262,pomocna2!A:B,2,FALSE),\"\")","v":""},{"$f":"+IFERROR((VLOOKUP(L262,pomocna!$AC$4:$AD$20,2,FALSE)),\"\")","v":""},null,{"$f":"+IFERROR(VLOOKUP(M262,pomocna3!$F$2:$G$7,2,FALSE),\"\")","v":""},null,{"$f":"+IFERROR(VLOOKUP(N262,pomocna2!A:B,2,FALSE),\"\")","v":""}]
[null,null,null,null,{"$f":"+IFERROR(VLOOKUP(K263,pomocna2!A:B,2,FALSE),\"\")","v":""},{"$f":"+IFERROR((VLOOKUP(L263,pomocna!$AC$4:$AD$20,2,FALSE)),\"\")","v":""},null,{"$f":"+IFERROR(VLOOKUP(M263,pomocna3!$F$2:$G$7,2,FALSE),\"\")","v":""},null,{"$f":"+IFERROR(VLOOKUP(N263,pomocna2!A:B,2,FALSE),\"\")","v":""}]
[null,null,null,null,{"$f":"+IFERROR(VLOOKUP(K264,pomocna2!A:B,2,FALSE),\"\")","v":""},{"$f":"+IFERROR((VLOOKUP(L264,pomocna!$AC$4:$AD$20,2,FALSE)),\"\")","v":""},null,{"$f":"+IFERROR(VLOOKUP(M264,pomocna3!$F$2:$G$7,2,FALSE),\"\")","v":""},null,{"$f":"+IFERROR(VLOOKUP(N264,pomocna2!A:B,2,FALSE),\"\")","v":""}]
[null,null,null,null,{"$f":"+IFERROR(VLOOKUP(K265,pomocna2!A:B,2,FALSE),\"\")","v":""},{"$f":"+IFERROR((VLOOKUP(L265,pomocna!$AC$4:$AD$20,2,FALSE)),\"\")","v":""},null,{"$f":"+IFERROR(VLOOKUP(M265,pomocna3!$F$2:$G$7,2,FALSE),\"\")","v":""},null,{"$f":"+IFERROR(VLOOKUP(N265,pomocna2!A:B,2,FALSE),\"\")","v":""}]
[null,null,null,null,{"$f":"+IFERROR(VLOOKUP(K266,pomocna2!A:B,2,FALSE),\"\")","v":""},{"$f":"+IFERROR((VLOOKUP(L266,pomocna!$AC$4:$AD$20,2,FALSE)),\"\")","v":""},null,{"$f":"+IFERROR(VLOOKUP(M266,pomocna3!$F$2:$G$7,2,FALSE),\"\")","v":""},null,{"$f":"+IFERROR(VLOOKUP(N266,pomocna2!A:B,2,FALSE),\"\")","v":""}]
[null,null,null,null,{"$f":"+IFERROR(VLOOKUP(K267,pomocna2!A:B,2,FALSE),\"\")","v":""},{"$f":"+IFERROR((VLOOKUP(L267,pomocna!$AC$4:$AD$20,2,FALSE)),\"\")","v":""},null,{"$f":"+IFERROR(VLOOKUP(M267,pomocna3!$F$2:$G$7,2,FALSE),\"\")","v":""},null,{"$f":"+IFERROR(VLOOKUP(N267,pomocna2!A:B,2,FALSE),\"\")","v":""}]
[null,null,null,null,{"$f":"+IFERROR(VLOOKUP(K268,pomocna2!A:B,2,FALSE),\"\")","v":""},{"$f":"+IFERROR((VLOOKUP(L268,pomocna!$AC$4:$AD$20,2,FALSE)),\"\")","v":""},null,{"$f":"+IFERROR(VLOOKUP(M268,pomocna3!$F$2:$G$7,2,FALSE),\"\")","v":""},null,{"$f":"+IFERROR(VLOOKUP(N268,pomocna2!A:B,2,FALSE),\"\")","v":""}]
[null,null,null,null,{"$f":"+IFERROR(VLOOKUP(K269,pomocna2!A:B,2,FALSE),\"\")","v":""},{"$f":"+IFERROR((VLOOKUP(L269,pomocna!$AC$4:$AD$20,2,FALSE)),\"\")","v":""},null,{"$f":"+IFERROR(VLOOKUP(M269,pomocna3!$F$2:$G$7,2,FALSE),\"\")","v":""},null,{"$f":"+IFERROR(VLOOKUP(N269,pomocna2!A:B,2,FALSE),\"\")","v":""}]
[null,null,null,null,{"$f":"+IFERROR(VLOOKUP(K270,pomocna2!A:B,2,FALSE),\"\")","v":""},{"$f":"+IFERROR((VLOOKUP(L270,pomocna!$AC$4:$AD$20,2,FALSE)),\"\")","v":""},null,{"$f":"+IFERROR(VLOOKUP(M270,pomocna3!$F$2:$G$7,2,FALSE),\"\")","v":""},null,{"$f":"+IFERROR(VLOOKUP(N270,pomocna2!A:B,2,FALSE),\"\")","v":""}]
[null,null,null,null,{"$f":"+IFERROR(VLOOKUP(K271,pomocna2!A:B,2,FALSE),\"\")","v":""},{"$f":"+IFERROR((VLOOKUP(L271,pomocna!$AC$4:$AD$20,2,FALSE)),\"\")","v":""},null,{"$f":"+IFERROR(VLOOKUP(M271,pomocna3!$F$2:$G$7,2,FALSE),\"\")","v":""},null,{"$f":"+IFERROR(VLOOKUP(N271,pomocna2!A:B,2,FALSE),\"\")","v":""}]
[null,null,null,null,{"$f":"+IFERROR(VLOOKUP(K272,pomocna2!A:B,2,FALSE),\"\")","v":""},{"$f":"+IFERROR((VLOOKUP(L272,pomocna!$AC$4:$AD$20,2,FALSE)),\"\")","v":""},null,{"$f":"+IFERROR(VLOOKUP(M272,pomocna3!$F$2:$G$7,2,FALSE),\"\")","v":""},null,{"$f":"+IFERROR(VLOOKUP(N272,pomocna2!A:B,2,FALSE),\"\")","v":""}]
[null,null,null,null,{"$f":"+IFERROR(VLOOKUP(K273,pomocna2!A:B,2,FALSE),\"\")","v":""},{"$f":"+IFERROR((VLOOKUP(L273,pomocna!$AC$4:$AD$20,2,FALSE)),\"\")","v":""},null,{"$f":"+IFERROR(VLOOKUP(M273,pomocna3!$F$2:$G$7,2,FALSE),\"\")","v":""},null,{"$f":"+IFERROR(VLOOKUP(N273,pomocna2!A:B,2,FALSE),\"\")","v":""}]
[null,null,null,null,{"$f":"+IFERROR(VLOOKUP(K274,pomocna2!A:B,2,FALSE),\"\")","v":""},{"$f":"+IFERROR((VLOOKUP(L274,pomocna!$AC$4:$AD$20,2,FALSE)),\"\")","v":""},null,{"$f":"+IFERROR(VLOOKUP(M274,pomocna3!$F$2:$G$7,2,FALSE),\"\")","v":""},null,{"$f":"+IFERROR(VLOOKUP(N274,pomocna2!A:B,2,FALSE),\"\")","v":""}]
[null,null,null,null,{"$f":"+IFERROR(VLOOKUP(K275,pomocna2!A:B,2,FALSE),\"\")","v":""},{"$f":"+IFERROR((VLOOKUP(L275,pomocna!$AC$4:$AD$20,2,FALSE)),\"\")","v":""},null,{"$f":"+IFERROR(VLOOKUP(M275,pomocna3!$F$2:$G$7,2,FALSE),\"\")","v":""},null,{"$f":"+IFERROR(VLOOKUP(N275,pomocna2!A:B,2,FALSE),\"\")","v":""}]
[null,null,null,null,{"$f":"+IFERROR(VLOOKUP(K276,pomocna2!A:B,2,FALSE),\"\")","v":""},{"$f":"+IFERROR((VLOOKUP(L276,pomocna!$AC$4:$AD$20,2,FALSE)),\"\")","v":""},null,{"$f":"+IFERROR(VLOOKUP(M276,pomocna3!$F$2:$G$7,2,FALSE),\"\")","v":""},null,{"$f":"+IFERROR(VLOOKUP(N276,pomocna2!A:B,2,FALSE),\"\")","v":""}]
[null,null,null,null,{"$f":"+IFERROR(VLOOKUP(K277,pomocna2!A:B,2,FALSE),\"\")","v":""},{"$f":"+IFERROR((VLOOKUP(L277,pomocna!$AC$4:$AD$20,2,FALSE)),\"\")","v":""},null,{"$f":"+IFERROR(VLOOKUP(M277,pomocna3!$F$2:$G$7,2,FALSE),\"\")","v":""},null,{"$f":"+IFERROR(VLOOKUP(N277,pomocna2!A:B,2,FALSE),\"\")","v":""}]
[null,null,null,null,{"$f":"+IFERROR(VLOOKUP(K278,pomocna2!A:B,2,FALSE),\"\")","v":""},{"$f":"+IFERROR((VLOOKUP(L278,pomocna!$AC$4:$AD$20,2,FALSE)),\"\")","v":""},null,{"$f":"+IFERROR(VLOOKUP(M278,pomocna3!$F$2:$G$7,2,FALSE),\"\")","v":""},null,{"$f":"+IFERROR(VLOOKUP(N278,pomocna2!A:B,2,FALSE),\"\")","v":""}]
[null,null,null,null,{"$f":"+IFERROR(VLOOKUP(K279,pomocna2!A:B,2,FALSE),\"\")","v":""},{"$f":"+IFERROR((VLOOKUP(L279,pomocna!$AC$4:$AD$20,2,FALSE)),\"\")","v":""},null,{"$f":"+IFERROR(VLOOKUP(M279,pomocna3!$F$2:$G$7,2,FALSE),\"\")","v":""},null,{"$f":"+IFERROR(VLOOKUP(N279,pomocna2!A:B,2,FALSE),\"\")","v":""}]
[null,null,null,null,{"$f":"+IFERROR(VLOOKUP(K280,pomocna2!A:B,2,FALSE),\"\")","v":""},{"$f":"+IFERROR((VLOOKUP(L280,pomocna!$AC$4:$AD$20,2,FALSE)),\"\")","v":""},null,{"$f":"+IFERROR(VLOOKUP(M280,pomocna3!$F$2:$G$7,2,FALSE),\"\")","v":""},null,{"$f":"+IFERROR(VLOOKUP(N280,pomocna2!A:B,2,FALSE),\"\")","v":""}]
[null,null,null,null,{"$f":"+IFERROR(VLOOKUP(K281,pomocna2!A:B,2,FALSE),\"\")","v":""},{"$f":"+IFERROR((VLOOKUP(L281,pomocna!$AC$4:$AD$20,2,FALSE)),\"\")","v":""},null,{"$f":"+IFERROR(VLOOKUP(M281,pomocna3!$F$2:$G$7,2,FALSE),\"\")","v":""},null,{"$f":"+IFERROR(VLOOKUP(N281,pomocna2!A:B,2,FALSE),\"\")","v":""}]
[null,null,null,null,{"$f":"+IFERROR(VLOOKUP(K282,pomocna2!A:B,2,FALSE),\"\")","v":""},{"$f":"+IFERROR((VLOOKUP(L282,pomocna!$AC$4:$AD$20,2,FALSE)),\"\")","v":""},null,{"$f":"+IFERROR(VLOOKUP(M282,pomocna3!$F$2:$G$7,2,FALSE),\"\")","v":""},null,{"$f":"+IFERROR(VLOOKUP(N282,pomocna2!A:B,2,FALSE),\"\")","v":""}]
[null,null,null,null,{"$f":"+IFERROR(VLOOKUP(K283,pomocna2!A:B,2,FALSE),\"\")","v":""},{"$f":"+IFERROR((VLOOKUP(L283,pomocna!$AC$4:$AD$20,2,FALSE)),\"\")","v":""},null,{"$f":"+IFERROR(VLOOKUP(M283,pomocna3!$F$2:$G$7,2,FALSE),\"\")","v":""},null,{"$f":"+IFERROR(VLOOKUP(N283,pomocna2!A:B,2,FALSE),\"\")","v":""}]
[null,null,null,null,{"$f":"+IFERROR(VLOOKUP(K284,pomocna2!A:B,2,FALSE),\"\")","v":""},{"$f":"+IFERROR((VLOOKUP(L284,pomocna!$AC$4:$AD$20,2,FALSE)),\"\")","v":""},null,{"$f":"+IFERROR(VLOOKUP(M284,pomocna3!$F$2:$G$7,2,FALSE),\"\")","v":""},null,{"$f":"+IFERROR(VLOOKUP(N284,pomocna2!A:B,2,FALSE),\"\")","v":""}]
[null,null,null,null,{"$f":"+IFERROR(VLOOKUP(K285,pomocna2!A:B,2,FALSE),\"\")","v":""},{"$f":"+IFERROR((VLOOKUP(L285,pomocna!$AC$4:$AD$20,2,FALSE)),\"\")","v":""},null,{"$f":"+IFERROR(VLOOKUP(M285,pomocna3!$F$2:$G$7,2,FALSE),\"\")","v":""},null,{"$f":"+IFERROR(VLOOKUP(N285,pomocna2!A:B,2,FALSE),\"\")","v":""}]
[null,null,null,null,{"$f":"+IFERROR(VLOOKUP(K286,pomocna2!A:B,2,FALSE),\"\")","v":""},{"$f":"+IFERROR((VLOOKUP(L286,pomocna!$AC$4:$AD$20,2,FALSE)),\"\")","v":""},null,{"$f":"+IFERROR(VLOOKUP(M286,pomocna3!$F$2:$G$7,2,FALSE),\"\")","v":""},null,{"$f":"+IFERROR(VLOOKUP(N286,pomocna2!A:B,2,FALSE),\"\")","v":""}]
[null,null,null,null,{"$f":"+IFERROR(VLOOKUP(K287,pomocna2!A:B,2,FALSE),\"\")","v":""},{"$f":"+IFERROR((VLOOKUP(L287,pomocna!$AC$4:$AD$20,2,FALSE)),\"\")","v":""},null,{"$f":"+IFERROR(VLOOKUP(M287,pomocna3!$F$2:$G$7,2,FALSE),\"\")","v":""},null,{"$f":"+IFERROR(VLOOKUP(N287,pomocna2!A:B,2,FALSE),\"\")","v":""}]
[null,null,null,null,{"$f":"+IFERROR(VLOOKUP(K288,pomocna2!A:B,2,FALSE),\"\")","v":""},{"$f":"+IFERROR((VLOOKUP(L288,pomocna!$AC$4:$AD$20,2,FALSE)),\"\")","v":""},null,{"$f":"+IFERROR(VLOOKUP(M288,pomocna3!$F$2:$G$7,2,FALSE),\"\")","v":""},null,{"$f":"+IFERROR(VLOOKUP(N288,pomocna2!A:B,2,FALSE),\"\")","v":""}]
[null,null,null,null,{"$f":"+IFERROR(VLOOKUP(K289,pomocna2!A:B,2,FALSE),\"\")","v":""},{"$f":"+IFERROR((VLOOKUP(L289,pomocna!$AC$4:$AD$20,2,FALSE)),\"\")","v":""},null,{"$f":"+IFERROR(VLOOKUP(M289,pomocna3!$F$2:$G$7,2,FALSE),\"\")","v":""},null,{"$f":"+IFERROR(VLOOKUP(N289,pomocna2!A:B,2,FALSE),\"\")","v":""}]
[null,null,null,null,{"$f":"+IFERROR(VLOOKUP(K290,pomocna2!A:B,2,FALSE),\"\")","v":""},{"$f":"+IFERROR((VLOOKUP(L290,pomocna!$AC$4:$AD$20,2,FALSE)),\"\")","v":""},null,{"$f":"+IFERROR(VLOOKUP(M290,pomocna3!$F$2:$G$7,2,FALSE),\"\")","v":""},null,{"$f":"+IFERROR(VLOOKUP(N290,pomocna2!A:B,2,FALSE),\"\")","v":""}]
[null,null,null,null,{"$f":"+IFERROR(VLOOKUP(K291,pomocna2!A:B,2,FALSE),\"\")","v":""},{"$f":"+IFERROR((VLOOKUP(L291,pomocna!$AC$4:$AD$20,2,FALSE)),\"\")","v":""},null,{"$f":"+IFERROR(VLOOKUP(M291,pomocna3!$F$2:$G$7,2,FALSE),\"\")","v":""},null,{"$f":"+IFERROR(VLOOKUP(N291,pomocna2!A:B,2,FALSE),\"\")","v":""}]
[null,null,null,null,{"$f":"+IFERROR(VLOOKUP(K292,pomocna2!A:B,2,FALSE),\"\")","v":""},{"$f":"+IFERROR((VLOOKUP(L292,pomocna!$AC$4:$AD$20,2,FALSE)),\"\")","v":""},null,{"$f":"+IFERROR(VLOOKUP(M292,pomocna3!$F$2:$G$7,2,FALSE),\"\")","v":""},null,{"$f":"+IFERROR(VLOOKUP(N292,pomocna2!A:B,2,FALSE),\"\")","v":""}]
[null,null,null,null,{"$f":"+IFERROR(VLOOKUP(K293,pomocna2!A:B,2,FALSE),\"\")","v":""},{"$f":"+IFERROR((VLOOKUP(L293,pomocna!$AC$4:$AD$20,2,FALSE)),\"\")","v":""},null,{"$f":"+IFERROR(VLOOKUP(M293,pomocna3!$F$2:$G$7,2,FALSE),\"\")","v":""},null,{"$f":"+IFERROR(VLOOKUP(N293,pomocna2!A:B,2,FALSE),\"\")","v":""}]
[null,null,null,null,{"$f":"+IFERROR(VLOOKUP(K294,pomocna2!A:B,2,FALSE),\"\")","v":""},{"$f":"+IFERROR((VLOOKUP(L294,pomocna!$AC$4:$AD$20,2,FALSE)),\"\")","v":""},null,{"$f":"+IFERROR(VLOOKUP(M294,pomocna3!$F$2:$G$7,2,FALSE),\"\")","v":""},null,{"$f":"+IFERROR(VLOOKUP(N294,pomocna2!A:B,2,FALSE),\"\")","v":""}]
[null,null,null,null,{"$f":"+IFERROR(VLOOKUP(K295,pomocna2!A:B,2,FALSE),\"\")","v":""},{"$f":"+IFERROR((VLOOKUP(L295,pomocna!$AC$4:$AD$20,2,FALSE)),\"\")","v":""},null,{"$f":"+IFERROR(VLOOKUP(M295,pomocna3!$F$2:$G$7,2,FALSE),\"\")","v":""},null,{"$f":"+IFERROR(VLOOKUP(N295,pomocna2!A:B,2,FALSE),\"\")","v":""}]
[null,null,null,null,{"$f":"+IFERROR(VLOOKUP(K296,pomocna2!A:B,2,FALSE),\"\")","v":""},{"$f":"+IFERROR((VLOOKUP(L296,pomocna!$AC$4:$AD$20,2,FALSE)),\"\")","v":""},null,{"$f":"+IFERROR(VLOOKUP(M296,pomocna3!$F$2:$G$7,2,FALSE),\"\")","v":""},null,{"$f":"+IFERROR(VLOOKUP(N296,pomocna2!A:B,2,FALSE),\"\")","v":""}]
[null,null,null,null,{"$f":"+IFERROR(VLOOKUP(K297,pomocna2!A:B,2,FALSE),\"\")","v":""},{"$f":"+IFERROR((VLOOKUP(L297,pomocna!$AC$4:$AD$20,2,FALSE)),\"\")","v":""},null,{"$f":"+IFERROR(VLOOKUP(M297,pomocna3!$F$2:$G$7,2,FALSE),\"\")","v":""},null,{"$f":"+IFERROR(VLOOKUP(N297,pomocna2!A:B,2,FALSE),\"\")","v":""}]
[null,null,null,null,{"$f":"+IFERROR(VLOOKUP(K298,pomocna2!A:B,2,FALSE),\"\")","v":""},{"$f":"+IFERROR((VLOOKUP(L298,pomocna!$AC$4:$AD$20,2,FALSE)),\"\")","v":""},null,{"$f":"+IFERROR(VLOOKUP(M298,pomocna3!$F$2:$G$7,2,FALSE),\"\")","v":""},null,{"$f":"+IFERROR(VLOOKUP(N298,pomocna2!A:B,2,FALSE),\"\")","v":""}]
[null,null,null,null,{"$f":"+IFERROR(VLOOKUP(K299,pomocna2!A:B,2,FALSE),\"\")","v":""},{"$f":"+IFERROR((VLOOKUP(L299,pomocna!$AC$4:$AD$20,2,FALSE)),\"\")","v":""},null,{"$f":"+IFERROR(VLOOKUP(M299,pomocna3!$F$2:$G$7,2,FALSE),\"\")","v":""},null,{"$f":"+IFERROR(VLOOKUP(N299,pomocna2!A:B,2,FALSE),\"\")","v":""}]
[null,null,null,null,{"$f":"+IFERROR(VLOOKUP(K300,pomocna2!A:B,2,FALSE),\"\")","v":""},{"$f":"+IFERROR((VLOOKUP(L300,pomocna!$AC$4:$AD$20,2,FALSE)),\"\")","v":""},null,{"$f":"+IFERROR(VLOOKUP(M300,pomocna3!$F$2:$G$7,2,FALSE),\"\")","v":""},null,{"$f":"+IFERROR(VLOOKUP(N300,pomocna2!A:B,2,FALSE),\"\")","v":""}]
[null,null,null,null,{"$f":"+IFERROR(VLOOKUP(K301,pomocna2!A:B,2,FALSE),\"\")","v":""},{"$f":"+IFERROR((VLOOKUP(L301,pomocna!$AC$4:$AD$20,2,FALSE)),\"\")","v":""},null,{"$f":"+IFERROR(VLOOKUP(M301,pomocna3!$F$2:$G$7,2,FALSE),\"\")","v":""},null,{"$f":"+IFERROR(VLOOKUP(N301,pomocna2!A:B,2,FALSE),\"\")","v":""}]
[null,null,null,null,{"$f":"+IFERROR(VLOOKUP(K302,pomocna2!A:B,2,FALSE),\"\")","v":""},{"$f":"+IFERROR((VLOOKUP(L302,pomocna!$AC$4:$AD$20,2,FALSE)),\"\")","v":""},null,{"$f":"+IFERROR(VLOOKUP(M302,pomocna3!$F$2:$G$7,2,FALSE),\"\")","v":""},null,{"$f":"+IFERROR(VLOOKUP(N302,pomocna2!A:B,2,FALSE),\"\")","v":""}]
[null,null,null,null,{"$f":"+IFERROR(VLOOKUP(K303,pomocna2!A:B,2,FALSE),\"\")","v":""},{"$f":"+IFERROR((VLOOKUP(L303,pomocna!$AC$4:$AD$20,2,FALSE)),\"\")","v":""},null,{"$f":"+IFERROR(VLOOKUP(M303,pomocna3!$F$2:$G$7,2,FALSE),\"\")","v":""},null,{"$f":"+IFERROR(VLOOKUP(N303,pomocna2!A:B,2,FALSE),\"\")","v":""}]
[null,null,null,null,{"$f":"+IFERROR(VLOOKUP(K304,pomocna2!A:B,2,FALSE),\"\")","v":""},{"$f":"+IFERROR((VLOOKUP(L304,pomocna!$AC$4:$AD$20,2,FALSE)),\"\")","v":""},null,{"$f":"+IFERROR(VLOOKUP(M304,pomocna3!$F$2:$G$7,2,FALSE),\"\")","v":""},null,{"$f":"+IFERROR(VLOOKUP(N304,pomocna2!A:B,2,FALSE),\"\")","v":""}]
[null,null,null,null,{"$f":"+IFERROR(VLOOKUP(K305,pomocna2!A:B,2,FALSE),\"\")","v":""},{"$f":"+IFERROR((VLOOKUP(L305,pomocna!$AC$4:$AD$20,2,FALSE)),\"\")","v":""},null,{"$f":"+IFERROR(VLOOKUP(M305,pomocna3!$F$2:$G$7,2,FALSE),\"\")","v":""},null,{"$f":"+IFERROR(VLOOKUP(N305,pomocna2!A:B,2,FALSE),\"\")","v":""}]
[null,null,null,null,{"$f":"+IFERROR(VLOOKUP(K306,pomocna2!A:B,2,FALSE),\"\")","v":""},{"$f":"+IFERROR((VLOOKUP(L306,pomocna!$AC$4:$AD$20,2,FALSE)),\"\")","v":""},null,{"$f":"+IFERROR(VLOOKUP(M306,pomocna3!$F$2:$G$7,2,FALSE),\"\")","v":""},null,{"$f":"+IFERROR(VLOOKUP(N306,pomocna2!A:B,2,FALSE),\"\")","v":""}]
[null,null,null,null,{"$f":"+IFERROR(VLOOKUP(K307,pomocna2!A:B,2,FALSE),\"\")","v":""},{"$f":"+IFERROR((VLOOKUP(L307,pomocna!$AC$4:$AD$20,2,FALSE)),\"\")","v":""},null,{"$f":"+IFERROR(VLOOKUP(M307,pomocna3!$F$2:$G$7,2,FALSE),\"\")","v":""},null,{"$f":"+IFERROR(VLOOKUP(N307,pomocna2!A:B,2,FALSE),\"\")","v":""}]
[null,null,null,null,{"$f":"+IFERROR(VLOOKUP(K308,pomocna2!A:B,2,FALSE),\"\")","v":""},{"$f":"+IFERROR((VLOOKUP(L308,pomocna!$AC$4:$AD$20,2,FALSE)),\"\")","v":""},null,{"$f":"+IFERROR(VLOOKUP(M308,pomocna3!$F$2:$G$7,2,FALSE),\"\")","v":""},null,{"$f":"+IFERROR(VLOOKUP(N308,pomocna2!A:B,2,FALSE),\"\")","v":""}]
[null,null,null,null,{"$f":"+IFERROR(VLOOKUP(K309,pomocna2!A:B,2,FALSE),\"\")","v":""},{"$f":"+IFERROR((VLOOKUP(L309,pomocna!$AC$4:$AD$20,2,FALSE)),\"\")","v":""},null,{"$f":"+IFERROR(VLOOKUP(M309,pomocna3!$F$2:$G$7,2,FALSE),\"\")","v":""},null,{"$f":"+IFERROR(VLOOKUP(N309,pomocna2!A:B,2,FALSE),\"\")","v":""}]
[null,null,null,null,{"$f":"+IFERROR(VLOOKUP(K310,pomocna2!A:B,2,FALSE),\"\")","v":""},{"$f":"+IFERROR((VLOOKUP(L310,pomocna!$AC$4:$AD$20,2,FALSE)),\"\")","v":""},null,{"$f":"+IFERROR(VLOOKUP(M310,pomocna3!$F$2:$G$7,2,FALSE),\"\")","v":""},null,{"$f":"+IFERROR(VLOOKUP(N310,pomocna2!A:B,2,FALSE),\"\")","v":""}]
[null,null,null,null,{"$f":"+IFERROR(VLOOKUP(K311,pomocna2!A:B,2,FALSE),\"\")","v":""},{"$f":"+IFERROR((VLOOKUP(L311,pomocna!$AC$4:$AD$20,2,FALSE)),\"\")","v":""},null,{"$f":"+IFERROR(VLOOKUP(M311,pomocna3!$F$2:$G$7,2,FALSE),\"\")","v":""},null,{"$f":"+IFERROR(VLOOKUP(N311,pomocna2!A:B,2,FALSE),\"\")","v":""}]
[null,null,null,null,{"$f":"+IFERROR(VLOOKUP(K312,pomocna2!A:B,2,FALSE),\"\")","v":""},{"$f":"+IFERROR((VLOOKUP(L312,pomocna!$AC$4:$AD$20,2,FALSE)),\"\")","v":""},null,{"$f":"+IFERROR(VLOOKUP(M312,pomocna3!$F$2:$G$7,2,FALSE),\"\")","v":""},null,{"$f":"+IFERROR(VLOOKUP(N312,pomocna2!A:B,2,FALSE),\"\")","v":""}]
[null,null,null,null,{"$f":"+IFERROR(VLOOKUP(K313,pomocna2!A:B,2,FALSE),\"\")","v":""},{"$f":"+IFERROR((VLOOKUP(L313,pomocna!$AC$4:$AD$20,2,FALSE)),\"\")","v":""},null,{"$f":"+IFERROR(VLOOKUP(M313,pomocna3!$F$2:$G$7,2,FALSE),\"\")","v":""},null,{"$f":"+IFERROR(VLOOKUP(N313,pomocna2!A:B,2,FALSE),\"\")","v":""}]
[null,null,null,null,{"$f":"+IFERROR(VLOOKUP(K314,pomocna2!A:B,2,FALSE),\"\")","v":""},{"$f":"+IFERROR((VLOOKUP(L314,pomocna!$AC$4:$AD$20,2,FALSE)),\"\")","v":""},null,{"$f":"+IFERROR(VLOOKUP(M314,pomocna3!$F$2:$G$7,2,FALSE),\"\")","v":""},null,{"$f":"+IFERROR(VLOOKUP(N314,pomocna2!A:B,2,FALSE),\"\")","v":""}]
[null,null,null,null,{"$f":"+IFERROR(VLOOKUP(K315,pomocna2!A:B,2,FALSE),\"\")","v":""},{"$f":"+IFERROR((VLOOKUP(L315,pomocna!$AC$4:$AD$20,2,FALSE)),\"\")","v":""},null,{"$f":"+IFERROR(VLOOKUP(M315,pomocna3!$F$2:$G$7,2,FALSE),\"\")","v":""},null,{"$f":"+IFERROR(VLOOKUP(N315,pomocna2!A:B,2,FALSE),\"\")","v":""}]
[null,null,null,null,{"$f":"+IFERROR(VLOOKUP(K316,pomocna2!A:B,2,FALSE),\"\")","v":""},{"$f":"+IFERROR((VLOOKUP(L316,pomocna!$AC$4:$AD$20,2,FALSE)),\"\")","v":""},null,{"$f":"+IFERROR(VLOOKUP(M316,pomocna3!$F$2:$G$7,2,FALSE),\"\")","v":""},null,{"$f":"+IFERROR(VLOOKUP(N316,pomocna2!A:B,2,FALSE),\"\")","v":""}]
[null,null,null,null,{"$f":"+IFERROR(VLOOKUP(K317,pomocna2!A:B,2,FALSE),\"\")","v":""},{"$f":"+IFERROR((VLOOKUP(L317,pomocna!$AC$4:$AD$20,2,FALSE)),\"\")","v":""},null,{"$f":"+IFERROR(VLOOKUP(M317,pomocna3!$F$2:$G$7,2,FALSE),\"\")","v":""},null,{"$f":"+IFERROR(VLOOKUP(N317,pomocna2!A:B,2,FALSE),\"\")","v":""}]
[null,null,null,null,{"$f":"+IFERROR(VLOOKUP(K318,pomocna2!A:B,2,FALSE),\"\")","v":""},{"$f":"+IFERROR((VLOOKUP(L318,pomocna!$AC$4:$AD$20,2,FALSE)),\"\")","v":""},null,{"$f":"+IFERROR(VLOOKUP(M318,pomocna3!$F$2:$G$7,2,FALSE),\"\")","v":""},null,{"$f":"+IFERROR(VLOOKUP(N318,pomocna2!A:B,2,FALSE),\"\")","v":""}]
[null,null,null,null,{"$f":"+IFERROR(VLOOKUP(K319,pomocna2!A:B,2,FALSE),\"\")","v":""},{"$f":"+IFERROR((VLOOKUP(L319,pomocna!$AC$4:$AD$20,2,FALSE)),\"\")","v":""},null,{"$f":"+IFERROR(VLOOKUP(M319,pomocna3!$F$2:$G$7,2,FALSE),\"\")","v":""},null,{"$f":"+IFERROR(VLOOKUP(N319,pomocna2!A:B,2,FALSE),\"\")","v":""}]
[null,null,null,null,{"$f":"+IFERROR(VLOOKUP(K320,pomocna2!A:B,2,FALSE),\"\")","v":""},{"$f":"+IFERROR((VLOOKUP(L320,pomocna!$AC$4:$AD$20,2,FALSE)),\"\")","v":""},null,{"$f":"+IFERROR(VLOOKUP(M320,pomocna3!$F$2:$G$7,2,FALSE),\"\")","v":""},null,{"$f":"+IFERROR(VLOOKUP(N320,pomocna2!A:B,2,FALSE),\"\")","v":""}]
[null,null,null,null,{"$f":"+IFERROR(VLOOKUP(K321,pomocna2!A:B,2,FALSE),\"\")","v":""},{"$f":"+IFERROR((VLOOKUP(L321,pomocna!$AC$4:$AD$20,2,FALSE)),\"\")","v":""},null,{"$f":"+IFERROR(VLOOKUP(M321,pomocna3!$F$2:$G$7,2,FALSE),\"\")","v":""},null,{"$f":"+IFERROR(VLOOKUP(N321,pomocna2!A:B,2,FALSE),\"\")","v":""}]
[null,null,null,null,{"$f":"+IFERROR(VLOOKUP(K322,pomocna2!A:B,2,FALSE),\"\")","v":""},{"$f":"+IFERROR((VLOOKUP(L322,pomocna!$AC$4:$AD$20,2,FALSE)),\"\")","v":""},null,{"$f":"+IFERROR(VLOOKUP(M322,pomocna3!$F$2:$G$7,2,FALSE),\"\")","v":""},null,{"$f":"+IFERROR(VLOOKUP(N322,pomocna2!A:B,2,FALSE),\"\")","v":""}]
[null,null,null,null,{"$f":"+IFERROR(VLOOKUP(K323,pomocna2!A:B,2,FALSE),\"\")","v":""},{"$f":"+IFERROR((VLOOKUP(L323,pomocna!$AC$4:$AD$20,2,FALSE)),\"\")","v":""},null,{"$f":"+IFERROR(VLOOKUP(M323,pomocna3!$F$2:$G$7,2,FALSE),\"\")","v":""},null,{"$f":"+IFERROR(VLOOKUP(N323,pomocna2!A:B,2,FALSE),\"\")","v":""}]
[null,null,null,null,{"$f":"+IFERROR(VLOOKUP(K324,pomocna2!A:B,2,FALSE),\"\")","v":""},{"$f":"+IFERROR((VLOOKUP(L324,pomocna!$AC$4:$AD$20,2,FALSE)),\"\")","v":""},null,{"$f":"+IFERROR(VLOOKUP(M324,pomocna3!$F$2:$G$7,2,FALSE),\"\")","v":""},null,{"$f":"+IFERROR(VLOOKUP(N324,pomocna2!A:B,2,FALSE),\"\")","v":""}]
[null,null,null,null,{"$f":"+IFERROR(VLOOKUP(K325,pomocna2!A:B,2,FALSE),\"\")","v":""},{"$f":"+IFERROR((VLOOKUP(L325,pomocna!$AC$4:$AD$20,2,FALSE)),\"\")","v":""},null,{"$f":"+IFERROR(VLOOKUP(M325,pomocna3!$F$2:$G$7,2,FALSE),\"\")","v":""},null,{"$f":"+IFERROR(VLOOKUP(N325,pomocna2!A:B,2,FALSE),\"\")","v":""}]
[null,null,null,null,{"$f":"+IFERROR(VLOOKUP(K326,pomocna2!A:B,2,FALSE),\"\")","v":""},{"$f":"+IFERROR((VLOOKUP(L326,pomocna!$AC$4:$AD$20,2,FALSE)),\"\")","v":""},null,{"$f":"+IFERROR(VLOOKUP(M326,pomocna3!$F$2:$G$7,2,FALSE),\"\")","v":""},null,{"$f":"+IFERROR(VLOOKUP(N326,pomocna2!A:B,2,FALSE),\"\")","v":""}]
[null,null,null,null,{"$f":"+IFERROR(VLOOKUP(K327,pomocna2!A:B,2,FALSE),\"\")","v":""},{"$f":"+IFERROR((VLOOKUP(L327,pomocna!$AC$4:$AD$20,2,FALSE)),\"\")","v":""},null,{"$f":"+IFERROR(VLOOKUP(M327,pomocna3!$F$2:$G$7,2,FALSE),\"\")","v":""},null,{"$f":"+IFERROR(VLOOKUP(N327,pomocna2!A:B,2,FALSE),\"\")","v":""}]
[null,null,null,null,{"$f":"+IFERROR(VLOOKUP(K328,pomocna2!A:B,2,FALSE),\"\")","v":""},{"$f":"+IFERROR((VLOOKUP(L328,pomocna!$AC$4:$AD$20,2,FALSE)),\"\")","v":""},null,{"$f":"+IFERROR(VLOOKUP(M328,pomocna3!$F$2:$G$7,2,FALSE),\"\")","v":""},null,{"$f":"+IFERROR(VLOOKUP(N328,pomocna2!A:B,2,FALSE),\"\")","v":""}]
[null,null,null,null,{"$f":"+IFERROR(VLOOKUP(K329,pomocna2!A:B,2,FALSE),\"\")","v":""},{"$f":"+IFERROR((VLOOKUP(L329,pomocna!$AC$4:$AD$20,2,FALSE)),\"\")","v":""},null,{"$f":"+IFERROR(VLOOKUP(M329,pomocna3!$F$2:$G$7,2,FALSE),\"\")","v":""},null,{"$f":"+IFERROR(VLOOKUP(N329,pomocna2!A:B,2,FALSE),\"\")","v":""}]
[null,null,null,null,{"$f":"+IFERROR(VLOOKUP(K330,pomocna2!A:B,2,FALSE),\"\")","v":""},{"$f":"+IFERROR((VLOOKUP(L330,pomocna!$AC$4:$AD$20,2,FALSE)),\"\")","v":""},null,{"$f":"+IFERROR(VLOOKUP(M330,pomocna3!$F$2:$G$7,2,FALSE),\"\")","v":""},null,{"$f":"+IFERROR(VLOOKUP(N330,pomocna2!A:B,2,FALSE),\"\")","v":""}]
[null,null,null,null,{"$f":"+IFERROR(VLOOKUP(K331,pomocna2!A:B,2,FALSE),\"\")","v":""},{"$f":"+IFERROR((VLOOKUP(L331,pomocna!$AC$4:$AD$20,2,FALSE)),\"\")","v":""},null,{"$f":"+IFERROR(VLOOKUP(M331,pomocna3!$F$2:$G$7,2,FALSE),\"\")","v":""},null,{"$f":"+IFERROR(VLOOKUP(N331,pomocna2!A:B,2,FALSE),\"\")","v":""}]
[null,null,null,null,{"$f":"+IFERROR(VLOOKUP(K332,pomocna2!A:B,2,FALSE),\"\")","v":""},{"$f":"+IFERROR((VLOOKUP(L332,pomocna!$AC$4:$AD$20,2,FALSE)),\"\")","v":""},null,{"$f":"+IFERROR(VLOOKUP(M332,pomocna3!$F$2:$G$7,2,FALSE),\"\")","v":""},null,{"$f":"+IFERROR(VLOOKUP(N332,pomocna2!A:B,2,FALSE),\"\")","v":""}]
[null,null,null,null,{"$f":"+IFERROR(VLOOKUP(K333,pomocna2!A:B,2,FALSE),\"\")","v":""},{"$f":"+IFERROR((VLOOKUP(L333,pomocna!$AC$4:$AD$20,2,FALSE)),\"\")","v":""},null,{"$f":"+IFERROR(VLOOKUP(M333,pomocna3!$F$2:$G$7,2,FALSE),\"\")","v":""},null,{"$f":"+IFERROR(VLOOKUP(N333,pomocna2!A:B,2,FALSE),\"\")","v":""}]
[null,null,null,null,{"$f":"+IFERROR(VLOOKUP(K334,pomocna2!A:B,2,FALSE),\"\")","v":""},{"$f":"+IFERROR((VLOOKUP(L334,pomocna!$AC$4:$AD$20,2,FALSE)),\"\")","v":""},null,{"$f":"+IFERROR(VLOOKUP(M334,pomocna3!$F$2:$G$7,2,FALSE),\"\")","v":""},null,{"$f":"+IFERROR(VLOOKUP(N334,pomocna2!A:B,2,FALSE),\"\")","v":""}]
[null,null,null,null,{"$f":"+IFERROR(VLOOKUP(K335,pomocna2!A:B,2,FALSE),\"\")","v":""},{"$f":"+IFERROR((VLOOKUP(L335,pomocna!$AC$4:$AD$20,2,FALSE)),\"\")","v":""},null,{"$f":"+IFERROR(VLOOKUP(M335,pomocna3!$F$2:$G$7,2,FALSE),\"\")","v":""},null,{"$f":"+IFERROR(VLOOKUP(N335,pomocna2!A:B,2,FALSE),\"\")","v":""}]
[null,null,null,null,{"$f":"+IFERROR(VLOOKUP(K336,pomocna2!A:B,2,FALSE),\"\")","v":""},{"$f":"+IFERROR((VLOOKUP(L336,pomocna!$AC$4:$AD$20,2,FALSE)),\"\")","v":""},null,{"$f":"+IFERROR(VLOOKUP(M336,pomocna3!$F$2:$G$7,2,FALSE),\"\")","v":""},null,{"$f":"+IFERROR(VLOOKUP(N336,pomocna2!A:B,2,FALSE),\"\")","v":""}]
[null,null,null,null,{"$f":"+IFERROR(VLOOKUP(K337,pomocna2!A:B,2,FALSE),\"\")","v":""},{"$f":"+IFERROR((VLOOKUP(L337,pomocna!$AC$4:$AD$20,2,FALSE)),\"\")","v":""},null,{"$f":"+IFERROR(VLOOKUP(M337,pomocna3!$F$2:$G$7,2,FALSE),\"\")","v":""},null,{"$f":"+IFERROR(VLOOKUP(N337,pomocna2!A:B,2,FALSE),\"\")","v":""}]
[null,null,null,null,{"$f":"+IFERROR(VLOOKUP(K338,pomocna2!A:B,2,FALSE),\"\")","v":""},{"$f":"+IFERROR((VLOOKUP(L338,pomocna!$AC$4:$AD$20,2,FALSE)),\"\")","v":""},null,{"$f":"+IFERROR(VLOOKUP(M338,pomocna3!$F$2:$G$7,2,FALSE),\"\")","v":""},null,{"$f":"+IFERROR(VLOOKUP(N338,pomocna2!A:B,2,FALSE),\"\")","v":""}]
[null,null,null,null,{"$f":"+IFERROR(VLOOKUP(K339,pomocna2!A:B,2,FALSE),\"\")","v":""},{"$f":"+IFERROR((VLOOKUP(L339,pomocna!$AC$4:$AD$20,2,FALSE)),\"\")","v":""},null,{"$f":"+IFERROR(VLOOKUP(M339,pomocna3!$F$2:$G$7,2,FALSE),\"\")","v":""},null,{"$f":"+IFERROR(VLOOKUP(N339,pomocna2!A:B,2,FALSE),\"\")","v":""}]
[null,null,null,null,{"$f":"+IFERROR(VLOOKUP(K340,pomocna2!A:B,2,FALSE),\"\")","v":""},{"$f":"+IFERROR((VLOOKUP(L340,pomocna!$AC$4:$AD$20,2,FALSE)),\"\")","v":""},null,{"$f":"+IFERROR(VLOOKUP(M340,pomocna3!$F$2:$G$7,2,FALSE),\"\")","v":""},null,{"$f":"+IFERROR(VLOOKUP(N340,pomocna2!A:B,2,FALSE),\"\")","v":""}]
[null,null,null,null,{"$f":"+IFERROR(VLOOKUP(K341,pomocna2!A:B,2,FALSE),\"\")","v":""},{"$f":"+IFERROR((VLOOKUP(L341,pomocna!$AC$4:$AD$20,2,FALSE)),\"\")","v":""},null,{"$f":"+IFERROR(VLOOKUP(M341,pomocna3!$F$2:$G$7,2,FALSE),\"\")","v":""},null,{"$f":"+IFERROR(VLOOKUP(N341,pomocna2!A:B,2,FALSE),\"\")","v":""}]
[null,null,null,null,{"$f":"+IFERROR(VLOOKUP(K342,pomocna2!A:B,2,FALSE),\"\")","v":""},{"$f":"+IFERROR((VLOOKUP(L342,pomocna!$AC$4:$AD$20,2,FALSE)),\"\")","v":""},null,{"$f":"+IFERROR(VLOOKUP(M342,pomocna3!$F$2:$G$7,2,FALSE),\"\")","v":""},null,{"$f":"+IFERROR(VLOOKUP(N342,pomocna2!A:B,2,FALSE),\"\")","v":""}]
[null,null,null,null,{"$f":"+IFERROR(VLOOKUP(K343,pomocna2!A:B,2,FALSE),\"\")","v":""},{"$f":"+IFERROR((VLOOKUP(L343,pomocna!$AC$4:$AD$20,2,FALSE)),\"\")","v":""},null,{"$f":"+IFERROR(VLOOKUP(M343,pomocna3!$F$2:$G$7,2,FALSE),\"\")","v":""},null,{"$f":"+IFERROR(VLOOKUP(N343,pomocna2!A:B,2,FALSE),\"\")","v":""}]
[null,null,null,null,{"$f":"+IFERROR(VLOOKUP(K344,pomocna2!A:B,2,FALSE),\"\")","v":""},{"$f":"+IFERROR((VLOOKUP(L344,pomocna!$AC$4:$AD$20,2,FALSE)),\"\")","v":""},null,{"$f":"+IFERROR(VLOOKUP(M344,pomocna3!$F$2:$G$7,2,FALSE),\"\")","v":""},null,{"$f":"+IFERROR(VLOOKUP(N344,pomocna2!A:B,2,FALSE),\"\")","v":""}]
[null,null,null,null,{"$f":"+IFERROR(VLOOKUP(K345,pomocna2!A:B,2,FALSE),\"\")","v":""},{"$f":"+IFERROR((VLOOKUP(L345,pomocna!$AC$4:$AD$20,2,FALSE)),\"\")","v":""},null,{"$f":"+IFERROR(VLOOKUP(M345,pomocna3!$F$2:$G$7,2,FALSE),\"\")","v":""},null,{"$f":"+IFERROR(VLOOKUP(N345,pomocna2!A:B,2,FALSE),\"\")","v":""}]
[null,null,null,null,{"$f":"+IFERROR(VLOOKUP(K346,pomocna2!A:B,2,FALSE),\"\")","v":""},{"$f":"+IFERROR((VLOOKUP(L346,pomocna!$AC$4:$AD$20,2,FALSE)),\"\")","v":""},null,{"$f":"+IFERROR(VLOOKUP(M346,pomocna3!$F$2:$G$7,2,FALSE),\"\")","v":""},null,{"$f":"+IFERROR(VLOOKUP(N346,pomocna2!A:B,2,FALSE),\"\")","v":""}]
[null,null,null,null,{"$f":"+IFERROR(VLOOKUP(K347,pomocna2!A:B,2,FALSE),\"\")","v":""},{"$f":"+IFERROR((VLOOKUP(L347,pomocna!$AC$4:$AD$20,2,FALSE)),\"\")","v":""},null,{"$f":"+IFERROR(VLOOKUP(M347,pomocna3!$F$2:$G$7,2,FALSE),\"\")","v":""},null,{"$f":"+IFERROR(VLOOKUP(N347,pomocna2!A:B,2,FALSE),\"\")","v":""}]
[null,null,null,null,{"$f":"+IFERROR(VLOOKUP(K348,pomocna2!A:B,2,FALSE),\"\")","v":""},{"$f":"+IFERROR((VLOOKUP(L348,pomocna!$AC$4:$AD$20,2,FALSE)),\"\")","v":""},null,{"$f":"+IFERROR(VLOOKUP(M348,pomocna3!$F$2:$G$7,2,FALSE),\"\")","v":""},null,{"$f":"+IFERROR(VLOOKUP(N348,pomocna2!A:B,2,FALSE),\"\")","v":""}]
[null,null,null,null,{"$f":"+IFERROR(VLOOKUP(K349,pomocna2!A:B,2,FALSE),\"\")","v":""},{"$f":"+IFERROR((VLOOKUP(L349,pomocna!$AC$4:$AD$20,2,FALSE)),\"\")","v":""},null,{"$f":"+IFERROR(VLOOKUP(M349,pomocna3!$F$2:$G$7,2,FALSE),\"\")","v":""},null,{"$f":"+IFERROR(VLOOKUP(N349,pomocna2!A:B,2,FALSE),\"\")","v":""}]
[null,null,null,null,{"$f":"+IFERROR(VLOOKUP(K350,pomocna2!A:B,2,FALSE),\"\")","v":""},{"$f":"+IFERROR((VLOOKUP(L350,pomocna!$AC$4:$AD$20,2,FALSE)),\"\")","v":""},null,{"$f":"+IFERROR(VLOOKUP(M350,pomocna3!$F$2:$G$7,2,FALSE),\"\")","v":""},null,{"$f":"+IFERROR(VLOOKUP(N350,pomocna2!A:B,2,FALSE),\"\")","v":""}]
[null,null,null,null,{"$f":"+IFERROR(VLOOKUP(K351,pomocna2!A:B,2,FALSE),\"\")","v":""},{"$f":"+IFERROR((VLOOKUP(L351,pomocna!$AC$4:$AD$20,2,FALSE)),\"\")","v":""},null,{"$f":"+IFERROR(VLOOKUP(M351,pomocna3!$F$2:$G$7,2,FALSE),\"\")","v":""},null,{"$f":"+IFERROR(VLOOKUP(N351,pomocna2!A:B,2,FALSE),\"\")","v":""}]
[null,null,null,null,{"$f":"+IFERROR(VLOOKUP(K352,pomocna2!A:B,2,FALSE),\"\")","v":""},{"$f":"+IFERROR((VLOOKUP(L352,pomocna!$AC$4:$AD$20,2,FALSE)),\"\")","v":""},null,{"$f":"+IFERROR(VLOOKUP(M352,pomocna3!$F$2:$G$7,2,FALSE),\"\")","v":""},null,{"$f":"+IFERROR(VLOOKUP(N352,pomocna2!A:B,2,FALSE),\"\")","v":""}]
[null,null,null,null,{"$f":"+IFERROR(VLOOKUP(K353,pomocna2!A:B,2,FALSE),\"\")","v":""},{"$f":"+IFERROR((VLOOKUP(L353,pomocna!$AC$4:$AD$20,2,FALSE)),\"\")","v":""},null,{"$f":"+IFERROR(VLOOKUP(M353,pomocna3!$F$2:$G$7,2,FALSE),\"\")","v":""},null,{"$f":"+IFERROR(VLOOKUP(N353,pomocna2!A:B,2,FALSE),\"\")","v":""}]
[null,null,null,null,{"$f":"+IFERROR(VLOOKUP(K354,pomocna2!A:B,2,FALSE),\"\")","v":""},{"$f":"+IFERROR((VLOOKUP(L354,pomocna!$AC$4:$AD$20,2,FALSE)),\"\")","v":""},null,{"$f":"+IFERROR(VLOOKUP(M354,pomocna3!$F$2:$G$7,2,FALSE),\"\")","v":""},null,{"$f":"+IFERROR(VLOOKUP(N354,pomocna2!A:B,2,FALSE),\"\")","v":""}]
[null,null,null,null,{"$f":"+IFERROR(VLOOKUP(K355,pomocna2!A:B,2,FALSE),\"\")","v":""},{"$f":"+IFERROR((VLOOKUP(L355,pomocna!$AC$4:$AD$20,2,FALSE)),\"\")","v":""},null,{"$f":"+IFERROR(VLOOKUP(M355,pomocna3!$F$2:$G$7,2,FALSE),\"\")","v":""},null,{"$f":"+IFERROR(VLOOKUP(N355,pomocna2!A:B,2,FALSE),\"\")","v":""}]
[null,null,null,null,{"$f":"+IFERROR(VLOOKUP(K356,pomocna2!A:B,2,FALSE),\"\")","v":""},{"$f":"+IFERROR((VLOOKUP(L356,pomocna!$AC$4:$AD$20,2,FALSE)),\"\")","v":""},null,{"$f":"+IFERROR(VLOOKUP(M356,pomocna3!$F$2:$G$7,2,FALSE),\"\")","v":""},null,{"$f":"+IFERROR(VLOOKUP(N356,pomocna2!A:B,2,FALSE),\"\")","v":""}]
[null,null,null,null,{"$f":"+IFERROR(VLOOKUP(K357,pomocna2!A:B,2,FALSE),\"\")","v":""},{"$f":"+IFERROR((VLOOKUP(L357,pomocna!$AC$4:$AD$20,2,FALSE)),\"\")","v":""},null,{"$f":"+IFERROR(VLOOKUP(M357,pomocna3!$F$2:$G$7,2,FALSE),\"\")","v":""},null,{"$f":"+IFERROR(VLOOKUP(N357,pomocna2!A:B,2,FALSE),\"\")","v":""}]
[null,null,null,null,{"$f":"+IFERROR(VLOOKUP(K358,pomocna2!A:B,2,FALSE),\"\")","v":""},{"$f":"+IFERROR((VLOOKUP(L358,pomocna!$AC$4:$AD$20,2,FALSE)),\"\")","v":""},null,{"$f":"+IFERROR(VLOOKUP(M358,pomocna3!$F$2:$G$7,2,FALSE),\"\")","v":""},null,{"$f":"+IFERROR(VLOOKUP(N358,pomocna2!A:B,2,FALSE),\"\")","v":""}]
[null,null,null,null,{"$f":"+IFERROR(VLOOKUP(K359,pomocna2!A:B,2,FALSE),\"\")","v":""},{"$f":"+IFERROR((VLOOKUP(L359,pomocna!$AC$4:$AD$20,2,FALSE)),\"\")","v":""},null,{"$f":"+IFERROR(VLOOKUP(M359,pomocna3!$F$2:$G$7,2,FALSE),\"\")","v":""},null,{"$f":"+IFERROR(VLOOKUP(N359,pomocna2!A:B,2,FALSE),\"\")","v":""}]
[null,null,null,null,{"$f":"+IFERROR(VLOOKUP(K360,pomocna2!A:B,2,FALSE),\"\")","v":""},{"$f":"+IFERROR((VLOOKUP(L360,pomocna!$AC$4:$AD$20,2,FALSE)),\"\")","v":""},null,{"$f":"+IFERROR(VLOOKUP(M360,pomocna3!$F$2:$G$7,2,FALSE),\"\")","v":""},null,{"$f":"+IFERROR(VLOOKUP(N360,pomocna2!A:B,2,FALSE),\"\")","v":""}]
[null,null,null,null,{"$f":"+IFERROR(VLOOKUP(K361,pomocna2!A:B,2,FALSE),\"\")","v":""},{"$f":"+IFERROR((VLOOKUP(L361,pomocna!$AC$4:$AD$20,2,FALSE)),\"\")","v":""},null,{"$f":"+IFERROR(VLOOKUP(M361,pomocna3!$F$2:$G$7,2,FALSE),\"\")","v":""},null,{"$f":"+IFERROR(VLOOKUP(N361,pomocna2!A:B,2,FALSE),\"\")","v":""}]
[null,null,null,null,{"$f":"+IFERROR(VLOOKUP(K362,pomocna2!A:B,2,FALSE),\"\")","v":""},{"$f":"+IFERROR((VLOOKUP(L362,pomocna!$AC$4:$AD$20,2,FALSE)),\"\")","v":""},null,{"$f":"+IFERROR(VLOOKUP(M362,pomocna3!$F$2:$G$7,2,FALSE),\"\")","v":""},null,{"$f":"+IFERROR(VLOOKUP(N362,pomocna2!A:B,2,FALSE),\"\")","v":""}]
[null,null,null,null,{"$f":"+IFERROR(VLOOKUP(K363,pomocna2!A:B,2,FALSE),\"\")","v":""},{"$f":"+IFERROR((VLOOKUP(L363,pomocna!$AC$4:$AD$20,2,FALSE)),\"\")","v":""},null,{"$f":"+IFERROR(VLOOKUP(M363,pomocna3!$F$2:$G$7,2,FALSE),\"\")","v":""},null,{"$f":"+IFERROR(VLOOKUP(N363,pomocna2!A:B,2,FALSE),\"\")","v":""}]
[null,null,null,null,{"$f":"+IFERROR(VLOOKUP(K364,pomocna2!A:B,2,FALSE),\"\")","v":""},{"$f":"+IFERROR((VLOOKUP(L364,pomocna!$AC$4:$AD$20,2,FALSE)),\"\")","v":""},null,{"$f":"+IFERROR(VLOOKUP(M364,pomocna3!$F$2:$G$7,2,FALSE),\"\")","v":""},null,{"$f":"+IFERROR(VLOOKUP(N364,pomocna2!A:B,2,FALSE),\"\")","v":""}]
[null,null,null,null,{"$f":"+IFERROR(VLOOKUP(K365,pomocna2!A:B,2,FALSE),\"\")","v":""},{"$f":"+IFERROR((VLOOKUP(L365,pomocna!$AC$4:$AD$20,2,FALSE)),\"\")","v":""},null,{"$f":"+IFERROR(VLOOKUP(M365,pomocna3!$F$2:$G$7,2,FALSE),\"\")","v":""},null,{"$f":"+IFERROR(VLOOKUP(N365,pomocna2!A:B,2,FALSE),\"\")","v":""}]
[null,null,null,null,{"$f":"+IFERROR(VLOOKUP(K366,pomocna2!A:B,2,FALSE),\"\")","v":""},{"$f":"+IFERROR((VLOOKUP(L366,pomocna!$AC$4:$AD$20,2,FALSE)),\"\")","v":""},null,{"$f":"+IFERROR(VLOOKUP(M366,pomocna3!$F$2:$G$7,2,FALSE),\"\")","v":""},null,{"$f":"+IFERROR(VLOOKUP(N366,pomocna2!A:B,2,FALSE),\"\")","v":""}]
[null,null,null,null,{"$f":"+IFERROR(VLOOKUP(K367,pomocna2!A:B,2,FALSE),\"\")","v":""},{"$f":"+IFERROR((VLOOKUP(L367,pomocna!$AC$4:$AD$20,2,FALSE)),\"\")","v":""},null,{"$f":"+IFERROR(VLOOKUP(M367,pomocna3!$F$2:$G$7,2,FALSE),\"\")","v":""},null,{"$f":"+IFERROR(VLOOKUP(N367,pomocna2!A:B,2,FALSE),\"\")","v":""}]
[null,null,null,null,{"$f":"+IFERROR(VLOOKUP(K368,pomocna2!A:B,2,FALSE),\"\")","v":""},{"$f":"+IFERROR((VLOOKUP(L368,pomocna!$AC$4:$AD$20,2,FALSE)),\"\")","v":""},null,{"$f":"+IFERROR(VLOOKUP(M368,pomocna3!$F$2:$G$7,2,FALSE),\"\")","v":""},null,{"$f":"+IFERROR(VLOOKUP(N368,pomocna2!A:B,2,FALSE),\"\")","v":""}]
[null,null,null,null,{"$f":"+IFERROR(VLOOKUP(K369,pomocna2!A:B,2,FALSE),\"\")","v":""},{"$f":"+IFERROR((VLOOKUP(L369,pomocna!$AC$4:$AD$20,2,FALSE)),\"\")","v":""},null,{"$f":"+IFERROR(VLOOKUP(M369,pomocna3!$F$2:$G$7,2,FALSE),\"\")","v":""},null,{"$f":"+IFERROR(VLOOKUP(N369,pomocna2!A:B,2,FALSE),\"\")","v":""}]
[null,null,null,null,{"$f":"+IFERROR(VLOOKUP(K370,pomocna2!A:B,2,FALSE),\"\")","v":""},{"$f":"+IFERROR((VLOOKUP(L370,pomocna!$AC$4:$AD$20,2,FALSE)),\"\")","v":""},null,{"$f":"+IFERROR(VLOOKUP(M370,pomocna3!$F$2:$G$7,2,FALSE),\"\")","v":""},null,{"$f":"+IFERROR(VLOOKUP(N370,pomocna2!A:B,2,FALSE),\"\")","v":""}]
[null,null,null,null,{"$f":"+IFERROR(VLOOKUP(K371,pomocna2!A:B,2,FALSE),\"\")","v":""},{"$f":"+IFERROR((VLOOKUP(L371,pomocna!$AC$4:$AD$20,2,FALSE)),\"\")","v":""},null,{"$f":"+IFERROR(VLOOKUP(M371,pomocna3!$F$2:$G$7,2,FALSE),\"\")","v":""},null,{"$f":"+IFERROR(VLOOKUP(N371,pomocna2!A:B,2,FALSE),\"\")","v":""}]
[null,null,null,null,{"$f":"+IFERROR(VLOOKUP(K372,pomocna2!A:B,2,FALSE),\"\")","v":""},{"$f":"+IFERROR((VLOOKUP(L372,pomocna!$AC$4:$AD$20,2,FALSE)),\"\")","v":""},null,{"$f":"+IFERROR(VLOOKUP(M372,pomocna3!$F$2:$G$7,2,FALSE),\"\")","v":""},null,{"$f":"+IFERROR(VLOOKUP(N372,pomocna2!A:B,2,FALSE),\"\")","v":""}]
[null,null,null,null,{"$f":"+IFERROR(VLOOKUP(K373,pomocna2!A:B,2,FALSE),\"\")","v":""},{"$f":"+IFERROR((VLOOKUP(L373,pomocna!$AC$4:$AD$20,2,FALSE)),\"\")","v":""},null,{"$f":"+IFERROR(VLOOKUP(M373,pomocna3!$F$2:$G$7,2,FALSE),\"\")","v":""},null,{"$f":"+IFERROR(VLOOKUP(N373,pomocna2!A:B,2,FALSE),\"\")","v":""}]
[null,null,null,null,{"$f":"+IFERROR(VLOOKUP(K374,pomocna2!A:B,2,FALSE),\"\")","v":""},{"$f":"+IFERROR((VLOOKUP(L374,pomocna!$AC$4:$AD$20,2,FALSE)),\"\")","v":""},null,{"$f":"+IFERROR(VLOOKUP(M374,pomocna3!$F$2:$G$7,2,FALSE),\"\")","v":""},null,{"$f":"+IFERROR(VLOOKUP(N374,pomocna2!A:B,2,FALSE),\"\")","v":""}]
[null,null,null,null,{"$f":"+IFERROR(VLOOKUP(K375,pomocna2!A:B,2,FALSE),\"\")","v":""},{"$f":"+IFERROR((VLOOKUP(L375,pomocna!$AC$4:$AD$20,2,FALSE)),\"\")","v":""},null,{"$f":"+IFERROR(VLOOKUP(M375,pomocna3!$F$2:$G$7,2,FALSE),\"\")","v":""},null,{"$f":"+IFERROR(VLOOKUP(N375,pomocna2!A:B,2,FALSE),\"\")","v":""}]
[null,null,null,null,{"$f":"+IFERROR(VLOOKUP(K376,pomocna2!A:B,2,FALSE),\"\")","v":""},{"$f":"+IFERROR((VLOOKUP(L376,pomocna!$AC$4:$AD$20,2,FALSE)),\"\")","v":""},null,{"$f":"+IFERROR(VLOOKUP(M376,pomocna3!$F$2:$G$7,2,FALSE),\"\")","v":""},null,{"$f":"+IFERROR(VLOOKUP(N376,pomocna2!A:B,2,FALSE),\"\")","v":""}]
[null,null,null,null,{"$f":"+IFERROR(VLOOKUP(K377,pomocna2!A:B,2,FALSE),\"\")","v":""},{"$f":"+IFERROR((VLOOKUP(L377,pomocna!$AC$4:$AD$20,2,FALSE)),\"\")","v":""},null,{"$f":"+IFERROR(VLOOKUP(M377,pomocna3!$F$2:$G$7,2,FALSE),\"\")","v":""},null,{"$f":"+IFERROR(VLOOKUP(N377,pomocna2!A:B,2,FALSE),\"\")","v":""}]
[null,null,null,null,{"$f":"+IFERROR(VLOOKUP(K378,pomocna2!A:B,2,FALSE),\"\")","v":""},{"$f":"+IFERROR((VLOOKUP(L378,pomocna!$AC$4:$AD$20,2,FALSE)),\"\")","v":""},null,{"$f":"+IFERROR(VLOOKUP(M378,pomocna3!$F$2:$G$7,2,FALSE),\"\")","v":""},null,{"$f":"+IFERROR(VLOOKUP(N378,pomocna2!A:B,2,FALSE),\"\")","v":""}]
[null,null,null,null,{"$f":"+IFERROR(VLOOKUP(K379,pomocna2!A:B,2,FALSE),\"\")","v":""},{"$f":"+IFERROR((VLOOKUP(L379,pomocna!$AC$4:$AD$20,2,FALSE)),\"\")","v":""},null,{"$f":"+IFERROR(VLOOKUP(M379,pomocna3!$F$2:$G$7,2,FALSE),\"\")","v":""},null,{"$f":"+IFERROR(VLOOKUP(N379,pomocna2!A:B,2,FALSE),\"\")","v":""}]
[null,null,null,null,{"$f":"+IFERROR(VLOOKUP(K380,pomocna2!A:B,2,FALSE),\"\")","v":""},{"$f":"+IFERROR((VLOOKUP(L380,pomocna!$AC$4:$AD$20,2,FALSE)),\"\")","v":""},null,{"$f":"+IFERROR(VLOOKUP(M380,pomocna3!$F$2:$G$7,2,FALSE),\"\")","v":""},null,{"$f":"+IFERROR(VLOOKUP(N380,pomocna2!A:B,2,FALSE),\"\")","v":""}]
[null,null,null,null,{"$f":"+IFERROR(VLOOKUP(K381,pomocna2!A:B,2,FALSE),\"\")","v":""},{"$f":"+IFERROR((VLOOKUP(L381,pomocna!$AC$4:$AD$20,2,FALSE)),\"\")","v":""},null,{"$f":"+IFERROR(VLOOKUP(M381,pomocna3!$F$2:$G$7,2,FALSE),\"\")","v":""},null,{"$f":"+IFERROR(VLOOKUP(N381,pomocna2!A:B,2,FALSE),\"\")","v":""}]
[null,null,null,null,{"$f":"+IFERROR(VLOOKUP(K382,pomocna2!A:B,2,FALSE),\"\")","v":""},{"$f":"+IFERROR((VLOOKUP(L382,pomocna!$AC$4:$AD$20,2,FALSE)),\"\")","v":""},null,{"$f":"+IFERROR(VLOOKUP(M382,pomocna3!$F$2:$G$7,2,FALSE),\"\")","v":""},null,{"$f":"+IFERROR(VLOOKUP(N382,pomocna2!A:B,2,FALSE),\"\")","v":""}]
[null,null,null,null,{"$f":"+IFERROR(VLOOKUP(K383,pomocna2!A:B,2,FALSE),\"\")","v":""},{"$f":"+IFERROR((VLOOKUP(L383,pomocna!$AC$4:$AD$20,2,FALSE)),\"\")","v":""},null,{"$f":"+IFERROR(VLOOKUP(M383,pomocna3!$F$2:$G$7,2,FALSE),\"\")","v":""},null,{"$f":"+IFERROR(VLOOKUP(N383,pomocna2!A:B,2,FALSE),\"\")","v":""}]
[null,null,null,null,{"$f":"+IFERROR(VLOOKUP(K384,pomocna2!A:B,2,FALSE),\"\")","v":""},{"$f":"+IFERROR((VLOOKUP(L384,pomocna!$AC$4:$AD$20,2,FALSE)),\"\")","v":""},null,{"$f":"+IFERROR(VLOOKUP(M384,pomocna3!$F$2:$G$7,2,FALSE),\"\")","v":""},null,{"$f":"+IFERROR(VLOOKUP(N384,pomocna2!A:B,2,FALSE),\"\")","v":""}]
[null,null,null,null,{"$f":"+IFERROR(VLOOKUP(K385,pomocna2!A:B,2,FALSE),\"\")","v":""},{"$f":"+IFERROR((VLOOKUP(L385,pomocna!$AC$4:$AD$20,2,FALSE)),\"\")","v":""},null,{"$f":"+IFERROR(VLOOKUP(M385,pomocna3!$F$2:$G$7,2,FALSE),\"\")","v":""},null,{"$f":"+IFERROR(VLOOKUP(N385,pomocna2!A:B,2,FALSE),\"\")","v":""}]
[null,null,null,null,{"$f":"+IFERROR(VLOOKUP(K386,pomocna2!A:B,2,FALSE),\"\")","v":""},{"$f":"+IFERROR((VLOOKUP(L386,pomocna!$AC$4:$AD$20,2,FALSE)),\"\")","v":""},null,{"$f":"+IFERROR(VLOOKUP(M386,pomocna3!$F$2:$G$7,2,FALSE),\"\")","v":""},null,{"$f":"+IFERROR(VLOOKUP(N386,pomocna2!A:B,2,FALSE),\"\")","v":""}]
[null,null,null,null,{"$f":"+IFERROR(VLOOKUP(K387,pomocna2!A:B,2,FALSE),\"\")","v":""},{"$f":"+IFERROR((VLOOKUP(L387,pomocna!$AC$4:$AD$20,2,FALSE)),\"\")","v":""},null,{"$f":"+IFERROR(VLOOKUP(M387,pomocna3!$F$2:$G$7,2,FALSE),\"\")","v":""},null,{"$f":"+IFERROR(VLOOKUP(N387,pomocna2!A:B,2,FALSE),\"\")","v":""}]
[null,null,null,null,{"$f":"+IFERROR(VLOOKUP(K388,pomocna2!A:B,2,FALSE),\"\")","v":""},{"$f":"+IFERROR((VLOOKUP(L388,pomocna!$AC$4:$AD$20,2,FALSE)),\"\")","v":""},null,{"$f":"+IFERROR(VLOOKUP(M388,pomocna3!$F$2:$G$7,2,FALSE),\"\")","v":""},null,{"$f":"+IFERROR(VLOOKUP(N388,pomocna2!A:B,2,FALSE),\"\")","v":""}]
[null,null,null,null,{"$f":"+IFERROR(VLOOKUP(K389,pomocna2!A:B,2,FALSE),\"\")","v":""},{"$f":"+IFERROR((VLOOKUP(L389,pomocna!$AC$4:$AD$20,2,FALSE)),\"\")","v":""},null,{"$f":"+IFERROR(VLOOKUP(M389,pomocna3!$F$2:$G$7,2,FALSE),\"\")","v":""},null,{"$f":"+IFERROR(VLOOKUP(N389,pomocna2!A:B,2,FALSE),\"\")","v":""}]
[null,null,null,null,{"$f":"+IFERROR(VLOOKUP(K390,pomocna2!A:B,2,FALSE),\"\")","v":""},{"$f":"+IFERROR((VLOOKUP(L390,pomocna!$AC$4:$AD$20,2,FALSE)),\"\")","v":""},null,{"$f":"+IFERROR(VLOOKUP(M390,pomocna3!$F$2:$G$7,2,FALSE),\"\")","v":""},null,{"$f":"+IFERROR(VLOOKUP(N390,pomocna2!A:B,2,FALSE),\"\")","v":""}]
[null,null,null,null,{"$f":"+IFERROR(VLOOKUP(K391,pomocna2!A:B,2,FALSE),\"\")","v":""},{"$f":"+IFERROR((VLOOKUP(L391,pomocna!$AC$4:$AD$20,2,FALSE)),\"\")","v":""},null,{"$f":"+IFERROR(VLOOKUP(M391,pomocna3!$F$2:$G$7,2,FALSE),\"\")","v":""},null,{"$f":"+IFERROR(VLOOKUP(N391,pomocna2!A:B,2,FALSE),\"\")","v":""}]
[null,null,null,null,{"$f":"+IFERROR(VLOOKUP(K392,pomocna2!A:B,2,FALSE),\"\")","v":""},{"$f":"+IFERROR((VLOOKUP(L392,pomocna!$AC$4:$AD$20,2,FALSE)),\"\")","v":""},null,{"$f":"+IFERROR(VLOOKUP(M392,pomocna3!$F$2:$G$7,2,FALSE),\"\")","v":""},null,{"$f":"+IFERROR(VLOOKUP(N392,pomocna2!A:B,2,FALSE),\"\")","v":""}]
[null,null,null,null,{"$f":"+IFERROR(VLOOKUP(K393,pomocna2!A:B,2,FALSE),\"\")","v":""},{"$f":"+IFERROR((VLOOKUP(L393,pomocna!$AC$4:$AD$20,2,FALSE)),\"\")","v":""},null,{"$f":"+IFERROR(VLOOKUP(M393,pomocna3!$F$2:$G$7,2,FALSE),\"\")","v":""},null,{"$f":"+IFERROR(VLOOKUP(N393,pomocna2!A:B,2,FALSE),\"\")","v":""}]
[null,null,null,null,{"$f":"+IFERROR(VLOOKUP(K394,pomocna2!A:B,2,FALSE),\"\")","v":""},{"$f":"+IFERROR((VLOOKUP(L394,pomocna!$AC$4:$AD$20,2,FALSE)),\"\")","v":""},null,{"$f":"+IFERROR(VLOOKUP(M394,pomocna3!$F$2:$G$7,2,FALSE),\"\")","v":""},null,{"$f":"+IFERROR(VLOOKUP(N394,pomocna2!A:B,2,FALSE),\"\")","v":""}]
[null,null,null,null,{"$f":"+IFERROR(VLOOKUP(K395,pomocna2!A:B,2,FALSE),\"\")","v":""},{"$f":"+IFERROR((VLOOKUP(L395,pomocna!$AC$4:$AD$20,2,FALSE)),\"\")","v":""},null,{"$f":"+IFERROR(VLOOKUP(M395,pomocna3!$F$2:$G$7,2,FALSE),\"\")","v":""},null,{"$f":"+IFERROR(VLOOKUP(N395,pomocna2!A:B,2,FALSE),\"\")","v":""}]
[null,null,null,null,{"$f":"+IFERROR(VLOOKUP(K396,pomocna2!A:B,2,FALSE),\"\")","v":""},{"$f":"+IFERROR((VLOOKUP(L396,pomocna!$AC$4:$AD$20,2,FALSE)),\"\")","v":""},null,{"$f":"+IFERROR(VLOOKUP(M396,pomocna3!$F$2:$G$7,2,FALSE),\"\")","v":""},null,{"$f":"+IFERROR(VLOOKUP(N396,pomocna2!A:B,2,FALSE),\"\")","v":""}]
[null,null,null,null,{"$f":"+IFERROR(VLOOKUP(K397,pomocna2!A:B,2,FALSE),\"\")","v":""},{"$f":"+IFERROR((VLOOKUP(L397,pomocna!$AC$4:$AD$20,2,FALSE)),\"\")","v":""},null,{"$f":"+IFERROR(VLOOKUP(M397,pomocna3!$F$2:$G$7,2,FALSE),\"\")","v":""},null,{"$f":"+IFERROR(VLOOKUP(N397,pomocna2!A:B,2,FALSE),\"\")","v":""}]
[null,null,null,null,{"$f":"+IFERROR(VLOOKUP(K398,pomocna2!A:B,2,FALSE),\"\")","v":""},{"$f":"+IFERROR((VLOOKUP(L398,pomocna!$AC$4:$AD$20,2,FALSE)),\"\")","v":""},null,{"$f":"+IFERROR(VLOOKUP(M398,pomocna3!$F$2:$G$7,2,FALSE),\"\")","v":""},null,{"$f":"+IFERROR(VLOOKUP(N398,pomocna2!A:B,2,FALSE),\"\")","v":""}]
[null,null,null,null,{"$f":"+IFERROR(VLOOKUP(K399,pomocna2!A:B,2,FALSE),\"\")","v":""},{"$f":"+IFERROR((VLOOKUP(L399,pomocna!$AC$4:$AD$20,2,FALSE)),\"\")","v":""},null,{"$f":"+IFERROR(VLOOKUP(M399,pomocna3!$F$2:$G$7,2,FALSE),\"\")","v":""},null,{"$f":"+IFERROR(VLOOKUP(N399,pomocna2!A:B,2,FALSE),\"\")","v":""}]
[null,null,null,null,{"$f":"+IFERROR(VLOOKUP(K400,pomocna2!A:B,2,FALSE),\"\")","v":""},{"$f":"+IFERROR((VLOOKUP(L400,pomocna!$AC$4:$AD$20,2,FALSE)),\"\")","v":""},null,{"$f":"+IFERROR(VLOOKUP(M400,pomocna3!$F$2:$G$7,2,FALSE),\"\")","v":""},null,{"$f":"+IFERROR(VLOOKUP(N400,pomocna2!A:B,2,FALSE),\"\")","v":""}]
[null,null,null,null,{"$f":"+IFERROR(VLOOKUP(K401,pomocna2!A:B,2,FALSE),\"\")","v":""},{"$f":"+IFERROR((VLOOKUP(L401,pomocna!$AC$4:$AD$20,2,FALSE)),\"\")","v":""},null,{"$f":"+IFERROR(VLOOKUP(M401,pomocna3!$F$2:$G$7,2,FALSE),\"\")","v":""},null,{"$f":"+IFERROR(VLOOKUP(N401,pomocna2!A:B,2,FALSE),\"\")","v":""}]
[null,null,null,null,{"$f":"+IFERROR(VLOOKUP(K402,pomocna2!A:B,2,FALSE),\"\")","v":""},{"$f":"+IFERROR((VLOOKUP(L402,pomocna!$AC$4:$AD$20,2,FALSE)),\"\")","v":""},null,{"$f":"+IFERROR(VLOOKUP(M402,pomocna3!$F$2:$G$7,2,FALSE),\"\")","v":""},null,{"$f":"+IFERROR(VLOOKUP(N402,pomocna2!A:B,2,FALSE),\"\")","v":""}]
[null,null,null,null,{"$f":"+IFERROR(VLOOKUP(K403,pomocna2!A:B,2,FALSE),\"\")","v":""},{"$f":"+IFERROR((VLOOKUP(L403,pomocna!$AC$4:$AD$20,2,FALSE)),\"\")","v":""},null,{"$f":"+IFERROR(VLOOKUP(M403,pomocna3!$F$2:$G$7,2,FALSE),\"\")","v":""},null,{"$f":"+IFERROR(VLOOKUP(N403,pomocna2!A:B,2,FALSE),\"\")","v":""}]
[null,null,null,null,{"$f":"+IFERROR(VLOOKUP(K404,pomocna2!A:B,2,FALSE),\"\")","v":""},{"$f":"+IFERROR((VLOOKUP(L404,pomocna!$AC$4:$AD$20,2,FALSE)),\"\")","v":""},null,{"$f":"+IFERROR(VLOOKUP(M404,pomocna3!$F$2:$G$7,2,FALSE),\"\")","v":""},null,{"$f":"+IFERROR(VLOOKUP(N404,pomocna2!A:B,2,FALSE),\"\")","v":""}]
[null,null,null,null,{"$f":"+IFERROR(VLOOKUP(K405,pomocna2!A:B,2,FALSE),\"\")","v":""},{"$f":"+IFERROR((VLOOKUP(L405,pomocna!$AC$4:$AD$20,2,FALSE)),\"\")","v":""},null,{"$f":"+IFERROR(VLOOKUP(M405,pomocna3!$F$2:$G$7,2,FALSE),\"\")","v":""},null,{"$f":"+IFERROR(VLOOKUP(N405,pomocna2!A:B,2,FALSE),\"\")","v":""}]
[null,null,null,null,{"$f":"+IFERROR(VLOOKUP(K406,pomocna2!A:B,2,FALSE),\"\")","v":""},{"$f":"+IFERROR((VLOOKUP(L406,pomocna!$AC$4:$AD$20,2,FALSE)),\"\")","v":""},null,{"$f":"+IFERROR(VLOOKUP(M406,pomocna3!$F$2:$G$7,2,FALSE),\"\")","v":""},null,{"$f":"+IFERROR(VLOOKUP(N406,pomocna2!A:B,2,FALSE),\"\")","v":""}]
[null,null,null,null,{"$f":"+IFERROR(VLOOKUP(K407,pomocna2!A:B,2,FALSE),\"\")","v":""},{"$f":"+IFERROR((VLOOKUP(L407,pomocna!$AC$4:$AD$20,2,FALSE)),\"\")","v":""},null,{"$f":"+IFERROR(VLOOKUP(M407,pomocna3!$F$2:$G$7,2,FALSE),\"\")","v":""},null,{"$f":"+IFERROR(VLOOKUP(N407,pomocna2!A:B,2,FALSE),\"\")","v":""}]
[null,null,null,null,{"$f":"+IFERROR(VLOOKUP(K408,pomocna2!A:B,2,FALSE),\"\")","v":""},{"$f":"+IFERROR((VLOOKUP(L408,pomocna!$AC$4:$AD$20,2,FALSE)),\"\")","v":""},null,{"$f":"+IFERROR(VLOOKUP(M408,pomocna3!$F$2:$G$7,2,FALSE),\"\")","v":""},null,{"$f":"+IFERROR(VLOOKUP(N408,pomocna2!A:B,2,FALSE),\"\")","v":""}]
[null,null,null,null,{"$f":"+IFERROR(VLOOKUP(K409,pomocna2!A:B,2,FALSE),\"\")","v":""},{"$f":"+IFERROR((VLOOKUP(L409,pomocna!$AC$4:$AD$20,2,FALSE)),\"\")","v":""},null,{"$f":"+IFERROR(VLOOKUP(M409,pomocna3!$F$2:$G$7,2,FALSE),\"\")","v":""},null,{"$f":"+IFERROR(VLOOKUP(N409,pomocna2!A:B,2,FALSE),\"\")","v":""}]
[null,null,null,null,{"$f":"+IFERROR(VLOOKUP(K410,pomocna2!A:B,2,FALSE),\"\")","v":""},{"$f":"+IFERROR((VLOOKUP(L410,pomocna!$AC$4:$AD$20,2,FALSE)),\"\")","v":""},null,{"$f":"+IFERROR(VLOOKUP(M410,pomocna3!$F$2:$G$7,2,FALSE),\"\")","v":""},null,{"$f":"+IFERROR(VLOOKUP(N410,pomocna2!A:B,2,FALSE),\"\")","v":""}]
[null,null,null,null,{"$f":"+IFERROR(VLOOKUP(K411,pomocna2!A:B,2,FALSE),\"\")","v":""},{"$f":"+IFERROR((VLOOKUP(L411,pomocna!$AC$4:$AD$20,2,FALSE)),\"\")","v":""},null,{"$f":"+IFERROR(VLOOKUP(M411,pomocna3!$F$2:$G$7,2,FALSE),\"\")","v":""},null,{"$f":"+IFERROR(VLOOKUP(N411,pomocna2!A:B,2,FALSE),\"\")","v":""}]
[null,null,null,null,{"$f":"+IFERROR(VLOOKUP(K412,pomocna2!A:B,2,FALSE),\"\")","v":""},{"$f":"+IFERROR((VLOOKUP(L412,pomocna!$AC$4:$AD$20,2,FALSE)),\"\")","v":""},null,{"$f":"+IFERROR(VLOOKUP(M412,pomocna3!$F$2:$G$7,2,FALSE),\"\")","v":""},null,{"$f":"+IFERROR(VLOOKUP(N412,pomocna2!A:B,2,FALSE),\"\")","v":""}]
[null,null,null,null,{"$f":"+IFERROR(VLOOKUP(K413,pomocna2!A:B,2,FALSE),\"\")","v":""},{"$f":"+IFERROR((VLOOKUP(L413,pomocna!$AC$4:$AD$20,2,FALSE)),\"\")","v":""},null,{"$f":"+IFERROR(VLOOKUP(M413,pomocna3!$F$2:$G$7,2,FALSE),\"\")","v":""},null,{"$f":"+IFERROR(VLOOKUP(N413,pomocna2!A:B,2,FALSE),\"\")","v":""}]
[null,null,null,null,{"$f":"+IFERROR(VLOOKUP(K414,pomocna2!A:B,2,FALSE),\"\")","v":""},{"$f":"+IFERROR((VLOOKUP(L414,pomocna!$AC$4:$AD$20,2,FALSE)),\"\")","v":""},null,{"$f":"+IFERROR(VLOOKUP(M414,pomocna3!$F$2:$G$7,2,FALSE),\"\")","v":""},null,{"$f":"+IFERROR(VLOOKUP(N414,pomocna2!A:B,2,FALSE),\"\")","v":""}]
[null,null,null,null,{"$f":"+IFERROR(VLOOKUP(K415,pomocna2!A:B,2,FALSE),\"\")","v":""},{"$f":"+IFERROR((VLOOKUP(L415,pomocna!$AC$4:$AD$20,2,FALSE)),\"\")","v":""},null,{"$f":"+IFERROR(VLOOKUP(M415,pomocna3!$F$2:$G$7,2,FALSE),\"\")","v":""},null,{"$f":"+IFERROR(VLOOKUP(N415,pomocna2!A:B,2,FALSE),\"\")","v":""}]
[null,null,null,null,{"$f":"+IFERROR(VLOOKUP(K416,pomocna2!A:B,2,FALSE),\"\")","v":""},{"$f":"+IFERROR((VLOOKUP(L416,pomocna!$AC$4:$AD$20,2,FALSE)),\"\")","v":""},null,{"$f":"+IFERROR(VLOOKUP(M416,pomocna3!$F$2:$G$7,2,FALSE),\"\")","v":""},null,{"$f":"+IFERROR(VLOOKUP(N416,pomocna2!A:B,2,FALSE),\"\")","v":""}]
[null,null,null,null,{"$f":"+IFERROR(VLOOKUP(K417,pomocna2!A:B,2,FALSE),\"\")","v":""},{"$f":"+IFERROR((VLOOKUP(L417,pomocna!$AC$4:$AD$20,2,FALSE)),\"\")","v":""},null,{"$f":"+IFERROR(VLOOKUP(M417,pomocna3!$F$2:$G$7,2,FALSE),\"\")","v":""},null,{"$f":"+IFERROR(VLOOKUP(N417,pomocna2!A:B,2,FALSE),\"\")","v":""}]
[null,null,null,null,{"$f":"+IFERROR(VLOOKUP(K418,pomocna2!A:B,2,FALSE),\"\")","v":""},{"$f":"+IFERROR((VLOOKUP(L418,pomocna!$AC$4:$AD$20,2,FALSE)),\"\")","v":""},null,{"$f":"+IFERROR(VLOOKUP(M418,pomocna3!$F$2:$G$7,2,FALSE),\"\")","v":""},null,{"$f":"+IFERROR(VLOOKUP(N418,pomocna2!A:B,2,FALSE),\"\")","v":""}]
[null,null,null,null,{"$f":"+IFERROR(VLOOKUP(K419,pomocna2!A:B,2,FALSE),\"\")","v":""},{"$f":"+IFERROR((VLOOKUP(L419,pomocna!$AC$4:$AD$20,2,FALSE)),\"\")","v":""},null,{"$f":"+IFERROR(VLOOKUP(M419,pomocna3!$F$2:$G$7,2,FALSE),\"\")","v":""},null,{"$f":"+IFERROR(VLOOKUP(N419,pomocna2!A:B,2,FALSE),\"\")","v":""}]
[null,null,null,null,{"$f":"+IFERROR(VLOOKUP(K420,pomocna2!A:B,2,FALSE),\"\")","v":""},{"$f":"+IFERROR((VLOOKUP(L420,pomocna!$AC$4:$AD$20,2,FALSE)),\"\")","v":""},null,{"$f":"+IFERROR(VLOOKUP(M420,pomocna3!$F$2:$G$7,2,FALSE),\"\")","v":""},null,{"$f":"+IFERROR(VLOOKUP(N420,pomocna2!A:B,2,FALSE),\"\")","v":""}]
[null,null,null,null,{"$f":"+IFERROR(VLOOKUP(K421,pomocna2!A:B,2,FALSE),\"\")","v":""},{"$f":"+IFERROR((VLOOKUP(L421,pomocna!$AC$4:$AD$20,2,FALSE)),\"\")","v":""},null,{"$f":"+IFERROR(VLOOKUP(M421,pomocna3!$F$2:$G$7,2,FALSE),\"\")","v":""},null,{"$f":"+IFERROR(VLOOKUP(N421,pomocna2!A:B,2,FALSE),\"\")","v":""}]
[null,null,null,null,{"$f":"+IFERROR(VLOOKUP(K422,pomocna2!A:B,2,FALSE),\"\")","v":""},{"$f":"+IFERROR((VLOOKUP(L422,pomocna!$AC$4:$AD$20,2,FALSE)),\"\")","v":""},null,{"$f":"+IFERROR(VLOOKUP(M422,pomocna3!$F$2:$G$7,2,FALSE),\"\")","v":""},null,{"$f":"+IFERROR(VLOOKUP(N422,pomocna2!A:B,2,FALSE),\"\")","v":""}]
[null,null,null,null,{"$f":"+IFERROR(VLOOKUP(K423,pomocna2!A:B,2,FALSE),\"\")","v":""},{"$f":"+IFERROR((VLOOKUP(L423,pomocna!$AC$4:$AD$20,2,FALSE)),\"\")","v":""},null,{"$f":"+IFERROR(VLOOKUP(M423,pomocna3!$F$2:$G$7,2,FALSE),\"\")","v":""},null,{"$f":"+IFERROR(VLOOKUP(N423,pomocna2!A:B,2,FALSE),\"\")","v":""}]
[null,null,null,null,{"$f":"+IFERROR(VLOOKUP(K424,pomocna2!A:B,2,FALSE),\"\")","v":""},{"$f":"+IFERROR((VLOOKUP(L424,pomocna!$AC$4:$AD$20,2,FALSE)),\"\")","v":""},null,{"$f":"+IFERROR(VLOOKUP(M424,pomocna3!$F$2:$G$7,2,FALSE),\"\")","v":""},null,{"$f":"+IFERROR(VLOOKUP(N424,pomocna2!A:B,2,FALSE),\"\")","v":""}]
[null,null,null,null,{"$f":"+IFERROR(VLOOKUP(K425,pomocna2!A:B,2,FALSE),\"\")","v":""},{"$f":"+IFERROR((VLOOKUP(L425,pomocna!$AC$4:$AD$20,2,FALSE)),\"\")","v":""},null,{"$f":"+IFERROR(VLOOKUP(M425,pomocna3!$F$2:$G$7,2,FALSE),\"\")","v":""},null,{"$f":"+IFERROR(VLOOKUP(N425,pomocna2!A:B,2,FALSE),\"\")","v":""}]
[null,null,null,null,{"$f":"+IFERROR(VLOOKUP(K426,pomocna2!A:B,2,FALSE),\"\")","v":""},{"$f":"+IFERROR((VLOOKUP(L426,pomocna!$AC$4:$AD$20,2,FALSE)),\"\")","v":""},null,{"$f":"+IFERROR(VLOOKUP(M426,pomocna3!$F$2:$G$7,2,FALSE),\"\")","v":""},null,{"$f":"+IFERROR(VLOOKUP(N426,pomocna2!A:B,2,FALSE),\"\")","v":""}]
[null,null,null,null,{"$f":"+IFERROR(VLOOKUP(K427,pomocna2!A:B,2,FALSE),\"\")","v":""},{"$f":"+IFERROR((VLOOKUP(L427,pomocna!$AC$4:$AD$20,2,FALSE)),\"\")","v":""},null,{"$f":"+IFERROR(VLOOKUP(M427,pomocna3!$F$2:$G$7,2,FALSE),\"\")","v":""},null,{"$f":"+IFERROR(VLOOKUP(N427,pomocna2!A:B,2,FALSE),\"\")","v":""}]
[null,null,null,null,{"$f":"+IFERROR(VLOOKUP(K428,pomocna2!A:B,2,FALSE),\"\")","v":""},{"$f":"+IFERROR((VLOOKUP(L428,pomocna!$AC$4:$AD$20,2,FALSE)),\"\")","v":""},null,{"$f":"+IFERROR(VLOOKUP(M428,pomocna3!$F$2:$G$7,2,FALSE),\"\")","v":""},null,{"$f":"+IFERROR(VLOOKUP(N428,pomocna2!A:B,2,FALSE),\"\")","v":""}]
[null,null,null,null,{"$f":"+IFERROR(VLOOKUP(K429,pomocna2!A:B,2,FALSE),\"\")","v":""},{"$f":"+IFERROR((VLOOKUP(L429,pomocna!$AC$4:$AD$20,2,FALSE)),\"\")","v":""},null,{"$f":"+IFERROR(VLOOKUP(M429,pomocna3!$F$2:$G$7,2,FALSE),\"\")","v":""},null,{"$f":"+IFERROR(VLOOKUP(N429,pomocna2!A:B,2,FALSE),\"\")","v":""}]
[null,null,null,null,{"$f":"+IFERROR(VLOOKUP(K430,pomocna2!A:B,2,FALSE),\"\")","v":""},{"$f":"+IFERROR((VLOOKUP(L430,pomocna!$AC$4:$AD$20,2,FALSE)),\"\")","v":""},null,{"$f":"+IFERROR(VLOOKUP(M430,pomocna3!$F$2:$G$7,2,FALSE),\"\")","v":""},null,{"$f":"+IFERROR(VLOOKUP(N430,pomocna2!A:B,2,FALSE),\"\")","v":""}]
[null,null,null,null,{"$f":"+IFERROR(VLOOKUP(K431,pomocna2!A:B,2,FALSE),\"\")","v":""},{"$f":"+IFERROR((VLOOKUP(L431,pomocna!$AC$4:$AD$20,2,FALSE)),\"\")","v":""},null,{"$f":"+IFERROR(VLOOKUP(M431,pomocna3!$F$2:$G$7,2,FALSE),\"\")","v":""},null,{"$f":"+IFERROR(VLOOKUP(N431,pomocna2!A:B,2,FALSE),\"\")","v":""}]
[null,null,null,null,{"$f":"+IFERROR(VLOOKUP(K432,pomocna2!A:B,2,FALSE),\"\")","v":""},{"$f":"+IFERROR((VLOOKUP(L432,pomocna!$AC$4:$AD$20,2,FALSE)),\"\")","v":""},null,{"$f":"+IFERROR(VLOOKUP(M432,pomocna3!$F$2:$G$7,2,FALSE),\"\")","v":""},null,{"$f":"+IFERROR(VLOOKUP(N432,pomocna2!A:B,2,FALSE),\"\")","v":""}]
[null,null,null,null,{"$f":"+IFERROR(VLOOKUP(K433,pomocna2!A:B,2,FALSE),\"\")","v":""},{"$f":"+IFERROR((VLOOKUP(L433,pomocna!$AC$4:$AD$20,2,FALSE)),\"\")","v":""},null,{"$f":"+IFERROR(VLOOKUP(M433,pomocna3!$F$2:$G$7,2,FALSE),\"\")","v":""},null,{"$f":"+IFERROR(VLOOKUP(N433,pomocna2!A:B,2,FALSE),\"\")","v":""}]
[null,null,null,null,{"$f":"+IFERROR(VLOOKUP(K434,pomocna2!A:B,2,FALSE),\"\")","v":""},{"$f":"+IFERROR((VLOOKUP(L434,pomocna!$AC$4:$AD$20,2,FALSE)),\"\")","v":""},null,{"$f":"+IFERROR(VLOOKUP(M434,pomocna3!$F$2:$G$7,2,FALSE),\"\")","v":""},null,{"$f":"+IFERROR(VLOOKUP(N434,pomocna2!A:B,2,FALSE),\"\")","v":""}]
[null,null,null,null,{"$f":"+IFERROR(VLOOKUP(K435,pomocna2!A:B,2,FALSE),\"\")","v":""},{"$f":"+IFERROR((VLOOKUP(L435,pomocna!$AC$4:$AD$20,2,FALSE)),\"\")","v":""},null,{"$f":"+IFERROR(VLOOKUP(M435,pomocna3!$F$2:$G$7,2,FALSE),\"\")","v":""},null,{"$f":"+IFERROR(VLOOKUP(N435,pomocna2!A:B,2,FALSE),\"\")","v":""}]
[null,null,null,null,{"$f":"+IFERROR(VLOOKUP(K436,pomocna2!A:B,2,FALSE),\"\")","v":""},{"$f":"+IFERROR((VLOOKUP(L436,pomocna!$AC$4:$AD$20,2,FALSE)),\"\")","v":""},null,{"$f":"+IFERROR(VLOOKUP(M436,pomocna3!$F$2:$G$7,2,FALSE),\"\")","v":""},null,{"$f":"+IFERROR(VLOOKUP(N436,pomocna2!A:B,2,FALSE),\"\")","v":""}]
[null,null,null,null,{"$f":"+IFERROR(VLOOKUP(K437,pomocna2!A:B,2,FALSE),\"\")","v":""},{"$f":"+IFERROR((VLOOKUP(L437,pomocna!$AC$4:$AD$20,2,FALSE)),\"\")","v":""},null,{"$f":"+IFERROR(VLOOKUP(M437,pomocna3!$F$2:$G$7,2,FALSE),\"\")","v":""},null,{"$f":"+IFERROR(VLOOKUP(N437,pomocna2!A:B,2,FALSE),\"\")","v":""}]
[null,null,null,null,{"$f":"+IFERROR(VLOOKUP(K438,pomocna2!A:B,2,FALSE),\"\")","v":""},{"$f":"+IFERROR((VLOOKUP(L438,pomocna!$AC$4:$AD$20,2,FALSE)),\"\")","v":""},null,{"$f":"+IFERROR(VLOOKUP(M438,pomocna3!$F$2:$G$7,2,FALSE),\"\")","v":""},null,{"$f":"+IFERROR(VLOOKUP(N438,pomocna2!A:B,2,FALSE),\"\")","v":""}]
[null,null,null,null,{"$f":"+IFERROR(VLOOKUP(K439,pomocna2!A:B,2,FALSE),\"\")","v":""},{"$f":"+IFERROR((VLOOKUP(L439,pomocna!$AC$4:$AD$20,2,FALSE)),\"\")","v":""},null,{"$f":"+IFERROR(VLOOKUP(M439,pomocna3!$F$2:$G$7,2,FALSE),\"\")","v":""},null,{"$f":"+IFERROR(VLOOKUP(N439,pomocna2!A:B,2,FALSE),\"\")","v":""}]
[null,null,null,null,{"$f":"+IFERROR(VLOOKUP(K440,pomocna2!A:B,2,FALSE),\"\")","v":""},{"$f":"+IFERROR((VLOOKUP(L440,pomocna!$AC$4:$AD$20,2,FALSE)),\"\")","v":""},null,{"$f":"+IFERROR(VLOOKUP(M440,pomocna3!$F$2:$G$7,2,FALSE),\"\")","v":""},null,{"$f":"+IFERROR(VLOOKUP(N440,pomocna2!A:B,2,FALSE),\"\")","v":""}]
[null,null,null,null,{"$f":"+IFERROR(VLOOKUP(K441,pomocna2!A:B,2,FALSE),\"\")","v":""},{"$f":"+IFERROR((VLOOKUP(L441,pomocna!$AC$4:$AD$20,2,FALSE)),\"\")","v":""},null,{"$f":"+IFERROR(VLOOKUP(M441,pomocna3!$F$2:$G$7,2,FALSE),\"\")","v":""},null,{"$f":"+IFERROR(VLOOKUP(N441,pomocna2!A:B,2,FALSE),\"\")","v":""}]
[null,null,null,null,{"$f":"+IFERROR(VLOOKUP(K442,pomocna2!A:B,2,FALSE),\"\")","v":""},{"$f":"+IFERROR((VLOOKUP(L442,pomocna!$AC$4:$AD$20,2,FALSE)),\"\")","v":""},null,{"$f":"+IFERROR(VLOOKUP(M442,pomocna3!$F$2:$G$7,2,FALSE),\"\")","v":""},null,{"$f":"+IFERROR(VLOOKUP(N442,pomocna2!A:B,2,FALSE),\"\")","v":""}]
[null,null,null,null,{"$f":"+IFERROR(VLOOKUP(K443,pomocna2!A:B,2,FALSE),\"\")","v":""},{"$f":"+IFERROR((VLOOKUP(L443,pomocna!$AC$4:$AD$20,2,FALSE)),\"\")","v":""},null,{"$f":"+IFERROR(VLOOKUP(M443,pomocna3!$F$2:$G$7,2,FALSE),\"\")","v":""},null,{"$f":"+IFERROR(VLOOKUP(N443,pomocna2!A:B,2,FALSE),\"\")","v":""}]
[null,null,null,null,{"$f":"+IFERROR(VLOOKUP(K444,pomocna2!A:B,2,FALSE),\"\")","v":""},{"$f":"+IFERROR((VLOOKUP(L444,pomocna!$AC$4:$AD$20,2,FALSE)),\"\")","v":""},null,{"$f":"+IFERROR(VLOOKUP(M444,pomocna3!$F$2:$G$7,2,FALSE),\"\")","v":""},null,{"$f":"+IFERROR(VLOOKUP(N444,pomocna2!A:B,2,FALSE),\"\")","v":""}]
[null,null,null,null,{"$f":"+IFERROR(VLOOKUP(K445,pomocna2!A:B,2,FALSE),\"\")","v":""},{"$f":"+IFERROR((VLOOKUP(L445,pomocna!$AC$4:$AD$20,2,FALSE)),\"\")","v":""},null,{"$f":"+IFERROR(VLOOKUP(M445,pomocna3!$F$2:$G$7,2,FALSE),\"\")","v":""},null,{"$f":"+IFERROR(VLOOKUP(N445,pomocna2!A:B,2,FALSE),\"\")","v":""}]
[null,null,null,null,{"$f":"+IFERROR(VLOOKUP(K446,pomocna2!A:B,2,FALSE),\"\")","v":""},{"$f":"+IFERROR((VLOOKUP(L446,pomocna!$AC$4:$AD$20,2,FALSE)),\"\")","v":""},null,{"$f":"+IFERROR(VLOOKUP(M446,pomocna3!$F$2:$G$7,2,FALSE),\"\")","v":""},null,{"$f":"+IFERROR(VLOOKUP(N446,pomocna2!A:B,2,FALSE),\"\")","v":""}]
[null,null,null,null,{"$f":"+IFERROR(VLOOKUP(K447,pomocna2!A:B,2,FALSE),\"\")","v":""},{"$f":"+IFERROR((VLOOKUP(L447,pomocna!$AC$4:$AD$20,2,FALSE)),\"\")","v":""},null,{"$f":"+IFERROR(VLOOKUP(M447,pomocna3!$F$2:$G$7,2,FALSE),\"\")","v":""},null,{"$f":"+IFERROR(VLOOKUP(N447,pomocna2!A:B,2,FALSE),\"\")","v":""}]
[null,null,null,null,{"$f":"+IFERROR(VLOOKUP(K448,pomocna2!A:B,2,FALSE),\"\")","v":""},{"$f":"+IFERROR((VLOOKUP(L448,pomocna!$AC$4:$AD$20,2,FALSE)),\"\")","v":""},null,{"$f":"+IFERROR(VLOOKUP(M448,pomocna3!$F$2:$G$7,2,FALSE),\"\")","v":""},null,{"$f":"+IFERROR(VLOOKUP(N448,pomocna2!A:B,2,FALSE),\"\")","v":""}]
[null,null,null,null,{"$f":"+IFERROR(VLOOKUP(K449,pomocna2!A:B,2,FALSE),\"\")","v":""},{"$f":"+IFERROR((VLOOKUP(L449,pomocna!$AC$4:$AD$20,2,FALSE)),\"\")","v":""},null,{"$f":"+IFERROR(VLOOKUP(M449,pomocna3!$F$2:$G$7,2,FALSE),\"\")","v":""},null,{"$f":"+IFERROR(VLOOKUP(N449,pomocna2!A:B,2,FALSE),\"\")","v":""}]
[null,null,null,null,{"$f":"+IFERROR(VLOOKUP(K450,pomocna2!A:B,2,FALSE),\"\")","v":""},{"$f":"+IFERROR((VLOOKUP(L450,pomocna!$AC$4:$AD$20,2,FALSE)),\"\")","v":""},null,{"$f":"+IFERROR(VLOOKUP(M450,pomocna3!$F$2:$G$7,2,FALSE),\"\")","v":""},null,{"$f":"+IFERROR(VLOOKUP(N450,pomocna2!A:B,2,FALSE),\"\")","v":""}]
[null,null,null,null,{"$f":"+IFERROR(VLOOKUP(K451,pomocna2!A:B,2,FALSE),\"\")","v":""},{"$f":"+IFERROR((VLOOKUP(L451,pomocna!$AC$4:$AD$20,2,FALSE)),\"\")","v":""},null,{"$f":"+IFERROR(VLOOKUP(M451,pomocna3!$F$2:$G$7,2,FALSE),\"\")","v":""},null,{"$f":"+IFERROR(VLOOKUP(N451,pomocna2!A:B,2,FALSE),\"\")","v":""}]
[null,null,null,null,{"$f":"+IFERROR(VLOOKUP(K452,pomocna2!A:B,2,FALSE),\"\")","v":""},{"$f":"+IFERROR((VLOOKUP(L452,pomocna!$AC$4:$AD$20,2,FALSE)),\"\")","v":""},null,{"$f":"+IFERROR(VLOOKUP(M452,pomocna3!$F$2:$G$7,2,FALSE),\"\")","v":""},null,{"$f":"+IFERROR(VLOOKUP(N452,pomocna2!A:B,2,FALSE),\"\")","v":""}]
[null,null,null,null,{"$f":"+IFERROR(VLOOKUP(K453,pomocna2!A:B,2,FALSE),\"\")","v":""},{"$f":"+IFERROR((VLOOKUP(L453,pomocna!$AC$4:$AD$20,2,FALSE)),\"\")","v":""},null,{"$f":"+IFERROR(VLOOKUP(M453,pomocna3!$F$2:$G$7,2,FALSE),\"\")","v":""},null,{"$f":"+IFERROR(VLOOKUP(N453,pomocna2!A:B,2,FALSE),\"\")","v":""}]
[null,null,null,null,{"$f":"+IFERROR(VLOOKUP(K454,pomocna2!A:B,2,FALSE),\"\")","v":""},{"$f":"+IFERROR((VLOOKUP(L454,pomocna!$AC$4:$AD$20,2,FALSE)),\"\")","v":""},null,{"$f":"+IFERROR(VLOOKUP(M454,pomocna3!$F$2:$G$7,2,FALSE),\"\")","v":""},null,{"$f":"+IFERROR(VLOOKUP(N454,pomocna2!A:B,2,FALSE),\"\")","v":""}]
[null,null,null,null,{"$f":"+IFERROR(VLOOKUP(K455,pomocna2!A:B,2,FALSE),\"\")","v":""},{"$f":"+IFERROR((VLOOKUP(L455,pomocna!$AC$4:$AD$20,2,FALSE)),\"\")","v":""},null,{"$f":"+IFERROR(VLOOKUP(M455,pomocna3!$F$2:$G$7,2,FALSE),\"\")","v":""},null,{"$f":"+IFERROR(VLOOKUP(N455,pomocna2!A:B,2,FALSE),\"\")","v":""}]
[null,null,null,null,{"$f":"+IFERROR(VLOOKUP(K456,pomocna2!A:B,2,FALSE),\"\")","v":""},{"$f":"+IFERROR((VLOOKUP(L456,pomocna!$AC$4:$AD$20,2,FALSE)),\"\")","v":""},null,{"$f":"+IFERROR(VLOOKUP(M456,pomocna3!$F$2:$G$7,2,FALSE),\"\")","v":""},null,{"$f":"+IFERROR(VLOOKUP(N456,pomocna2!A:B,2,FALSE),\"\")","v":""}]
[null,null,null,null,{"$f":"+IFERROR(VLOOKUP(K457,pomocna2!A:B,2,FALSE),\"\")","v":""},{"$f":"+IFERROR((VLOOKUP(L457,pomocna!$AC$4:$AD$20,2,FALSE)),\"\")","v":""},null,{"$f":"+IFERROR(VLOOKUP(M457,pomocna3!$F$2:$G$7,2,FALSE),\"\")","v":""},null,{"$f":"+IFERROR(VLOOKUP(N457,pomocna2!A:B,2,FALSE),\"\")","v":""}]
[null,null,null,null,{"$f":"+IFERROR(VLOOKUP(K458,pomocna2!A:B,2,FALSE),\"\")","v":""},{"$f":"+IFERROR((VLOOKUP(L458,pomocna!$AC$4:$AD$20,2,FALSE)),\"\")","v":""},null,{"$f":"+IFERROR(VLOOKUP(M458,pomocna3!$F$2:$G$7,2,FALSE),\"\")","v":""},null,{"$f":"+IFERROR(VLOOKUP(N458,pomocna2!A:B,2,FALSE),\"\")","v":""}]
[null,null,null,null,{"$f":"+IFERROR(VLOOKUP(K459,pomocna2!A:B,2,FALSE),\"\")","v":""},{"$f":"+IFERROR((VLOOKUP(L459,pomocna!$AC$4:$AD$20,2,FALSE)),\"\")","v":""},null,{"$f":"+IFERROR(VLOOKUP(M459,pomocna3!$F$2:$G$7,2,FALSE),\"\")","v":""},null,{"$f":"+IFERROR(VLOOKUP(N459,pomocna2!A:B,2,FALSE),\"\")","v":""}]
[null,null,null,null,{"$f":"+IFERROR(VLOOKUP(K460,pomocna2!A:B,2,FALSE),\"\")","v":""},{"$f":"+IFERROR((VLOOKUP(L460,pomocna!$AC$4:$AD$20,2,FALSE)),\"\")","v":""},null,{"$f":"+IFERROR(VLOOKUP(M460,pomocna3!$F$2:$G$7,2,FALSE),\"\")","v":""},null,{"$f":"+IFERROR(VLOOKUP(N460,pomocna2!A:B,2,FALSE),\"\")","v":""}]
[null,null,null,null,{"$f":"+IFERROR(VLOOKUP(K461,pomocna2!A:B,2,FALSE),\"\")","v":""},{"$f":"+IFERROR((VLOOKUP(L461,pomocna!$AC$4:$AD$20,2,FALSE)),\"\")","v":""},null,{"$f":"+IFERROR(VLOOKUP(M461,pomocna3!$F$2:$G$7,2,FALSE),\"\")","v":""},null,{"$f":"+IFERROR(VLOOKUP(N461,pomocna2!A:B,2,FALSE),\"\")","v":""}]
[null,null,null,null,{"$f":"+IFERROR(VLOOKUP(K462,pomocna2!A:B,2,FALSE),\"\")","v":""},{"$f":"+IFERROR((VLOOKUP(L462,pomocna!$AC$4:$AD$20,2,FALSE)),\"\")","v":""},null,{"$f":"+IFERROR(VLOOKUP(M462,pomocna3!$F$2:$G$7,2,FALSE),\"\")","v":""},null,{"$f":"+IFERROR(VLOOKUP(N462,pomocna2!A:B,2,FALSE),\"\")","v":""}]
[null,null,null,null,{"$f":"+IFERROR(VLOOKUP(K463,pomocna2!A:B,2,FALSE),\"\")","v":""},{"$f":"+IFERROR((VLOOKUP(L463,pomocna!$AC$4:$AD$20,2,FALSE)),\"\")","v":""},null,{"$f":"+IFERROR(VLOOKUP(M463,pomocna3!$F$2:$G$7,2,FALSE),\"\")","v":""},null,{"$f":"+IFERROR(VLOOKUP(N463,pomocna2!A:B,2,FALSE),\"\")","v":""}]
[null,null,null,null,{"$f":"+IFERROR(VLOOKUP(K464,pomocna2!A:B,2,FALSE),\"\")","v":""},{"$f":"+IFERROR((VLOOKUP(L464,pomocna!$AC$4:$AD$20,2,FALSE)),\"\")","v":""},null,{"$f":"+IFERROR(VLOOKUP(M464,pomocna3!$F$2:$G$7,2,FALSE),\"\")","v":""},null,{"$f":"+IFERROR(VLOOKUP(N464,pomocna2!A:B,2,FALSE),\"\")","v":""}]
[null,null,null,null,{"$f":"+IFERROR(VLOOKUP(K465,pomocna2!A:B,2,FALSE),\"\")","v":""},{"$f":"+IFERROR((VLOOKUP(L465,pomocna!$AC$4:$AD$20,2,FALSE)),\"\")","v":""},null,{"$f":"+IFERROR(VLOOKUP(M465,pomocna3!$F$2:$G$7,2,FALSE),\"\")","v":""},null,{"$f":"+IFERROR(VLOOKUP(N465,pomocna2!A:B,2,FALSE),\"\")","v":""}]
[null,null,null,null,{"$f":"+IFERROR(VLOOKUP(K466,pomocna2!A:B,2,FALSE),\"\")","v":""},{"$f":"+IFERROR((VLOOKUP(L466,pomocna!$AC$4:$AD$20,2,FALSE)),\"\")","v":""},null,{"$f":"+IFERROR(VLOOKUP(M466,pomocna3!$F$2:$G$7,2,FALSE),\"\")","v":""},null,{"$f":"+IFERROR(VLOOKUP(N466,pomocna2!A:B,2,FALSE),\"\")","v":""}]
[null,null,null,null,{"$f":"+IFERROR(VLOOKUP(K467,pomocna2!A:B,2,FALSE),\"\")","v":""},{"$f":"+IFERROR((VLOOKUP(L467,pomocna!$AC$4:$AD$20,2,FALSE)),\"\")","v":""},null,{"$f":"+IFERROR(VLOOKUP(M467,pomocna3!$F$2:$G$7,2,FALSE),\"\")","v":""},null,{"$f":"+IFERROR(VLOOKUP(N467,pomocna2!A:B,2,FALSE),\"\")","v":""}]
[null,null,null,null,{"$f":"+IFERROR(VLOOKUP(K468,pomocna2!A:B,2,FALSE),\"\")","v":""},{"$f":"+IFERROR((VLOOKUP(L468,pomocna!$AC$4:$AD$20,2,FALSE)),\"\")","v":""},null,{"$f":"+IFERROR(VLOOKUP(M468,pomocna3!$F$2:$G$7,2,FALSE),\"\")","v":""},null,{"$f":"+IFERROR(VLOOKUP(N468,pomocna2!A:B,2,FALSE),\"\")","v":""}]
[null,null,null,null,{"$f":"+IFERROR(VLOOKUP(K469,pomocna2!A:B,2,FALSE),\"\")","v":""},{"$f":"+IFERROR((VLOOKUP(L469,pomocna!$AC$4:$AD$20,2,FALSE)),\"\")","v":""},null,{"$f":"+IFERROR(VLOOKUP(M469,pomocna3!$F$2:$G$7,2,FALSE),\"\")","v":""},null,{"$f":"+IFERROR(VLOOKUP(N469,pomocna2!A:B,2,FALSE),\"\")","v":""}]
[null,null,null,null,{"$f":"+IFERROR(VLOOKUP(K470,pomocna2!A:B,2,FALSE),\"\")","v":""},{"$f":"+IFERROR((VLOOKUP(L470,pomocna!$AC$4:$AD$20,2,FALSE)),\"\")","v":""},null,{"$f":"+IFERROR(VLOOKUP(M470,pomocna3!$F$2:$G$7,2,FALSE),\"\")","v":""},null,{"$f":"+IFERROR(VLOOKUP(N470,pomocna2!A:B,2,FALSE),\"\")","v":""}]
[null,null,null,null,{"$f":"+IFERROR(VLOOKUP(K471,pomocna2!A:B,2,FALSE),\"\")","v":""},{"$f":"+IFERROR((VLOOKUP(L471,pomocna!$AC$4:$AD$20,2,FALSE)),\"\")","v":""},null,{"$f":"+IFERROR(VLOOKUP(M471,pomocna3!$F$2:$G$7,2,FALSE),\"\")","v":""},null,{"$f":"+IFERROR(VLOOKUP(N471,pomocna2!A:B,2,FALSE),\"\")","v":""}]
[null,null,null,null,{"$f":"+IFERROR(VLOOKUP(K472,pomocna2!A:B,2,FALSE),\"\")","v":""},{"$f":"+IFERROR((VLOOKUP(L472,pomocna!$AC$4:$AD$20,2,FALSE)),\"\")","v":""},null,{"$f":"+IFERROR(VLOOKUP(M472,pomocna3!$F$2:$G$7,2,FALSE),\"\")","v":""},null,{"$f":"+IFERROR(VLOOKUP(N472,pomocna2!A:B,2,FALSE),\"\")","v":""}]
[null,null,null,null,{"$f":"+IFERROR(VLOOKUP(K473,pomocna2!A:B,2,FALSE),\"\")","v":""},{"$f":"+IFERROR((VLOOKUP(L473,pomocna!$AC$4:$AD$20,2,FALSE)),\"\")","v":""},null,{"$f":"+IFERROR(VLOOKUP(M473,pomocna3!$F$2:$G$7,2,FALSE),\"\")","v":""},null,{"$f":"+IFERROR(VLOOKUP(N473,pomocna2!A:B,2,FALSE),\"\")","v":""}]
[null,null,null,null,{"$f":"+IFERROR(VLOOKUP(K474,pomocna2!A:B,2,FALSE),\"\")","v":""},{"$f":"+IFERROR((VLOOKUP(L474,pomocna!$AC$4:$AD$20,2,FALSE)),\"\")","v":""},null,{"$f":"+IFERROR(VLOOKUP(M474,pomocna3!$F$2:$G$7,2,FALSE),\"\")","v":""},null,{"$f":"+IFERROR(VLOOKUP(N474,pomocna2!A:B,2,FALSE),\"\")","v":""}]
[null,null,null,null,{"$f":"+IFERROR(VLOOKUP(K475,pomocna2!A:B,2,FALSE),\"\")","v":""},{"$f":"+IFERROR((VLOOKUP(L475,pomocna!$AC$4:$AD$20,2,FALSE)),\"\")","v":""},null,{"$f":"+IFERROR(VLOOKUP(M475,pomocna3!$F$2:$G$7,2,FALSE),\"\")","v":""},null,{"$f":"+IFERROR(VLOOKUP(N475,pomocna2!A:B,2,FALSE),\"\")","v":""}]
[null,null,null,null,{"$f":"+IFERROR(VLOOKUP(K476,pomocna2!A:B,2,FALSE),\"\")","v":""},{"$f":"+IFERROR((VLOOKUP(L476,pomocna!$AC$4:$AD$20,2,FALSE)),\"\")","v":""},null,{"$f":"+IFERROR(VLOOKUP(M476,pomocna3!$F$2:$G$7,2,FALSE),\"\")","v":""},null,{"$f":"+IFERROR(VLOOKUP(N476,pomocna2!A:B,2,FALSE),\"\")","v":""}]
[null,null,null,null,{"$f":"+IFERROR(VLOOKUP(K477,pomocna2!A:B,2,FALSE),\"\")","v":""},{"$f":"+IFERROR((VLOOKUP(L477,pomocna!$AC$4:$AD$20,2,FALSE)),\"\")","v":""},null,{"$f":"+IFERROR(VLOOKUP(M477,pomocna3!$F$2:$G$7,2,FALSE),\"\")","v":""},null,{"$f":"+IFERROR(VLOOKUP(N477,pomocna2!A:B,2,FALSE),\"\")","v":""}]
[null,null,null,null,{"$f":"+IFERROR(VLOOKUP(K478,pomocna2!A:B,2,FALSE),\"\")","v":""},{"$f":"+IFERROR((VLOOKUP(L478,pomocna!$AC$4:$AD$20,2,FALSE)),\"\")","v":""},null,{"$f":"+IFERROR(VLOOKUP(M478,pomocna3!$F$2:$G$7,2,FALSE),\"\")","v":""},null,{"$f":"+IFERROR(VLOOKUP(N478,pomocna2!A:B,2,FALSE),\"\")","v":""}]
[null,null,null,null,{"$f":"+IFERROR(VLOOKUP(K479,pomocna2!A:B,2,FALSE),\"\")","v":""},{"$f":"+IFERROR((VLOOKUP(L479,pomocna!$AC$4:$AD$20,2,FALSE)),\"\")","v":""},null,{"$f":"+IFERROR(VLOOKUP(M479,pomocna3!$F$2:$G$7,2,FALSE),\"\")","v":""},null,{"$f":"+IFERROR(VLOOKUP(N479,pomocna2!A:B,2,FALSE),\"\")","v":""}]
[null,null,null,null,{"$f":"+IFERROR(VLOOKUP(K480,pomocna2!A:B,2,FALSE),\"\")","v":""},{"$f":"+IFERROR((VLOOKUP(L480,pomocna!$AC$4:$AD$20,2,FALSE)),\"\")","v":""},null,{"$f":"+IFERROR(VLOOKUP(M480,pomocna3!$F$2:$G$7,2,FALSE),\"\")","v":""},null,{"$f":"+IFERROR(VLOOKUP(N480,pomocna2!A:B,2,FALSE),\"\")","v":""}]
[null,null,null,null,{"$f":"+IFERROR(VLOOKUP(K481,pomocna2!A:B,2,FALSE),\"\")","v":""},{"$f":"+IFERROR((VLOOKUP(L481,pomocna!$AC$4:$AD$20,2,FALSE)),\"\")","v":""},null,{"$f":"+IFERROR(VLOOKUP(M481,pomocna3!$F$2:$G$7,2,FALSE),\"\")","v":""},null,{"$f":"+IFERROR(VLOOKUP(N481,pomocna2!A:B,2,FALSE),\"\")","v":""}]
[null,null,null,null,{"$f":"+IFERROR(VLOOKUP(K482,pomocna2!A:B,2,FALSE),\"\")","v":""},{"$f":"+IFERROR((VLOOKUP(L482,pomocna!$AC$4:$AD$20,2,FALSE)),\"\")","v":""},null,{"$f":"+IFERROR(VLOOKUP(M482,pomocna3!$F$2:$G$7,2,FALSE),\"\")","v":""},null,{"$f":"+IFERROR(VLOOKUP(N482,pomocna2!A:B,2,FALSE),\"\")","v":""}]
[null,null,null,null,{"$f":"+IFERROR(VLOOKUP(K483,pomocna2!A:B,2,FALSE),\"\")","v":""},{"$f":"+IFERROR((VLOOKUP(L483,pomocna!$AC$4:$AD$20,2,FALSE)),\"\")","v":""},null,{"$f":"+IFERROR(VLOOKUP(M483,pomocna3!$F$2:$G$7,2,FALSE),\"\")","v":""},null,{"$f":"+IFERROR(VLOOKUP(N483,pomocna2!A:B,2,FALSE),\"\")","v":""}]
[null,null,null,null,{"$f":"+IFERROR(VLOOKUP(K484,pomocna2!A:B,2,FALSE),\"\")","v":""},{"$f":"+IFERROR((VLOOKUP(L484,pomocna!$AC$4:$AD$20,2,FALSE)),\"\")","v":""},null,{"$f":"+IFERROR(VLOOKUP(M484,pomocna3!$F$2:$G$7,2,FALSE),\"\")","v":""},null,{"$f":"+IFERROR(VLOOKUP(N484,pomocna2!A:B,2,FALSE),\"\")","v":""}]
[null,null,null,null,{"$f":"+IFERROR(VLOOKUP(K485,pomocna2!A:B,2,FALSE),\"\")","v":""},{"$f":"+IFERROR((VLOOKUP(L485,pomocna!$AC$4:$AD$20,2,FALSE)),\"\")","v":""},null,{"$f":"+IFERROR(VLOOKUP(M485,pomocna3!$F$2:$G$7,2,FALSE),\"\")","v":""},null,{"$f":"+IFERROR(VLOOKUP(N485,pomocna2!A:B,2,FALSE),\"\")","v":""}]
[null,null,null,null,{"$f":"+IFERROR(VLOOKUP(K486,pomocna2!A:B,2,FALSE),\"\")","v":""},{"$f":"+IFERROR((VLOOKUP(L486,pomocna!$AC$4:$AD$20,2,FALSE)),\"\")","v":""},null,{"$f":"+IFERROR(VLOOKUP(M486,pomocna3!$F$2:$G$7,2,FALSE),\"\")","v":""},null,{"$f":"+IFERROR(VLOOKUP(N486,pomocna2!A:B,2,FALSE),\"\")","v":""}]
[null,null,null,null,{"$f":"+IFERROR(VLOOKUP(K487,pomocna2!A:B,2,FALSE),\"\")","v":""},{"$f":"+IFERROR((VLOOKUP(L487,pomocna!$AC$4:$AD$20,2,FALSE)),\"\")","v":""},null,{"$f":"+IFERROR(VLOOKUP(M487,pomocna3!$F$2:$G$7,2,FALSE),\"\")","v":""},null,{"$f":"+IFERROR(VLOOKUP(N487,pomocna2!A:B,2,FALSE),\"\")","v":""}]
[null,null,null,null,{"$f":"+IFERROR(VLOOKUP(K488,pomocna2!A:B,2,FALSE),\"\")","v":""},{"$f":"+IFERROR((VLOOKUP(L488,pomocna!$AC$4:$AD$20,2,FALSE)),\"\")","v":""},null,{"$f":"+IFERROR(VLOOKUP(M488,pomocna3!$F$2:$G$7,2,FALSE),\"\")","v":""},null,{"$f":"+IFERROR(VLOOKUP(N488,pomocna2!A:B,2,FALSE),\"\")","v":""}]
[null,null,null,null,{"$f":"+IFERROR(VLOOKUP(K489,pomocna2!A:B,2,FALSE),\"\")","v":""},{"$f":"+IFERROR((VLOOKUP(L489,pomocna!$AC$4:$AD$20,2,FALSE)),\"\")","v":""},null,{"$f":"+IFERROR(VLOOKUP(M489,pomocna3!$F$2:$G$7,2,FALSE),\"\")","v":""},null,{"$f":"+IFERROR(VLOOKUP(N489,pomocna2!A:B,2,FALSE),\"\")","v":""}]
[null,null,null,null,{"$f":"+IFERROR(VLOOKUP(K490,pomocna2!A:B,2,FALSE),\"\")","v":""},{"$f":"+IFERROR((VLOOKUP(L490,pomocna!$AC$4:$AD$20,2,FALSE)),\"\")","v":""},null,{"$f":"+IFERROR(VLOOKUP(M490,pomocna3!$F$2:$G$7,2,FALSE),\"\")","v":""},null,{"$f":"+IFERROR(VLOOKUP(N490,pomocna2!A:B,2,FALSE),\"\")","v":""}]
[null,null,null,null,{"$f":"+IFERROR(VLOOKUP(K491,pomocna2!A:B,2,FALSE),\"\")","v":""},{"$f":"+IFERROR((VLOOKUP(L491,pomocna!$AC$4:$AD$20,2,FALSE)),\"\")","v":""},null,{"$f":"+IFERROR(VLOOKUP(M491,pomocna3!$F$2:$G$7,2,FALSE),\"\")","v":""},null,{"$f":"+IFERROR(VLOOKUP(N491,pomocna2!A:B,2,FALSE),\"\")","v":""}]
[null,null,null,null,{"$f":"+IFERROR(VLOOKUP(K492,pomocna2!A:B,2,FALSE),\"\")","v":""},{"$f":"+IFERROR((VLOOKUP(L492,pomocna!$AC$4:$AD$20,2,FALSE)),\"\")","v":""},null,{"$f":"+IFERROR(VLOOKUP(M492,pomocna3!$F$2:$G$7,2,FALSE),\"\")","v":""},null,{"$f":"+IFERROR(VLOOKUP(N492,pomocna2!A:B,2,FALSE),\"\")","v":""}]
[null,null,null,null,{"$f":"+IFERROR(VLOOKUP(K493,pomocna2!A:B,2,FALSE),\"\")","v":""},{"$f":"+IFERROR((VLOOKUP(L493,pomocna!$AC$4:$AD$20,2,FALSE)),\"\")","v":""},null,{"$f":"+IFERROR(VLOOKUP(M493,pomocna3!$F$2:$G$7,2,FALSE),\"\")","v":""},null,{"$f":"+IFERROR(VLOOKUP(N493,pomocna2!A:B,2,FALSE),\"\")","v":""}]
[null,null,null,null,{"$f":"+IFERROR(VLOOKUP(K494,pomocna2!A:B,2,FALSE),\"\")","v":""},{"$f":"+IFERROR((VLOOKUP(L494,pomocna!$AC$4:$AD$20,2,FALSE)),\"\")","v":""},null,{"$f":"+IFERROR(VLOOKUP(M494,pomocna3!$F$2:$G$7,2,FALSE),\"\")","v":""},null,{"$f":"+IFERROR(VLOOKUP(N494,pomocna2!A:B,2,FALSE),\"\")","v":""}]
[null,null,null,null,{"$f":"+IFERROR(VLOOKUP(K495,pomocna2!A:B,2,FALSE),\"\")","v":""},{"$f":"+IFERROR((VLOOKUP(L495,pomocna!$AC$4:$AD$20,2,FALSE)),\"\")","v":""},null,{"$f":"+IFERROR(VLOOKUP(M495,pomocna3!$F$2:$G$7,2,FALSE),\"\")","v":""},null,{"$f":"+IFERROR(VLOOKUP(N495,pomocna2!A:B,2,FALSE),\"\")","v":""}]
[null,null,null,null,{"$f":"+IFERROR(VLOOKUP(K496,pomocna2!A:B,2,FALSE),\"\")","v":""},{"$f":"+IFERROR((VLOOKUP(L496,pomocna!$AC$4:$AD$20,2,FALSE)),\"\")","v":""},null,{"$f":"+IFERROR(VLOOKUP(M496,pomocna3!$F$2:$G$7,2,FALSE),\"\")","v":""},null,{"$f":"+IFERROR(VLOOKUP(N496,pomocna2!A:B,2,FALSE),\"\")","v":""}]
[null,null,null,null,{"$f":"+IFERROR(VLOOKUP(K497,pomocna2!A:B,2,FALSE),\"\")","v":""},{"$f":"+IFERROR((VLOOKUP(L497,pomocna!$AC$4:$AD$20,2,FALSE)),\"\")","v":""},null,{"$f":"+IFERROR(VLOOKUP(M497,pomocna3!$F$2:$G$7,2,FALSE),\"\")","v":""},null,{"$f":"+IFERROR(VLOOKUP(N497,pomocna2!A:B,2,FALSE),\"\")","v":""}]
[null,null,null,null,{"$f":"+IFERROR(VLOOKUP(K498,pomocna2!A:B,2,FALSE),\"\")","v":""},{"$f":"+IFERROR((VLOOKUP(L498,pomocna!$AC$4:$AD$20,2,FALSE)),\"\")","v":""},null,{"$f":"+IFERROR(VLOOKUP(M498,pomocna3!$F$2:$G$7,2,FALSE),\"\")","v":""},null,{"$f":"+IFERROR(VLOOKUP(N498,pomocna2!A:B,2,FALSE),\"\")","v":""}]
[null,null,null,null,{"$f":"+IFERROR(VLOOKUP(K499,pomocna2!A:B,2,FALSE),\"\")","v":""},{"$f":"+IFERROR((VLOOKUP(L499,pomocna!$AC$4:$AD$20,2,FALSE)),\"\")","v":""},null,{"$f":"+IFERROR(VLOOKUP(M499,pomocna3!$F$2:$G$7,2,FALSE),\"\")","v":""},null,{"$f":"+IFERROR(VLOOKUP(N499,pomocna2!A:B,2,FALSE),\"\")","v":""}]
[null,null,null,null,{"$f":"+IFERROR(VLOOKUP(K500,pomocna2!A:B,2,FALSE),\"\")","v":""},{"$f":"+IFERROR((VLOOKUP(L500,pomocna!$AC$4:$AD$20,2,FALSE)),\"\")","v":""},null,{"$f":"+IFERROR(VLOOKUP(M500,pomocna3!$F$2:$G$7,2,FALSE),\"\")","v":""},null,{"$f":"+IFERROR(VLOOKUP(N500,pomocna2!A:B,2,FALSE),\"\")","v":""}]
[null,null,null,null,{"$f":"+IFERROR(VLOOKUP(K501,pomocna2!A:B,2,FALSE),\"\")","v":""},{"$f":"+IFERROR((VLOOKUP(L501,pomocna!$AC$4:$AD$20,2,FALSE)),\"\")","v":""},null,{"$f":"+IFERROR(VLOOKUP(M501,pomocna3!$F$2:$G$7,2,FALSE),\"\")","v":""},null,{"$f":"+IFERROR(VLOOKUP(N501,pomocna2!A:B,2,FALSE),\"\")","v":""}]
[null,null,null,null,{"$f":"+IFERROR(VLOOKUP(K502,pomocna2!A:B,2,FALSE),\"\")","v":""},{"$f":"+IFERROR((VLOOKUP(L502,pomocna!$AC$4:$AD$20,2,FALSE)),\"\")","v":""},null,{"$f":"+IFERROR(VLOOKUP(M502,pomocna3!$F$2:$G$7,2,FALSE),\"\")","v":""},null,{"$f":"+IFERROR(VLOOKUP(N502,pomocna2!A:B,2,FALSE),\"\")","v":""}]
[null,null,null,null,{"$f":"+IFERROR(VLOOKUP(K503,pomocna2!A:B,2,FALSE),\"\")","v":""},{"$f":"+IFERROR((VLOOKUP(L503,pomocna!$AC$4:$AD$20,2,FALSE)),\"\")","v":""},null,{"$f":"+IFERROR(VLOOKUP(M503,pomocna3!$F$2:$G$7,2,FALSE),\"\")","v":""},null,{"$f":"+IFERROR(VLOOKUP(N503,pomocna2!A:B,2,FALSE),\"\")","v":""}]
[null,null,null,null,{"$f":"+IFERROR(VLOOKUP(K504,pomocna2!A:B,2,FALSE),\"\")","v":""},{"$f":"+IFERROR((VLOOKUP(L504,pomocna!$AC$4:$AD$20,2,FALSE)),\"\")","v":""},null,{"$f":"+IFERROR(VLOOKUP(M504,pomocna3!$F$2:$G$7,2,FALSE),\"\")","v":""},null,{"$f":"+IFERROR(VLOOKUP(N504,pomocna2!A:B,2,FALSE),\"\")","v":""}]
[null,null,null,null,{"$f":"+IFERROR(VLOOKUP(K505,pomocna2!A:B,2,FALSE),\"\")","v":""},{"$f":"+IFERROR((VLOOKUP(L505,pomocna!$AC$4:$AD$20,2,FALSE)),\"\")","v":""},null,{"$f":"+IFERROR(VLOOKUP(M505,pomocna3!$F$2:$G$7,2,FALSE),\"\")","v":""},null,{"$f":"+IFERROR(VLOOKUP(N505,pomocna2!A:B,2,FALSE),\"\")","v":""}]
[null,null,null,null,{"$f":"+IFERROR(VLOOKUP(K506,pomocna2!A:B,2,FALSE),\"\")","v":""},{"$f":"+IFERROR((VLOOKUP(L506,pomocna!$AC$4:$AD$20,2,FALSE)),\"\")","v":""},null,{"$f":"+IFERROR(VLOOKUP(M506,pomocna3!$F$2:$G$7,2,FALSE),\"\")","v":""},null,{"$f":"+IFERROR(VLOOKUP(N506,pomocna2!A:B,2,FALSE),\"\")","v":""}]
[null,null,null,null,{"$f":"+IFERROR(VLOOKUP(K507,pomocna2!A:B,2,FALSE),\"\")","v":""},{"$f":"+IFERROR((VLOOKUP(L507,pomocna!$AC$4:$AD$20,2,FALSE)),\"\")","v":""},null,{"$f":"+IFERROR(VLOOKUP(M507,pomocna3!$F$2:$G$7,2,FALSE),\"\")","v":""},null,{"$f":"+IFERROR(VLOOKUP(N507,pomocna2!A:B,2,FALSE),\"\")","v":""}]
[null,null,null,null,{"$f":"+IFERROR(VLOOKUP(K508,pomocna2!A:B,2,FALSE),\"\")","v":""},{"$f":"+IFERROR((VLOOKUP(L508,pomocna!$AC$4:$AD$20,2,FALSE)),\"\")","v":""},null,{"$f":"+IFERROR(VLOOKUP(M508,pomocna3!$F$2:$G$7,2,FALSE),\"\")","v":""},null,{"$f":"+IFERROR(VLOOKUP(N508,pomocna2!A:B,2,FALSE),\"\")","v":""}]
[null,null,null,null,{"$f":"+IFERROR(VLOOKUP(K509,pomocna2!A:B,2,FALSE),\"\")","v":""},{"$f":"+IFERROR((VLOOKUP(L509,pomocna!$AC$4:$AD$20,2,FALSE)),\"\")","v":""},null,{"$f":"+IFERROR(VLOOKUP(M509,pomocna3!$F$2:$G$7,2,FALSE),\"\")","v":""},null,{"$f":"+IFERROR(VLOOKUP(N509,pomocna2!A:B,2,FALSE),\"\")","v":""}]
[null,null,null,null,{"$f":"+IFERROR(VLOOKUP(K510,pomocna2!A:B,2,FALSE),\"\")","v":""},{"$f":"+IFERROR((VLOOKUP(L510,pomocna!$AC$4:$AD$20,2,FALSE)),\"\")","v":""},null,{"$f":"+IFERROR(VLOOKUP(M510,pomocna3!$F$2:$G$7,2,FALSE),\"\")","v":""},null,{"$f":"+IFERROR(VLOOKUP(N510,pomocna2!A:B,2,FALSE),\"\")","v":""}]
[null,null,null,null,{"$f":"+IFERROR(VLOOKUP(K511,pomocna2!A:B,2,FALSE),\"\")","v":""},{"$f":"+IFERROR((VLOOKUP(L511,pomocna!$AC$4:$AD$20,2,FALSE)),\"\")","v":""},null,{"$f":"+IFERROR(VLOOKUP(M511,pomocna3!$F$2:$G$7,2,FALSE),\"\")","v":""},null,{"$f":"+IFERROR(VLOOKUP(N511,pomocna2!A:B,2,FALSE),\"\")","v":""}]
[null,null,null,null,{"$f":"+IFERROR(VLOOKUP(K512,pomocna2!A:B,2,FALSE),\"\")","v":""},{"$f":"+IFERROR((VLOOKUP(L512,pomocna!$AC$4:$AD$20,2,FALSE)),\"\")","v":""},null,{"$f":"+IFERROR(VLOOKUP(M512,pomocna3!$F$2:$G$7,2,FALSE),\"\")","v":""},null,{"$f":"+IFERROR(VLOOKUP(N512,pomocna2!A:B,2,FALSE),\"\")","v":""}]
[null,null,null,null,{"$f":"+IFERROR(VLOOKUP(K513,pomocna2!A:B,2,FALSE),\"\")","v":""},{"$f":"+IFERROR((VLOOKUP(L513,pomocna!$AC$4:$AD$20,2,FALSE)),\"\")","v":""},null,{"$f":"+IFERROR(VLOOKUP(M513,pomocna3!$F$2:$G$7,2,FALSE),\"\")","v":""},null,{"$f":"+IFERROR(VLOOKUP(N513,pomocna2!A:B,2,FALSE),\"\")","v":""}]
[null,null,null,null,{"$f":"+IFERROR(VLOOKUP(K514,pomocna2!A:B,2,FALSE),\"\")","v":""},{"$f":"+IFERROR((VLOOKUP(L514,pomocna!$AC$4:$AD$20,2,FALSE)),\"\")","v":""},null,{"$f":"+IFERROR(VLOOKUP(M514,pomocna3!$F$2:$G$7,2,FALSE),\"\")","v":""},null,{"$f":"+IFERROR(VLOOKUP(N514,pomocna2!A:B,2,FALSE),\"\")","v":""}]
[null,null,null,null,{"$f":"+IFERROR(VLOOKUP(K515,pomocna2!A:B,2,FALSE),\"\")","v":""},{"$f":"+IFERROR((VLOOKUP(L515,pomocna!$AC$4:$AD$20,2,FALSE)),\"\")","v":""},null,{"$f":"+IFERROR(VLOOKUP(M515,pomocna3!$F$2:$G$7,2,FALSE),\"\")","v":""},null,{"$f":"+IFERROR(VLOOKUP(N515,pomocna2!A:B,2,FALSE),\"\")","v":""}]
[null,null,null,null,{"$f":"+IFERROR(VLOOKUP(K516,pomocna2!A:B,2,FALSE),\"\")","v":""},{"$f":"+IFERROR((VLOOKUP(L516,pomocna!$AC$4:$AD$20,2,FALSE)),\"\")","v":""},null,{"$f":"+IFERROR(VLOOKUP(M516,pomocna3!$F$2:$G$7,2,FALSE),\"\")","v":""},null,{"$f":"+IFERROR(VLOOKUP(N516,pomocna2!A:B,2,FALSE),\"\")","v":""}]
[null,null,null,null,{"$f":"+IFERROR(VLOOKUP(K517,pomocna2!A:B,2,FALSE),\"\")","v":""},{"$f":"+IFERROR((VLOOKUP(L517,pomocna!$AC$4:$AD$20,2,FALSE)),\"\")","v":""},null,{"$f":"+IFERROR(VLOOKUP(M517,pomocna3!$F$2:$G$7,2,FALSE),\"\")","v":""},null,{"$f":"+IFERROR(VLOOKUP(N517,pomocna2!A:B,2,FALSE),\"\")","v":""}]
[null,null,null,null,{"$f":"+IFERROR(VLOOKUP(K518,pomocna2!A:B,2,FALSE),\"\")","v":""},{"$f":"+IFERROR((VLOOKUP(L518,pomocna!$AC$4:$AD$20,2,FALSE)),\"\")","v":""},null,{"$f":"+IFERROR(VLOOKUP(M518,pomocna3!$F$2:$G$7,2,FALSE),\"\")","v":""},null,{"$f":"+IFERROR(VLOOKUP(N518,pomocna2!A:B,2,FALSE),\"\")","v":""}]
[null,null,null,null,{"$f":"+IFERROR(VLOOKUP(K519,pomocna2!A:B,2,FALSE),\"\")","v":""},{"$f":"+IFERROR((VLOOKUP(L519,pomocna!$AC$4:$AD$20,2,FALSE)),\"\")","v":""},null,{"$f":"+IFERROR(VLOOKUP(M519,pomocna3!$F$2:$G$7,2,FALSE),\"\")","v":""},null,{"$f":"+IFERROR(VLOOKUP(N519,pomocna2!A:B,2,FALSE),\"\")","v":""}]
[null,null,null,null,{"$f":"+IFERROR(VLOOKUP(K520,pomocna2!A:B,2,FALSE),\"\")","v":""},{"$f":"+IFERROR((VLOOKUP(L520,pomocna!$AC$4:$AD$20,2,FALSE)),\"\")","v":""},null,{"$f":"+IFERROR(VLOOKUP(M520,pomocna3!$F$2:$G$7,2,FALSE),\"\")","v":""},null,{"$f":"+IFERROR(VLOOKUP(N520,pomocna2!A:B,2,FALSE),\"\")","v":""}]
[null,null,null,null,{"$f":"+IFERROR(VLOOKUP(K521,pomocna2!A:B,2,FALSE),\"\")","v":""},{"$f":"+IFERROR((VLOOKUP(L521,pomocna!$AC$4:$AD$20,2,FALSE)),\"\")","v":""},null,{"$f":"+IFERROR(VLOOKUP(M521,pomocna3!$F$2:$G$7,2,FALSE),\"\")","v":""},null,{"$f":"+IFERROR(VLOOKUP(N521,pomocna2!A:B,2,FALSE),\"\")","v":""}]
[null,null,null,null,{"$f":"+IFERROR(VLOOKUP(K522,pomocna2!A:B,2,FALSE),\"\")","v":""},{"$f":"+IFERROR((VLOOKUP(L522,pomocna!$AC$4:$AD$20,2,FALSE)),\"\")","v":""},null,{"$f":"+IFERROR(VLOOKUP(M522,pomocna3!$F$2:$G$7,2,FALSE),\"\")","v":""},null,{"$f":"+IFERROR(VLOOKUP(N522,pomocna2!A:B,2,FALSE),\"\")","v":""}]
[null,null,null,null,{"$f":"+IFERROR(VLOOKUP(K523,pomocna2!A:B,2,FALSE),\"\")","v":""},{"$f":"+IFERROR((VLOOKUP(L523,pomocna!$AC$4:$AD$20,2,FALSE)),\"\")","v":""},null,{"$f":"+IFERROR(VLOOKUP(M523,pomocna3!$F$2:$G$7,2,FALSE),\"\")","v":""},null,{"$f":"+IFERROR(VLOOKUP(N523,pomocna2!A:B,2,FALSE),\"\")","v":""}]
[null,null,null,null,{"$f":"+IFERROR(VLOOKUP(K524,pomocna2!A:B,2,FALSE),\"\")","v":""},{"$f":"+IFERROR((VLOOKUP(L524,pomocna!$AC$4:$AD$20,2,FALSE)),\"\")","v":""},null,{"$f":"+IFERROR(VLOOKUP(M524,pomocna3!$F$2:$G$7,2,FALSE),\"\")","v":""},null,{"$f":"+IFERROR(VLOOKUP(N524,pomocna2!A:B,2,FALSE),\"\")","v":""}]
[null,null,null,null,{"$f":"+IFERROR(VLOOKUP(K525,pomocna2!A:B,2,FALSE),\"\")","v":""},{"$f":"+IFERROR((VLOOKUP(L525,pomocna!$AC$4:$AD$20,2,FALSE)),\"\")","v":""},null,{"$f":"+IFERROR(VLOOKUP(M525,pomocna3!$F$2:$G$7,2,FALSE),\"\")","v":""},null,{"$f":"+IFERROR(VLOOKUP(N525,pomocna2!A:B,2,FALSE),\"\")","v":""}]
[null,null,null,null,{"$f":"+IFERROR(VLOOKUP(K526,pomocna2!A:B,2,FALSE),\"\")","v":""},{"$f":"+IFERROR((VLOOKUP(L526,pomocna!$AC$4:$AD$20,2,FALSE)),\"\")","v":""},null,{"$f":"+IFERROR(VLOOKUP(M526,pomocna3!$F$2:$G$7,2,FALSE),\"\")","v":""},null,{"$f":"+IFERROR(VLOOKUP(N526,pomocna2!A:B,2,FALSE),\"\")","v":""}]
[null,null,null,null,{"$f":"+IFERROR(VLOOKUP(K527,pomocna2!A:B,2,FALSE),\"\")","v":""},{"$f":"+IFERROR((VLOOKUP(L527,pomocna!$AC$4:$AD$20,2,FALSE)),\"\")","v":""},null,{"$f":"+IFERROR(VLOOKUP(M527,pomocna3!$F$2:$G$7,2,FALSE),\"\")","v":""},null,{"$f":"+IFERROR(VLOOKUP(N527,pomocna2!A:B,2,FALSE),\"\")","v":""}]
[null,null,null,null,{"$f":"+IFERROR(VLOOKUP(K528,pomocna2!A:B,2,FALSE),\"\")","v":""},{"$f":"+IFERROR((VLOOKUP(L528,pomocna!$AC$4:$AD$20,2,FALSE)),\"\")","v":""},null,{"$f":"+IFERROR(VLOOKUP(M528,pomocna3!$F$2:$G$7,2,FALSE),\"\")","v":""},null,{"$f":"+IFERROR(VLOOKUP(N528,pomocna2!A:B,2,FALSE),\"\")","v":""}]
[null,null,null,null,{"$f":"+IFERROR(VLOOKUP(K529,pomocna2!A:B,2,FALSE),\"\")","v":""},{"$f":"+IFERROR((VLOOKUP(L529,pomocna!$AC$4:$AD$20,2,FALSE)),\"\")","v":""},null,{"$f":"+IFERROR(VLOOKUP(M529,pomocna3!$F$2:$G$7,2,FALSE),\"\")","v":""},null,{"$f":"+IFERROR(VLOOKUP(N529,pomocna2!A:B,2,FALSE),\"\")","v":""}]
[null,null,null,null,{"$f":"+IFERROR(VLOOKUP(K530,pomocna2!A:B,2,FALSE),\"\")","v":""},{"$f":"+IFERROR((VLOOKUP(L530,pomocna!$AC$4:$AD$20,2,FALSE)),\"\")","v":""},null,{"$f":"+IFERROR(VLOOKUP(M530,pomocna3!$F$2:$G$7,2,FALSE),\"\")","v":""},null,{"$f":"+IFERROR(VLOOKUP(N530,pomocna2!A:B,2,FALSE),\"\")","v":""}]
[null,null,null,null,{"$f":"+IFERROR(VLOOKUP(K531,pomocna2!A:B,2,FALSE),\"\")","v":""},{"$f":"+IFERROR((VLOOKUP(L531,pomocna!$AC$4:$AD$20,2,FALSE)),\"\")","v":""},null,{"$f":"+IFERROR(VLOOKUP(M531,pomocna3!$F$2:$G$7,2,FALSE),\"\")","v":""},null,{"$f":"+IFERROR(VLOOKUP(N531,pomocna2!A:B,2,FALSE),\"\")","v":""}]
[null,null,null,null,{"$f":"+IFERROR(VLOOKUP(K532,pomocna2!A:B,2,FALSE),\"\")","v":""},{"$f":"+IFERROR((VLOOKUP(L532,pomocna!$AC$4:$AD$20,2,FALSE)),\"\")","v":""},null,{"$f":"+IFERROR(VLOOKUP(M532,pomocna3!$F$2:$G$7,2,FALSE),\"\")","v":""},null,{"$f":"+IFERROR(VLOOKUP(N532,pomocna2!A:B,2,FALSE),\"\")","v":""}]
[null,null,null,null,{"$f":"+IFERROR(VLOOKUP(K533,pomocna2!A:B,2,FALSE),\"\")","v":""},{"$f":"+IFERROR((VLOOKUP(L533,pomocna!$AC$4:$AD$20,2,FALSE)),\"\")","v":""},null,{"$f":"+IFERROR(VLOOKUP(M533,pomocna3!$F$2:$G$7,2,FALSE),\"\")","v":""},null,{"$f":"+IFERROR(VLOOKUP(N533,pomocna2!A:B,2,FALSE),\"\")","v":""}]
[null,null,null,null,{"$f":"+IFERROR(VLOOKUP(K534,pomocna2!A:B,2,FALSE),\"\")","v":""},{"$f":"+IFERROR((VLOOKUP(L534,pomocna!$AC$4:$AD$20,2,FALSE)),\"\")","v":""},null,{"$f":"+IFERROR(VLOOKUP(M534,pomocna3!$F$2:$G$7,2,FALSE),\"\")","v":""},null,{"$f":"+IFERROR(VLOOKUP(N534,pomocna2!A:B,2,FALSE),\"\")","v":""}]
[null,null,null,null,{"$f":"+IFERROR(VLOOKUP(K535,pomocna2!A:B,2,FALSE),\"\")","v":""},{"$f":"+IFERROR((VLOOKUP(L535,pomocna!$AC$4:$AD$20,2,FALSE)),\"\")","v":""},null,{"$f":"+IFERROR(VLOOKUP(M535,pomocna3!$F$2:$G$7,2,FALSE),\"\")","v":""},null,{"$f":"+IFERROR(VLOOKUP(N535,pomocna2!A:B,2,FALSE),\"\")","v":""}]
[null,null,null,null,{"$f":"+IFERROR(VLOOKUP(K536,pomocna2!A:B,2,FALSE),\"\")","v":""},{"$f":"+IFERROR((VLOOKUP(L536,pomocna!$AC$4:$AD$20,2,FALSE)),\"\")","v":""},null,{"$f":"+IFERROR(VLOOKUP(M536,pomocna3!$F$2:$G$7,2,FALSE),\"\")","v":""},null,{"$f":"+IFERROR(VLOOKUP(N536,pomocna2!A:B,2,FALSE),\"\")","v":""}]
[null,null,null,null,{"$f":"+IFERROR(VLOOKUP(K537,pomocna2!A:B,2,FALSE),\"\")","v":""},{"$f":"+IFERROR((VLOOKUP(L537,pomocna!$AC$4:$AD$20,2,FALSE)),\"\")","v":""},null,{"$f":"+IFERROR(VLOOKUP(M537,pomocna3!$F$2:$G$7,2,FALSE),\"\")","v":""},null,{"$f":"+IFERROR(VLOOKUP(N537,pomocna2!A:B,2,FALSE),\"\")","v":""}]
[null,null,null,null,{"$f":"+IFERROR(VLOOKUP(K538,pomocna2!A:B,2,FALSE),\"\")","v":""},{"$f":"+IFERROR((VLOOKUP(L538,pomocna!$AC$4:$AD$20,2,FALSE)),\"\")","v":""},null,{"$f":"+IFERROR(VLOOKUP(M538,pomocna3!$F$2:$G$7,2,FALSE),\"\")","v":""},null,{"$f":"+IFERROR(VLOOKUP(N538,pomocna2!A:B,2,FALSE),\"\")","v":""}]
[null,null,null,null,{"$f":"+IFERROR(VLOOKUP(K539,pomocna2!A:B,2,FALSE),\"\")","v":""},{"$f":"+IFERROR((VLOOKUP(L539,pomocna!$AC$4:$AD$20,2,FALSE)),\"\")","v":""},null,{"$f":"+IFERROR(VLOOKUP(M539,pomocna3!$F$2:$G$7,2,FALSE),\"\")","v":""},null,{"$f":"+IFERROR(VLOOKUP(N539,pomocna2!A:B,2,FALSE),\"\")","v":""}]
[null,null,null,null,{"$f":"+IFERROR(VLOOKUP(K540,pomocna2!A:B,2,FALSE),\"\")","v":""},{"$f":"+IFERROR((VLOOKUP(L540,pomocna!$AC$4:$AD$20,2,FALSE)),\"\")","v":""},null,{"$f":"+IFERROR(VLOOKUP(M540,pomocna3!$F$2:$G$7,2,FALSE),\"\")","v":""},null,{"$f":"+IFERROR(VLOOKUP(N540,pomocna2!A:B,2,FALSE),\"\")","v":""}]
[null,null,null,null,{"$f":"+IFERROR(VLOOKUP(K541,pomocna2!A:B,2,FALSE),\"\")","v":""},{"$f":"+IFERROR((VLOOKUP(L541,pomocna!$AC$4:$AD$20,2,FALSE)),\"\")","v":""},null,{"$f":"+IFERROR(VLOOKUP(M541,pomocna3!$F$2:$G$7,2,FALSE),\"\")","v":""},null,{"$f":"+IFERROR(VLOOKUP(N541,pomocna2!A:B,2,FALSE),\"\")","v":""}]
[null,null,null,null,{"$f":"+IFERROR(VLOOKUP(K542,pomocna2!A:B,2,FALSE),\"\")","v":""},{"$f":"+IFERROR((VLOOKUP(L542,pomocna!$AC$4:$AD$20,2,FALSE)),\"\")","v":""},null,{"$f":"+IFERROR(VLOOKUP(M542,pomocna3!$F$2:$G$7,2,FALSE),\"\")","v":""},null,{"$f":"+IFERROR(VLOOKUP(N542,pomocna2!A:B,2,FALSE),\"\")","v":""}]
[null,null,null,null,{"$f":"+IFERROR(VLOOKUP(K543,pomocna2!A:B,2,FALSE),\"\")","v":""},{"$f":"+IFERROR((VLOOKUP(L543,pomocna!$AC$4:$AD$20,2,FALSE)),\"\")","v":""},null,{"$f":"+IFERROR(VLOOKUP(M543,pomocna3!$F$2:$G$7,2,FALSE),\"\")","v":""},null,{"$f":"+IFERROR(VLOOKUP(N543,pomocna2!A:B,2,FALSE),\"\")","v":""}]
[null,null,null,null,{"$f":"+IFERROR(VLOOKUP(K544,pomocna2!A:B,2,FALSE),\"\")","v":""},{"$f":"+IFERROR((VLOOKUP(L544,pomocna!$AC$4:$AD$20,2,FALSE)),\"\")","v":""},null,{"$f":"+IFERROR(VLOOKUP(M544,pomocna3!$F$2:$G$7,2,FALSE),\"\")","v":""},null,{"$f":"+IFERROR(VLOOKUP(N544,pomocna2!A:B,2,FALSE),\"\")","v":""}]
[null,null,null,null,{"$f":"+IFERROR(VLOOKUP(K545,pomocna2!A:B,2,FALSE),\"\")","v":""},{"$f":"+IFERROR((VLOOKUP(L545,pomocna!$AC$4:$AD$20,2,FALSE)),\"\")","v":""},null,{"$f":"+IFERROR(VLOOKUP(M545,pomocna3!$F$2:$G$7,2,FALSE),\"\")","v":""},null,{"$f":"+IFERROR(VLOOKUP(N545,pomocna2!A:B,2,FALSE),\"\")","v":""}]
[null,null,null,null,{"$f":"+IFERROR(VLOOKUP(K546,pomocna2!A:B,2,FALSE),\"\")","v":""},{"$f":"+IFERROR((VLOOKUP(L546,pomocna!$AC$4:$AD$20,2,FALSE)),\"\")","v":""},null,{"$f":"+IFERROR(VLOOKUP(M546,pomocna3!$F$2:$G$7,2,FALSE),\"\")","v":""},null,{"$f":"+IFERROR(VLOOKUP(N546,pomocna2!A:B,2,FALSE),\"\")","v":""}]
[null,null,null,null,{"$f":"+IFERROR(VLOOKUP(K547,pomocna2!A:B,2,FALSE),\"\")","v":""},{"$f":"+IFERROR((VLOOKUP(L547,pomocna!$AC$4:$AD$20,2,FALSE)),\"\")","v":""},null,{"$f":"+IFERROR(VLOOKUP(M547,pomocna3!$F$2:$G$7,2,FALSE),\"\")","v":""},null,{"$f":"+IFERROR(VLOOKUP(N547,pomocna2!A:B,2,FALSE),\"\")","v":""}]
[null,null,null,null,{"$f":"+IFERROR(VLOOKUP(K548,pomocna2!A:B,2,FALSE),\"\")","v":""},{"$f":"+IFERROR((VLOOKUP(L548,pomocna!$AC$4:$AD$20,2,FALSE)),\"\")","v":""},null,{"$f":"+IFERROR(VLOOKUP(M548,pomocna3!$F$2:$G$7,2,FALSE),\"\")","v":""},null,{"$f":"+IFERROR(VLOOKUP(N548,pomocna2!A:B,2,FALSE),\"\")","v":""}]
[null,null,null,null,{"$f":"+IFERROR(VLOOKUP(K549,pomocna2!A:B,2,FALSE),\"\")","v":""},{"$f":"+IFERROR((VLOOKUP(L549,pomocna!$AC$4:$AD$20,2,FALSE)),\"\")","v":""},null,{"$f":"+IFERROR(VLOOKUP(M549,pomocna3!$F$2:$G$7,2,FALSE),\"\")","v":""},null,{"$f":"+IFERROR(VLOOKUP(N549,pomocna2!A:B,2,FALSE),\"\")","v":""}]
[null,null,null,null,{"$f":"+IFERROR(VLOOKUP(K550,pomocna2!A:B,2,FALSE),\"\")","v":""},{"$f":"+IFERROR((VLOOKUP(L550,pomocna!$AC$4:$AD$20,2,FALSE)),\"\")","v":""},null,{"$f":"+IFERROR(VLOOKUP(M550,pomocna3!$F$2:$G$7,2,FALSE),\"\")","v":""},null,{"$f":"+IFERROR(VLOOKUP(N550,pomocna2!A:B,2,FALSE),\"\")","v":""}]
[null,null,null,null,{"$f":"+IFERROR(VLOOKUP(K551,pomocna2!A:B,2,FALSE),\"\")","v":""},{"$f":"+IFERROR((VLOOKUP(L551,pomocna!$AC$4:$AD$20,2,FALSE)),\"\")","v":""},null,{"$f":"+IFERROR(VLOOKUP(M551,pomocna3!$F$2:$G$7,2,FALSE),\"\")","v":""},null,{"$f":"+IFERROR(VLOOKUP(N551,pomocna2!A:B,2,FALSE),\"\")","v":""}]
[null,null,null,null,{"$f":"+IFERROR(VLOOKUP(K552,pomocna2!A:B,2,FALSE),\"\")","v":""},{"$f":"+IFERROR((VLOOKUP(L552,pomocna!$AC$4:$AD$20,2,FALSE)),\"\")","v":""},null,{"$f":"+IFERROR(VLOOKUP(M552,pomocna3!$F$2:$G$7,2,FALSE),\"\")","v":""},null,{"$f":"+IFERROR(VLOOKUP(N552,pomocna2!A:B,2,FALSE),\"\")","v":""}]
[null,null,null,null,{"$f":"+IFERROR(VLOOKUP(K553,pomocna2!A:B,2,FALSE),\"\")","v":""},{"$f":"+IFERROR((VLOOKUP(L553,pomocna!$AC$4:$AD$20,2,FALSE)),\"\")","v":""},null,{"$f":"+IFERROR(VLOOKUP(M553,pomocna3!$F$2:$G$7,2,FALSE),\"\")","v":""},null,{"$f":"+IFERROR(VLOOKUP(N553,pomocna2!A:B,2,FALSE),\"\")","v":""}]
[null,null,null,null,{"$f":"+IFERROR(VLOOKUP(K554,pomocna2!A:B,2,FALSE),\"\")","v":""},{"$f":"+IFERROR((VLOOKUP(L554,pomocna!$AC$4:$AD$20,2,FALSE)),\"\")","v":""},null,{"$f":"+IFERROR(VLOOKUP(M554,pomocna3!$F$2:$G$7,2,FALSE),\"\")","v":""},null,{"$f":"+IFERROR(VLOOKUP(N554,pomocna2!A:B,2,FALSE),\"\")","v":""}]
[null,null,null,null,{"$f":"+IFERROR(VLOOKUP(K555,pomocna2!A:B,2,FALSE),\"\")","v":""},{"$f":"+IFERROR((VLOOKUP(L555,pomocna!$AC$4:$AD$20,2,FALSE)),\"\")","v":""},null,{"$f":"+IFERROR(VLOOKUP(M555,pomocna3!$F$2:$G$7,2,FALSE),\"\")","v":""},null,{"$f":"+IFERROR(VLOOKUP(N555,pomocna2!A:B,2,FALSE),\"\")","v":""}]
[null,null,null,null,{"$f":"+IFERROR(VLOOKUP(K556,pomocna2!A:B,2,FALSE),\"\")","v":""},{"$f":"+IFERROR((VLOOKUP(L556,pomocna!$AC$4:$AD$20,2,FALSE)),\"\")","v":""},null,{"$f":"+IFERROR(VLOOKUP(M556,pomocna3!$F$2:$G$7,2,FALSE),\"\")","v":""},null,{"$f":"+IFERROR(VLOOKUP(N556,pomocna2!A:B,2,FALSE),\"\")","v":""}]
[null,null,null,null,{"$f":"+IFERROR(VLOOKUP(K557,pomocna2!A:B,2,FALSE),\"\")","v":""},{"$f":"+IFERROR((VLOOKUP(L557,pomocna!$AC$4:$AD$20,2,FALSE)),\"\")","v":""},null,{"$f":"+IFERROR(VLOOKUP(M557,pomocna3!$F$2:$G$7,2,FALSE),\"\")","v":""},null,{"$f":"+IFERROR(VLOOKUP(N557,pomocna2!A:B,2,FALSE),\"\")","v":""}]
[null,null,null,null,{"$f":"+IFERROR(VLOOKUP(K558,pomocna2!A:B,2,FALSE),\"\")","v":""},{"$f":"+IFERROR((VLOOKUP(L558,pomocna!$AC$4:$AD$20,2,FALSE)),\"\")","v":""},null,{"$f":"+IFERROR(VLOOKUP(M558,pomocna3!$F$2:$G$7,2,FALSE),\"\")","v":""},null,{"$f":"+IFERROR(VLOOKUP(N558,pomocna2!A:B,2,FALSE),\"\")","v":""}]
[null,null,null,null,{"$f":"+IFERROR(VLOOKUP(K559,pomocna2!A:B,2,FALSE),\"\")","v":""},{"$f":"+IFERROR((VLOOKUP(L559,pomocna!$AC$4:$AD$20,2,FALSE)),\"\")","v":""},null,{"$f":"+IFERROR(VLOOKUP(M559,pomocna3!$F$2:$G$7,2,FALSE),\"\")","v":""},null,{"$f":"+IFERROR(VLOOKUP(N559,pomocna2!A:B,2,FALSE),\"\")","v":""}]
[null,null,null,null,{"$f":"+IFERROR(VLOOKUP(K560,pomocna2!A:B,2,FALSE),\"\")","v":""},{"$f":"+IFERROR((VLOOKUP(L560,pomocna!$AC$4:$AD$20,2,FALSE)),\"\")","v":""},null,{"$f":"+IFERROR(VLOOKUP(M560,pomocna3!$F$2:$G$7,2,FALSE),\"\")","v":""},null,{"$f":"+IFERROR(VLOOKUP(N560,pomocna2!A:B,2,FALSE),\"\")","v":""}]
[null,null,null,null,{"$f":"+IFERROR(VLOOKUP(K561,pomocna2!A:B,2,FALSE),\"\")","v":""},{"$f":"+IFERROR((VLOOKUP(L561,pomocna!$AC$4:$AD$20,2,FALSE)),\"\")","v":""},null,{"$f":"+IFERROR(VLOOKUP(M561,pomocna3!$F$2:$G$7,2,FALSE),\"\")","v":""},null,{"$f":"+IFERROR(VLOOKUP(N561,pomocna2!A:B,2,FALSE),\"\")","v":""}]
[null,null,null,null,{"$f":"+IFERROR(VLOOKUP(K562,pomocna2!A:B,2,FALSE),\"\")","v":""},{"$f":"+IFERROR((VLOOKUP(L562,pomocna!$AC$4:$AD$20,2,FALSE)),\"\")","v":""},null,{"$f":"+IFERROR(VLOOKUP(M562,pomocna3!$F$2:$G$7,2,FALSE),\"\")","v":""},null,{"$f":"+IFERROR(VLOOKUP(N562,pomocna2!A:B,2,FALSE),\"\")","v":""}]
[null,null,null,null,{"$f":"+IFERROR(VLOOKUP(K563,pomocna2!A:B,2,FALSE),\"\")","v":""},{"$f":"+IFERROR((VLOOKUP(L563,pomocna!$AC$4:$AD$20,2,FALSE)),\"\")","v":""},null,{"$f":"+IFERROR(VLOOKUP(M563,pomocna3!$F$2:$G$7,2,FALSE),\"\")","v":""},null,{"$f":"+IFERROR(VLOOKUP(N563,pomocna2!A:B,2,FALSE),\"\")","v":""}]
[null,null,null,null,{"$f":"+IFERROR(VLOOKUP(K564,pomocna2!A:B,2,FALSE),\"\")","v":""},{"$f":"+IFERROR((VLOOKUP(L564,pomocna!$AC$4:$AD$20,2,FALSE)),\"\")","v":""},null,{"$f":"+IFERROR(VLOOKUP(M564,pomocna3!$F$2:$G$7,2,FALSE),\"\")","v":""},null,{"$f":"+IFERROR(VLOOKUP(N564,pomocna2!A:B,2,FALSE),\"\")","v":""}]
[null,null,null,null,{"$f":"+IFERROR(VLOOKUP(K565,pomocna2!A:B,2,FALSE),\"\")","v":""},{"$f":"+IFERROR((VLOOKUP(L565,pomocna!$AC$4:$AD$20,2,FALSE)),\"\")","v":""},null,{"$f":"+IFERROR(VLOOKUP(M565,pomocna3!$F$2:$G$7,2,FALSE),\"\")","v":""},null,{"$f":"+IFERROR(VLOOKUP(N565,pomocna2!A:B,2,FALSE),\"\")","v":""}]
[null,null,null,null,{"$f":"+IFERROR(VLOOKUP(K566,pomocna2!A:B,2,FALSE),\"\")","v":""},{"$f":"+IFERROR((VLOOKUP(L566,pomocna!$AC$4:$AD$20,2,FALSE)),\"\")","v":""},null,{"$f":"+IFERROR(VLOOKUP(M566,pomocna3!$F$2:$G$7,2,FALSE),\"\")","v":""},null,{"$f":"+IFERROR(VLOOKUP(N566,pomocna2!A:B,2,FALSE),\"\")","v":""}]
[null,null,null,null,{"$f":"+IFERROR(VLOOKUP(K567,pomocna2!A:B,2,FALSE),\"\")","v":""},{"$f":"+IFERROR((VLOOKUP(L567,pomocna!$AC$4:$AD$20,2,FALSE)),\"\")","v":""},null,{"$f":"+IFERROR(VLOOKUP(M567,pomocna3!$F$2:$G$7,2,FALSE),\"\")","v":""},null,{"$f":"+IFERROR(VLOOKUP(N567,pomocna2!A:B,2,FALSE),\"\")","v":""}]
[null,null,null,null,{"$f":"+IFERROR(VLOOKUP(K568,pomocna2!A:B,2,FALSE),\"\")","v":""},{"$f":"+IFERROR((VLOOKUP(L568,pomocna!$AC$4:$AD$20,2,FALSE)),\"\")","v":""},null,{"$f":"+IFERROR(VLOOKUP(M568,pomocna3!$F$2:$G$7,2,FALSE),\"\")","v":""},null,{"$f":"+IFERROR(VLOOKUP(N568,pomocna2!A:B,2,FALSE),\"\")","v":""}]
[null,null,null,null,{"$f":"+IFERROR(VLOOKUP(K569,pomocna2!A:B,2,FALSE),\"\")","v":""},{"$f":"+IFERROR((VLOOKUP(L569,pomocna!$AC$4:$AD$20,2,FALSE)),\"\")","v":""},null,{"$f":"+IFERROR(VLOOKUP(M569,pomocna3!$F$2:$G$7,2,FALSE),\"\")","v":""},null,{"$f":"+IFERROR(VLOOKUP(N569,pomocna2!A:B,2,FALSE),\"\")","v":""}]
[null,null,null,null,{"$f":"+IFERROR(VLOOKUP(K570,pomocna2!A:B,2,FALSE),\"\")","v":""},{"$f":"+IFERROR((VLOOKUP(L570,pomocna!$AC$4:$AD$20,2,FALSE)),\"\")","v":""},null,{"$f":"+IFERROR(VLOOKUP(M570,pomocna3!$F$2:$G$7,2,FALSE),\"\")","v":""},null,{"$f":"+IFERROR(VLOOKUP(N570,pomocna2!A:B,2,FALSE),\"\")","v":""}]
[null,null,null,null,{"$f":"+IFERROR(VLOOKUP(K571,pomocna2!A:B,2,FALSE),\"\")","v":""},{"$f":"+IFERROR((VLOOKUP(L571,pomocna!$AC$4:$AD$20,2,FALSE)),\"\")","v":""},null,{"$f":"+IFERROR(VLOOKUP(M571,pomocna3!$F$2:$G$7,2,FALSE),\"\")","v":""},null,{"$f":"+IFERROR(VLOOKUP(N571,pomocna2!A:B,2,FALSE),\"\")","v":""}]
[null,null,null,null,{"$f":"+IFERROR(VLOOKUP(K572,pomocna2!A:B,2,FALSE),\"\")","v":""},{"$f":"+IFERROR((VLOOKUP(L572,pomocna!$AC$4:$AD$20,2,FALSE)),\"\")","v":""},null,{"$f":"+IFERROR(VLOOKUP(M572,pomocna3!$F$2:$G$7,2,FALSE),\"\")","v":""},null,{"$f":"+IFERROR(VLOOKUP(N572,pomocna2!A:B,2,FALSE),\"\")","v":""}]
[null,null,null,null,{"$f":"+IFERROR(VLOOKUP(K573,pomocna2!A:B,2,FALSE),\"\")","v":""},{"$f":"+IFERROR((VLOOKUP(L573,pomocna!$AC$4:$AD$20,2,FALSE)),\"\")","v":""},null,{"$f":"+IFERROR(VLOOKUP(M573,pomocna3!$F$2:$G$7,2,FALSE),\"\")","v":""},null,{"$f":"+IFERROR(VLOOKUP(N573,pomocna2!A:B,2,FALSE),\"\")","v":""}]
[null,null,null,null,{"$f":"+IFERROR(VLOOKUP(K574,pomocna2!A:B,2,FALSE),\"\")","v":""},{"$f":"+IFERROR((VLOOKUP(L574,pomocna!$AC$4:$AD$20,2,FALSE)),\"\")","v":""},null,{"$f":"+IFERROR(VLOOKUP(M574,pomocna3!$F$2:$G$7,2,FALSE),\"\")","v":""},null,{"$f":"+IFERROR(VLOOKUP(N574,pomocna2!A:B,2,FALSE),\"\")","v":""}]
[null,null,null,null,{"$f":"+IFERROR(VLOOKUP(K575,pomocna2!A:B,2,FALSE),\"\")","v":""},{"$f":"+IFERROR((VLOOKUP(L575,pomocna!$AC$4:$AD$20,2,FALSE)),\"\")","v":""},null,{"$f":"+IFERROR(VLOOKUP(M575,pomocna3!$F$2:$G$7,2,FALSE),\"\")","v":""},null,{"$f":"+IFERROR(VLOOKUP(N575,pomocna2!A:B,2,FALSE),\"\")","v":""}]
[null,null,null,null,{"$f":"+IFERROR(VLOOKUP(K576,pomocna2!A:B,2,FALSE),\"\")","v":""},{"$f":"+IFERROR((VLOOKUP(L576,pomocna!$AC$4:$AD$20,2,FALSE)),\"\")","v":""},null,{"$f":"+IFERROR(VLOOKUP(M576,pomocna3!$F$2:$G$7,2,FALSE),\"\")","v":""},null,{"$f":"+IFERROR(VLOOKUP(N576,pomocna2!A:B,2,FALSE),\"\")","v":""}]
[null,null,null,null,{"$f":"+IFERROR(VLOOKUP(K577,pomocna2!A:B,2,FALSE),\"\")","v":""},{"$f":"+IFERROR((VLOOKUP(L577,pomocna!$AC$4:$AD$20,2,FALSE)),\"\")","v":""},null,{"$f":"+IFERROR(VLOOKUP(M577,pomocna3!$F$2:$G$7,2,FALSE),\"\")","v":""},null,{"$f":"+IFERROR(VLOOKUP(N577,pomocna2!A:B,2,FALSE),\"\")","v":""}]
[null,null,null,null,{"$f":"+IFERROR(VLOOKUP(K578,pomocna2!A:B,2,FALSE),\"\")","v":""},{"$f":"+IFERROR((VLOOKUP(L578,pomocna!$AC$4:$AD$20,2,FALSE)),\"\")","v":""},null,{"$f":"+IFERROR(VLOOKUP(M578,pomocna3!$F$2:$G$7,2,FALSE),\"\")","v":""},null,{"$f":"+IFERROR(VLOOKUP(N578,pomocna2!A:B,2,FALSE),\"\")","v":""}]
[null,null,null,null,{"$f":"+IFERROR(VLOOKUP(K579,pomocna2!A:B,2,FALSE),\"\")","v":""},{"$f":"+IFERROR((VLOOKUP(L579,pomocna!$AC$4:$AD$20,2,FALSE)),\"\")","v":""},null,{"$f":"+IFERROR(VLOOKUP(M579,pomocna3!$F$2:$G$7,2,FALSE),\"\")","v":""},null,{"$f":"+IFERROR(VLOOKUP(N579,pomocna2!A:B,2,FALSE),\"\")","v":""}]
[null,null,null,null,{"$f":"+IFERROR(VLOOKUP(K580,pomocna2!A:B,2,FALSE),\"\")","v":""},{"$f":"+IFERROR((VLOOKUP(L580,pomocna!$AC$4:$AD$20,2,FALSE)),\"\")","v":""},null,{"$f":"+IFERROR(VLOOKUP(M580,pomocna3!$F$2:$G$7,2,FALSE),\"\")","v":""},null,{"$f":"+IFERROR(VLOOKUP(N580,pomocna2!A:B,2,FALSE),\"\")","v":""}]
[null,null,null,null,{"$f":"+IFERROR(VLOOKUP(K581,pomocna2!A:B,2,FALSE),\"\")","v":""},{"$f":"+IFERROR((VLOOKUP(L581,pomocna!$AC$4:$AD$20,2,FALSE)),\"\")","v":""},null,{"$f":"+IFERROR(VLOOKUP(M581,pomocna3!$F$2:$G$7,2,FALSE),\"\")","v":""},null,{"$f":"+IFERROR(VLOOKUP(N581,pomocna2!A:B,2,FALSE),\"\")","v":""}]
[null,null,null,null,{"$f":"+IFERROR(VLOOKUP(K582,pomocna2!A:B,2,FALSE),\"\")","v":""},{"$f":"+IFERROR((VLOOKUP(L582,pomocna!$AC$4:$AD$20,2,FALSE)),\"\")","v":""},null,{"$f":"+IFERROR(VLOOKUP(M582,pomocna3!$F$2:$G$7,2,FALSE),\"\")","v":""},null,{"$f":"+IFERROR(VLOOKUP(N582,pomocna2!A:B,2,FALSE),\"\")","v":""}]
[null,null,null,null,{"$f":"+IFERROR(VLOOKUP(K583,pomocna2!A:B,2,FALSE),\"\")","v":""},{"$f":"+IFERROR((VLOOKUP(L583,pomocna!$AC$4:$AD$20,2,FALSE)),\"\")","v":""},null,{"$f":"+IFERROR(VLOOKUP(M583,pomocna3!$F$2:$G$7,2,FALSE),\"\")","v":""},null,{"$f":"+IFERROR(VLOOKUP(N583,pomocna2!A:B,2,FALSE),\"\")","v":""}]
[null,null,null,null,{"$f":"+IFERROR(VLOOKUP(K584,pomocna2!A:B,2,FALSE),\"\")","v":""},{"$f":"+IFERROR((VLOOKUP(L584,pomocna!$AC$4:$AD$20,2,FALSE)),\"\")","v":""},null,{"$f":"+IFERROR(VLOOKUP(M584,pomocna3!$F$2:$G$7,2,FALSE),\"\")","v":""},null,{"$f":"+IFERROR(VLOOKUP(N584,pomocna2!A:B,2,FALSE),\"\")","v":""}]
[null,null,null,null,{"$f":"+IFERROR(VLOOKUP(K585,pomocna2!A:B,2,FALSE),\"\")","v":""},{"$f":"+IFERROR((VLOOKUP(L585,pomocna!$AC$4:$AD$20,2,FALSE)),\"\")","v":""},null,{"$f":"+IFERROR(VLOOKUP(M585,pomocna3!$F$2:$G$7,2,FALSE),\"\")","v":""},null,{"$f":"+IFERROR(VLOOKUP(N585,pomocna2!A:B,2,FALSE),\"\")","v":""}]
[null,null,null,null,{"$f":"+IFERROR(VLOOKUP(K586,pomocna2!A:B,2,FALSE),\"\")","v":""},{"$f":"+IFERROR((VLOOKUP(L586,pomocna!$AC$4:$AD$20,2,FALSE)),\"\")","v":""},null,{"$f":"+IFERROR(VLOOKUP(M586,pomocna3!$F$2:$G$7,2,FALSE),\"\")","v":""},null,{"$f":"+IFERROR(VLOOKUP(N586,pomocna2!A:B,2,FALSE),\"\")","v":""}]
[null,null,null,null,{"$f":"+IFERROR(VLOOKUP(K587,pomocna2!A:B,2,FALSE),\"\")","v":""},{"$f":"+IFERROR((VLOOKUP(L587,pomocna!$AC$4:$AD$20,2,FALSE)),\"\")","v":""},null,{"$f":"+IFERROR(VLOOKUP(M587,pomocna3!$F$2:$G$7,2,FALSE),\"\")","v":""},null,{"$f":"+IFERROR(VLOOKUP(N587,pomocna2!A:B,2,FALSE),\"\")","v":""}]
[null,null,null,null,{"$f":"+IFERROR(VLOOKUP(K588,pomocna2!A:B,2,FALSE),\"\")","v":""},{"$f":"+IFERROR((VLOOKUP(L588,pomocna!$AC$4:$AD$20,2,FALSE)),\"\")","v":""},null,{"$f":"+IFERROR(VLOOKUP(M588,pomocna3!$F$2:$G$7,2,FALSE),\"\")","v":""},null,{"$f":"+IFERROR(VLOOKUP(N588,pomocna2!A:B,2,FALSE),\"\")","v":""}]
[null,null,null,null,{"$f":"+IFERROR(VLOOKUP(K589,pomocna2!A:B,2,FALSE),\"\")","v":""},{"$f":"+IFERROR((VLOOKUP(L589,pomocna!$AC$4:$AD$20,2,FALSE)),\"\")","v":""},null,{"$f":"+IFERROR(VLOOKUP(M589,pomocna3!$F$2:$G$7,2,FALSE),\"\")","v":""},null,{"$f":"+IFERROR(VLOOKUP(N589,pomocna2!A:B,2,FALSE),\"\")","v":""}]
[null,null,null,null,{"$f":"+IFERROR(VLOOKUP(K590,pomocna2!A:B,2,FALSE),\"\")","v":""},{"$f":"+IFERROR((VLOOKUP(L590,pomocna!$AC$4:$AD$20,2,FALSE)),\"\")","v":""},null,{"$f":"+IFERROR(VLOOKUP(M590,pomocna3!$F$2:$G$7,2,FALSE),\"\")","v":""},null,{"$f":"+IFERROR(VLOOKUP(N590,pomocna2!A:B,2,FALSE),\"\")","v":""}]
[null,null,null,null,{"$f":"+IFERROR(VLOOKUP(K591,pomocna2!A:B,2,FALSE),\"\")","v":""},{"$f":"+IFERROR((VLOOKUP(L591,pomocna!$AC$4:$AD$20,2,FALSE)),\"\")","v":""},null,{"$f":"+IFERROR(VLOOKUP(M591,pomocna3!$F$2:$G$7,2,FALSE),\"\")","v":""},null,{"$f":"+IFERROR(VLOOKUP(N591,pomocna2!A:B,2,FALSE),\"\")","v":""}]
[null,null,null,null,{"$f":"+IFERROR(VLOOKUP(K592,pomocna2!A:B,2,FALSE),\"\")","v":""},{"$f":"+IFERROR((VLOOKUP(L592,pomocna!$AC$4:$AD$20,2,FALSE)),\"\")","v":""},null,{"$f":"+IFERROR(VLOOKUP(M592,pomocna3!$F$2:$G$7,2,FALSE),\"\")","v":""},null,{"$f":"+IFERROR(VLOOKUP(N592,pomocna2!A:B,2,FALSE),\"\")","v":""}]
[null,null,null,null,{"$f":"+IFERROR(VLOOKUP(K593,pomocna2!A:B,2,FALSE),\"\")","v":""},{"$f":"+IFERROR((VLOOKUP(L593,pomocna!$AC$4:$AD$20,2,FALSE)),\"\")","v":""},null,{"$f":"+IFERROR(VLOOKUP(M593,pomocna3!$F$2:$G$7,2,FALSE),\"\")","v":""},null,{"$f":"+IFERROR(VLOOKUP(N593,pomocna2!A:B,2,FALSE),\"\")","v":""}]
[null,null,null,null,{"$f":"+IFERROR(VLOOKUP(K594,pomocna2!A:B,2,FALSE),\"\")","v":""},{"$f":"+IFERROR((VLOOKUP(L594,pomocna!$AC$4:$AD$20,2,FALSE)),\"\")","v":""},null,{"$f":"+IFERROR(VLOOKUP(M594,pomocna3!$F$2:$G$7,2,FALSE),\"\")","v":""},null,{"$f":"+IFERROR(VLOOKUP(N594,pomocna2!A:B,2,FALSE),\"\")","v":""}]
[null,null,null,null,{"$f":"+IFERROR(VLOOKUP(K595,pomocna2!A:B,2,FALSE),\"\")","v":""},{"$f":"+IFERROR((VLOOKUP(L595,pomocna!$AC$4:$AD$20,2,FALSE)),\"\")","v":""},null,{"$f":"+IFERROR(VLOOKUP(M595,pomocna3!$F$2:$G$7,2,FALSE),\"\")","v":""},null,{"$f":"+IFERROR(VLOOKUP(N595,pomocna2!A:B,2,FALSE),\"\")","v":""}]
[null,null,null,null,{"$f":"+IFERROR(VLOOKUP(K596,pomocna2!A:B,2,FALSE),\"\")","v":""},{"$f":"+IFERROR((VLOOKUP(L596,pomocna!$AC$4:$AD$20,2,FALSE)),\"\")","v":""},null,{"$f":"+IFERROR(VLOOKUP(M596,pomocna3!$F$2:$G$7,2,FALSE),\"\")","v":""},null,{"$f":"+IFERROR(VLOOKUP(N596,pomocna2!A:B,2,FALSE),\"\")","v":""}]
[null,null,null,null,{"$f":"+IFERROR(VLOOKUP(K597,pomocna2!A:B,2,FALSE),\"\")","v":""},{"$f":"+IFERROR((VLOOKUP(L597,pomocna!$AC$4:$AD$20,2,FALSE)),\"\")","v":""},null,{"$f":"+IFERROR(VLOOKUP(M597,pomocna3!$F$2:$G$7,2,FALSE),\"\")","v":""},null,{"$f":"+IFERROR(VLOOKUP(N597,pomocna2!A:B,2,FALSE),\"\")","v":""}]
[null,null,null,null,{"$f":"+IFERROR(VLOOKUP(K598,pomocna2!A:B,2,FALSE),\"\")","v":""},{"$f":"+IFERROR((VLOOKUP(L598,pomocna!$AC$4:$AD$20,2,FALSE)),\"\")","v":""},null,{"$f":"+IFERROR(VLOOKUP(M598,pomocna3!$F$2:$G$7,2,FALSE),\"\")","v":""},null,{"$f":"+IFERROR(VLOOKUP(N598,pomocna2!A:B,2,FALSE),\"\")","v":""}]
[null,null,null,null,{"$f":"+IFERROR(VLOOKUP(K599,pomocna2!A:B,2,FALSE),\"\")","v":""},{"$f":"+IFERROR((VLOOKUP(L599,pomocna!$AC$4:$AD$20,2,FALSE)),\"\")","v":""},null,{"$f":"+IFERROR(VLOOKUP(M599,pomocna3!$F$2:$G$7,2,FALSE),\"\")","v":""},null,{"$f":"+IFERROR(VLOOKUP(N599,pomocna2!A:B,2,FALSE),\"\")","v":""}]
[null,null,null,null,{"$f":"+IFERROR(VLOOKUP(K600,pomocna2!A:B,2,FALSE),\"\")","v":""},{"$f":"+IFERROR((VLOOKUP(L600,pomocna!$AC$4:$AD$20,2,FALSE)),\"\")","v":""},null,{"$f":"+IFERROR(VLOOKUP(M600,pomocna3!$F$2:$G$7,2,FALSE),\"\")","v":""},null,{"$f":"+IFERROR(VLOOKUP(N600,pomocna2!A:B,2,FALSE),\"\")","v":""}]
[null,null,null,null,{"$f":"+IFERROR(VLOOKUP(K601,pomocna2!A:B,2,FALSE),\"\")","v":""},{"$f":"+IFERROR((VLOOKUP(L601,pomocna!$AC$4:$AD$20,2,FALSE)),\"\")","v":""},null,{"$f":"+IFERROR(VLOOKUP(M601,pomocna3!$F$2:$G$7,2,FALSE),\"\")","v":""},null,{"$f":"+IFERROR(VLOOKUP(N601,pomocna2!A:B,2,FALSE),\"\")","v":""}]
[null,null,null,null,{"$f":"+IFERROR(VLOOKUP(K602,pomocna2!A:B,2,FALSE),\"\")","v":""},{"$f":"+IFERROR((VLOOKUP(L602,pomocna!$AC$4:$AD$20,2,FALSE)),\"\")","v":""},null,{"$f":"+IFERROR(VLOOKUP(M602,pomocna3!$F$2:$G$7,2,FALSE),\"\")","v":""},null,{"$f":"+IFERROR(VLOOKUP(N602,pomocna2!A:B,2,FALSE),\"\")","v":""}]
[null,null,null,null,{"$f":"+IFERROR(VLOOKUP(K603,pomocna2!A:B,2,FALSE),\"\")","v":""},{"$f":"+IFERROR((VLOOKUP(L603,pomocna!$AC$4:$AD$20,2,FALSE)),\"\")","v":""},null,{"$f":"+IFERROR(VLOOKUP(M603,pomocna3!$F$2:$G$7,2,FALSE),\"\")","v":""},null,{"$f":"+IFERROR(VLOOKUP(N603,pomocna2!A:B,2,FALSE),\"\")","v":""}]
[null,null,null,null,{"$f":"+IFERROR(VLOOKUP(K604,pomocna2!A:B,2,FALSE),\"\")","v":""},{"$f":"+IFERROR((VLOOKUP(L604,pomocna!$AC$4:$AD$20,2,FALSE)),\"\")","v":""},null,{"$f":"+IFERROR(VLOOKUP(M604,pomocna3!$F$2:$G$7,2,FALSE),\"\")","v":""},null,{"$f":"+IFERROR(VLOOKUP(N604,pomocna2!A:B,2,FALSE),\"\")","v":""}]
[null,null,null,null,{"$f":"+IFERROR(VLOOKUP(K605,pomocna2!A:B,2,FALSE),\"\")","v":""},{"$f":"+IFERROR((VLOOKUP(L605,pomocna!$AC$4:$AD$20,2,FALSE)),\"\")","v":""},null,{"$f":"+IFERROR(VLOOKUP(M605,pomocna3!$F$2:$G$7,2,FALSE),\"\")","v":""},null,{"$f":"+IFERROR(VLOOKUP(N605,pomocna2!A:B,2,FALSE),\"\")","v":""}]
[null,null,null,null,{"$f":"+IFERROR(VLOOKUP(K606,pomocna2!A:B,2,FALSE),\"\")","v":""},{"$f":"+IFERROR((VLOOKUP(L606,pomocna!$AC$4:$AD$20,2,FALSE)),\"\")","v":""},null,{"$f":"+IFERROR(VLOOKUP(M606,pomocna3!$F$2:$G$7,2,FALSE),\"\")","v":""},null,{"$f":"+IFERROR(VLOOKUP(N606,pomocna2!A:B,2,FALSE),\"\")","v":""}]
[null,null,null,null,{"$f":"+IFERROR(VLOOKUP(K607,pomocna2!A:B,2,FALSE),\"\")","v":""},{"$f":"+IFERROR((VLOOKUP(L607,pomocna!$AC$4:$AD$20,2,FALSE)),\"\")","v":""},null,{"$f":"+IFERROR(VLOOKUP(M607,pomocna3!$F$2:$G$7,2,FALSE),\"\")","v":""},null,{"$f":"+IFERROR(VLOOKUP(N607,pomocna2!A:B,2,FALSE),\"\")","v":""}]
[null,null,null,null,{"$f":"+IFERROR(VLOOKUP(K608,pomocna2!A:B,2,FALSE),\"\")","v":""},{"$f":"+IFERROR((VLOOKUP(L608,pomocna!$AC$4:$AD$20,2,FALSE)),\"\")","v":""},null,{"$f":"+IFERROR(VLOOKUP(M608,pomocna3!$F$2:$G$7,2,FALSE),\"\")","v":""},null,{"$f":"+IFERROR(VLOOKUP(N608,pomocna2!A:B,2,FALSE),\"\")","v":""}]
[null,null,null,null,{"$f":"+IFERROR(VLOOKUP(K609,pomocna2!A:B,2,FALSE),\"\")","v":""},{"$f":"+IFERROR((VLOOKUP(L609,pomocna!$AC$4:$AD$20,2,FALSE)),\"\")","v":""},null,{"$f":"+IFERROR(VLOOKUP(M609,pomocna3!$F$2:$G$7,2,FALSE),\"\")","v":""},null,{"$f":"+IFERROR(VLOOKUP(N609,pomocna2!A:B,2,FALSE),\"\")","v":""}]
[null,null,null,null,{"$f":"+IFERROR(VLOOKUP(K610,pomocna2!A:B,2,FALSE),\"\")","v":""},{"$f":"+IFERROR((VLOOKUP(L610,pomocna!$AC$4:$AD$20,2,FALSE)),\"\")","v":""},null,{"$f":"+IFERROR(VLOOKUP(M610,pomocna3!$F$2:$G$7,2,FALSE),\"\")","v":""},null,{"$f":"+IFERROR(VLOOKUP(N610,pomocna2!A:B,2,FALSE),\"\")","v":""}]
[null,null,null,null,{"$f":"+IFERROR(VLOOKUP(K611,pomocna2!A:B,2,FALSE),\"\")","v":""},{"$f":"+IFERROR((VLOOKUP(L611,pomocna!$AC$4:$AD$20,2,FALSE)),\"\")","v":""},null,{"$f":"+IFERROR(VLOOKUP(M611,pomocna3!$F$2:$G$7,2,FALSE),\"\")","v":""},null,{"$f":"+IFERROR(VLOOKUP(N611,pomocna2!A:B,2,FALSE),\"\")","v":""}]
[null,null,null,null,{"$f":"+IFERROR(VLOOKUP(K612,pomocna2!A:B,2,FALSE),\"\")","v":""},{"$f":"+IFERROR((VLOOKUP(L612,pomocna!$AC$4:$AD$20,2,FALSE)),\"\")","v":""},null,{"$f":"+IFERROR(VLOOKUP(M612,pomocna3!$F$2:$G$7,2,FALSE),\"\")","v":""},null,{"$f":"+IFERROR(VLOOKUP(N612,pomocna2!A:B,2,FALSE),\"\")","v":""}]
[null,null,null,null,{"$f":"+IFERROR(VLOOKUP(K613,pomocna2!A:B,2,FALSE),\"\")","v":""},{"$f":"+IFERROR((VLOOKUP(L613,pomocna!$AC$4:$AD$20,2,FALSE)),\"\")","v":""},null,{"$f":"+IFERROR(VLOOKUP(M613,pomocna3!$F$2:$G$7,2,FALSE),\"\")","v":""},null,{"$f":"+IFERROR(VLOOKUP(N613,pomocna2!A:B,2,FALSE),\"\")","v":""}]
[null,null,null,null,{"$f":"+IFERROR(VLOOKUP(K614,pomocna2!A:B,2,FALSE),\"\")","v":""},{"$f":"+IFERROR((VLOOKUP(L614,pomocna!$AC$4:$AD$20,2,FALSE)),\"\")","v":""},null,{"$f":"+IFERROR(VLOOKUP(M614,pomocna3!$F$2:$G$7,2,FALSE),\"\")","v":""},null,{"$f":"+IFERROR(VLOOKUP(N614,pomocna2!A:B,2,FALSE),\"\")","v":""}]
[null,null,null,null,{"$f":"+IFERROR(VLOOKUP(K615,pomocna2!A:B,2,FALSE),\"\")","v":""},{"$f":"+IFERROR((VLOOKUP(L615,pomocna!$AC$4:$AD$20,2,FALSE)),\"\")","v":""},null,{"$f":"+IFERROR(VLOOKUP(M615,pomocna3!$F$2:$G$7,2,FALSE),\"\")","v":""},null,{"$f":"+IFERROR(VLOOKUP(N615,pomocna2!A:B,2,FALSE),\"\")","v":""}]
[null,null,null,null,{"$f":"+IFERROR(VLOOKUP(K616,pomocna2!A:B,2,FALSE),\"\")","v":""},{"$f":"+IFERROR((VLOOKUP(L616,pomocna!$AC$4:$AD$20,2,FALSE)),\"\")","v":""},null,{"$f":"+IFERROR(VLOOKUP(M616,pomocna3!$F$2:$G$7,2,FALSE),\"\")","v":""},null,{"$f":"+IFERROR(VLOOKUP(N616,pomocna2!A:B,2,FALSE),\"\")","v":""}]
[null,null,null,null,{"$f":"+IFERROR(VLOOKUP(K617,pomocna2!A:B,2,FALSE),\"\")","v":""},{"$f":"+IFERROR((VLOOKUP(L617,pomocna!$AC$4:$AD$20,2,FALSE)),\"\")","v":""},null,{"$f":"+IFERROR(VLOOKUP(M617,pomocna3!$F$2:$G$7,2,FALSE),\"\")","v":""},null,{"$f":"+IFERROR(VLOOKUP(N617,pomocna2!A:B,2,FALSE),\"\")","v":""}]
[null,null,null,null,{"$f":"+IFERROR(VLOOKUP(K618,pomocna2!A:B,2,FALSE),\"\")","v":""},{"$f":"+IFERROR((VLOOKUP(L618,pomocna!$AC$4:$AD$20,2,FALSE)),\"\")","v":""},null,{"$f":"+IFERROR(VLOOKUP(M618,pomocna3!$F$2:$G$7,2,FALSE),\"\")","v":""},null,{"$f":"+IFERROR(VLOOKUP(N618,pomocna2!A:B,2,FALSE),\"\")","v":""}]
[null,null,null,null,{"$f":"+IFERROR(VLOOKUP(K619,pomocna2!A:B,2,FALSE),\"\")","v":""},{"$f":"+IFERROR((VLOOKUP(L619,pomocna!$AC$4:$AD$20,2,FALSE)),\"\")","v":""},null,{"$f":"+IFERROR(VLOOKUP(M619,pomocna3!$F$2:$G$7,2,FALSE),\"\")","v":""},null,{"$f":"+IFERROR(VLOOKUP(N619,pomocna2!A:B,2,FALSE),\"\")","v":""}]
[null,null,null,null,{"$f":"+IFERROR(VLOOKUP(K620,pomocna2!A:B,2,FALSE),\"\")","v":""},{"$f":"+IFERROR((VLOOKUP(L620,pomocna!$AC$4:$AD$20,2,FALSE)),\"\")","v":""},null,{"$f":"+IFERROR(VLOOKUP(M620,pomocna3!$F$2:$G$7,2,FALSE),\"\")","v":""},null,{"$f":"+IFERROR(VLOOKUP(N620,pomocna2!A:B,2,FALSE),\"\")","v":""}]
[null,null,null,null,{"$f":"+IFERROR(VLOOKUP(K621,pomocna2!A:B,2,FALSE),\"\")","v":""},{"$f":"+IFERROR((VLOOKUP(L621,pomocna!$AC$4:$AD$20,2,FALSE)),\"\")","v":""},null,{"$f":"+IFERROR(VLOOKUP(M621,pomocna3!$F$2:$G$7,2,FALSE),\"\")","v":""},null,{"$f":"+IFERROR(VLOOKUP(N621,pomocna2!A:B,2,FALSE),\"\")","v":""}]
[null,null,null,null,{"$f":"+IFERROR(VLOOKUP(K622,pomocna2!A:B,2,FALSE),\"\")","v":""},{"$f":"+IFERROR((VLOOKUP(L622,pomocna!$AC$4:$AD$20,2,FALSE)),\"\")","v":""},null,{"$f":"+IFERROR(VLOOKUP(M622,pomocna3!$F$2:$G$7,2,FALSE),\"\")","v":""},null,{"$f":"+IFERROR(VLOOKUP(N622,pomocna2!A:B,2,FALSE),\"\")","v":""}]
[null,null,null,null,{"$f":"+IFERROR(VLOOKUP(K623,pomocna2!A:B,2,FALSE),\"\")","v":""},{"$f":"+IFERROR((VLOOKUP(L623,pomocna!$AC$4:$AD$20,2,FALSE)),\"\")","v":""},null,{"$f":"+IFERROR(VLOOKUP(M623,pomocna3!$F$2:$G$7,2,FALSE),\"\")","v":""},null,{"$f":"+IFERROR(VLOOKUP(N623,pomocna2!A:B,2,FALSE),\"\")","v":""}]
[null,null,null,null,{"$f":"+IFERROR(VLOOKUP(K624,pomocna2!A:B,2,FALSE),\"\")","v":""},{"$f":"+IFERROR((VLOOKUP(L624,pomocna!$AC$4:$AD$20,2,FALSE)),\"\")","v":""},null,{"$f":"+IFERROR(VLOOKUP(M624,pomocna3!$F$2:$G$7,2,FALSE),\"\")","v":""},null,{"$f":"+IFERROR(VLOOKUP(N624,pomocna2!A:B,2,FALSE),\"\")","v":""}]
[null,null,null,null,{"$f":"+IFERROR(VLOOKUP(K625,pomocna2!A:B,2,FALSE),\"\")","v":""},{"$f":"+IFERROR((VLOOKUP(L625,pomocna!$AC$4:$AD$20,2,FALSE)),\"\")","v":""},null,{"$f":"+IFERROR(VLOOKUP(M625,pomocna3!$F$2:$G$7,2,FALSE),\"\")","v":""},null,{"$f":"+IFERROR(VLOOKUP(N625,pomocna2!A:B,2,FALSE),\"\")","v":""}]
[null,null,null,null,{"$f":"+IFERROR(VLOOKUP(K626,pomocna2!A:B,2,FALSE),\"\")","v":""},{"$f":"+IFERROR((VLOOKUP(L626,pomocna!$AC$4:$AD$20,2,FALSE)),\"\")","v":""},null,{"$f":"+IFERROR(VLOOKUP(M626,pomocna3!$F$2:$G$7,2,FALSE),\"\")","v":""},null,{"$f":"+IFERROR(VLOOKUP(N626,pomocna2!A:B,2,FALSE),\"\")","v":""}]
[null,null,null,null,{"$f":"+IFERROR(VLOOKUP(K627,pomocna2!A:B,2,FALSE),\"\")","v":""},{"$f":"+IFERROR((VLOOKUP(L627,pomocna!$AC$4:$AD$20,2,FALSE)),\"\")","v":""},null,{"$f":"+IFERROR(VLOOKUP(M627,pomocna3!$F$2:$G$7,2,FALSE),\"\")","v":""},null,{"$f":"+IFERROR(VLOOKUP(N627,pomocna2!A:B,2,FALSE),\"\")","v":""}]
[null,null,null,null,{"$f":"+IFERROR(VLOOKUP(K628,pomocna2!A:B,2,FALSE),\"\")","v":""},{"$f":"+IFERROR((VLOOKUP(L628,pomocna!$AC$4:$AD$20,2,FALSE)),\"\")","v":""},null,{"$f":"+IFERROR(VLOOKUP(M628,pomocna3!$F$2:$G$7,2,FALSE),\"\")","v":""},null,{"$f":"+IFERROR(VLOOKUP(N628,pomocna2!A:B,2,FALSE),\"\")","v":""}]
[null,null,null,null,{"$f":"+IFERROR(VLOOKUP(K629,pomocna2!A:B,2,FALSE),\"\")","v":""},{"$f":"+IFERROR((VLOOKUP(L629,pomocna!$AC$4:$AD$20,2,FALSE)),\"\")","v":""},null,{"$f":"+IFERROR(VLOOKUP(M629,pomocna3!$F$2:$G$7,2,FALSE),\"\")","v":""},null,{"$f":"+IFERROR(VLOOKUP(N629,pomocna2!A:B,2,FALSE),\"\")","v":""}]
[null,null,null,null,{"$f":"+IFERROR(VLOOKUP(K630,pomocna2!A:B,2,FALSE),\"\")","v":""},{"$f":"+IFERROR((VLOOKUP(L630,pomocna!$AC$4:$AD$20,2,FALSE)),\"\")","v":""},null,{"$f":"+IFERROR(VLOOKUP(M630,pomocna3!$F$2:$G$7,2,FALSE),\"\")","v":""},null,{"$f":"+IFERROR(VLOOKUP(N630,pomocna2!A:B,2,FALSE),\"\")","v":""}]
[null,null,null,null,{"$f":"+IFERROR(VLOOKUP(K631,pomocna2!A:B,2,FALSE),\"\")","v":""},{"$f":"+IFERROR((VLOOKUP(L631,pomocna!$AC$4:$AD$20,2,FALSE)),\"\")","v":""},null,{"$f":"+IFERROR(VLOOKUP(M631,pomocna3!$F$2:$G$7,2,FALSE),\"\")","v":""},null,{"$f":"+IFERROR(VLOOKUP(N631,pomocna2!A:B,2,FALSE),\"\")","v":""}]
[null,null,null,null,{"$f":"+IFERROR(VLOOKUP(K632,pomocna2!A:B,2,FALSE),\"\")","v":""},{"$f":"+IFERROR((VLOOKUP(L632,pomocna!$AC$4:$AD$20,2,FALSE)),\"\")","v":""},null,{"$f":"+IFERROR(VLOOKUP(M632,pomocna3!$F$2:$G$7,2,FALSE),\"\")","v":""},null,{"$f":"+IFERROR(VLOOKUP(N632,pomocna2!A:B,2,FALSE),\"\")","v":""}]
[null,null,null,null,{"$f":"+IFERROR(VLOOKUP(K633,pomocna2!A:B,2,FALSE),\"\")","v":""},{"$f":"+IFERROR((VLOOKUP(L633,pomocna!$AC$4:$AD$20,2,FALSE)),\"\")","v":""},null,{"$f":"+IFERROR(VLOOKUP(M633,pomocna3!$F$2:$G$7,2,FALSE),\"\")","v":""},null,{"$f":"+IFERROR(VLOOKUP(N633,pomocna2!A:B,2,FALSE),\"\")","v":""}]
[null,null,null,null,{"$f":"+IFERROR(VLOOKUP(K634,pomocna2!A:B,2,FALSE),\"\")","v":""},{"$f":"+IFERROR((VLOOKUP(L634,pomocna!$AC$4:$AD$20,2,FALSE)),\"\")","v":""},null,{"$f":"+IFERROR(VLOOKUP(M634,pomocna3!$F$2:$G$7,2,FALSE),\"\")","v":""},null,{"$f":"+IFERROR(VLOOKUP(N634,pomocna2!A:B,2,FALSE),\"\")","v":""}]
[null,null,null,null,{"$f":"+IFERROR(VLOOKUP(K635,pomocna2!A:B,2,FALSE),\"\")","v":""},{"$f":"+IFERROR((VLOOKUP(L635,pomocna!$AC$4:$AD$20,2,FALSE)),\"\")","v":""},null,{"$f":"+IFERROR(VLOOKUP(M635,pomocna3!$F$2:$G$7,2,FALSE),\"\")","v":""},null,{"$f":"+IFERROR(VLOOKUP(N635,pomocna2!A:B,2,FALSE),\"\")","v":""}]
[null,null,null,null,{"$f":"+IFERROR(VLOOKUP(K636,pomocna2!A:B,2,FALSE),\"\")","v":""},{"$f":"+IFERROR((VLOOKUP(L636,pomocna!$AC$4:$AD$20,2,FALSE)),\"\")","v":""},null,{"$f":"+IFERROR(VLOOKUP(M636,pomocna3!$F$2:$G$7,2,FALSE),\"\")","v":""},null,{"$f":"+IFERROR(VLOOKUP(N636,pomocna2!A:B,2,FALSE),\"\")","v":""}]
[null,null,null,null,{"$f":"+IFERROR(VLOOKUP(K637,pomocna2!A:B,2,FALSE),\"\")","v":""},{"$f":"+IFERROR((VLOOKUP(L637,pomocna!$AC$4:$AD$20,2,FALSE)),\"\")","v":""},null,{"$f":"+IFERROR(VLOOKUP(M637,pomocna3!$F$2:$G$7,2,FALSE),\"\")","v":""},null,{"$f":"+IFERROR(VLOOKUP(N637,pomocna2!A:B,2,FALSE),\"\")","v":""}]
[null,null,null,null,{"$f":"+IFERROR(VLOOKUP(K638,pomocna2!A:B,2,FALSE),\"\")","v":""},{"$f":"+IFERROR((VLOOKUP(L638,pomocna!$AC$4:$AD$20,2,FALSE)),\"\")","v":""},null,{"$f":"+IFERROR(VLOOKUP(M638,pomocna3!$F$2:$G$7,2,FALSE),\"\")","v":""},null,{"$f":"+IFERROR(VLOOKUP(N638,pomocna2!A:B,2,FALSE),\"\")","v":""}]
[null,null,null,null,{"$f":"+IFERROR(VLOOKUP(K639,pomocna2!A:B,2,FALSE),\"\")","v":""},{"$f":"+IFERROR((VLOOKUP(L639,pomocna!$AC$4:$AD$20,2,FALSE)),\"\")","v":""},null,{"$f":"+IFERROR(VLOOKUP(M639,pomocna3!$F$2:$G$7,2,FALSE),\"\")","v":""},null,{"$f":"+IFERROR(VLOOKUP(N639,pomocna2!A:B,2,FALSE),\"\")","v":""}]
[null,null,null,null,{"$f":"+IFERROR(VLOOKUP(K640,pomocna2!A:B,2,FALSE),\"\")","v":""},{"$f":"+IFERROR((VLOOKUP(L640,pomocna!$AC$4:$AD$20,2,FALSE)),\"\")","v":""},null,{"$f":"+IFERROR(VLOOKUP(M640,pomocna3!$F$2:$G$7,2,FALSE),\"\")","v":""},null,{"$f":"+IFERROR(VLOOKUP(N640,pomocna2!A:B,2,FALSE),\"\")","v":""}]
[null,null,null,null,{"$f":"+IFERROR(VLOOKUP(K641,pomocna2!A:B,2,FALSE),\"\")","v":""},{"$f":"+IFERROR((VLOOKUP(L641,pomocna!$AC$4:$AD$20,2,FALSE)),\"\")","v":""},null,{"$f":"+IFERROR(VLOOKUP(M641,pomocna3!$F$2:$G$7,2,FALSE),\"\")","v":""},null,{"$f":"+IFERROR(VLOOKUP(N641,pomocna2!A:B,2,FALSE),\"\")","v":""}]
[null,null,null,null,{"$f":"+IFERROR(VLOOKUP(K642,pomocna2!A:B,2,FALSE),\"\")","v":""},{"$f":"+IFERROR((VLOOKUP(L642,pomocna!$AC$4:$AD$20,2,FALSE)),\"\")","v":""},null,{"$f":"+IFERROR(VLOOKUP(M642,pomocna3!$F$2:$G$7,2,FALSE),\"\")","v":""},null,{"$f":"+IFERROR(VLOOKUP(N642,pomocna2!A:B,2,FALSE),\"\")","v":""}]
[null,null,null,null,{"$f":"+IFERROR(VLOOKUP(K643,pomocna2!A:B,2,FALSE),\"\")","v":""},{"$f":"+IFERROR((VLOOKUP(L643,pomocna!$AC$4:$AD$20,2,FALSE)),\"\")","v":""},null,{"$f":"+IFERROR(VLOOKUP(M643,pomocna3!$F$2:$G$7,2,FALSE),\"\")","v":""},null,{"$f":"+IFERROR(VLOOKUP(N643,pomocna2!A:B,2,FALSE),\"\")","v":""}]
[null,null,null,null,{"$f":"+IFERROR(VLOOKUP(K644,pomocna2!A:B,2,FALSE),\"\")","v":""},{"$f":"+IFERROR((VLOOKUP(L644,pomocna!$AC$4:$AD$20,2,FALSE)),\"\")","v":""},null,{"$f":"+IFERROR(VLOOKUP(M644,pomocna3!$F$2:$G$7,2,FALSE),\"\")","v":""},null,{"$f":"+IFERROR(VLOOKUP(N644,pomocna2!A:B,2,FALSE),\"\")","v":""}]
[null,null,null,null,{"$f":"+IFERROR(VLOOKUP(K645,pomocna2!A:B,2,FALSE),\"\")","v":""},{"$f":"+IFERROR((VLOOKUP(L645,pomocna!$AC$4:$AD$20,2,FALSE)),\"\")","v":""},null,{"$f":"+IFERROR(VLOOKUP(M645,pomocna3!$F$2:$G$7,2,FALSE),\"\")","v":""},null,{"$f":"+IFERROR(VLOOKUP(N645,pomocna2!A:B,2,FALSE),\"\")","v":""}]
[null,null,null,null,{"$f":"+IFERROR(VLOOKUP(K646,pomocna2!A:B,2,FALSE),\"\")","v":""},{"$f":"+IFERROR((VLOOKUP(L646,pomocna!$AC$4:$AD$20,2,FALSE)),\"\")","v":""},null,{"$f":"+IFERROR(VLOOKUP(M646,pomocna3!$F$2:$G$7,2,FALSE),\"\")","v":""},null,{"$f":"+IFERROR(VLOOKUP(N646,pomocna2!A:B,2,FALSE),\"\")","v":""}]
[null,null,null,null,{"$f":"+IFERROR(VLOOKUP(K647,pomocna2!A:B,2,FALSE),\"\")","v":""},{"$f":"+IFERROR((VLOOKUP(L647,pomocna!$AC$4:$AD$20,2,FALSE)),\"\")","v":""},null,{"$f":"+IFERROR(VLOOKUP(M647,pomocna3!$F$2:$G$7,2,FALSE),\"\")","v":""},null,{"$f":"+IFERROR(VLOOKUP(N647,pomocna2!A:B,2,FALSE),\"\")","v":""}]
[null,null,null,null,{"$f":"+IFERROR(VLOOKUP(K648,pomocna2!A:B,2,FALSE),\"\")","v":""},{"$f":"+IFERROR((VLOOKUP(L648,pomocna!$AC$4:$AD$20,2,FALSE)),\"\")","v":""},null,{"$f":"+IFERROR(VLOOKUP(M648,pomocna3!$F$2:$G$7,2,FALSE),\"\")","v":""},null,{"$f":"+IFERROR(VLOOKUP(N648,pomocna2!A:B,2,FALSE),\"\")","v":""}]
[null,null,null,null,{"$f":"+IFERROR(VLOOKUP(K649,pomocna2!A:B,2,FALSE),\"\")","v":""},{"$f":"+IFERROR((VLOOKUP(L649,pomocna!$AC$4:$AD$20,2,FALSE)),\"\")","v":""},null,{"$f":"+IFERROR(VLOOKUP(M649,pomocna3!$F$2:$G$7,2,FALSE),\"\")","v":""},null,{"$f":"+IFERROR(VLOOKUP(N649,pomocna2!A:B,2,FALSE),\"\")","v":""}]
[null,null,null,null,{"$f":"+IFERROR(VLOOKUP(K650,pomocna2!A:B,2,FALSE),\"\")","v":""},{"$f":"+IFERROR((VLOOKUP(L650,pomocna!$AC$4:$AD$20,2,FALSE)),\"\")","v":""},null,{"$f":"+IFERROR(VLOOKUP(M650,pomocna3!$F$2:$G$7,2,FALSE),\"\")","v":""},null,{"$f":"+IFERROR(VLOOKUP(N650,pomocna2!A:B,2,FALSE),\"\")","v":""}]
[null,null,null,null,{"$f":"+IFERROR(VLOOKUP(K651,pomocna2!A:B,2,FALSE),\"\")","v":""},{"$f":"+IFERROR((VLOOKUP(L651,pomocna!$AC$4:$AD$20,2,FALSE)),\"\")","v":""},null,{"$f":"+IFERROR(VLOOKUP(M651,pomocna3!$F$2:$G$7,2,FALSE),\"\")","v":""},null,{"$f":"+IFERROR(VLOOKUP(N651,pomocna2!A:B,2,FALSE),\"\")","v":""}]
[null,null,null,null,{"$f":"+IFERROR(VLOOKUP(K652,pomocna2!A:B,2,FALSE),\"\")","v":""},{"$f":"+IFERROR((VLOOKUP(L652,pomocna!$AC$4:$AD$20,2,FALSE)),\"\")","v":""},null,{"$f":"+IFERROR(VLOOKUP(M652,pomocna3!$F$2:$G$7,2,FALSE),\"\")","v":""},null,{"$f":"+IFERROR(VLOOKUP(N652,pomocna2!A:B,2,FALSE),\"\")","v":""}]
[null,null,null,null,{"$f":"+IFERROR(VLOOKUP(K653,pomocna2!A:B,2,FALSE),\"\")","v":""},{"$f":"+IFERROR((VLOOKUP(L653,pomocna!$AC$4:$AD$20,2,FALSE)),\"\")","v":""},null,{"$f":"+IFERROR(VLOOKUP(M653,pomocna3!$F$2:$G$7,2,FALSE),\"\")","v":""},null,{"$f":"+IFERROR(VLOOKUP(N653,pomocna2!A:B,2,FALSE),\"\")","v":""}]
[null,null,null,null,{"$f":"+IFERROR(VLOOKUP(K654,pomocna2!A:B,2,FALSE),\"\")","v":""},{"$f":"+IFERROR((VLOOKUP(L654,pomocna!$AC$4:$AD$20,2,FALSE)),\"\")","v":""},null,{"$f":"+IFERROR(VLOOKUP(M654,pomocna3!$F$2:$G$7,2,FALSE),\"\")","v":""},null,{"$f":"+IFERROR(VLOOKUP(N654,pomocna2!A:B,2,FALSE),\"\")","v":""}]
[null,null,null,null,{"$f":"+IFERROR(VLOOKUP(K655,pomocna2!A:B,2,FALSE),\"\")","v":""},{"$f":"+IFERROR((VLOOKUP(L655,pomocna!$AC$4:$AD$20,2,FALSE)),\"\")","v":""},null,{"$f":"+IFERROR(VLOOKUP(M655,pomocna3!$F$2:$G$7,2,FALSE),\"\")","v":""},null,{"$f":"+IFERROR(VLOOKUP(N655,pomocna2!A:B,2,FALSE),\"\")","v":""}]
[null,null,null,null,{"$f":"+IFERROR(VLOOKUP(K656,pomocna2!A:B,2,FALSE),\"\")","v":""},{"$f":"+IFERROR((VLOOKUP(L656,pomocna!$AC$4:$AD$20,2,FALSE)),\"\")","v":""},null,{"$f":"+IFERROR(VLOOKUP(M656,pomocna3!$F$2:$G$7,2,FALSE),\"\")","v":""},null,{"$f":"+IFERROR(VLOOKUP(N656,pomocna2!A:B,2,FALSE),\"\")","v":""}]
[null,null,null,null,{"$f":"+IFERROR(VLOOKUP(K657,pomocna2!A:B,2,FALSE),\"\")","v":""},{"$f":"+IFERROR((VLOOKUP(L657,pomocna!$AC$4:$AD$20,2,FALSE)),\"\")","v":""},null,{"$f":"+IFERROR(VLOOKUP(M657,pomocna3!$F$2:$G$7,2,FALSE),\"\")","v":""},null,{"$f":"+IFERROR(VLOOKUP(N657,pomocna2!A:B,2,FALSE),\"\")","v":""}]
[null,null,null,null,{"$f":"+IFERROR(VLOOKUP(K658,pomocna2!A:B,2,FALSE),\"\")","v":""},{"$f":"+IFERROR((VLOOKUP(L658,pomocna!$AC$4:$AD$20,2,FALSE)),\"\")","v":""},null,{"$f":"+IFERROR(VLOOKUP(M658,pomocna3!$F$2:$G$7,2,FALSE),\"\")","v":""},null,{"$f":"+IFERROR(VLOOKUP(N658,pomocna2!A:B,2,FALSE),\"\")","v":""}]
[null,null,null,null,{"$f":"+IFERROR(VLOOKUP(K659,pomocna2!A:B,2,FALSE),\"\")","v":""},{"$f":"+IFERROR((VLOOKUP(L659,pomocna!$AC$4:$AD$20,2,FALSE)),\"\")","v":""},null,{"$f":"+IFERROR(VLOOKUP(M659,pomocna3!$F$2:$G$7,2,FALSE),\"\")","v":""},null,{"$f":"+IFERROR(VLOOKUP(N659,pomocna2!A:B,2,FALSE),\"\")","v":""}]
[null,null,null,null,{"$f":"+IFERROR(VLOOKUP(K660,pomocna2!A:B,2,FALSE),\"\")","v":""},{"$f":"+IFERROR((VLOOKUP(L660,pomocna!$AC$4:$AD$20,2,FALSE)),\"\")","v":""},null,{"$f":"+IFERROR(VLOOKUP(M660,pomocna3!$F$2:$G$7,2,FALSE),\"\")","v":""},null,{"$f":"+IFERROR(VLOOKUP(N660,pomocna2!A:B,2,FALSE),\"\")","v":""}]
[null,null,null,null,{"$f":"+IFERROR(VLOOKUP(K661,pomocna2!A:B,2,FALSE),\"\")","v":""},{"$f":"+IFERROR((VLOOKUP(L661,pomocna!$AC$4:$AD$20,2,FALSE)),\"\")","v":""},null,{"$f":"+IFERROR(VLOOKUP(M661,pomocna3!$F$2:$G$7,2,FALSE),\"\")","v":""},null,{"$f":"+IFERROR(VLOOKUP(N661,pomocna2!A:B,2,FALSE),\"\")","v":""}]
[null,null,null,null,{"$f":"+IFERROR(VLOOKUP(K662,pomocna2!A:B,2,FALSE),\"\")","v":""},{"$f":"+IFERROR((VLOOKUP(L662,pomocna!$AC$4:$AD$20,2,FALSE)),\"\")","v":""},null,{"$f":"+IFERROR(VLOOKUP(M662,pomocna3!$F$2:$G$7,2,FALSE),\"\")","v":""},null,{"$f":"+IFERROR(VLOOKUP(N662,pomocna2!A:B,2,FALSE),\"\")","v":""}]
[null,null,null,null,{"$f":"+IFERROR(VLOOKUP(K663,pomocna2!A:B,2,FALSE),\"\")","v":""},{"$f":"+IFERROR((VLOOKUP(L663,pomocna!$AC$4:$AD$20,2,FALSE)),\"\")","v":""},null,{"$f":"+IFERROR(VLOOKUP(M663,pomocna3!$F$2:$G$7,2,FALSE),\"\")","v":""},null,{"$f":"+IFERROR(VLOOKUP(N663,pomocna2!A:B,2,FALSE),\"\")","v":""}]
[null,null,null,null,{"$f":"+IFERROR(VLOOKUP(K664,pomocna2!A:B,2,FALSE),\"\")","v":""},{"$f":"+IFERROR((VLOOKUP(L664,pomocna!$AC$4:$AD$20,2,FALSE)),\"\")","v":""},null,{"$f":"+IFERROR(VLOOKUP(M664,pomocna3!$F$2:$G$7,2,FALSE),\"\")","v":""},null,{"$f":"+IFERROR(VLOOKUP(N664,pomocna2!A:B,2,FALSE),\"\")","v":""}]
[null,null,null,null,{"$f":"+IFERROR(VLOOKUP(K665,pomocna2!A:B,2,FALSE),\"\")","v":""},{"$f":"+IFERROR((VLOOKUP(L665,pomocna!$AC$4:$AD$20,2,FALSE)),\"\")","v":""},null,{"$f":"+IFERROR(VLOOKUP(M665,pomocna3!$F$2:$G$7,2,FALSE),\"\")","v":""},null,{"$f":"+IFERROR(VLOOKUP(N665,pomocna2!A:B,2,FALSE),\"\")","v":""}]
[null,null,null,null,{"$f":"+IFERROR(VLOOKUP(K666,pomocna2!A:B,2,FALSE),\"\")","v":""},{"$f":"+IFERROR((VLOOKUP(L666,pomocna!$AC$4:$AD$20,2,FALSE)),\"\")","v":""},null,{"$f":"+IFERROR(VLOOKUP(M666,pomocna3!$F$2:$G$7,2,FALSE),\"\")","v":""},null,{"$f":"+IFERROR(VLOOKUP(N666,pomocna2!A:B,2,FALSE),\"\")","v":""}]
[null,null,null,null,{"$f":"+IFERROR(VLOOKUP(K667,pomocna2!A:B,2,FALSE),\"\")","v":""},{"$f":"+IFERROR((VLOOKUP(L667,pomocna!$AC$4:$AD$20,2,FALSE)),\"\")","v":""},null,{"$f":"+IFERROR(VLOOKUP(M667,pomocna3!$F$2:$G$7,2,FALSE),\"\")","v":""},null,{"$f":"+IFERROR(VLOOKUP(N667,pomocna2!A:B,2,FALSE),\"\")","v":""}]
[null,null,null,null,{"$f":"+IFERROR(VLOOKUP(K668,pomocna2!A:B,2,FALSE),\"\")","v":""},{"$f":"+IFERROR((VLOOKUP(L668,pomocna!$AC$4:$AD$20,2,FALSE)),\"\")","v":""},null,{"$f":"+IFERROR(VLOOKUP(M668,pomocna3!$F$2:$G$7,2,FALSE),\"\")","v":""},null,{"$f":"+IFERROR(VLOOKUP(N668,pomocna2!A:B,2,FALSE),\"\")","v":""}]
[null,null,null,null,{"$f":"+IFERROR(VLOOKUP(K669,pomocna2!A:B,2,FALSE),\"\")","v":""},{"$f":"+IFERROR((VLOOKUP(L669,pomocna!$AC$4:$AD$20,2,FALSE)),\"\")","v":""},null,{"$f":"+IFERROR(VLOOKUP(M669,pomocna3!$F$2:$G$7,2,FALSE),\"\")","v":""},null,{"$f":"+IFERROR(VLOOKUP(N669,pomocna2!A:B,2,FALSE),\"\")","v":""}]
[null,null,null,null,{"$f":"+IFERROR(VLOOKUP(K670,pomocna2!A:B,2,FALSE),\"\")","v":""},{"$f":"+IFERROR((VLOOKUP(L670,pomocna!$AC$4:$AD$20,2,FALSE)),\"\")","v":""},null,{"$f":"+IFERROR(VLOOKUP(M670,pomocna3!$F$2:$G$7,2,FALSE),\"\")","v":""},null,{"$f":"+IFERROR(VLOOKUP(N670,pomocna2!A:B,2,FALSE),\"\")","v":""}]
[null,null,null,null,{"$f":"+IFERROR(VLOOKUP(K671,pomocna2!A:B,2,FALSE),\"\")","v":""},{"$f":"+IFERROR((VLOOKUP(L671,pomocna!$AC$4:$AD$20,2,FALSE)),\"\")","v":""},null,{"$f":"+IFERROR(VLOOKUP(M671,pomocna3!$F$2:$G$7,2,FALSE),\"\")","v":""},null,{"$f":"+IFERROR(VLOOKUP(N671,pomocna2!A:B,2,FALSE),\"\")","v":""}]
[null,null,null,null,{"$f":"+IFERROR(VLOOKUP(K672,pomocna2!A:B,2,FALSE),\"\")","v":""},{"$f":"+IFERROR((VLOOKUP(L672,pomocna!$AC$4:$AD$20,2,FALSE)),\"\")","v":""},null,{"$f":"+IFERROR(VLOOKUP(M672,pomocna3!$F$2:$G$7,2,FALSE),\"\")","v":""},null,{"$f":"+IFERROR(VLOOKUP(N672,pomocna2!A:B,2,FALSE),\"\")","v":""}]
[null,null,null,null,{"$f":"+IFERROR(VLOOKUP(K673,pomocna2!A:B,2,FALSE),\"\")","v":""},{"$f":"+IFERROR((VLOOKUP(L673,pomocna!$AC$4:$AD$20,2,FALSE)),\"\")","v":""},null,{"$f":"+IFERROR(VLOOKUP(M673,pomocna3!$F$2:$G$7,2,FALSE),\"\")","v":""},null,{"$f":"+IFERROR(VLOOKUP(N673,pomocna2!A:B,2,FALSE),\"\")","v":""}]
[null,null,null,null,{"$f":"+IFERROR(VLOOKUP(K674,pomocna2!A:B,2,FALSE),\"\")","v":""},{"$f":"+IFERROR((VLOOKUP(L674,pomocna!$AC$4:$AD$20,2,FALSE)),\"\")","v":""},null,{"$f":"+IFERROR(VLOOKUP(M674,pomocna3!$F$2:$G$7,2,FALSE),\"\")","v":""},null,{"$f":"+IFERROR(VLOOKUP(N674,pomocna2!A:B,2,FALSE),\"\")","v":""}]
[null,null,null,null,{"$f":"+IFERROR(VLOOKUP(K675,pomocna2!A:B,2,FALSE),\"\")","v":""},{"$f":"+IFERROR((VLOOKUP(L675,pomocna!$AC$4:$AD$20,2,FALSE)),\"\")","v":""},null,{"$f":"+IFERROR(VLOOKUP(M675,pomocna3!$F$2:$G$7,2,FALSE),\"\")","v":""},null,{"$f":"+IFERROR(VLOOKUP(N675,pomocna2!A:B,2,FALSE),\"\")","v":""}]
[null,null,null,null,{"$f":"+IFERROR(VLOOKUP(K676,pomocna2!A:B,2,FALSE),\"\")","v":""},{"$f":"+IFERROR((VLOOKUP(L676,pomocna!$AC$4:$AD$20,2,FALSE)),\"\")","v":""},null,{"$f":"+IFERROR(VLOOKUP(M676,pomocna3!$F$2:$G$7,2,FALSE),\"\")","v":""},null,{"$f":"+IFERROR(VLOOKUP(N676,pomocna2!A:B,2,FALSE),\"\")","v":""}]
[null,null,null,null,{"$f":"+IFERROR(VLOOKUP(K677,pomocna2!A:B,2,FALSE),\"\")","v":""},{"$f":"+IFERROR((VLOOKUP(L677,pomocna!$AC$4:$AD$20,2,FALSE)),\"\")","v":""},null,{"$f":"+IFERROR(VLOOKUP(M677,pomocna3!$F$2:$G$7,2,FALSE),\"\")","v":""},null,{"$f":"+IFERROR(VLOOKUP(N677,pomocna2!A:B,2,FALSE),\"\")","v":""}]
[null,null,null,null,{"$f":"+IFERROR(VLOOKUP(K678,pomocna2!A:B,2,FALSE),\"\")","v":""},{"$f":"+IFERROR((VLOOKUP(L678,pomocna!$AC$4:$AD$20,2,FALSE)),\"\")","v":""},null,{"$f":"+IFERROR(VLOOKUP(M678,pomocna3!$F$2:$G$7,2,FALSE),\"\")","v":""},null,{"$f":"+IFERROR(VLOOKUP(N678,pomocna2!A:B,2,FALSE),\"\")","v":""}]
[null,null,null,null,{"$f":"+IFERROR(VLOOKUP(K679,pomocna2!A:B,2,FALSE),\"\")","v":""},{"$f":"+IFERROR((VLOOKUP(L679,pomocna!$AC$4:$AD$20,2,FALSE)),\"\")","v":""},null,{"$f":"+IFERROR(VLOOKUP(M679,pomocna3!$F$2:$G$7,2,FALSE),\"\")","v":""},null,{"$f":"+IFERROR(VLOOKUP(N679,pomocna2!A:B,2,FALSE),\"\")","v":""}]
[null,null,null,null,{"$f":"+IFERROR(VLOOKUP(K680,pomocna2!A:B,2,FALSE),\"\")","v":""},{"$f":"+IFERROR((VLOOKUP(L680,pomocna!$AC$4:$AD$20,2,FALSE)),\"\")","v":""},null,{"$f":"+IFERROR(VLOOKUP(M680,pomocna3!$F$2:$G$7,2,FALSE),\"\")","v":""},null,{"$f":"+IFERROR(VLOOKUP(N680,pomocna2!A:B,2,FALSE),\"\")","v":""}]
[null,null,null,null,{"$f":"+IFERROR(VLOOKUP(K681,pomocna2!A:B,2,FALSE),\"\")","v":""},{"$f":"+IFERROR((VLOOKUP(L681,pomocna!$AC$4:$AD$20,2,FALSE)),\"\")","v":""},null,{"$f":"+IFERROR(VLOOKUP(M681,pomocna3!$F$2:$G$7,2,FALSE),\"\")","v":""},null,{"$f":"+IFERROR(VLOOKUP(N681,pomocna2!A:B,2,FALSE),\"\")","v":""}]
[null,null,null,null,{"$f":"+IFERROR(VLOOKUP(K682,pomocna2!A:B,2,FALSE),\"\")","v":""},{"$f":"+IFERROR((VLOOKUP(L682,pomocna!$AC$4:$AD$20,2,FALSE)),\"\")","v":""},null,{"$f":"+IFERROR(VLOOKUP(M682,pomocna3!$F$2:$G$7,2,FALSE),\"\")","v":""},null,{"$f":"+IFERROR(VLOOKUP(N682,pomocna2!A:B,2,FALSE),\"\")","v":""}]
[null,null,null,null,{"$f":"+IFERROR(VLOOKUP(K683,pomocna2!A:B,2,FALSE),\"\")","v":""},{"$f":"+IFERROR((VLOOKUP(L683,pomocna!$AC$4:$AD$20,2,FALSE)),\"\")","v":""},null,{"$f":"+IFERROR(VLOOKUP(M683,pomocna3!$F$2:$G$7,2,FALSE),\"\")","v":""},null,{"$f":"+IFERROR(VLOOKUP(N683,pomocna2!A:B,2,FALSE),\"\")","v":""}]
[null,null,null,null,{"$f":"+IFERROR(VLOOKUP(K684,pomocna2!A:B,2,FALSE),\"\")","v":""},{"$f":"+IFERROR((VLOOKUP(L684,pomocna!$AC$4:$AD$20,2,FALSE)),\"\")","v":""},null,{"$f":"+IFERROR(VLOOKUP(M684,pomocna3!$F$2:$G$7,2,FALSE),\"\")","v":""},null,{"$f":"+IFERROR(VLOOKUP(N684,pomocna2!A:B,2,FALSE),\"\")","v":""}]
[null,null,null,null,{"$f":"+IFERROR(VLOOKUP(K685,pomocna2!A:B,2,FALSE),\"\")","v":""},{"$f":"+IFERROR((VLOOKUP(L685,pomocna!$AC$4:$AD$20,2,FALSE)),\"\")","v":""},null,{"$f":"+IFERROR(VLOOKUP(M685,pomocna3!$F$2:$G$7,2,FALSE),\"\")","v":""},null,{"$f":"+IFERROR(VLOOKUP(N685,pomocna2!A:B,2,FALSE),\"\")","v":""}]
[null,null,null,null,{"$f":"+IFERROR(VLOOKUP(K686,pomocna2!A:B,2,FALSE),\"\")","v":""},{"$f":"+IFERROR((VLOOKUP(L686,pomocna!$AC$4:$AD$20,2,FALSE)),\"\")","v":""},null,{"$f":"+IFERROR(VLOOKUP(M686,pomocna3!$F$2:$G$7,2,FALSE),\"\")","v":""},null,{"$f":"+IFERROR(VLOOKUP(N686,pomocna2!A:B,2,FALSE),\"\")","v":""}]
[null,null,null,null,{"$f":"+IFERROR(VLOOKUP(K687,pomocna2!A:B,2,FALSE),\"\")","v":""},{"$f":"+IFERROR((VLOOKUP(L687,pomocna!$AC$4:$AD$20,2,FALSE)),\"\")","v":""},null,{"$f":"+IFERROR(VLOOKUP(M687,pomocna3!$F$2:$G$7,2,FALSE),\"\")","v":""},null,{"$f":"+IFERROR(VLOOKUP(N687,pomocna2!A:B,2,FALSE),\"\")","v":""}]
[null,null,null,null,{"$f":"+IFERROR(VLOOKUP(K688,pomocna2!A:B,2,FALSE),\"\")","v":""},{"$f":"+IFERROR((VLOOKUP(L688,pomocna!$AC$4:$AD$20,2,FALSE)),\"\")","v":""},null,{"$f":"+IFERROR(VLOOKUP(M688,pomocna3!$F$2:$G$7,2,FALSE),\"\")","v":""},null,{"$f":"+IFERROR(VLOOKUP(N688,pomocna2!A:B,2,FALSE),\"\")","v":""}]
[null,null,null,null,{"$f":"+IFERROR(VLOOKUP(K689,pomocna2!A:B,2,FALSE),\"\")","v":""},{"$f":"+IFERROR((VLOOKUP(L689,pomocna!$AC$4:$AD$20,2,FALSE)),\"\")","v":""},null,{"$f":"+IFERROR(VLOOKUP(M689,pomocna3!$F$2:$G$7,2,FALSE),\"\")","v":""},null,{"$f":"+IFERROR(VLOOKUP(N689,pomocna2!A:B,2,FALSE),\"\")","v":""}]
[null,null,null,null,{"$f":"+IFERROR(VLOOKUP(K690,pomocna2!A:B,2,FALSE),\"\")","v":""},{"$f":"+IFERROR((VLOOKUP(L690,pomocna!$AC$4:$AD$20,2,FALSE)),\"\")","v":""},null,{"$f":"+IFERROR(VLOOKUP(M690,pomocna3!$F$2:$G$7,2,FALSE),\"\")","v":""},null,{"$f":"+IFERROR(VLOOKUP(N690,pomocna2!A:B,2,FALSE),\"\")","v":""}]
[null,null,null,null,{"$f":"+IFERROR(VLOOKUP(K691,pomocna2!A:B,2,FALSE),\"\")","v":""},{"$f":"+IFERROR((VLOOKUP(L691,pomocna!$AC$4:$AD$20,2,FALSE)),\"\")","v":""},null,{"$f":"+IFERROR(VLOOKUP(M691,pomocna3!$F$2:$G$7,2,FALSE),\"\")","v":""},null,{"$f":"+IFERROR(VLOOKUP(N691,pomocna2!A:B,2,FALSE),\"\")","v":""}]
[null,null,null,null,{"$f":"+IFERROR(VLOOKUP(K692,pomocna2!A:B,2,FALSE),\"\")","v":""},{"$f":"+IFERROR((VLOOKUP(L692,pomocna!$AC$4:$AD$20,2,FALSE)),\"\")","v":""},null,{"$f":"+IFERROR(VLOOKUP(M692,pomocna3!$F$2:$G$7,2,FALSE),\"\")","v":""},null,{"$f":"+IFERROR(VLOOKUP(N692,pomocna2!A:B,2,FALSE),\"\")","v":""}]
[null,null,null,null,{"$f":"+IFERROR(VLOOKUP(K693,pomocna2!A:B,2,FALSE),\"\")","v":""},{"$f":"+IFERROR((VLOOKUP(L693,pomocna!$AC$4:$AD$20,2,FALSE)),\"\")","v":""},null,{"$f":"+IFERROR(VLOOKUP(M693,pomocna3!$F$2:$G$7,2,FALSE),\"\")","v":""},null,{"$f":"+IFERROR(VLOOKUP(N693,pomocna2!A:B,2,FALSE),\"\")","v":""}]
[null,null,null,null,{"$f":"+IFERROR(VLOOKUP(K694,pomocna2!A:B,2,FALSE),\"\")","v":""},{"$f":"+IFERROR((VLOOKUP(L694,pomocna!$AC$4:$AD$20,2,FALSE)),\"\")","v":""},null,{"$f":"+IFERROR(VLOOKUP(M694,pomocna3!$F$2:$G$7,2,FALSE),\"\")","v":""},null,{"$f":"+IFERROR(VLOOKUP(N694,pomocna2!A:B,2,FALSE),\"\")","v":""}]
[null,null,null,null,{"$f":"+IFERROR(VLOOKUP(K695,pomocna2!A:B,2,FALSE),\"\")","v":""},{"$f":"+IFERROR((VLOOKUP(L695,pomocna!$AC$4:$AD$20,2,FALSE)),\"\")","v":""},null,{"$f":"+IFERROR(VLOOKUP(M695,pomocna3!$F$2:$G$7,2,FALSE),\"\")","v":""},null,{"$f":"+IFERROR(VLOOKUP(N695,pomocna2!A:B,2,FALSE),\"\")","v":""}]
[null,null,null,null,{"$f":"+IFERROR(VLOOKUP(K696,pomocna2!A:B,2,FALSE),\"\")","v":""},{"$f":"+IFERROR((VLOOKUP(L696,pomocna!$AC$4:$AD$20,2,FALSE)),\"\")","v":""},null,{"$f":"+IFERROR(VLOOKUP(M696,pomocna3!$F$2:$G$7,2,FALSE),\"\")","v":""},null,{"$f":"+IFERROR(VLOOKUP(N696,pomocna2!A:B,2,FALSE),\"\")","v":""}]
[null,null,null,null,{"$f":"+IFERROR(VLOOKUP(K697,pomocna2!A:B,2,FALSE),\"\")","v":""},{"$f":"+IFERROR((VLOOKUP(L697,pomocna!$AC$4:$AD$20,2,FALSE)),\"\")","v":""},null,{"$f":"+IFERROR(VLOOKUP(M697,pomocna3!$F$2:$G$7,2,FALSE),\"\")","v":""},null,{"$f":"+IFERROR(VLOOKUP(N697,pomocna2!A:B,2,FALSE),\"\")","v":""}]
[null,null,null,null,{"$f":"+IFERROR(VLOOKUP(K698,pomocna2!A:B,2,FALSE),\"\")","v":""},{"$f":"+IFERROR((VLOOKUP(L698,pomocna!$AC$4:$AD$20,2,FALSE)),\"\")","v":""},null,{"$f":"+IFERROR(VLOOKUP(M698,pomocna3!$F$2:$G$7,2,FALSE),\"\")","v":""},null,{"$f":"+IFERROR(VLOOKUP(N698,pomocna2!A:B,2,FALSE),\"\")","v":""}]
[null,null,null,null,{"$f":"+IFERROR(VLOOKUP(K699,pomocna2!A:B,2,FALSE),\"\")","v":""},{"$f":"+IFERROR((VLOOKUP(L699,pomocna!$AC$4:$AD$20,2,FALSE)),\"\")","v":""},null,{"$f":"+IFERROR(VLOOKUP(M699,pomocna3!$F$2:$G$7,2,FALSE),\"\")","v":""},null,{"$f":"+IFERROR(VLOOKUP(N699,pomocna2!A:B,2,FALSE),\"\")","v":""}]
[null,null,null,null,{"$f":"+IFERROR(VLOOKUP(K700,pomocna2!A:B,2,FALSE),\"\")","v":""},{"$f":"+IFERROR((VLOOKUP(L700,pomocna!$AC$4:$AD$20,2,FALSE)),\"\")","v":""},null,{"$f":"+IFERROR(VLOOKUP(M700,pomocna3!$F$2:$G$7,2,FALSE),\"\")","v":""},null,{"$f":"+IFERROR(VLOOKUP(N700,pomocna2!A:B,2,FALSE),\"\")","v":""}]
[null,null,null,null,{"$f":"+IFERROR(VLOOKUP(K701,pomocna2!A:B,2,FALSE),\"\")","v":""},{"$f":"+IFERROR((VLOOKUP(L701,pomocna!$AC$4:$AD$20,2,FALSE)),\"\")","v":""},null,{"$f":"+IFERROR(VLOOKUP(M701,pomocna3!$F$2:$G$7,2,FALSE),\"\")","v":""},null,{"$f":"+IFERROR(VLOOKUP(N701,pomocna2!A:B,2,FALSE),\"\")","v":""}]
[null,null,null,null,{"$f":"+IFERROR(VLOOKUP(K702,pomocna2!A:B,2,FALSE),\"\")","v":""},{"$f":"+IFERROR((VLOOKUP(L702,pomocna!$AC$4:$AD$20,2,FALSE)),\"\")","v":""},null,{"$f":"+IFERROR(VLOOKUP(M702,pomocna3!$F$2:$G$7,2,FALSE),\"\")","v":""},null,{"$f":"+IFERROR(VLOOKUP(N702,pomocna2!A:B,2,FALSE),\"\")","v":""}]
[null,null,null,null,{"$f":"+IFERROR(VLOOKUP(K703,pomocna2!A:B,2,FALSE),\"\")","v":""},{"$f":"+IFERROR((VLOOKUP(L703,pomocna!$AC$4:$AD$20,2,FALSE)),\"\")","v":""},null,{"$f":"+IFERROR(VLOOKUP(M703,pomocna3!$F$2:$G$7,2,FALSE),\"\")","v":""},null,{"$f":"+IFERROR(VLOOKUP(N703,pomocna2!A:B,2,FALSE),\"\")","v":""}]
[null,null,null,null,{"$f":"+IFERROR(VLOOKUP(K704,pomocna2!A:B,2,FALSE),\"\")","v":""},{"$f":"+IFERROR((VLOOKUP(L704,pomocna!$AC$4:$AD$20,2,FALSE)),\"\")","v":""},null,{"$f":"+IFERROR(VLOOKUP(M704,pomocna3!$F$2:$G$7,2,FALSE),\"\")","v":""},null,{"$f":"+IFERROR(VLOOKUP(N704,pomocna2!A:B,2,FALSE),\"\")","v":""}]
[null,null,null,null,{"$f":"+IFERROR(VLOOKUP(K705,pomocna2!A:B,2,FALSE),\"\")","v":""},{"$f":"+IFERROR((VLOOKUP(L705,pomocna!$AC$4:$AD$20,2,FALSE)),\"\")","v":""},null,{"$f":"+IFERROR(VLOOKUP(M705,pomocna3!$F$2:$G$7,2,FALSE),\"\")","v":""},null,{"$f":"+IFERROR(VLOOKUP(N705,pomocna2!A:B,2,FALSE),\"\")","v":""}]
[null,null,null,null,{"$f":"+IFERROR(VLOOKUP(K706,pomocna2!A:B,2,FALSE),\"\")","v":""},{"$f":"+IFERROR((VLOOKUP(L706,pomocna!$AC$4:$AD$20,2,FALSE)),\"\")","v":""},null,{"$f":"+IFERROR(VLOOKUP(M706,pomocna3!$F$2:$G$7,2,FALSE),\"\")","v":""},null,{"$f":"+IFERROR(VLOOKUP(N706,pomocna2!A:B,2,FALSE),\"\")","v":""}]
[null,null,null,null,{"$f":"+IFERROR(VLOOKUP(K707,pomocna2!A:B,2,FALSE),\"\")","v":""},{"$f":"+IFERROR((VLOOKUP(L707,pomocna!$AC$4:$AD$20,2,FALSE)),\"\")","v":""},null,{"$f":"+IFERROR(VLOOKUP(M707,pomocna3!$F$2:$G$7,2,FALSE),\"\")","v":""},null,{"$f":"+IFERROR(VLOOKUP(N707,pomocna2!A:B,2,FALSE),\"\")","v":""}]
[null,null,null,null,{"$f":"+IFERROR(VLOOKUP(K708,pomocna2!A:B,2,FALSE),\"\")","v":""},{"$f":"+IFERROR((VLOOKUP(L708,pomocna!$AC$4:$AD$20,2,FALSE)),\"\")","v":""},null,{"$f":"+IFERROR(VLOOKUP(M708,pomocna3!$F$2:$G$7,2,FALSE),\"\")","v":""},null,{"$f":"+IFERROR(VLOOKUP(N708,pomocna2!A:B,2,FALSE),\"\")","v":""}]
[null,null,null,null,{"$f":"+IFERROR(VLOOKUP(K709,pomocna2!A:B,2,FALSE),\"\")","v":""},{"$f":"+IFERROR((VLOOKUP(L709,pomocna!$AC$4:$AD$20,2,FALSE)),\"\")","v":""},null,{"$f":"+IFERROR(VLOOKUP(M709,pomocna3!$F$2:$G$7,2,FALSE),\"\")","v":""},null,{"$f":"+IFERROR(VLOOKUP(N709,pomocna2!A:B,2,FALSE),\"\")","v":""}]
[null,null,null,null,{"$f":"+IFERROR(VLOOKUP(K710,pomocna2!A:B,2,FALSE),\"\")","v":""},{"$f":"+IFERROR((VLOOKUP(L710,pomocna!$AC$4:$AD$20,2,FALSE)),\"\")","v":""},null,{"$f":"+IFERROR(VLOOKUP(M710,pomocna3!$F$2:$G$7,2,FALSE),\"\")","v":""},null,{"$f":"+IFERROR(VLOOKUP(N710,pomocna2!A:B,2,FALSE),\"\")","v":""}]
[null,null,null,null,{"$f":"+IFERROR(VLOOKUP(K711,pomocna2!A:B,2,FALSE),\"\")","v":""},{"$f":"+IFERROR((VLOOKUP(L711,pomocna!$AC$4:$AD$20,2,FALSE)),\"\")","v":""},null,{"$f":"+IFERROR(VLOOKUP(M711,pomocna3!$F$2:$G$7,2,FALSE),\"\")","v":""},null,{"$f":"+IFERROR(VLOOKUP(N711,pomocna2!A:B,2,FALSE),\"\")","v":""}]
[null,null,null,null,{"$f":"+IFERROR(VLOOKUP(K712,pomocna2!A:B,2,FALSE),\"\")","v":""},{"$f":"+IFERROR((VLOOKUP(L712,pomocna!$AC$4:$AD$20,2,FALSE)),\"\")","v":""},null,{"$f":"+IFERROR(VLOOKUP(M712,pomocna3!$F$2:$G$7,2,FALSE),\"\")","v":""},null,{"$f":"+IFERROR(VLOOKUP(N712,pomocna2!A:B,2,FALSE),\"\")","v":""}]
[null,null,null,null,{"$f":"+IFERROR(VLOOKUP(K713,pomocna2!A:B,2,FALSE),\"\")","v":""},{"$f":"+IFERROR((VLOOKUP(L713,pomocna!$AC$4:$AD$20,2,FALSE)),\"\")","v":""},null,{"$f":"+IFERROR(VLOOKUP(M713,pomocna3!$F$2:$G$7,2,FALSE),\"\")","v":""},null,{"$f":"+IFERROR(VLOOKUP(N713,pomocna2!A:B,2,FALSE),\"\")","v":""}]
[null,null,null,null,{"$f":"+IFERROR(VLOOKUP(K714,pomocna2!A:B,2,FALSE),\"\")","v":""},{"$f":"+IFERROR((VLOOKUP(L714,pomocna!$AC$4:$AD$20,2,FALSE)),\"\")","v":""},null,{"$f":"+IFERROR(VLOOKUP(M714,pomocna3!$F$2:$G$7,2,FALSE),\"\")","v":""},null,{"$f":"+IFERROR(VLOOKUP(N714,pomocna2!A:B,2,FALSE),\"\")","v":""}]
[null,null,null,null,{"$f":"+IFERROR(VLOOKUP(K715,pomocna2!A:B,2,FALSE),\"\")","v":""},{"$f":"+IFERROR((VLOOKUP(L715,pomocna!$AC$4:$AD$20,2,FALSE)),\"\")","v":""},null,{"$f":"+IFERROR(VLOOKUP(M715,pomocna3!$F$2:$G$7,2,FALSE),\"\")","v":""},null,{"$f":"+IFERROR(VLOOKUP(N715,pomocna2!A:B,2,FALSE),\"\")","v":""}]
[null,null,null,null,{"$f":"+IFERROR(VLOOKUP(K716,pomocna2!A:B,2,FALSE),\"\")","v":""},{"$f":"+IFERROR((VLOOKUP(L716,pomocna!$AC$4:$AD$20,2,FALSE)),\"\")","v":""},null,{"$f":"+IFERROR(VLOOKUP(M716,pomocna3!$F$2:$G$7,2,FALSE),\"\")","v":""},null,{"$f":"+IFERROR(VLOOKUP(N716,pomocna2!A:B,2,FALSE),\"\")","v":""}]
[null,null,null,null,{"$f":"+IFERROR(VLOOKUP(K717,pomocna2!A:B,2,FALSE),\"\")","v":""},{"$f":"+IFERROR((VLOOKUP(L717,pomocna!$AC$4:$AD$20,2,FALSE)),\"\")","v":""},null,{"$f":"+IFERROR(VLOOKUP(M717,pomocna3!$F$2:$G$7,2,FALSE),\"\")","v":""},null,{"$f":"+IFERROR(VLOOKUP(N717,pomocna2!A:B,2,FALSE),\"\")","v":""}]
[null,null,null,null,{"$f":"+IFERROR(VLOOKUP(K718,pomocna2!A:B,2,FALSE),\"\")","v":""},{"$f":"+IFERROR((VLOOKUP(L718,pomocna!$AC$4:$AD$20,2,FALSE)),\"\")","v":""},null,{"$f":"+IFERROR(VLOOKUP(M718,pomocna3!$F$2:$G$7,2,FALSE),\"\")","v":""},null,{"$f":"+IFERROR(VLOOKUP(N718,pomocna2!A:B,2,FALSE),\"\")","v":""}]
[null,null,null,null,{"$f":"+IFERROR(VLOOKUP(K719,pomocna2!A:B,2,FALSE),\"\")","v":""},{"$f":"+IFERROR((VLOOKUP(L719,pomocna!$AC$4:$AD$20,2,FALSE)),\"\")","v":""},null,{"$f":"+IFERROR(VLOOKUP(M719,pomocna3!$F$2:$G$7,2,FALSE),\"\")","v":""},null,{"$f":"+IFERROR(VLOOKUP(N719,pomocna2!A:B,2,FALSE),\"\")","v":""}]
[null,null,null,null,{"$f":"+IFERROR(VLOOKUP(K720,pomocna2!A:B,2,FALSE),\"\")","v":""},{"$f":"+IFERROR((VLOOKUP(L720,pomocna!$AC$4:$AD$20,2,FALSE)),\"\")","v":""},null,{"$f":"+IFERROR(VLOOKUP(M720,pomocna3!$F$2:$G$7,2,FALSE),\"\")","v":""},null,{"$f":"+IFERROR(VLOOKUP(N720,pomocna2!A:B,2,FALSE),\"\")","v":""}]
[null,null,null,null,{"$f":"+IFERROR(VLOOKUP(K721,pomocna2!A:B,2,FALSE),\"\")","v":""},{"$f":"+IFERROR((VLOOKUP(L721,pomocna!$AC$4:$AD$20,2,FALSE)),\"\")","v":""},null,{"$f":"+IFERROR(VLOOKUP(M721,pomocna3!$F$2:$G$7,2,FALSE),\"\")","v":""},null,{"$f":"+IFERROR(VLOOKUP(N721,pomocna2!A:B,2,FALSE),\"\")","v":""}]
[null,null,null,null,{"$f":"+IFERROR(VLOOKUP(K722,pomocna2!A:B,2,FALSE),\"\")","v":""},{"$f":"+IFERROR((VLOOKUP(L722,pomocna!$AC$4:$AD$20,2,FALSE)),\"\")","v":""},null,{"$f":"+IFERROR(VLOOKUP(M722,pomocna3!$F$2:$G$7,2,FALSE),\"\")","v":""},null,{"$f":"+IFERROR(VLOOKUP(N722,pomocna2!A:B,2,FALSE),\"\")","v":""}]
[null,null,null,null,{"$f":"+IFERROR(VLOOKUP(K723,pomocna2!A:B,2,FALSE),\"\")","v":""},{"$f":"+IFERROR((VLOOKUP(L723,pomocna!$AC$4:$AD$20,2,FALSE)),\"\")","v":""},null,{"$f":"+IFERROR(VLOOKUP(M723,pomocna3!$F$2:$G$7,2,FALSE),\"\")","v":""},null,{"$f":"+IFERROR(VLOOKUP(N723,pomocna2!A:B,2,FALSE),\"\")","v":""}]
[null,null,null,null,{"$f":"+IFERROR(VLOOKUP(K724,pomocna2!A:B,2,FALSE),\"\")","v":""},{"$f":"+IFERROR((VLOOKUP(L724,pomocna!$AC$4:$AD$20,2,FALSE)),\"\")","v":""},null,{"$f":"+IFERROR(VLOOKUP(M724,pomocna3!$F$2:$G$7,2,FALSE),\"\")","v":""},null,{"$f":"+IFERROR(VLOOKUP(N724,pomocna2!A:B,2,FALSE),\"\")","v":""}]
[null,null,null,null,{"$f":"+IFERROR(VLOOKUP(K725,pomocna2!A:B,2,FALSE),\"\")","v":""},{"$f":"+IFERROR((VLOOKUP(L725,pomocna!$AC$4:$AD$20,2,FALSE)),\"\")","v":""},null,{"$f":"+IFERROR(VLOOKUP(M725,pomocna3!$F$2:$G$7,2,FALSE),\"\")","v":""},null,{"$f":"+IFERROR(VLOOKUP(N725,pomocna2!A:B,2,FALSE),\"\")","v":""}]
[null,null,null,null,{"$f":"+IFERROR(VLOOKUP(K726,pomocna2!A:B,2,FALSE),\"\")","v":""},{"$f":"+IFERROR((VLOOKUP(L726,pomocna!$AC$4:$AD$20,2,FALSE)),\"\")","v":""},null,{"$f":"+IFERROR(VLOOKUP(M726,pomocna3!$F$2:$G$7,2,FALSE),\"\")","v":""},null,{"$f":"+IFERROR(VLOOKUP(N726,pomocna2!A:B,2,FALSE),\"\")","v":""}]
[null,null,null,null,{"$f":"+IFERROR(VLOOKUP(K727,pomocna2!A:B,2,FALSE),\"\")","v":""},{"$f":"+IFERROR((VLOOKUP(L727,pomocna!$AC$4:$AD$20,2,FALSE)),\"\")","v":""},null,{"$f":"+IFERROR(VLOOKUP(M727,pomocna3!$F$2:$G$7,2,FALSE),\"\")","v":""},null,{"$f":"+IFERROR(VLOOKUP(N727,pomocna2!A:B,2,FALSE),\"\")","v":""}]
[null,null,null,null,{"$f":"+IFERROR(VLOOKUP(K728,pomocna2!A:B,2,FALSE),\"\")","v":""},{"$f":"+IFERROR((VLOOKUP(L728,pomocna!$AC$4:$AD$20,2,FALSE)),\"\")","v":""},null,{"$f":"+IFERROR(VLOOKUP(M728,pomocna3!$F$2:$G$7,2,FALSE),\"\")","v":""},null,{"$f":"+IFERROR(VLOOKUP(N728,pomocna2!A:B,2,FALSE),\"\")","v":""}]
[null,null,null,null,{"$f":"+IFERROR(VLOOKUP(K729,pomocna2!A:B,2,FALSE),\"\")","v":""},{"$f":"+IFERROR((VLOOKUP(L729,pomocna!$AC$4:$AD$20,2,FALSE)),\"\")","v":""},null,{"$f":"+IFERROR(VLOOKUP(M729,pomocna3!$F$2:$G$7,2,FALSE),\"\")","v":""},null,{"$f":"+IFERROR(VLOOKUP(N729,pomocna2!A:B,2,FALSE),\"\")","v":""}]
[null,null,null,null,{"$f":"+IFERROR(VLOOKUP(K730,pomocna2!A:B,2,FALSE),\"\")","v":""},{"$f":"+IFERROR((VLOOKUP(L730,pomocna!$AC$4:$AD$20,2,FALSE)),\"\")","v":""},null,{"$f":"+IFERROR(VLOOKUP(M730,pomocna3!$F$2:$G$7,2,FALSE),\"\")","v":""},null,{"$f":"+IFERROR(VLOOKUP(N730,pomocna2!A:B,2,FALSE),\"\")","v":""}]
[null,null,null,null,{"$f":"+IFERROR(VLOOKUP(K731,pomocna2!A:B,2,FALSE),\"\")","v":""},{"$f":"+IFERROR((VLOOKUP(L731,pomocna!$AC$4:$AD$20,2,FALSE)),\"\")","v":""},null,{"$f":"+IFERROR(VLOOKUP(M731,pomocna3!$F$2:$G$7,2,FALSE),\"\")","v":""},null,{"$f":"+IFERROR(VLOOKUP(N731,pomocna2!A:B,2,FALSE),\"\")","v":""}]
[null,null,null,null,{"$f":"+IFERROR(VLOOKUP(K732,pomocna2!A:B,2,FALSE),\"\")","v":""},{"$f":"+IFERROR((VLOOKUP(L732,pomocna!$AC$4:$AD$20,2,FALSE)),\"\")","v":""},null,{"$f":"+IFERROR(VLOOKUP(M732,pomocna3!$F$2:$G$7,2,FALSE),\"\")","v":""},null,{"$f":"+IFERROR(VLOOKUP(N732,pomocna2!A:B,2,FALSE),\"\")","v":""}]
[null,null,null,null,{"$f":"+IFERROR(VLOOKUP(K733,pomocna2!A:B,2,FALSE),\"\")","v":""},{"$f":"+IFERROR((VLOOKUP(L733,pomocna!$AC$4:$AD$20,2,FALSE)),\"\")","v":""},null,{"$f":"+IFERROR(VLOOKUP(M733,pomocna3!$F$2:$G$7,2,FALSE),\"\")","v":""},null,{"$f":"+IFERROR(VLOOKUP(N733,pomocna2!A:B,2,FALSE),\"\")","v":""}]
[null,null,null,null,{"$f":"+IFERROR(VLOOKUP(K734,pomocna2!A:B,2,FALSE),\"\")","v":""},{"$f":"+IFERROR((VLOOKUP(L734,pomocna!$AC$4:$AD$20,2,FALSE)),\"\")","v":""},null,{"$f":"+IFERROR(VLOOKUP(M734,pomocna3!$F$2:$G$7,2,FALSE),\"\")","v":""},null,{"$f":"+IFERROR(VLOOKUP(N734,pomocna2!A:B,2,FALSE),\"\")","v":""}]
[null,null,null,null,{"$f":"+IFERROR(VLOOKUP(K735,pomocna2!A:B,2,FALSE),\"\")","v":""},{"$f":"+IFERROR((VLOOKUP(L735,pomocna!$AC$4:$AD$20,2,FALSE)),\"\")","v":""},null,{"$f":"+IFERROR(VLOOKUP(M735,pomocna3!$F$2:$G$7,2,FALSE),\"\")","v":""},null,{"$f":"+IFERROR(VLOOKUP(N735,pomocna2!A:B,2,FALSE),\"\")","v":""}]
[null,null,null,null,{"$f":"+IFERROR(VLOOKUP(K736,pomocna2!A:B,2,FALSE),\"\")","v":""},{"$f":"+IFERROR((VLOOKUP(L736,pomocna!$AC$4:$AD$20,2,FALSE)),\"\")","v":""},null,{"$f":"+IFERROR(VLOOKUP(M736,pomocna3!$F$2:$G$7,2,FALSE),\"\")","v":""},null,{"$f":"+IFERROR(VLOOKUP(N736,pomocna2!A:B,2,FALSE),\"\")","v":""}]
[null,null,null,null,{"$f":"+IFERROR(VLOOKUP(K737,pomocna2!A:B,2,FALSE),\"\")","v":""},{"$f":"+IFERROR((VLOOKUP(L737,pomocna!$AC$4:$AD$20,2,FALSE)),\"\")","v":""},null,{"$f":"+IFERROR(VLOOKUP(M737,pomocna3!$F$2:$G$7,2,FALSE),\"\")","v":""},null,{"$f":"+IFERROR(VLOOKUP(N737,pomocna2!A:B,2,FALSE),\"\")","v":""}]
[null,null,null,null,{"$f":"+IFERROR(VLOOKUP(K738,pomocna2!A:B,2,FALSE),\"\")","v":""},{"$f":"+IFERROR((VLOOKUP(L738,pomocna!$AC$4:$AD$20,2,FALSE)),\"\")","v":""},null,{"$f":"+IFERROR(VLOOKUP(M738,pomocna3!$F$2:$G$7,2,FALSE),\"\")","v":""},null,{"$f":"+IFERROR(VLOOKUP(N738,pomocna2!A:B,2,FALSE),\"\")","v":""}]
[null,null,null,null,{"$f":"+IFERROR(VLOOKUP(K739,pomocna2!A:B,2,FALSE),\"\")","v":""},{"$f":"+IFERROR((VLOOKUP(L739,pomocna!$AC$4:$AD$20,2,FALSE)),\"\")","v":""},null,{"$f":"+IFERROR(VLOOKUP(M739,pomocna3!$F$2:$G$7,2,FALSE),\"\")","v":""},null,{"$f":"+IFERROR(VLOOKUP(N739,pomocna2!A:B,2,FALSE),\"\")","v":""}]
[null,null,null,null,{"$f":"+IFERROR(VLOOKUP(K740,pomocna2!A:B,2,FALSE),\"\")","v":""},{"$f":"+IFERROR((VLOOKUP(L740,pomocna!$AC$4:$AD$20,2,FALSE)),\"\")","v":""},null,{"$f":"+IFERROR(VLOOKUP(M740,pomocna3!$F$2:$G$7,2,FALSE),\"\")","v":""},null,{"$f":"+IFERROR(VLOOKUP(N740,pomocna2!A:B,2,FALSE),\"\")","v":""}]
[null,null,null,null,{"$f":"+IFERROR(VLOOKUP(K741,pomocna2!A:B,2,FALSE),\"\")","v":""},{"$f":"+IFERROR((VLOOKUP(L741,pomocna!$AC$4:$AD$20,2,FALSE)),\"\")","v":""},null,{"$f":"+IFERROR(VLOOKUP(M741,pomocna3!$F$2:$G$7,2,FALSE),\"\")","v":""},null,{"$f":"+IFERROR(VLOOKUP(N741,pomocna2!A:B,2,FALSE),\"\")","v":""}]
[null,null,null,null,{"$f":"+IFERROR(VLOOKUP(K742,pomocna2!A:B,2,FALSE),\"\")","v":""},{"$f":"+IFERROR((VLOOKUP(L742,pomocna!$AC$4:$AD$20,2,FALSE)),\"\")","v":""},null,{"$f":"+IFERROR(VLOOKUP(M742,pomocna3!$F$2:$G$7,2,FALSE),\"\")","v":""},null,{"$f":"+IFERROR(VLOOKUP(N742,pomocna2!A:B,2,FALSE),\"\")","v":""}]
[null,null,null,null,{"$f":"+IFERROR(VLOOKUP(K743,pomocna2!A:B,2,FALSE),\"\")","v":""},{"$f":"+IFERROR((VLOOKUP(L743,pomocna!$AC$4:$AD$20,2,FALSE)),\"\")","v":""},null,{"$f":"+IFERROR(VLOOKUP(M743,pomocna3!$F$2:$G$7,2,FALSE),\"\")","v":""},null,{"$f":"+IFERROR(VLOOKUP(N743,pomocna2!A:B,2,FALSE),\"\")","v":""}]
[null,null,null,null,{"$f":"+IFERROR(VLOOKUP(K744,pomocna2!A:B,2,FALSE),\"\")","v":""},{"$f":"+IFERROR((VLOOKUP(L744,pomocna!$AC$4:$AD$20,2,FALSE)),\"\")","v":""},null,{"$f":"+IFERROR(VLOOKUP(M744,pomocna3!$F$2:$G$7,2,FALSE),\"\")","v":""},null,{"$f":"+IFERROR(VLOOKUP(N744,pomocna2!A:B,2,FALSE),\"\")","v":""}]
[null,null,null,null,{"$f":"+IFERROR(VLOOKUP(K745,pomocna2!A:B,2,FALSE),\"\")","v":""},{"$f":"+IFERROR((VLOOKUP(L745,pomocna!$AC$4:$AD$20,2,FALSE)),\"\")","v":""},null,{"$f":"+IFERROR(VLOOKUP(M745,pomocna3!$F$2:$G$7,2,FALSE),\"\")","v":""},null,{"$f":"+IFERROR(VLOOKUP(N745,pomocna2!A:B,2,FALSE),\"\")","v":""}]
[null,null,null,null,{"$f":"+IFERROR(VLOOKUP(K746,pomocna2!A:B,2,FALSE),\"\")","v":""},{"$f":"+IFERROR((VLOOKUP(L746,pomocna!$AC$4:$AD$20,2,FALSE)),\"\")","v":""},null,{"$f":"+IFERROR(VLOOKUP(M746,pomocna3!$F$2:$G$7,2,FALSE),\"\")","v":""},null,{"$f":"+IFERROR(VLOOKUP(N746,pomocna2!A:B,2,FALSE),\"\")","v":""}]
[null,null,null,null,{"$f":"+IFERROR(VLOOKUP(K747,pomocna2!A:B,2,FALSE),\"\")","v":""},{"$f":"+IFERROR((VLOOKUP(L747,pomocna!$AC$4:$AD$20,2,FALSE)),\"\")","v":""},null,{"$f":"+IFERROR(VLOOKUP(M747,pomocna3!$F$2:$G$7,2,FALSE),\"\")","v":""},null,{"$f":"+IFERROR(VLOOKUP(N747,pomocna2!A:B,2,FALSE),\"\")","v":""}]
[null,null,null,null,{"$f":"+IFERROR(VLOOKUP(K748,pomocna2!A:B,2,FALSE),\"\")","v":""},{"$f":"+IFERROR((VLOOKUP(L748,pomocna!$AC$4:$AD$20,2,FALSE)),\"\")","v":""},null,{"$f":"+IFERROR(VLOOKUP(M748,pomocna3!$F$2:$G$7,2,FALSE),\"\")","v":""},null,{"$f":"+IFERROR(VLOOKUP(N748,pomocna2!A:B,2,FALSE),\"\")","v":""}]
[null,null,null,null,{"$f":"+IFERROR(VLOOKUP(K749,pomocna2!A:B,2,FALSE),\"\")","v":""},{"$f":"+IFERROR((VLOOKUP(L749,pomocna!$AC$4:$AD$20,2,FALSE)),\"\")","v":""},null,{"$f":"+IFERROR(VLOOKUP(M749,pomocna3!$F$2:$G$7,2,FALSE),\"\")","v":""},null,{"$f":"+IFERROR(VLOOKUP(N749,pomocna2!A:B,2,FALSE),\"\")","v":""}]
[null,null,null,null,{"$f":"+IFERROR(VLOOKUP(K750,pomocna2!A:B,2,FALSE),\"\")","v":""},{"$f":"+IFERROR((VLOOKUP(L750,pomocna!$AC$4:$AD$20,2,FALSE)),\"\")","v":""},null,{"$f":"+IFERROR(VLOOKUP(M750,pomocna3!$F$2:$G$7,2,FALSE),\"\")","v":""},null,{"$f":"+IFERROR(VLOOKUP(N750,pomocna2!A:B,2,FALSE),\"\")","v":""}]
[null,null,null,null,{"$f":"+IFERROR(VLOOKUP(K751,pomocna2!A:B,2,FALSE),\"\")","v":""},{"$f":"+IFERROR((VLOOKUP(L751,pomocna!$AC$4:$AD$20,2,FALSE)),\"\")","v":""},null,{"$f":"+IFERROR(VLOOKUP(M751,pomocna3!$F$2:$G$7,2,FALSE),\"\")","v":""},null,{"$f":"+IFERROR(VLOOKUP(N751,pomocna2!A:B,2,FALSE),\"\")","v":""}]
[null,null,null,null,{"$f":"+IFERROR(VLOOKUP(K752,pomocna2!A:B,2,FALSE),\"\")","v":""},{"$f":"+IFERROR((VLOOKUP(L752,pomocna!$AC$4:$AD$20,2,FALSE)),\"\")","v":""},null,{"$f":"+IFERROR(VLOOKUP(M752,pomocna3!$F$2:$G$7,2,FALSE),\"\")","v":""},null,{"$f":"+IFERROR(VLOOKUP(N752,pomocna2!A:B,2,FALSE),\"\")","v":""}]
[null,null,null,null,{"$f":"+IFERROR(VLOOKUP(K753,pomocna2!A:B,2,FALSE),\"\")","v":""},{"$f":"+IFERROR((VLOOKUP(L753,pomocna!$AC$4:$AD$20,2,FALSE)),\"\")","v":""},null,{"$f":"+IFERROR(VLOOKUP(M753,pomocna3!$F$2:$G$7,2,FALSE),\"\")","v":""},null,{"$f":"+IFERROR(VLOOKUP(N753,pomocna2!A:B,2,FALSE),\"\")","v":""}]
[null,null,null,null,{"$f":"+IFERROR(VLOOKUP(K754,pomocna2!A:B,2,FALSE),\"\")","v":""},{"$f":"+IFERROR((VLOOKUP(L754,pomocna!$AC$4:$AD$20,2,FALSE)),\"\")","v":""},null,{"$f":"+IFERROR(VLOOKUP(M754,pomocna3!$F$2:$G$7,2,FALSE),\"\")","v":""},null,{"$f":"+IFERROR(VLOOKUP(N754,pomocna2!A:B,2,FALSE),\"\")","v":""}]
[null,null,null,null,{"$f":"+IFERROR(VLOOKUP(K755,pomocna2!A:B,2,FALSE),\"\")","v":""},{"$f":"+IFERROR((VLOOKUP(L755,pomocna!$AC$4:$AD$20,2,FALSE)),\"\")","v":""},null,{"$f":"+IFERROR(VLOOKUP(M755,pomocna3!$F$2:$G$7,2,FALSE),\"\")","v":""},null,{"$f":"+IFERROR(VLOOKUP(N755,pomocna2!A:B,2,FALSE),\"\")","v":""}]
[null,null,null,null,{"$f":"+IFERROR(VLOOKUP(K756,pomocna2!A:B,2,FALSE),\"\")","v":""},{"$f":"+IFERROR((VLOOKUP(L756,pomocna!$AC$4:$AD$20,2,FALSE)),\"\")","v":""},null,{"$f":"+IFERROR(VLOOKUP(M756,pomocna3!$F$2:$G$7,2,FALSE),\"\")","v":""},null,{"$f":"+IFERROR(VLOOKUP(N756,pomocna2!A:B,2,FALSE),\"\")","v":""}]
[null,null,null,null,{"$f":"+IFERROR(VLOOKUP(K757,pomocna2!A:B,2,FALSE),\"\")","v":""},{"$f":"+IFERROR((VLOOKUP(L757,pomocna!$AC$4:$AD$20,2,FALSE)),\"\")","v":""},null,{"$f":"+IFERROR(VLOOKUP(M757,pomocna3!$F$2:$G$7,2,FALSE),\"\")","v":""},null,{"$f":"+IFERROR(VLOOKUP(N757,pomocna2!A:B,2,FALSE),\"\")","v":""}]
[null,null,null,null,{"$f":"+IFERROR(VLOOKUP(K758,pomocna2!A:B,2,FALSE),\"\")","v":""},{"$f":"+IFERROR((VLOOKUP(L758,pomocna!$AC$4:$AD$20,2,FALSE)),\"\")","v":""},null,{"$f":"+IFERROR(VLOOKUP(M758,pomocna3!$F$2:$G$7,2,FALSE),\"\")","v":""},null,{"$f":"+IFERROR(VLOOKUP(N758,pomocna2!A:B,2,FALSE),\"\")","v":""}]
[null,null,null,null,{"$f":"+IFERROR(VLOOKUP(K759,pomocna2!A:B,2,FALSE),\"\")","v":""},{"$f":"+IFERROR((VLOOKUP(L759,pomocna!$AC$4:$AD$20,2,FALSE)),\"\")","v":""},null,{"$f":"+IFERROR(VLOOKUP(M759,pomocna3!$F$2:$G$7,2,FALSE),\"\")","v":""},null,{"$f":"+IFERROR(VLOOKUP(N759,pomocna2!A:B,2,FALSE),\"\")","v":""}]
[null,null,null,null,{"$f":"+IFERROR(VLOOKUP(K760,pomocna2!A:B,2,FALSE),\"\")","v":""},{"$f":"+IFERROR((VLOOKUP(L760,pomocna!$AC$4:$AD$20,2,FALSE)),\"\")","v":""},null,{"$f":"+IFERROR(VLOOKUP(M760,pomocna3!$F$2:$G$7,2,FALSE),\"\")","v":""},null,{"$f":"+IFERROR(VLOOKUP(N760,pomocna2!A:B,2,FALSE),\"\")","v":""}]
[null,null,null,null,{"$f":"+IFERROR(VLOOKUP(K761,pomocna2!A:B,2,FALSE),\"\")","v":""},{"$f":"+IFERROR((VLOOKUP(L761,pomocna!$AC$4:$AD$20,2,FALSE)),\"\")","v":""},null,{"$f":"+IFERROR(VLOOKUP(M761,pomocna3!$F$2:$G$7,2,FALSE),\"\")","v":""},null,{"$f":"+IFERROR(VLOOKUP(N761,pomocna2!A:B,2,FALSE),\"\")","v":""}]
[null,null,null,null,{"$f":"+IFERROR(VLOOKUP(K762,pomocna2!A:B,2,FALSE),\"\")","v":""},{"$f":"+IFERROR((VLOOKUP(L762,pomocna!$AC$4:$AD$20,2,FALSE)),\"\")","v":""},null,{"$f":"+IFERROR(VLOOKUP(M762,pomocna3!$F$2:$G$7,2,FALSE),\"\")","v":""},null,{"$f":"+IFERROR(VLOOKUP(N762,pomocna2!A:B,2,FALSE),\"\")","v":""}]
[null,null,null,null,{"$f":"+IFERROR(VLOOKUP(K763,pomocna2!A:B,2,FALSE),\"\")","v":""},{"$f":"+IFERROR((VLOOKUP(L763,pomocna!$AC$4:$AD$20,2,FALSE)),\"\")","v":""},null,{"$f":"+IFERROR(VLOOKUP(M763,pomocna3!$F$2:$G$7,2,FALSE),\"\")","v":""},null,{"$f":"+IFERROR(VLOOKUP(N763,pomocna2!A:B,2,FALSE),\"\")","v":""}]
[null,null,null,null,{"$f":"+IFERROR(VLOOKUP(K764,pomocna2!A:B,2,FALSE),\"\")","v":""},{"$f":"+IFERROR((VLOOKUP(L764,pomocna!$AC$4:$AD$20,2,FALSE)),\"\")","v":""},null,{"$f":"+IFERROR(VLOOKUP(M764,pomocna3!$F$2:$G$7,2,FALSE),\"\")","v":""},null,{"$f":"+IFERROR(VLOOKUP(N764,pomocna2!A:B,2,FALSE),\"\")","v":""}]
[null,null,null,null,{"$f":"+IFERROR(VLOOKUP(K765,pomocna2!A:B,2,FALSE),\"\")","v":""},{"$f":"+IFERROR((VLOOKUP(L765,pomocna!$AC$4:$AD$20,2,FALSE)),\"\")","v":""},null,{"$f":"+IFERROR(VLOOKUP(M765,pomocna3!$F$2:$G$7,2,FALSE),\"\")","v":""},null,{"$f":"+IFERROR(VLOOKUP(N765,pomocna2!A:B,2,FALSE),\"\")","v":""}]
[null,null,null,null,{"$f":"+IFERROR(VLOOKUP(K766,pomocna2!A:B,2,FALSE),\"\")","v":""},{"$f":"+IFERROR((VLOOKUP(L766,pomocna!$AC$4:$AD$20,2,FALSE)),\"\")","v":""},null,{"$f":"+IFERROR(VLOOKUP(M766,pomocna3!$F$2:$G$7,2,FALSE),\"\")","v":""},null,{"$f":"+IFERROR(VLOOKUP(N766,pomocna2!A:B,2,FALSE),\"\")","v":""}]
[null,null,null,null,{"$f":"+IFERROR(VLOOKUP(K767,pomocna2!A:B,2,FALSE),\"\")","v":""},{"$f":"+IFERROR((VLOOKUP(L767,pomocna!$AC$4:$AD$20,2,FALSE)),\"\")","v":""},null,{"$f":"+IFERROR(VLOOKUP(M767,pomocna3!$F$2:$G$7,2,FALSE),\"\")","v":""},null,{"$f":"+IFERROR(VLOOKUP(N767,pomocna2!A:B,2,FALSE),\"\")","v":""}]
[null,null,null,null,{"$f":"+IFERROR(VLOOKUP(K768,pomocna2!A:B,2,FALSE),\"\")","v":""},{"$f":"+IFERROR((VLOOKUP(L768,pomocna!$AC$4:$AD$20,2,FALSE)),\"\")","v":""},null,{"$f":"+IFERROR(VLOOKUP(M768,pomocna3!$F$2:$G$7,2,FALSE),\"\")","v":""},null,{"$f":"+IFERROR(VLOOKUP(N768,pomocna2!A:B,2,FALSE),\"\")","v":""}]
[null,null,null,null,{"$f":"+IFERROR(VLOOKUP(K769,pomocna2!A:B,2,FALSE),\"\")","v":""},{"$f":"+IFERROR((VLOOKUP(L769,pomocna!$AC$4:$AD$20,2,FALSE)),\"\")","v":""},null,{"$f":"+IFERROR(VLOOKUP(M769,pomocna3!$F$2:$G$7,2,FALSE),\"\")","v":""},null,{"$f":"+IFERROR(VLOOKUP(N769,pomocna2!A:B,2,FALSE),\"\")","v":""}]
[null,null,null,null,{"$f":"+IFERROR(VLOOKUP(K770,pomocna2!A:B,2,FALSE),\"\")","v":""},{"$f":"+IFERROR((VLOOKUP(L770,pomocna!$AC$4:$AD$20,2,FALSE)),\"\")","v":""},null,{"$f":"+IFERROR(VLOOKUP(M770,pomocna3!$F$2:$G$7,2,FALSE),\"\")","v":""},null,{"$f":"+IFERROR(VLOOKUP(N770,pomocna2!A:B,2,FALSE),\"\")","v":""}]
[null,null,null,null,{"$f":"+IFERROR(VLOOKUP(K771,pomocna2!A:B,2,FALSE),\"\")","v":""},{"$f":"+IFERROR((VLOOKUP(L771,pomocna!$AC$4:$AD$20,2,FALSE)),\"\")","v":""},null,{"$f":"+IFERROR(VLOOKUP(M771,pomocna3!$F$2:$G$7,2,FALSE),\"\")","v":""},null,{"$f":"+IFERROR(VLOOKUP(N771,pomocna2!A:B,2,FALSE),\"\")","v":""}]
[null,null,null,null,{"$f":"+IFERROR(VLOOKUP(K772,pomocna2!A:B,2,FALSE),\"\")","v":""},{"$f":"+IFERROR((VLOOKUP(L772,pomocna!$AC$4:$AD$20,2,FALSE)),\"\")","v":""},null,{"$f":"+IFERROR(VLOOKUP(M772,pomocna3!$F$2:$G$7,2,FALSE),\"\")","v":""},null,{"$f":"+IFERROR(VLOOKUP(N772,pomocna2!A:B,2,FALSE),\"\")","v":""}]
[null,null,null,null,{"$f":"+IFERROR(VLOOKUP(K773,pomocna2!A:B,2,FALSE),\"\")","v":""},{"$f":"+IFERROR((VLOOKUP(L773,pomocna!$AC$4:$AD$20,2,FALSE)),\"\")","v":""},null,{"$f":"+IFERROR(VLOOKUP(M773,pomocna3!$F$2:$G$7,2,FALSE),\"\")","v":""},null,{"$f":"+IFERROR(VLOOKUP(N773,pomocna2!A:B,2,FALSE),\"\")","v":""}]
[null,null,null,null,{"$f":"+IFERROR(VLOOKUP(K774,pomocna2!A:B,2,FALSE),\"\")","v":""},{"$f":"+IFERROR((VLOOKUP(L774,pomocna!$AC$4:$AD$20,2,FALSE)),\"\")","v":""},null,{"$f":"+IFERROR(VLOOKUP(M774,pomocna3!$F$2:$G$7,2,FALSE),\"\")","v":""},null,{"$f":"+IFERROR(VLOOKUP(N774,pomocna2!A:B,2,FALSE),\"\")","v":""}]
[null,null,null,null,{"$f":"+IFERROR(VLOOKUP(K775,pomocna2!A:B,2,FALSE),\"\")","v":""},{"$f":"+IFERROR((VLOOKUP(L775,pomocna!$AC$4:$AD$20,2,FALSE)),\"\")","v":""},null,{"$f":"+IFERROR(VLOOKUP(M775,pomocna3!$F$2:$G$7,2,FALSE),\"\")","v":""},null,{"$f":"+IFERROR(VLOOKUP(N775,pomocna2!A:B,2,FALSE),\"\")","v":""}]
[null,null,null,null,{"$f":"+IFERROR(VLOOKUP(K776,pomocna2!A:B,2,FALSE),\"\")","v":""},{"$f":"+IFERROR((VLOOKUP(L776,pomocna!$AC$4:$AD$20,2,FALSE)),\"\")","v":""},null,{"$f":"+IFERROR(VLOOKUP(M776,pomocna3!$F$2:$G$7,2,FALSE),\"\")","v":""},null,{"$f":"+IFERROR(VLOOKUP(N776,pomocna2!A:B,2,FALSE),\"\")","v":""}]
[null,null,null,null,{"$f":"+IFERROR(VLOOKUP(K777,pomocna2!A:B,2,FALSE),\"\")","v":""},{"$f":"+IFERROR((VLOOKUP(L777,pomocna!$AC$4:$AD$20,2,FALSE)),\"\")","v":""},null,{"$f":"+IFERROR(VLOOKUP(M777,pomocna3!$F$2:$G$7,2,FALSE),\"\")","v":""},null,{"$f":"+IFERROR(VLOOKUP(N777,pomocna2!A:B,2,FALSE),\"\")","v":""}]
[null,null,null,null,{"$f":"+IFERROR(VLOOKUP(K778,pomocna2!A:B,2,FALSE),\"\")","v":""},{"$f":"+IFERROR((VLOOKUP(L778,pomocna!$AC$4:$AD$20,2,FALSE)),\"\")","v":""},null,{"$f":"+IFERROR(VLOOKUP(M778,pomocna3!$F$2:$G$7,2,FALSE),\"\")","v":""},null,{"$f":"+IFERROR(VLOOKUP(N778,pomocna2!A:B,2,FALSE),\"\")","v":""}]
[null,null,null,null,{"$f":"+IFERROR(VLOOKUP(K779,pomocna2!A:B,2,FALSE),\"\")","v":""},{"$f":"+IFERROR((VLOOKUP(L779,pomocna!$AC$4:$AD$20,2,FALSE)),\"\")","v":""},null,{"$f":"+IFERROR(VLOOKUP(M779,pomocna3!$F$2:$G$7,2,FALSE),\"\")","v":""},null,{"$f":"+IFERROR(VLOOKUP(N779,pomocna2!A:B,2,FALSE),\"\")","v":""}]
[null,null,null,null,{"$f":"+IFERROR(VLOOKUP(K780,pomocna2!A:B,2,FALSE),\"\")","v":""},{"$f":"+IFERROR((VLOOKUP(L780,pomocna!$AC$4:$AD$20,2,FALSE)),\"\")","v":""},null,{"$f":"+IFERROR(VLOOKUP(M780,pomocna3!$F$2:$G$7,2,FALSE),\"\")","v":""},null,{"$f":"+IFERROR(VLOOKUP(N780,pomocna2!A:B,2,FALSE),\"\")","v":""}]
[null,null,null,null,{"$f":"+IFERROR(VLOOKUP(K781,pomocna2!A:B,2,FALSE),\"\")","v":""},{"$f":"+IFERROR((VLOOKUP(L781,pomocna!$AC$4:$AD$20,2,FALSE)),\"\")","v":""},null,{"$f":"+IFERROR(VLOOKUP(M781,pomocna3!$F$2:$G$7,2,FALSE),\"\")","v":""},null,{"$f":"+IFERROR(VLOOKUP(N781,pomocna2!A:B,2,FALSE),\"\")","v":""}]
[null,null,null,null,{"$f":"+IFERROR(VLOOKUP(K782,pomocna2!A:B,2,FALSE),\"\")","v":""},{"$f":"+IFERROR((VLOOKUP(L782,pomocna!$AC$4:$AD$20,2,FALSE)),\"\")","v":""},null,{"$f":"+IFERROR(VLOOKUP(M782,pomocna3!$F$2:$G$7,2,FALSE),\"\")","v":""},null,{"$f":"+IFERROR(VLOOKUP(N782,pomocna2!A:B,2,FALSE),\"\")","v":""}]
[null,null,null,null,{"$f":"+IFERROR(VLOOKUP(K783,pomocna2!A:B,2,FALSE),\"\")","v":""},{"$f":"+IFERROR((VLOOKUP(L783,pomocna!$AC$4:$AD$20,2,FALSE)),\"\")","v":""},null,{"$f":"+IFERROR(VLOOKUP(M783,pomocna3!$F$2:$G$7,2,FALSE),\"\")","v":""},null,{"$f":"+IFERROR(VLOOKUP(N783,pomocna2!A:B,2,FALSE),\"\")","v":""}]
[null,null,null,null,{"$f":"+IFERROR(VLOOKUP(K784,pomocna2!A:B,2,FALSE),\"\")","v":""},{"$f":"+IFERROR((VLOOKUP(L784,pomocna!$AC$4:$AD$20,2,FALSE)),\"\")","v":""},null,{"$f":"+IFERROR(VLOOKUP(M784,pomocna3!$F$2:$G$7,2,FALSE),\"\")","v":""},null,{"$f":"+IFERROR(VLOOKUP(N784,pomocna2!A:B,2,FALSE),\"\")","v":""}]
[null,null,null,null,{"$f":"+IFERROR(VLOOKUP(K785,pomocna2!A:B,2,FALSE),\"\")","v":""},{"$f":"+IFERROR((VLOOKUP(L785,pomocna!$AC$4:$AD$20,2,FALSE)),\"\")","v":""},null,{"$f":"+IFERROR(VLOOKUP(M785,pomocna3!$F$2:$G$7,2,FALSE),\"\")","v":""},null,{"$f":"+IFERROR(VLOOKUP(N785,pomocna2!A:B,2,FALSE),\"\")","v":""}]
[null,null,null,null,{"$f":"+IFERROR(VLOOKUP(K786,pomocna2!A:B,2,FALSE),\"\")","v":""},{"$f":"+IFERROR((VLOOKUP(L786,pomocna!$AC$4:$AD$20,2,FALSE)),\"\")","v":""},null,{"$f":"+IFERROR(VLOOKUP(M786,pomocna3!$F$2:$G$7,2,FALSE),\"\")","v":""},null,{"$f":"+IFERROR(VLOOKUP(N786,pomocna2!A:B,2,FALSE),\"\")","v":""}]
[null,null,null,null,{"$f":"+IFERROR(VLOOKUP(K787,pomocna2!A:B,2,FALSE),\"\")","v":""},{"$f":"+IFERROR((VLOOKUP(L787,pomocna!$AC$4:$AD$20,2,FALSE)),\"\")","v":""},null,{"$f":"+IFERROR(VLOOKUP(M787,pomocna3!$F$2:$G$7,2,FALSE),\"\")","v":""},null,{"$f":"+IFERROR(VLOOKUP(N787,pomocna2!A:B,2,FALSE),\"\")","v":""}]
[null,null,null,null,{"$f":"+IFERROR(VLOOKUP(K788,pomocna2!A:B,2,FALSE),\"\")","v":""},{"$f":"+IFERROR((VLOOKUP(L788,pomocna!$AC$4:$AD$20,2,FALSE)),\"\")","v":""},null,{"$f":"+IFERROR(VLOOKUP(M788,pomocna3!$F$2:$G$7,2,FALSE),\"\")","v":""},null,{"$f":"+IFERROR(VLOOKUP(N788,pomocna2!A:B,2,FALSE),\"\")","v":""}]
[null,null,null,null,{"$f":"+IFERROR(VLOOKUP(K789,pomocna2!A:B,2,FALSE),\"\")","v":""},{"$f":"+IFERROR((VLOOKUP(L789,pomocna!$AC$4:$AD$20,2,FALSE)),\"\")","v":""},null,{"$f":"+IFERROR(VLOOKUP(M789,pomocna3!$F$2:$G$7,2,FALSE),\"\")","v":""},null,{"$f":"+IFERROR(VLOOKUP(N789,pomocna2!A:B,2,FALSE),\"\")","v":""}]
[null,null,null,null,{"$f":"+IFERROR(VLOOKUP(K790,pomocna2!A:B,2,FALSE),\"\")","v":""},{"$f":"+IFERROR((VLOOKUP(L790,pomocna!$AC$4:$AD$20,2,FALSE)),\"\")","v":""},null,{"$f":"+IFERROR(VLOOKUP(M790,pomocna3!$F$2:$G$7,2,FALSE),\"\")","v":""},null,{"$f":"+IFERROR(VLOOKUP(N790,pomocna2!A:B,2,FALSE),\"\")","v":""}]
[null,null,null,null,{"$f":"+IFERROR(VLOOKUP(K791,pomocna2!A:B,2,FALSE),\"\")","v":""},{"$f":"+IFERROR((VLOOKUP(L791,pomocna!$AC$4:$AD$20,2,FALSE)),\"\")","v":""},null,{"$f":"+IFERROR(VLOOKUP(M791,pomocna3!$F$2:$G$7,2,FALSE),\"\")","v":""},null,{"$f":"+IFERROR(VLOOKUP(N791,pomocna2!A:B,2,FALSE),\"\")","v":""}]
[null,null,null,null,{"$f":"+IFERROR(VLOOKUP(K792,pomocna2!A:B,2,FALSE),\"\")","v":""},{"$f":"+IFERROR((VLOOKUP(L792,pomocna!$AC$4:$AD$20,2,FALSE)),\"\")","v":""},null,{"$f":"+IFERROR(VLOOKUP(M792,pomocna3!$F$2:$G$7,2,FALSE),\"\")","v":""},null,{"$f":"+IFERROR(VLOOKUP(N792,pomocna2!A:B,2,FALSE),\"\")","v":""}]
[null,null,null,null,{"$f":"+IFERROR(VLOOKUP(K793,pomocna2!A:B,2,FALSE),\"\")","v":""},{"$f":"+IFERROR((VLOOKUP(L793,pomocna!$AC$4:$AD$20,2,FALSE)),\"\")","v":""},null,{"$f":"+IFERROR(VLOOKUP(M793,pomocna3!$F$2:$G$7,2,FALSE),\"\")","v":""},null,{"$f":"+IFERROR(VLOOKUP(N793,pomocna2!A:B,2,FALSE),\"\")","v":""}]
[null,null,null,null,{"$f":"+IFERROR(VLOOKUP(K794,pomocna2!A:B,2,FALSE),\"\")","v":""},{"$f":"+IFERROR((VLOOKUP(L794,pomocna!$AC$4:$AD$20,2,FALSE)),\"\")","v":""},null,{"$f":"+IFERROR(VLOOKUP(M794,pomocna3!$F$2:$G$7,2,FALSE),\"\")","v":""},null,{"$f":"+IFERROR(VLOOKUP(N794,pomocna2!A:B,2,FALSE),\"\")","v":""}]
[null,null,null,null,{"$f":"+IFERROR(VLOOKUP(K795,pomocna2!A:B,2,FALSE),\"\")","v":""},{"$f":"+IFERROR((VLOOKUP(L795,pomocna!$AC$4:$AD$20,2,FALSE)),\"\")","v":""},null,{"$f":"+IFERROR(VLOOKUP(M795,pomocna3!$F$2:$G$7,2,FALSE),\"\")","v":""},null,{"$f":"+IFERROR(VLOOKUP(N795,pomocna2!A:B,2,FALSE),\"\")","v":""}]
[null,null,null,null,{"$f":"+IFERROR(VLOOKUP(K796,pomocna2!A:B,2,FALSE),\"\")","v":""},{"$f":"+IFERROR((VLOOKUP(L796,pomocna!$AC$4:$AD$20,2,FALSE)),\"\")","v":""},null,{"$f":"+IFERROR(VLOOKUP(M796,pomocna3!$F$2:$G$7,2,FALSE),\"\")","v":""},null,{"$f":"+IFERROR(VLOOKUP(N796,pomocna2!A:B,2,FALSE),\"\")","v":""}]
[null,null,null,null,{"$f":"+IFERROR(VLOOKUP(K797,pomocna2!A:B,2,FALSE),\"\")","v":""},{"$f":"+IFERROR((VLOOKUP(L797,pomocna!$AC$4:$AD$20,2,FALSE)),\"\")","v":""},null,{"$f":"+IFERROR(VLOOKUP(M797,pomocna3!$F$2:$G$7,2,FALSE),\"\")","v":""},null,{"$f":"+IFERROR(VLOOKUP(N797,pomocna2!A:B,2,FALSE),\"\")","v":""}]
[null,null,null,null,{"$f":"+IFERROR(VLOOKUP(K798,pomocna2!A:B,2,FALSE),\"\")","v":""},{"$f":"+IFERROR((VLOOKUP(L798,pomocna!$AC$4:$AD$20,2,FALSE)),\"\")","v":""},null,{"$f":"+IFERROR(VLOOKUP(M798,pomocna3!$F$2:$G$7,2,FALSE),\"\")","v":""},null,{"$f":"+IFERROR(VLOOKUP(N798,pomocna2!A:B,2,FALSE),\"\")","v":""}]
[null,null,null,null,{"$f":"+IFERROR(VLOOKUP(K799,pomocna2!A:B,2,FALSE),\"\")","v":""},{"$f":"+IFERROR((VLOOKUP(L799,pomocna!$AC$4:$AD$20,2,FALSE)),\"\")","v":""},null,{"$f":"+IFERROR(VLOOKUP(M799,pomocna3!$F$2:$G$7,2,FALSE),\"\")","v":""},null,{"$f":"+IFERROR(VLOOKUP(N799,pomocna2!A:B,2,FALSE),\"\")","v":""}]
[null,null,null,null,{"$f":"+IFERROR(VLOOKUP(K800,pomocna2!A:B,2,FALSE),\"\")","v":""},{"$f":"+IFERROR((VLOOKUP(L800,pomocna!$AC$4:$AD$20,2,FALSE)),\"\")","v":""},null,{"$f":"+IFERROR(VLOOKUP(M800,pomocna3!$F$2:$G$7,2,FALSE),\"\")","v":""},null,{"$f":"+IFERROR(VLOOKUP(N800,pomocna2!A:B,2,FALSE),\"\")","v":""}]
[null,null,null,null,{"$f":"+IFERROR(VLOOKUP(K801,pomocna2!A:B,2,FALSE),\"\")","v":""},{"$f":"+IFERROR((VLOOKUP(L801,pomocna!$AC$4:$AD$20,2,FALSE)),\"\")","v":""},null,{"$f":"+IFERROR(VLOOKUP(M801,pomocna3!$F$2:$G$7,2,FALSE),\"\")","v":""},null,{"$f":"+IFERROR(VLOOKUP(N801,pomocna2!A:B,2,FALSE),\"\")","v":""}]
[null,null,null,null,{"$f":"+IFERROR(VLOOKUP(K802,pomocna2!A:B,2,FALSE),\"\")","v":""},{"$f":"+IFERROR((VLOOKUP(L802,pomocna!$AC$4:$AD$20,2,FALSE)),\"\")","v":""},null,{"$f":"+IFERROR(VLOOKUP(M802,pomocna3!$F$2:$G$7,2,FALSE),\"\")","v":""},null,{"$f":"+IFERROR(VLOOKUP(N802,pomocna2!A:B,2,FALSE),\"\")","v":""}]
[null,null,null,null,{"$f":"+IFERROR(VLOOKUP(K803,pomocna2!A:B,2,FALSE),\"\")","v":""},{"$f":"+IFERROR((VLOOKUP(L803,pomocna!$AC$4:$AD$20,2,FALSE)),\"\")","v":""},null,{"$f":"+IFERROR(VLOOKUP(M803,pomocna3!$F$2:$G$7,2,FALSE),\"\")","v":""},null,{"$f":"+IFERROR(VLOOKUP(N803,pomocna2!A:B,2,FALSE),\"\")","v":""}]
[null,null,null,null,{"$f":"+IFERROR(VLOOKUP(K804,pomocna2!A:B,2,FALSE),\"\")","v":""},{"$f":"+IFERROR((VLOOKUP(L804,pomocna!$AC$4:$AD$20,2,FALSE)),\"\")","v":""},null,{"$f":"+IFERROR(VLOOKUP(M804,pomocna3!$F$2:$G$7,2,FALSE),\"\")","v":""},null,{"$f":"+IFERROR(VLOOKUP(N804,pomocna2!A:B,2,FALSE),\"\")","v":""}]
[null,null,null,null,{"$f":"+IFERROR(VLOOKUP(K805,pomocna2!A:B,2,FALSE),\"\")","v":""},{"$f":"+IFERROR((VLOOKUP(L805,pomocna!$AC$4:$AD$20,2,FALSE)),\"\")","v":""},null,{"$f":"+IFERROR(VLOOKUP(M805,pomocna3!$F$2:$G$7,2,FALSE),\"\")","v":""},null,{"$f":"+IFERROR(VLOOKUP(N805,pomocna2!A:B,2,FALSE),\"\")","v":""}]
[null,null,null,null,{"$f":"+IFERROR(VLOOKUP(K806,pomocna2!A:B,2,FALSE),\"\")","v":""},{"$f":"+IFERROR((VLOOKUP(L806,pomocna!$AC$4:$AD$20,2,FALSE)),\"\")","v":""},null,{"$f":"+IFERROR(VLOOKUP(M806,pomocna3!$F$2:$G$7,2,FALSE),\"\")","v":""},null,{"$f":"+IFERROR(VLOOKUP(N806,pomocna2!A:B,2,FALSE),\"\")","v":""}]
[null,null,null,null,{"$f":"+IFERROR(VLOOKUP(K807,pomocna2!A:B,2,FALSE),\"\")","v":""},{"$f":"+IFERROR((VLOOKUP(L807,pomocna!$AC$4:$AD$20,2,FALSE)),\"\")","v":""},null,{"$f":"+IFERROR(VLOOKUP(M807,pomocna3!$F$2:$G$7,2,FALSE),\"\")","v":""},null,{"$f":"+IFERROR(VLOOKUP(N807,pomocna2!A:B,2,FALSE),\"\")","v":""}]
[null,null,null,null,{"$f":"+IFERROR(VLOOKUP(K808,pomocna2!A:B,2,FALSE),\"\")","v":""},{"$f":"+IFERROR((VLOOKUP(L808,pomocna!$AC$4:$AD$20,2,FALSE)),\"\")","v":""},null,{"$f":"+IFERROR(VLOOKUP(M808,pomocna3!$F$2:$G$7,2,FALSE),\"\")","v":""},null,{"$f":"+IFERROR(VLOOKUP(N808,pomocna2!A:B,2,FALSE),\"\")","v":""}]
[null,null,null,null,{"$f":"+IFERROR(VLOOKUP(K809,pomocna2!A:B,2,FALSE),\"\")","v":""},{"$f":"+IFERROR((VLOOKUP(L809,pomocna!$AC$4:$AD$20,2,FALSE)),\"\")","v":""},null,{"$f":"+IFERROR(VLOOKUP(M809,pomocna3!$F$2:$G$7,2,FALSE),\"\")","v":""},null,{"$f":"+IFERROR(VLOOKUP(N809,pomocna2!A:B,2,FALSE),\"\")","v":""}]
[null,null,null,null,{"$f":"+IFERROR(VLOOKUP(K810,pomocna2!A:B,2,FALSE),\"\")","v":""},{"$f":"+IFERROR((VLOOKUP(L810,pomocna!$AC$4:$AD$20,2,FALSE)),\"\")","v":""},null,{"$f":"+IFERROR(VLOOKUP(M810,pomocna3!$F$2:$G$7,2,FALSE),\"\")","v":""},null,{"$f":"+IFERROR(VLOOKUP(N810,pomocna2!A:B,2,FALSE),\"\")","v":""}]
[null,null,null,null,{"$f":"+IFERROR(VLOOKUP(K811,pomocna2!A:B,2,FALSE),\"\")","v":""},{"$f":"+IFERROR((VLOOKUP(L811,pomocna!$AC$4:$AD$20,2,FALSE)),\"\")","v":""},null,{"$f":"+IFERROR(VLOOKUP(M811,pomocna3!$F$2:$G$7,2,FALSE),\"\")","v":""},null,{"$f":"+IFERROR(VLOOKUP(N811,pomocna2!A:B,2,FALSE),\"\")","v":""}]
[null,null,null,null,{"$f":"+IFERROR(VLOOKUP(K812,pomocna2!A:B,2,FALSE),\"\")","v":""},{"$f":"+IFERROR((VLOOKUP(L812,pomocna!$AC$4:$AD$20,2,FALSE)),\"\")","v":""},null,{"$f":"+IFERROR(VLOOKUP(M812,pomocna3!$F$2:$G$7,2,FALSE),\"\")","v":""},null,{"$f":"+IFERROR(VLOOKUP(N812,pomocna2!A:B,2,FALSE),\"\")","v":""}]
[null,null,null,null,{"$f":"+IFERROR(VLOOKUP(K813,pomocna2!A:B,2,FALSE),\"\")","v":""},{"$f":"+IFERROR((VLOOKUP(L813,pomocna!$AC$4:$AD$20,2,FALSE)),\"\")","v":""},null,{"$f":"+IFERROR(VLOOKUP(M813,pomocna3!$F$2:$G$7,2,FALSE),\"\")","v":""},null,{"$f":"+IFERROR(VLOOKUP(N813,pomocna2!A:B,2,FALSE),\"\")","v":""}]
[null,null,null,null,{"$f":"+IFERROR(VLOOKUP(K814,pomocna2!A:B,2,FALSE),\"\")","v":""},{"$f":"+IFERROR((VLOOKUP(L814,pomocna!$AC$4:$AD$20,2,FALSE)),\"\")","v":""},null,{"$f":"+IFERROR(VLOOKUP(M814,pomocna3!$F$2:$G$7,2,FALSE),\"\")","v":""},null,{"$f":"+IFERROR(VLOOKUP(N814,pomocna2!A:B,2,FALSE),\"\")","v":""}]
[null,null,null,null,{"$f":"+IFERROR(VLOOKUP(K815,pomocna2!A:B,2,FALSE),\"\")","v":""},{"$f":"+IFERROR((VLOOKUP(L815,pomocna!$AC$4:$AD$20,2,FALSE)),\"\")","v":""},null,{"$f":"+IFERROR(VLOOKUP(M815,pomocna3!$F$2:$G$7,2,FALSE),\"\")","v":""},null,{"$f":"+IFERROR(VLOOKUP(N815,pomocna2!A:B,2,FALSE),\"\")","v":""}]
[null,null,null,null,{"$f":"+IFERROR(VLOOKUP(K816,pomocna2!A:B,2,FALSE),\"\")","v":""},{"$f":"+IFERROR((VLOOKUP(L816,pomocna!$AC$4:$AD$20,2,FALSE)),\"\")","v":""},null,{"$f":"+IFERROR(VLOOKUP(M816,pomocna3!$F$2:$G$7,2,FALSE),\"\")","v":""},null,{"$f":"+IFERROR(VLOOKUP(N816,pomocna2!A:B,2,FALSE),\"\")","v":""}]
[null,null,null,null,{"$f":"+IFERROR(VLOOKUP(K817,pomocna2!A:B,2,FALSE),\"\")","v":""},{"$f":"+IFERROR((VLOOKUP(L817,pomocna!$AC$4:$AD$20,2,FALSE)),\"\")","v":""},null,{"$f":"+IFERROR(VLOOKUP(M817,pomocna3!$F$2:$G$7,2,FALSE),\"\")","v":""},null,{"$f":"+IFERROR(VLOOKUP(N817,pomocna2!A:B,2,FALSE),\"\")","v":""}]
[null,null,null,null,{"$f":"+IFERROR(VLOOKUP(K818,pomocna2!A:B,2,FALSE),\"\")","v":""},{"$f":"+IFERROR((VLOOKUP(L818,pomocna!$AC$4:$AD$20,2,FALSE)),\"\")","v":""},null,{"$f":"+IFERROR(VLOOKUP(M818,pomocna3!$F$2:$G$7,2,FALSE),\"\")","v":""},null,{"$f":"+IFERROR(VLOOKUP(N818,pomocna2!A:B,2,FALSE),\"\")","v":""}]
[null,null,null,null,{"$f":"+IFERROR(VLOOKUP(K819,pomocna2!A:B,2,FALSE),\"\")","v":""},{"$f":"+IFERROR((VLOOKUP(L819,pomocna!$AC$4:$AD$20,2,FALSE)),\"\")","v":""},null,{"$f":"+IFERROR(VLOOKUP(M819,pomocna3!$F$2:$G$7,2,FALSE),\"\")","v":""},null,{"$f":"+IFERROR(VLOOKUP(N819,pomocna2!A:B,2,FALSE),\"\")","v":""}]
[null,null,null,null,{"$f":"+IFERROR(VLOOKUP(K820,pomocna2!A:B,2,FALSE),\"\")","v":""},{"$f":"+IFERROR((VLOOKUP(L820,pomocna!$AC$4:$AD$20,2,FALSE)),\"\")","v":""},null,{"$f":"+IFERROR(VLOOKUP(M820,pomocna3!$F$2:$G$7,2,FALSE),\"\")","v":""},null,{"$f":"+IFERROR(VLOOKUP(N820,pomocna2!A:B,2,FALSE),\"\")","v":""}]
[null,null,null,null,{"$f":"+IFERROR(VLOOKUP(K821,pomocna2!A:B,2,FALSE),\"\")","v":""},{"$f":"+IFERROR((VLOOKUP(L821,pomocna!$AC$4:$AD$20,2,FALSE)),\"\")","v":""},null,{"$f":"+IFERROR(VLOOKUP(M821,pomocna3!$F$2:$G$7,2,FALSE),\"\")","v":""},null,{"$f":"+IFERROR(VLOOKUP(N821,pomocna2!A:B,2,FALSE),\"\")","v":""}]
[null,null,null,null,{"$f":"+IFERROR(VLOOKUP(K822,pomocna2!A:B,2,FALSE),\"\")","v":""},{"$f":"+IFERROR((VLOOKUP(L822,pomocna!$AC$4:$AD$20,2,FALSE)),\"\")","v":""},null,{"$f":"+IFERROR(VLOOKUP(M822,pomocna3!$F$2:$G$7,2,FALSE),\"\")","v":""},null,{"$f":"+IFERROR(VLOOKUP(N822,pomocna2!A:B,2,FALSE),\"\")","v":""}]
[null,null,null,null,{"$f":"+IFERROR(VLOOKUP(K823,pomocna2!A:B,2,FALSE),\"\")","v":""},{"$f":"+IFERROR((VLOOKUP(L823,pomocna!$AC$4:$AD$20,2,FALSE)),\"\")","v":""},null,{"$f":"+IFERROR(VLOOKUP(M823,pomocna3!$F$2:$G$7,2,FALSE),\"\")","v":""},null,{"$f":"+IFERROR(VLOOKUP(N823,pomocna2!A:B,2,FALSE),\"\")","v":""}]
[null,null,null,null,{"$f":"+IFERROR(VLOOKUP(K824,pomocna2!A:B,2,FALSE),\"\")","v":""},{"$f":"+IFERROR((VLOOKUP(L824,pomocna!$AC$4:$AD$20,2,FALSE)),\"\")","v":""},null,{"$f":"+IFERROR(VLOOKUP(M824,pomocna3!$F$2:$G$7,2,FALSE),\"\")","v":""},null,{"$f":"+IFERROR(VLOOKUP(N824,pomocna2!A:B,2,FALSE),\"\")","v":""}]
[null,null,null,null,{"$f":"+IFERROR(VLOOKUP(K825,pomocna2!A:B,2,FALSE),\"\")","v":""},{"$f":"+IFERROR((VLOOKUP(L825,pomocna!$AC$4:$AD$20,2,FALSE)),\"\")","v":""},null,{"$f":"+IFERROR(VLOOKUP(M825,pomocna3!$F$2:$G$7,2,FALSE),\"\")","v":""},null,{"$f":"+IFERROR(VLOOKUP(N825,pomocna2!A:B,2,FALSE),\"\")","v":""}]
[null,null,null,null,{"$f":"+IFERROR(VLOOKUP(K826,pomocna2!A:B,2,FALSE),\"\")","v":""},{"$f":"+IFERROR((VLOOKUP(L826,pomocna!$AC$4:$AD$20,2,FALSE)),\"\")","v":""},null,{"$f":"+IFERROR(VLOOKUP(M826,pomocna3!$F$2:$G$7,2,FALSE),\"\")","v":""},null,{"$f":"+IFERROR(VLOOKUP(N826,pomocna2!A:B,2,FALSE),\"\")","v":""}]
[null,null,null,null,{"$f":"+IFERROR(VLOOKUP(K827,pomocna2!A:B,2,FALSE),\"\")","v":""},{"$f":"+IFERROR((VLOOKUP(L827,pomocna!$AC$4:$AD$20,2,FALSE)),\"\")","v":""},null,{"$f":"+IFERROR(VLOOKUP(M827,pomocna3!$F$2:$G$7,2,FALSE),\"\")","v":""},null,{"$f":"+IFERROR(VLOOKUP(N827,pomocna2!A:B,2,FALSE),\"\")","v":""}]
[null,null,null,null,{"$f":"+IFERROR(VLOOKUP(K828,pomocna2!A:B,2,FALSE),\"\")","v":""},{"$f":"+IFERROR((VLOOKUP(L828,pomocna!$AC$4:$AD$20,2,FALSE)),\"\")","v":""},null,{"$f":"+IFERROR(VLOOKUP(M828,pomocna3!$F$2:$G$7,2,FALSE),\"\")","v":""},null,{"$f":"+IFERROR(VLOOKUP(N828,pomocna2!A:B,2,FALSE),\"\")","v":""}]
[null,null,null,null,{"$f":"+IFERROR(VLOOKUP(K829,pomocna2!A:B,2,FALSE),\"\")","v":""},{"$f":"+IFERROR((VLOOKUP(L829,pomocna!$AC$4:$AD$20,2,FALSE)),\"\")","v":""},null,{"$f":"+IFERROR(VLOOKUP(M829,pomocna3!$F$2:$G$7,2,FALSE),\"\")","v":""},null,{"$f":"+IFERROR(VLOOKUP(N829,pomocna2!A:B,2,FALSE),\"\")","v":""}]
[null,null,null,null,{"$f":"+IFERROR(VLOOKUP(K830,pomocna2!A:B,2,FALSE),\"\")","v":""},{"$f":"+IFERROR((VLOOKUP(L830,pomocna!$AC$4:$AD$20,2,FALSE)),\"\")","v":""},null,{"$f":"+IFERROR(VLOOKUP(M830,pomocna3!$F$2:$G$7,2,FALSE),\"\")","v":""},null,{"$f":"+IFERROR(VLOOKUP(N830,pomocna2!A:B,2,FALSE),\"\")","v":""}]
[null,null,null,null,{"$f":"+IFERROR(VLOOKUP(K831,pomocna2!A:B,2,FALSE),\"\")","v":""},{"$f":"+IFERROR((VLOOKUP(L831,pomocna!$AC$4:$AD$20,2,FALSE)),\"\")","v":""},null,{"$f":"+IFERROR(VLOOKUP(M831,pomocna3!$F$2:$G$7,2,FALSE),\"\")","v":""},null,{"$f":"+IFERROR(VLOOKUP(N831,pomocna2!A:B,2,FALSE),\"\")","v":""}]
[null,null,null,null,{"$f":"+IFERROR(VLOOKUP(K832,pomocna2!A:B,2,FALSE),\"\")","v":""},{"$f":"+IFERROR((VLOOKUP(L832,pomocna!$AC$4:$AD$20,2,FALSE)),\"\")","v":""},null,{"$f":"+IFERROR(VLOOKUP(M832,pomocna3!$F$2:$G$7,2,FALSE),\"\")","v":""},null,{"$f":"+IFERROR(VLOOKUP(N832,pomocna2!A:B,2,FALSE),\"\")","v":""}]
[null,null,null,null,{"$f":"+IFERROR(VLOOKUP(K833,pomocna2!A:B,2,FALSE),\"\")","v":""},{"$f":"+IFERROR((VLOOKUP(L833,pomocna!$AC$4:$AD$20,2,FALSE)),\"\")","v":""},null,{"$f":"+IFERROR(VLOOKUP(M833,pomocna3!$F$2:$G$7,2,FALSE),\"\")","v":""},null,{"$f":"+IFERROR(VLOOKUP(N833,pomocna2!A:B,2,FALSE),\"\")","v":""}]
[null,null,null,null,{"$f":"+IFERROR(VLOOKUP(K834,pomocna2!A:B,2,FALSE),\"\")","v":""},{"$f":"+IFERROR((VLOOKUP(L834,pomocna!$AC$4:$AD$20,2,FALSE)),\"\")","v":""},null,{"$f":"+IFERROR(VLOOKUP(M834,pomocna3!$F$2:$G$7,2,FALSE),\"\")","v":""},null,{"$f":"+IFERROR(VLOOKUP(N834,pomocna2!A:B,2,FALSE),\"\")","v":""}]
[null,null,null,null,{"$f":"+IFERROR(VLOOKUP(K835,pomocna2!A:B,2,FALSE),\"\")","v":""},{"$f":"+IFERROR((VLOOKUP(L835,pomocna!$AC$4:$AD$20,2,FALSE)),\"\")","v":""},null,{"$f":"+IFERROR(VLOOKUP(M835,pomocna3!$F$2:$G$7,2,FALSE),\"\")","v":""},null,{"$f":"+IFERROR(VLOOKUP(N835,pomocna2!A:B,2,FALSE),\"\")","v":""}]
[null,null,null,null,{"$f":"+IFERROR(VLOOKUP(K836,pomocna2!A:B,2,FALSE),\"\")","v":""},{"$f":"+IFERROR((VLOOKUP(L836,pomocna!$AC$4:$AD$20,2,FALSE)),\"\")","v":""},null,{"$f":"+IFERROR(VLOOKUP(M836,pomocna3!$F$2:$G$7,2,FALSE),\"\")","v":""},null,{"$f":"+IFERROR(VLOOKUP(N836,pomocna2!A:B,2,FALSE),\"\")","v":""}]
[null,null,null,null,{"$f":"+IFERROR(VLOOKUP(K837,pomocna2!A:B,2,FALSE),\"\")","v":""},{"$f":"+IFERROR((VLOOKUP(L837,pomocna!$AC$4:$AD$20,2,FALSE)),\"\")","v":""},null,{"$f":"+IFERROR(VLOOKUP(M837,pomocna3!$F$2:$G$7,2,FALSE),\"\")","v":""},null,{"$f":"+IFERROR(VLOOKUP(N837,pomocna2!A:B,2,FALSE),\"\")","v":""}]
[null,null,null,null,{"$f":"+IFERROR(VLOOKUP(K838,pomocna2!A:B,2,FALSE),\"\")","v":""},{"$f":"+IFERROR((VLOOKUP(L838,pomocna!$AC$4:$AD$20,2,FALSE)),\"\")","v":""},null,{"$f":"+IFERROR(VLOOKUP(M838,pomocna3!$F$2:$G$7,2,FALSE),\"\")","v":""},null,{"$f":"+IFERROR(VLOOKUP(N838,pomocna2!A:B,2,FALSE),\"\")","v":""}]
[null,null,null,null,{"$f":"+IFERROR(VLOOKUP(K839,pomocna2!A:B,2,FALSE),\"\")","v":""},{"$f":"+IFERROR((VLOOKUP(L839,pomocna!$AC$4:$AD$20,2,FALSE)),\"\")","v":""},null,{"$f":"+IFERROR(VLOOKUP(M839,pomocna3!$F$2:$G$7,2,FALSE),\"\")","v":""},null,{"$f":"+IFERROR(VLOOKUP(N839,pomocna2!A:B,2,FALSE),\"\")","v":""}]
[null,null,null,null,{"$f":"+IFERROR(VLOOKUP(K840,pomocna2!A:B,2,FALSE),\"\")","v":""},{"$f":"+IFERROR((VLOOKUP(L840,pomocna!$AC$4:$AD$20,2,FALSE)),\"\")","v":""},null,{"$f":"+IFERROR(VLOOKUP(M840,pomocna3!$F$2:$G$7,2,FALSE),\"\")","v":""},null,{"$f":"+IFERROR(VLOOKUP(N840,pomocna2!A:B,2,FALSE),\"\")","v":""}]
[null,null,null,null,{"$f":"+IFERROR(VLOOKUP(K841,pomocna2!A:B,2,FALSE),\"\")","v":""},{"$f":"+IFERROR((VLOOKUP(L841,pomocna!$AC$4:$AD$20,2,FALSE)),\"\")","v":""},null,{"$f":"+IFERROR(VLOOKUP(M841,pomocna3!$F$2:$G$7,2,FALSE),\"\")","v":""},null,{"$f":"+IFERROR(VLOOKUP(N841,pomocna2!A:B,2,FALSE),\"\")","v":""}]
[null,null,null,null,{"$f":"+IFERROR(VLOOKUP(K842,pomocna2!A:B,2,FALSE),\"\")","v":""},{"$f":"+IFERROR((VLOOKUP(L842,pomocna!$AC$4:$AD$20,2,FALSE)),\"\")","v":""},null,{"$f":"+IFERROR(VLOOKUP(M842,pomocna3!$F$2:$G$7,2,FALSE),\"\")","v":""},null,{"$f":"+IFERROR(VLOOKUP(N842,pomocna2!A:B,2,FALSE),\"\")","v":""}]
[null,null,null,null,{"$f":"+IFERROR(VLOOKUP(K843,pomocna2!A:B,2,FALSE),\"\")","v":""},{"$f":"+IFERROR((VLOOKUP(L843,pomocna!$AC$4:$AD$20,2,FALSE)),\"\")","v":""},null,{"$f":"+IFERROR(VLOOKUP(M843,pomocna3!$F$2:$G$7,2,FALSE),\"\")","v":""},null,{"$f":"+IFERROR(VLOOKUP(N843,pomocna2!A:B,2,FALSE),\"\")","v":""}]
[null,null,null,null,{"$f":"+IFERROR(VLOOKUP(K844,pomocna2!A:B,2,FALSE),\"\")","v":""},{"$f":"+IFERROR((VLOOKUP(L844,pomocna!$AC$4:$AD$20,2,FALSE)),\"\")","v":""},null,{"$f":"+IFERROR(VLOOKUP(M844,pomocna3!$F$2:$G$7,2,FALSE),\"\")","v":""},null,{"$f":"+IFERROR(VLOOKUP(N844,pomocna2!A:B,2,FALSE),\"\")","v":""}]
[null,null,null,null,{"$f":"+IFERROR(VLOOKUP(K845,pomocna2!A:B,2,FALSE),\"\")","v":""},{"$f":"+IFERROR((VLOOKUP(L845,pomocna!$AC$4:$AD$20,2,FALSE)),\"\")","v":""},null,{"$f":"+IFERROR(VLOOKUP(M845,pomocna3!$F$2:$G$7,2,FALSE),\"\")","v":""},null,{"$f":"+IFERROR(VLOOKUP(N845,pomocna2!A:B,2,FALSE),\"\")","v":""}]
[null,null,null,null,{"$f":"+IFERROR(VLOOKUP(K846,pomocna2!A:B,2,FALSE),\"\")","v":""},{"$f":"+IFERROR((VLOOKUP(L846,pomocna!$AC$4:$AD$20,2,FALSE)),\"\")","v":""},null,{"$f":"+IFERROR(VLOOKUP(M846,pomocna3!$F$2:$G$7,2,FALSE),\"\")","v":""},null,{"$f":"+IFERROR(VLOOKUP(N846,pomocna2!A:B,2,FALSE),\"\")","v":""}]
[null,null,null,null,{"$f":"+IFERROR(VLOOKUP(K847,pomocna2!A:B,2,FALSE),\"\")","v":""},{"$f":"+IFERROR((VLOOKUP(L847,pomocna!$AC$4:$AD$20,2,FALSE)),\"\")","v":""},null,{"$f":"+IFERROR(VLOOKUP(M847,pomocna3!$F$2:$G$7,2,FALSE),\"\")","v":""},null,{"$f":"+IFERROR(VLOOKUP(N847,pomocna2!A:B,2,FALSE),\"\")","v":""}]
[null,null,null,null,{"$f":"+IFERROR(VLOOKUP(K848,pomocna2!A:B,2,FALSE),\"\")","v":""},{"$f":"+IFERROR((VLOOKUP(L848,pomocna!$AC$4:$AD$20,2,FALSE)),\"\")","v":""},null,{"$f":"+IFERROR(VLOOKUP(M848,pomocna3!$F$2:$G$7,2,FALSE),\"\")","v":""},null,{"$f":"+IFERROR(VLOOKUP(N848,pomocna2!A:B,2,FALSE),\"\")","v":""}]
[null,null,null,null,{"$f":"+IFERROR(VLOOKUP(K849,pomocna2!A:B,2,FALSE),\"\")","v":""},{"$f":"+IFERROR((VLOOKUP(L849,pomocna!$AC$4:$AD$20,2,FALSE)),\"\")","v":""},null,{"$f":"+IFERROR(VLOOKUP(M849,pomocna3!$F$2:$G$7,2,FALSE),\"\")","v":""},null,{"$f":"+IFERROR(VLOOKUP(N849,pomocna2!A:B,2,FALSE),\"\")","v":""}]
[null,null,null,null,{"$f":"+IFERROR(VLOOKUP(K850,pomocna2!A:B,2,FALSE),\"\")","v":""},{"$f":"+IFERROR((VLOOKUP(L850,pomocna!$AC$4:$AD$20,2,FALSE)),\"\")","v":""},null,{"$f":"+IFERROR(VLOOKUP(M850,pomocna3!$F$2:$G$7,2,FALSE),\"\")","v":""},null,{"$f":"+IFERROR(VLOOKUP(N850,pomocna2!A:B,2,FALSE),\"\")","v":""}]
[null,null,null,null,{"$f":"+IFERROR(VLOOKUP(K851,pomocna2!A:B,2,FALSE),\"\")","v":""},{"$f":"+IFERROR((VLOOKUP(L851,pomocna!$AC$4:$AD$20,2,FALSE)),\"\")","v":""},null,{"$f":"+IFERROR(VLOOKUP(M851,pomocna3!$F$2:$G$7,2,FALSE),\"\")","v":""},null,{"$f":"+IFERROR(VLOOKUP(N851,pomocna2!A:B,2,FALSE),\"\")","v":""}]
[null,null,null,null,{"$f":"+IFERROR(VLOOKUP(K852,pomocna2!A:B,2,FALSE),\"\")","v":""},{"$f":"+IFERROR((VLOOKUP(L852,pomocna!$AC$4:$AD$20,2,FALSE)),\"\")","v":""},null,{"$f":"+IFERROR(VLOOKUP(M852,pomocna3!$F$2:$G$7,2,FALSE),\"\")","v":""},null,{"$f":"+IFERROR(VLOOKUP(N852,pomocna2!A:B,2,FALSE),\"\")","v":""}]
[null,null,null,null,{"$f":"+IFERROR(VLOOKUP(K853,pomocna2!A:B,2,FALSE),\"\")","v":""},{"$f":"+IFERROR((VLOOKUP(L853,pomocna!$AC$4:$AD$20,2,FALSE)),\"\")","v":""},null,{"$f":"+IFERROR(VLOOKUP(M853,pomocna3!$F$2:$G$7,2,FALSE),\"\")","v":""},null,{"$f":"+IFERROR(VLOOKUP(N853,pomocna2!A:B,2,FALSE),\"\")","v":""}]
[null,null,null,null,{"$f":"+IFERROR(VLOOKUP(K854,pomocna2!A:B,2,FALSE),\"\")","v":""},{"$f":"+IFERROR((VLOOKUP(L854,pomocna!$AC$4:$AD$20,2,FALSE)),\"\")","v":""},null,{"$f":"+IFERROR(VLOOKUP(M854,pomocna3!$F$2:$G$7,2,FALSE),\"\")","v":""},null,{"$f":"+IFERROR(VLOOKUP(N854,pomocna2!A:B,2,FALSE),\"\")","v":""}]
[null,null,null,null,{"$f":"+IFERROR(VLOOKUP(K855,pomocna2!A:B,2,FALSE),\"\")","v":""},{"$f":"+IFERROR((VLOOKUP(L855,pomocna!$AC$4:$AD$20,2,FALSE)),\"\")","v":""},null,{"$f":"+IFERROR(VLOOKUP(M855,pomocna3!$F$2:$G$7,2,FALSE),\"\")","v":""},null,{"$f":"+IFERROR(VLOOKUP(N855,pomocna2!A:B,2,FALSE),\"\")","v":""}]
[null,null,null,null,{"$f":"+IFERROR(VLOOKUP(K856,pomocna2!A:B,2,FALSE),\"\")","v":""},{"$f":"+IFERROR((VLOOKUP(L856,pomocna!$AC$4:$AD$20,2,FALSE)),\"\")","v":""},null,{"$f":"+IFERROR(VLOOKUP(M856,pomocna3!$F$2:$G$7,2,FALSE),\"\")","v":""},null,{"$f":"+IFERROR(VLOOKUP(N856,pomocna2!A:B,2,FALSE),\"\")","v":""}]
[null,null,null,null,{"$f":"+IFERROR(VLOOKUP(K857,pomocna2!A:B,2,FALSE),\"\")","v":""},{"$f":"+IFERROR((VLOOKUP(L857,pomocna!$AC$4:$AD$20,2,FALSE)),\"\")","v":""},null,{"$f":"+IFERROR(VLOOKUP(M857,pomocna3!$F$2:$G$7,2,FALSE),\"\")","v":""},null,{"$f":"+IFERROR(VLOOKUP(N857,pomocna2!A:B,2,FALSE),\"\")","v":""}]
[null,null,null,null,{"$f":"+IFERROR(VLOOKUP(K858,pomocna2!A:B,2,FALSE),\"\")","v":""},{"$f":"+IFERROR((VLOOKUP(L858,pomocna!$AC$4:$AD$20,2,FALSE)),\"\")","v":""},null,{"$f":"+IFERROR(VLOOKUP(M858,pomocna3!$F$2:$G$7,2,FALSE),\"\")","v":""},null,{"$f":"+IFERROR(VLOOKUP(N858,pomocna2!A:B,2,FALSE),\"\")","v":""}]
[null,null,null,null,{"$f":"+IFERROR(VLOOKUP(K859,pomocna2!A:B,2,FALSE),\"\")","v":""},{"$f":"+IFERROR((VLOOKUP(L859,pomocna!$AC$4:$AD$20,2,FALSE)),\"\")","v":""},null,{"$f":"+IFERROR(VLOOKUP(M859,pomocna3!$F$2:$G$7,2,FALSE),\"\")","v":""},null,{"$f":"+IFERROR(VLOOKUP(N859,pomocna2!A:B,2,FALSE),\"\")","v":""}]
[null,null,null,null,{"$f":"+IFERROR(VLOOKUP(K860,pomocna2!A:B,2,FALSE),\"\")","v":""},{"$f":"+IFERROR((VLOOKUP(L860,pomocna!$AC$4:$AD$20,2,FALSE)),\"\")","v":""},null,{"$f":"+IFERROR(VLOOKUP(M860,pomocna3!$F$2:$G$7,2,FALSE),\"\")","v":""},null,{"$f":"+IFERROR(VLOOKUP(N860,pomocna2!A:B,2,FALSE),\"\")","v":""}]
[null,null,null,null,{"$f":"+IFERROR(VLOOKUP(K861,pomocna2!A:B,2,FALSE),\"\")","v":""},{"$f":"+IFERROR((VLOOKUP(L861,pomocna!$AC$4:$AD$20,2,FALSE)),\"\")","v":""},null,{"$f":"+IFERROR(VLOOKUP(M861,pomocna3!$F$2:$G$7,2,FALSE),\"\")","v":""},null,{"$f":"+IFERROR(VLOOKUP(N861,pomocna2!A:B,2,FALSE),\"\")","v":""}]
[null,null,null,null,{"$f":"+IFERROR(VLOOKUP(K862,pomocna2!A:B,2,FALSE),\"\")","v":""},{"$f":"+IFERROR((VLOOKUP(L862,pomocna!$AC$4:$AD$20,2,FALSE)),\"\")","v":""},null,{"$f":"+IFERROR(VLOOKUP(M862,pomocna3!$F$2:$G$7,2,FALSE),\"\")","v":""},null,{"$f":"+IFERROR(VLOOKUP(N862,pomocna2!A:B,2,FALSE),\"\")","v":""}]
[null,null,null,null,{"$f":"+IFERROR(VLOOKUP(K863,pomocna2!A:B,2,FALSE),\"\")","v":""},{"$f":"+IFERROR((VLOOKUP(L863,pomocna!$AC$4:$AD$20,2,FALSE)),\"\")","v":""},null,{"$f":"+IFERROR(VLOOKUP(M863,pomocna3!$F$2:$G$7,2,FALSE),\"\")","v":""},null,{"$f":"+IFERROR(VLOOKUP(N863,pomocna2!A:B,2,FALSE),\"\")","v":""}]
[null,null,null,null,{"$f":"+IFERROR(VLOOKUP(K864,pomocna2!A:B,2,FALSE),\"\")","v":""},{"$f":"+IFERROR((VLOOKUP(L864,pomocna!$AC$4:$AD$20,2,FALSE)),\"\")","v":""},null,{"$f":"+IFERROR(VLOOKUP(M864,pomocna3!$F$2:$G$7,2,FALSE),\"\")","v":""},null,{"$f":"+IFERROR(VLOOKUP(N864,pomocna2!A:B,2,FALSE),\"\")","v":""}]
[null,null,null,null,{"$f":"+IFERROR(VLOOKUP(K865,pomocna2!A:B,2,FALSE),\"\")","v":""},{"$f":"+IFERROR((VLOOKUP(L865,pomocna!$AC$4:$AD$20,2,FALSE)),\"\")","v":""},null,{"$f":"+IFERROR(VLOOKUP(M865,pomocna3!$F$2:$G$7,2,FALSE),\"\")","v":""},null,{"$f":"+IFERROR(VLOOKUP(N865,pomocna2!A:B,2,FALSE),\"\")","v":""}]
[null,null,null,null,{"$f":"+IFERROR(VLOOKUP(K866,pomocna2!A:B,2,FALSE),\"\")","v":""},{"$f":"+IFERROR((VLOOKUP(L866,pomocna!$AC$4:$AD$20,2,FALSE)),\"\")","v":""},null,{"$f":"+IFERROR(VLOOKUP(M866,pomocna3!$F$2:$G$7,2,FALSE),\"\")","v":""},null,{"$f":"+IFERROR(VLOOKUP(N866,pomocna2!A:B,2,FALSE),\"\")","v":""}]
[null,null,null,null,{"$f":"+IFERROR(VLOOKUP(K867,pomocna2!A:B,2,FALSE),\"\")","v":""},{"$f":"+IFERROR((VLOOKUP(L867,pomocna!$AC$4:$AD$20,2,FALSE)),\"\")","v":""},null,{"$f":"+IFERROR(VLOOKUP(M867,pomocna3!$F$2:$G$7,2,FALSE),\"\")","v":""},null,{"$f":"+IFERROR(VLOOKUP(N867,pomocna2!A:B,2,FALSE),\"\")","v":""}]
[null,null,null,null,{"$f":"+IFERROR(VLOOKUP(K868,pomocna2!A:B,2,FALSE),\"\")","v":""},{"$f":"+IFERROR((VLOOKUP(L868,pomocna!$AC$4:$AD$20,2,FALSE)),\"\")","v":""},null,{"$f":"+IFERROR(VLOOKUP(M868,pomocna3!$F$2:$G$7,2,FALSE),\"\")","v":""},null,{"$f":"+IFERROR(VLOOKUP(N868,pomocna2!A:B,2,FALSE),\"\")","v":""}]
[null,null,null,null,{"$f":"+IFERROR(VLOOKUP(K869,pomocna2!A:B,2,FALSE),\"\")","v":""},{"$f":"+IFERROR((VLOOKUP(L869,pomocna!$AC$4:$AD$20,2,FALSE)),\"\")","v":""},null,{"$f":"+IFERROR(VLOOKUP(M869,pomocna3!$F$2:$G$7,2,FALSE),\"\")","v":""},null,{"$f":"+IFERROR(VLOOKUP(N869,pomocna2!A:B,2,FALSE),\"\")","v":""}]
[null,null,null,null,{"$f":"+IFERROR(VLOOKUP(K870,pomocna2!A:B,2,FALSE),\"\")","v":""},{"$f":"+IFERROR((VLOOKUP(L870,pomocna!$AC$4:$AD$20,2,FALSE)),\"\")","v":""},null,{"$f":"+IFERROR(VLOOKUP(M870,pomocna3!$F$2:$G$7,2,FALSE),\"\")","v":""},null,{"$f":"+IFERROR(VLOOKUP(N870,pomocna2!A:B,2,FALSE),\"\")","v":""}]
[null,null,null,null,{"$f":"+IFERROR(VLOOKUP(K871,pomocna2!A:B,2,FALSE),\"\")","v":""},{"$f":"+IFERROR((VLOOKUP(L871,pomocna!$AC$4:$AD$20,2,FALSE)),\"\")","v":""},null,{"$f":"+IFERROR(VLOOKUP(M871,pomocna3!$F$2:$G$7,2,FALSE),\"\")","v":""},null,{"$f":"+IFERROR(VLOOKUP(N871,pomocna2!A:B,2,FALSE),\"\")","v":""}]
[null,null,null,null,{"$f":"+IFERROR(VLOOKUP(K872,pomocna2!A:B,2,FALSE),\"\")","v":""},{"$f":"+IFERROR((VLOOKUP(L872,pomocna!$AC$4:$AD$20,2,FALSE)),\"\")","v":""},null,{"$f":"+IFERROR(VLOOKUP(M872,pomocna3!$F$2:$G$7,2,FALSE),\"\")","v":""},null,{"$f":"+IFERROR(VLOOKUP(N872,pomocna2!A:B,2,FALSE),\"\")","v":""}]
[null,null,null,null,{"$f":"+IFERROR(VLOOKUP(K873,pomocna2!A:B,2,FALSE),\"\")","v":""},{"$f":"+IFERROR((VLOOKUP(L873,pomocna!$AC$4:$AD$20,2,FALSE)),\"\")","v":""},null,{"$f":"+IFERROR(VLOOKUP(M873,pomocna3!$F$2:$G$7,2,FALSE),\"\")","v":""},null,{"$f":"+IFERROR(VLOOKUP(N873,pomocna2!A:B,2,FALSE),\"\")","v":""}]
[null,null,null,null,{"$f":"+IFERROR(VLOOKUP(K874,pomocna2!A:B,2,FALSE),\"\")","v":""},{"$f":"+IFERROR((VLOOKUP(L874,pomocna!$AC$4:$AD$20,2,FALSE)),\"\")","v":""},null,{"$f":"+IFERROR(VLOOKUP(M874,pomocna3!$F$2:$G$7,2,FALSE),\"\")","v":""},null,{"$f":"+IFERROR(VLOOKUP(N874,pomocna2!A:B,2,FALSE),\"\")","v":""}]
[null,null,null,null,{"$f":"+IFERROR(VLOOKUP(K875,pomocna2!A:B,2,FALSE),\"\")","v":""},{"$f":"+IFERROR((VLOOKUP(L875,pomocna!$AC$4:$AD$20,2,FALSE)),\"\")","v":""},null,{"$f":"+IFERROR(VLOOKUP(M875,pomocna3!$F$2:$G$7,2,FALSE),\"\")","v":""},null,{"$f":"+IFERROR(VLOOKUP(N875,pomocna2!A:B,2,FALSE),\"\")","v":""}]
[null,null,null,null,{"$f":"+IFERROR(VLOOKUP(K876,pomocna2!A:B,2,FALSE),\"\")","v":""},{"$f":"+IFERROR((VLOOKUP(L876,pomocna!$AC$4:$AD$20,2,FALSE)),\"\")","v":""},null,{"$f":"+IFERROR(VLOOKUP(M876,pomocna3!$F$2:$G$7,2,FALSE),\"\")","v":""},null,{"$f":"+IFERROR(VLOOKUP(N876,pomocna2!A:B,2,FALSE),\"\")","v":""}]
[null,null,null,null,{"$f":"+IFERROR(VLOOKUP(K877,pomocna2!A:B,2,FALSE),\"\")","v":""},{"$f":"+IFERROR((VLOOKUP(L877,pomocna!$AC$4:$AD$20,2,FALSE)),\"\")","v":""},null,{"$f":"+IFERROR(VLOOKUP(M877,pomocna3!$F$2:$G$7,2,FALSE),\"\")","v":""},null,{"$f":"+IFERROR(VLOOKUP(N877,pomocna2!A:B,2,FALSE),\"\")","v":""}]
[null,null,null,null,{"$f":"+IFERROR(VLOOKUP(K878,pomocna2!A:B,2,FALSE),\"\")","v":""},{"$f":"+IFERROR((VLOOKUP(L878,pomocna!$AC$4:$AD$20,2,FALSE)),\"\")","v":""},null,{"$f":"+IFERROR(VLOOKUP(M878,pomocna3!$F$2:$G$7,2,FALSE),\"\")","v":""},null,{"$f":"+IFERROR(VLOOKUP(N878,pomocna2!A:B,2,FALSE),\"\")","v":""}]
[null,null,null,null,{"$f":"+IFERROR(VLOOKUP(K879,pomocna2!A:B,2,FALSE),\"\")","v":""},{"$f":"+IFERROR((VLOOKUP(L879,pomocna!$AC$4:$AD$20,2,FALSE)),\"\")","v":""},null,{"$f":"+IFERROR(VLOOKUP(M879,pomocna3!$F$2:$G$7,2,FALSE),\"\")","v":""},null,{"$f":"+IFERROR(VLOOKUP(N879,pomocna2!A:B,2,FALSE),\"\")","v":""}]
[null,null,null,null,{"$f":"+IFERROR(VLOOKUP(K880,pomocna2!A:B,2,FALSE),\"\")","v":""},{"$f":"+IFERROR((VLOOKUP(L880,pomocna!$AC$4:$AD$20,2,FALSE)),\"\")","v":""},null,{"$f":"+IFERROR(VLOOKUP(M880,pomocna3!$F$2:$G$7,2,FALSE),\"\")","v":""},null,{"$f":"+IFERROR(VLOOKUP(N880,pomocna2!A:B,2,FALSE),\"\")","v":""}]
[null,null,null,null,{"$f":"+IFERROR(VLOOKUP(K881,pomocna2!A:B,2,FALSE),\"\")","v":""},{"$f":"+IFERROR((VLOOKUP(L881,pomocna!$AC$4:$AD$20,2,FALSE)),\"\")","v":""},null,{"$f":"+IFERROR(VLOOKUP(M881,pomocna3!$F$2:$G$7,2,FALSE),\"\")","v":""},null,{"$f":"+IFERROR(VLOOKUP(N881,pomocna2!A:B,2,FALSE),\"\")","v":""}]
[null,null,null,null,{"$f":"+IFERROR(VLOOKUP(K882,pomocna2!A:B,2,FALSE),\"\")","v":""},{"$f":"+IFERROR((VLOOKUP(L882,pomocna!$AC$4:$AD$20,2,FALSE)),\"\")","v":""},null,{"$f":"+IFERROR(VLOOKUP(M882,pomocna3!$F$2:$G$7,2,FALSE),\"\")","v":""},null,{"$f":"+IFERROR(VLOOKUP(N882,pomocna2!A:B,2,FALSE),\"\")","v":""}]
[null,null,null,null,{"$f":"+IFERROR(VLOOKUP(K883,pomocna2!A:B,2,FALSE),\"\")","v":""},{"$f":"+IFERROR((VLOOKUP(L883,pomocna!$AC$4:$AD$20,2,FALSE)),\"\")","v":""},null,{"$f":"+IFERROR(VLOOKUP(M883,pomocna3!$F$2:$G$7,2,FALSE),\"\")","v":""},null,{"$f":"+IFERROR(VLOOKUP(N883,pomocna2!A:B,2,FALSE),\"\")","v":""}]
[null,null,null,null,{"$f":"+IFERROR(VLOOKUP(K884,pomocna2!A:B,2,FALSE),\"\")","v":""},{"$f":"+IFERROR((VLOOKUP(L884,pomocna!$AC$4:$AD$20,2,FALSE)),\"\")","v":""},null,{"$f":"+IFERROR(VLOOKUP(M884,pomocna3!$F$2:$G$7,2,FALSE),\"\")","v":""},null,{"$f":"+IFERROR(VLOOKUP(N884,pomocna2!A:B,2,FALSE),\"\")","v":""}]
[null,null,null,null,{"$f":"+IFERROR(VLOOKUP(K885,pomocna2!A:B,2,FALSE),\"\")","v":""},{"$f":"+IFERROR((VLOOKUP(L885,pomocna!$AC$4:$AD$20,2,FALSE)),\"\")","v":""},null,{"$f":"+IFERROR(VLOOKUP(M885,pomocna3!$F$2:$G$7,2,FALSE),\"\")","v":""},null,{"$f":"+IFERROR(VLOOKUP(N885,pomocna2!A:B,2,FALSE),\"\")","v":""}]
[null,null,null,null,{"$f":"+IFERROR(VLOOKUP(K886,pomocna2!A:B,2,FALSE),\"\")","v":""},{"$f":"+IFERROR((VLOOKUP(L886,pomocna!$AC$4:$AD$20,2,FALSE)),\"\")","v":""},null,{"$f":"+IFERROR(VLOOKUP(M886,pomocna3!$F$2:$G$7,2,FALSE),\"\")","v":""},null,{"$f":"+IFERROR(VLOOKUP(N886,pomocna2!A:B,2,FALSE),\"\")","v":""}]
[null,null,null,null,{"$f":"+IFERROR(VLOOKUP(K887,pomocna2!A:B,2,FALSE),\"\")","v":""},{"$f":"+IFERROR((VLOOKUP(L887,pomocna!$AC$4:$AD$20,2,FALSE)),\"\")","v":""},null,{"$f":"+IFERROR(VLOOKUP(M887,pomocna3!$F$2:$G$7,2,FALSE),\"\")","v":""},null,{"$f":"+IFERROR(VLOOKUP(N887,pomocna2!A:B,2,FALSE),\"\")","v":""}]
[null,null,null,null,{"$f":"+IFERROR(VLOOKUP(K888,pomocna2!A:B,2,FALSE),\"\")","v":""},{"$f":"+IFERROR((VLOOKUP(L888,pomocna!$AC$4:$AD$20,2,FALSE)),\"\")","v":""},null,{"$f":"+IFERROR(VLOOKUP(M888,pomocna3!$F$2:$G$7,2,FALSE),\"\")","v":""},null,{"$f":"+IFERROR(VLOOKUP(N888,pomocna2!A:B,2,FALSE),\"\")","v":""}]
[null,null,null,null,{"$f":"+IFERROR(VLOOKUP(K889,pomocna2!A:B,2,FALSE),\"\")","v":""},{"$f":"+IFERROR((VLOOKUP(L889,pomocna!$AC$4:$AD$20,2,FALSE)),\"\")","v":""},null,{"$f":"+IFERROR(VLOOKUP(M889,pomocna3!$F$2:$G$7,2,FALSE),\"\")","v":""},null,{"$f":"+IFERROR(VLOOKUP(N889,pomocna2!A:B,2,FALSE),\"\")","v":""}]
[null,null,null,null,{"$f":"+IFERROR(VLOOKUP(K890,pomocna2!A:B,2,FALSE),\"\")","v":""},{"$f":"+IFERROR((VLOOKUP(L890,pomocna!$AC$4:$AD$20,2,FALSE)),\"\")","v":""},null,{"$f":"+IFERROR(VLOOKUP(M890,pomocna3!$F$2:$G$7,2,FALSE),\"\")","v":""},null,{"$f":"+IFERROR(VLOOKUP(N890,pomocna2!A:B,2,FALSE),\"\")","v":""}]
[null,null,null,null,{"$f":"+IFERROR(VLOOKUP(K891,pomocna2!A:B,2,FALSE),\"\")","v":""},{"$f":"+IFERROR((VLOOKUP(L891,pomocna!$AC$4:$AD$20,2,FALSE)),\"\")","v":""},null,{"$f":"+IFERROR(VLOOKUP(M891,pomocna3!$F$2:$G$7,2,FALSE),\"\")","v":""},null,{"$f":"+IFERROR(VLOOKUP(N891,pomocna2!A:B,2,FALSE),\"\")","v":""}]
[null,null,null,null,{"$f":"+IFERROR(VLOOKUP(K892,pomocna2!A:B,2,FALSE),\"\")","v":""},{"$f":"+IFERROR((VLOOKUP(L892,pomocna!$AC$4:$AD$20,2,FALSE)),\"\")","v":""},null,{"$f":"+IFERROR(VLOOKUP(M892,pomocna3!$F$2:$G$7,2,FALSE),\"\")","v":""},null,{"$f":"+IFERROR(VLOOKUP(N892,pomocna2!A:B,2,FALSE),\"\")","v":""}]
[null,null,null,null,{"$f":"+IFERROR(VLOOKUP(K893,pomocna2!A:B,2,FALSE),\"\")","v":""},{"$f":"+IFERROR((VLOOKUP(L893,pomocna!$AC$4:$AD$20,2,FALSE)),\"\")","v":""},null,{"$f":"+IFERROR(VLOOKUP(M893,pomocna3!$F$2:$G$7,2,FALSE),\"\")","v":""},null,{"$f":"+IFERROR(VLOOKUP(N893,pomocna2!A:B,2,FALSE),\"\")","v":""}]
[null,null,null,null,{"$f":"+IFERROR(VLOOKUP(K894,pomocna2!A:B,2,FALSE),\"\")","v":""},{"$f":"+IFERROR((VLOOKUP(L894,pomocna!$AC$4:$AD$20,2,FALSE)),\"\")","v":""},null,{"$f":"+IFERROR(VLOOKUP(M894,pomocna3!$F$2:$G$7,2,FALSE),\"\")","v":""},null,{"$f":"+IFERROR(VLOOKUP(N894,pomocna2!A:B,2,FALSE),\"\")","v":""}]
[null,null,null,null,{"$f":"+IFERROR(VLOOKUP(K895,pomocna2!A:B,2,FALSE),\"\")","v":""},{"$f":"+IFERROR((VLOOKUP(L895,pomocna!$AC$4:$AD$20,2,FALSE)),\"\")","v":""},null,{"$f":"+IFERROR(VLOOKUP(M895,pomocna3!$F$2:$G$7,2,FALSE),\"\")","v":""},null,{"$f":"+IFERROR(VLOOKUP(N895,pomocna2!A:B,2,FALSE),\"\")","v":""}]
[null,null,null,null,{"$f":"+IFERROR(VLOOKUP(K896,pomocna2!A:B,2,FALSE),\"\")","v":""},{"$f":"+IFERROR((VLOOKUP(L896,pomocna!$AC$4:$AD$20,2,FALSE)),\"\")","v":""},null,{"$f":"+IFERROR(VLOOKUP(M896,pomocna3!$F$2:$G$7,2,FALSE),\"\")","v":""},null,{"$f":"+IFERROR(VLOOKUP(N896,pomocna2!A:B,2,FALSE),\"\")","v":""}]
[null,null,null,null,{"$f":"+IFERROR(VLOOKUP(K897,pomocna2!A:B,2,FALSE),\"\")","v":""},{"$f":"+IFERROR((VLOOKUP(L897,pomocna!$AC$4:$AD$20,2,FALSE)),\"\")","v":""},null,{"$f":"+IFERROR(VLOOKUP(M897,pomocna3!$F$2:$G$7,2,FALSE),\"\")","v":""},null,{"$f":"+IFERROR(VLOOKUP(N897,pomocna2!A:B,2,FALSE),\"\")","v":""}]
[null,null,null,null,{"$f":"+IFERROR(VLOOKUP(K898,pomocna2!A:B,2,FALSE),\"\")","v":""},{"$f":"+IFERROR((VLOOKUP(L898,pomocna!$AC$4:$AD$20,2,FALSE)),\"\")","v":""},null,{"$f":"+IFERROR(VLOOKUP(M898,pomocna3!$F$2:$G$7,2,FALSE),\"\")","v":""},null,{"$f":"+IFERROR(VLOOKUP(N898,pomocna2!A:B,2,FALSE),\"\")","v":""}]
[null,null,null,null,{"$f":"+IFERROR(VLOOKUP(K899,pomocna2!A:B,2,FALSE),\"\")","v":""},{"$f":"+IFERROR((VLOOKUP(L899,pomocna!$AC$4:$AD$20,2,FALSE)),\"\")","v":""},null,{"$f":"+IFERROR(VLOOKUP(M899,pomocna3!$F$2:$G$7,2,FALSE),\"\")","v":""},null,{"$f":"+IFERROR(VLOOKUP(N899,pomocna2!A:B,2,FALSE),\"\")","v":""}]
[null,null,null,null,{"$f":"+IFERROR(VLOOKUP(K900,pomocna2!A:B,2,FALSE),\"\")","v":""},{"$f":"+IFERROR((VLOOKUP(L900,pomocna!$AC$4:$AD$20,2,FALSE)),\"\")","v":""},null,{"$f":"+IFERROR(VLOOKUP(M900,pomocna3!$F$2:$G$7,2,FALSE),\"\")","v":""},null,{"$f":"+IFERROR(VLOOKUP(N900,pomocna2!A:B,2,FALSE),\"\")","v":""}]
[null,null,null,null,{"$f":"+IFERROR(VLOOKUP(K901,pomocna2!A:B,2,FALSE),\"\")","v":""},{"$f":"+IFERROR((VLOOKUP(L901,pomocna!$AC$4:$AD$20,2,FALSE)),\"\")","v":""},null,{"$f":"+IFERROR(VLOOKUP(M901,pomocna3!$F$2:$G$7,2,FALSE),\"\")","v":""},null,{"$f":"+IFERROR(VLOOKUP(N901,pomocna2!A:B,2,FALSE),\"\")","v":""}]
[null,null,null,null,{"$f":"+IFERROR(VLOOKUP(K902,pomocna2!A:B,2,FALSE),\"\")","v":""},{"$f":"+IFERROR((VLOOKUP(L902,pomocna!$AC$4:$AD$20,2,FALSE)),\"\")","v":""},null,{"$f":"+IFERROR(VLOOKUP(M902,pomocna3!$F$2:$G$7,2,FALSE),\"\")","v":""},null,{"$f":"+IFERROR(VLOOKUP(N902,pomocna2!A:B,2,FALSE),\"\")","v":""}]
[null,null,null,null,{"$f":"+IFERROR(VLOOKUP(K903,pomocna2!A:B,2,FALSE),\"\")","v":""},{"$f":"+IFERROR((VLOOKUP(L903,pomocna!$AC$4:$AD$20,2,FALSE)),\"\")","v":""},null,{"$f":"+IFERROR(VLOOKUP(M903,pomocna3!$F$2:$G$7,2,FALSE),\"\")","v":""},null,{"$f":"+IFERROR(VLOOKUP(N903,pomocna2!A:B,2,FALSE),\"\")","v":""}]
[null,null,null,null,{"$f":"+IFERROR(VLOOKUP(K904,pomocna2!A:B,2,FALSE),\"\")","v":""},{"$f":"+IFERROR((VLOOKUP(L904,pomocna!$AC$4:$AD$20,2,FALSE)),\"\")","v":""},null,{"$f":"+IFERROR(VLOOKUP(M904,pomocna3!$F$2:$G$7,2,FALSE),\"\")","v":""},null,{"$f":"+IFERROR(VLOOKUP(N904,pomocna2!A:B,2,FALSE),\"\")","v":""}]
[null,null,null,null,{"$f":"+IFERROR(VLOOKUP(K905,pomocna2!A:B,2,FALSE),\"\")","v":""},{"$f":"+IFERROR((VLOOKUP(L905,pomocna!$AC$4:$AD$20,2,FALSE)),\"\")","v":""},null,{"$f":"+IFERROR(VLOOKUP(M905,pomocna3!$F$2:$G$7,2,FALSE),\"\")","v":""},null,{"$f":"+IFERROR(VLOOKUP(N905,pomocna2!A:B,2,FALSE),\"\")","v":""}]
[null,null,null,null,{"$f":"+IFERROR(VLOOKUP(K906,pomocna2!A:B,2,FALSE),\"\")","v":""},{"$f":"+IFERROR((VLOOKUP(L906,pomocna!$AC$4:$AD$20,2,FALSE)),\"\")","v":""},null,{"$f":"+IFERROR(VLOOKUP(M906,pomocna3!$F$2:$G$7,2,FALSE),\"\")","v":""},null,{"$f":"+IFERROR(VLOOKUP(N906,pomocna2!A:B,2,FALSE),\"\")","v":""}]
[null,null,null,null,{"$f":"+IFERROR(VLOOKUP(K907,pomocna2!A:B,2,FALSE),\"\")","v":""},{"$f":"+IFERROR((VLOOKUP(L907,pomocna!$AC$4:$AD$20,2,FALSE)),\"\")","v":""},null,{"$f":"+IFERROR(VLOOKUP(M907,pomocna3!$F$2:$G$7,2,FALSE),\"\")","v":""},null,{"$f":"+IFERROR(VLOOKUP(N907,pomocna2!A:B,2,FALSE),\"\")","v":""}]

{"sheet":"T6","index":5,"n_rows":1,"n_cols":11,"rows_kept":1,"cut":false,"hidden":false,"merged":[]}
["Oznaka tablice","Vrsta sloga","Identifikator","Razdoblje","CFI oznaka (kod)","Cijena izdanja","Država depozitorija","Ugrađena izvedenica (derivat)","Odnosna varijabla ugrađenog derivata","Vezana izvedenica (derivat)","Odnosna varijabla vezanog derivata"]

{"sheet":"Izvoz u INO","index":6,"n_rows":147,"n_cols":8,"rows_kept":147,"cut":false,"hidden":false,"merged":[[6,4,6,5],[8,4,8,5]]}
["UPUTA ZA DOSTAVU PODATAKA:"]
[]
["1. Omogućite izvođenje makro naredbi"]
[]
["2. Popunite tablice T1-T6 podacima"]
[]
["3. U zeleno polje upišite matični broj:",null,null,null,"1234567",null,null,"potvrdite unos tipkom <ENTER>"]
[]
["4. U plavo polje upišite redni broj slanja:",null,null,null,"01",null,null,"potvrdite unos tipkom <ENTER>"]
[]
["5. Pritisnite gumb 'Kreiraj INO datoteku' za kreiranje INO datoteke"]
[]
[]
[]
[]
[]
["Datoteka kreirana na lokaciji:"]
["K:\\270m\\ODLUKE, UPUTE I OBRASCI\\2025 izmjena Odluke\\INODUG\\1234567-202604-01-0.INO"]
[]
["6. Locirajte datoteku na navedenoj lokaciji"]
[]
["7. Provjerite matični broj (MB) i redni broj ispravnog slanja tekućeg mjeseca (NN) u nazivu datoteke"]
[]
["8. Dogovorenim načinom dostavite INO datoteku"]
[]
[]
["NAPOMENA"]
["Kod nekih MS Excel verzija je nakon omogućavanja izvođenja makro naredbi datoteku potrebno zatvoriti (da se spreme postavke) te ponovo otvoriti."]
["Do opcija za postavljanje makro naredbi dolazi se putem padajućeg izbornika u MS Excel programu:"]
["hrv. verzija >> Alati > Odrednice... > Sigurnost > Sigurnost makro naredbe... > odaberite srednja ili niska"]
["eng. verzija >> Tools > Options... > Security > MacroSecurity... > odaberite Medium ili Low"]
[]
[]
[]
[]
[]
[]
[]
[]
[]
[]
[]
[]
[]
[]
[]
[]
[]
[]
[]
[]
[]
[]
[]
[]
[]
[]
[]
[]
[]
[]
[]
[]
[]
[]
[]
[]
[]
[]
[]
[]
[]
[]
[]
[]
[]
[]
[]
[]
[]
[]
[]
[]
[]
[]
[]
[]
[]
[]
[]
[]
[]
[]
[]
[]
[]
[]
[]
[]
[]
[]
[]
[]
[]
[]
[]
[]
[]
[]
[]
[]
[]
[]
[]
[]
[]
[]
[]
[]
[]
[]
[]
[]
[]
[]
["01"]
["02"]
["03"]
["04"]
["05"]
["06"]
["07"]
["08"]
["09"]
["10"]
["11"]
["12"]
["13"]
["14"]
["15"]
["16"]
["17"]
["18"]
["19"]
["20"]
["21"]
["22"]

{"sheet":"INO","index":7,"n_rows":0,"n_cols":0,"rows_kept":0,"cut":false,"hidden":false,"merged":[]}

{"sheet":"pomocna","index":8,"n_rows":466,"n_cols":30,"rows_kept":466,"cut":false,"hidden":true,"merged":[]}
[]
[null,"Vrsta sloga","Oznaka osobe","Osnova izvješćivanja","Vrsta instrumenta","Osiguranje izvozne agencije","Vrsta kamatne stope","Način izračuna plana","Frekvencija otplate glavnice","Frekvencija otplate kamata","Vrsta iznosa","Vrsta plana","Sektor kreditora","Vlasnički odnos","T1","T2","T3","T4","T5","T6","Država kreditora","Valuta","Šifra kreditora","DERIVAT","VARIJABLA","Zemlja depoz"]
[null,"01","OS1","01","01","01","01","01","01","01","01","01","01","01",null,null,null,null,null,null,"AD","AED",null,"01","01","AD"]
[null,"02","OS2","02","02","02","02","02","02","02","02","02","02","02",null,null,null,null,null,null,"AE","AFN",null,"02","02","AE",null,"01 Nefinancijska društva","Nefinancijska društva",{"$f":"+LEFT(AB4,2)","v":"01"}]
[null,null,null,null,"03",null,"03","03","03","03","03",null,"03","03",null,null,null,null,null,null,"AF","ALL",null,null,"03","AF",null,"02 Središnja banka","Središnja banka",{"$f":"+LEFT(AB5,2)","v":"02"}]
[null,null,null,null,"04",null,"04","04","04","04","04",null,"23","04",null,null,null,null,null,null,"AG","AMD",null,null,"04","AG",null,"03 Društva koja primaju depozite (banke) osim središnje banke (za banke s područja EU potrebno unijeti i šifru nerezidenta,  iz dokumenta \"Odnosi s inozemstvom- prilozi i popisi\"i)","Banke tj. društva koja primaju depozite osim središnje banke","03"]
[null,null,null,null,"05",null,"97",null,"05","05","05",null,"04","05",null,null,null,null,null,null,"AI","ANG",null,null,"05","AI",null,"23 Novčani fondovi (za NF s područja EU potrebno unijeti i šifru nerezidenta,  iz dokumenta \"Odnosi s inozemstvom- prilozi i popisi\".)","Novčani fondovi","23"]
[null,null,null,null,"06",null,"98",null,null,null,"06",null,"24","06",null,null,null,null,null,null,"AL","AOA",null,null,"06","AL",null,"04 Ostali financijski posrednici, osim društava za osiguranje i mirovinskih fondova","Ostali financijski posrednici, osim društava za osiguranje i mirovinskih fondova","04"]
[null,null,null,null,"07",null,"99",null,null,null,"07",null,"05",null,null,null,null,null,null,null,"AM","ARS",null,null,"07","AM",null,"24 Nenovčani investicijski fondovi","Nenovčani investicijski fondovi","24"]
[null,null,null,null,"08",null,null,null,null,null,"08",null,"06",null,null,null,null,null,null,null,"AO","AUD",null,null,"08","AO",null,"05 Financijske pomoćne institucije ","Financijske pomoćne institucije ","05"]
[null,null,null,null,"09",null,null,null,null,null,"09",null,"16",null,null,null,null,null,null,null,"AQ","AWG",null,null,"09","AQ",null,"06 Osiguravajuća društva ","Osiguravajuća društva ","06"]
[null,null,null,null,"10",null,null,null,null,null,null,null,"07",null,null,null,null,null,null,null,"AR","AZM",null,null,"10","AR",null,"16 Mirovinski fondovi","Mirovinski fondovi","16"]
[null,null,null,null,"11",null,null,null,null,null,null,null,"08",null,null,null,null,null,null,null,"AS","AZN",null,null,"99","AS",null,"07 Središnja država","Središnja država","07"]
[null,null,null,null,"12",null,null,null,null,null,null,null,"09",null,null,null,null,null,null,null,"AT","BAM",null,null,null,"AT",null,"08 Savezna država","Savezna država","08"]
[null,null,null,null,"13",null,null,null,null,null,null,null,"10",null,null,null,null,null,null,null,"AU","BBD",null,null,null,"AU",null,"09 Lokalna država","Lokalna država","09"]
[null,null,null,null,"99",null,null,null,null,null,null,null,"11",null,null,null,null,null,null,null,"AW","BDT",null,null,null,"AW",null,"10 Fondovi socijalne sigurnosti","Fondovi socijalne sigurnosti","10"]
[null,null,null,null,null,null,null,null,null,null,null,null,"12",null,null,null,null,null,null,null,"AX","BGN",null,null,null,"AX",null,"11 Kućanstva","Kućanstva","11"]
[null,null,null,null,null,null,null,null,null,null,null,null,"13",null,null,null,null,null,null,null,"AZ","BHD",null,null,null,"AZ",null,"12 Neprofitne institucije koje služe stanovništvu","Neprofitne institucije koje služe stanovništvu","12"]
[null,null,null,null,null,null,null,null,null,null,null,null,99,null,null,null,null,null,null,null,"BA","BIF",null,null,null,"BA",null,"13 Međunarodne institucije (potrebno unijeti i šifru nerezidenta, a istu šifru upisati i kao državu nerezidenta, iz dokumenta \"Odnosi s inozemstvom- prilozi i popisi\".)","Međunarodne institucije","13"]
[null,null,null,null,null,null,null,null,null,null,null,null,null,null,null,null,null,null,null,null,"BB","BMD",null,null,null,"BB",null,"99 Rezident (samo ako hrvatska banka sudjeluje u međ.sindikatu banaka koji odobrava kredit, potrebno unijeti i šifru, iz dokumenta \"Odnosi s inozemstvom- prilozi i popisi\".)","Rezident (samo ako hrvatska banka sudjeluje u međ.sindikatu banaka)","99"]
[null,null,null,null,null,null,null,null,null,null,null,null,null,null,null,null,null,null,null,null,"BD","BND",null,null,null,"BD"]
[null,null,null,null,null,null,null,null,null,null,null,null,null,null,null,null,null,null,null,null,"BE","BRL",null,null,null,"BE"]
[null,null,null,null,null,null,null,null,null,null,null,null,null,null,null,null,null,null,null,null,"BF","BSD",null,null,null,"BF"]
[null,null,null,null,null,null,null,null,null,null,null,null,null,null,null,null,null,null,null,null,"BG","BTN",null,null,null,"BG"]
[null,null,null,null,null,null,null,null,null,null,null,null,null,null,null,null,null,null,null,null,"BH","BWP",null,null,null,"BH"]
[null,null,null,null,null,null,null,null,null,null,null,null,null,null,null,null,null,null,null,null,"BI","BYN",null,null,null,"BI"]
[null,null,null,null,null,null,null,null,null,null,null,null,null,null,null,null,null,null,null,null,"BJ","BZD",null,null,null,"BJ"]
[null,null,null,null,null,null,null,null,null,null,null,null,null,null,null,null,null,null,null,null,"BL","CAD",null,null,null,"BL"]
[null,null,null,null,null,null,null,null,null,null,null,null,null,null,null,null,null,null,null,null,"BM","CDF",null,null,null,"BM"]
[null,null,null,null,null,null,null,null,null,null,null,null,null,null,null,null,null,null,null,null,"BN","CHE",null,null,null,"BN"]
[null,null,null,null,null,null,null,null,null,null,null,null,null,null,null,null,null,null,null,null,"BO","CHF",null,null,null,"BO"]
[null,null,null,null,null,null,null,null,null,null,null,null,null,null,null,null,null,null,null,null,"BQ","CHW",null,null,null,"BQ"]
[null,null,null,null,null,null,null,null,null,null,null,null,null,null,null,null,null,null,null,null,"BR","CLF",null,null,null,"BR"]
[null,null,null,null,null,null,null,null,null,null,null,null,null,null,null,null,null,null,null,null,"BS","CLP",null,null,null,"BS"]
[null,null,null,null,null,null,null,null,null,null,null,null,null,null,null,null,null,null,null,null,"BT","CNY",null,null,null,"BT"]
[null,null,null,null,null,null,null,null,null,null,null,null,null,null,null,null,null,null,null,null,"BV","COP",null,null,null,"BV"]
[null,null,null,null,null,null,null,null,null,null,null,null,null,null,null,null,null,null,null,null,"BW","COU",null,null,null,"BW"]
[null,null,null,null,null,null,null,null,null,null,null,null,null,null,null,null,null,null,null,null,"BY","CRC",null,null,null,"BY"]
[null,null,null,null,null,null,null,null,null,null,null,null,null,null,null,null,null,null,null,null,"BZ","CUC",null,null,null,"BZ"]
[null,null,null,null,null,null,null,null,null,null,null,null,null,null,null,null,null,null,null,null,"CA","CUP",null,null,null,"CA"]
[null,null,null,null,null,null,null,null,null,null,null,null,null,null,null,null,null,null,null,null,"CC","CVE",null,null,null,"CC"]
[null,null,null,null,null,null,null,null,null,null,null,null,null,null,null,null,null,null,null,null,"CD","CZK",null,null,null,"CD"]
[null,null,null,null,null,null,null,null,null,null,null,null,null,null,null,null,null,null,null,null,"CF","DJF",null,null,null,"CF"]
[null,null,null,null,null,null,null,null,null,null,null,null,null,null,null,null,null,null,null,null,"CG","DKK",null,null,null,"CG"]
[null,null,null,null,null,null,null,null,null,null,null,null,null,null,null,null,null,null,null,null,"CH","DOP",null,null,null,"CH"]
[null,null,null,null,null,null,null,null,null,null,null,null,null,null,null,null,null,null,null,null,"CI","DZD",null,null,null,"CI"]
[null,null,null,null,null,null,null,null,null,null,null,null,null,null,null,null,null,null,null,null,"CK","ECV",null,null,null,"CK"]
[null,null,null,null,null,null,null,null,null,null,null,null,null,null,null,null,null,null,null,null,"CL","EGP",null,null,null,"CL"]
[null,null,null,null,null,null,null,null,null,null,null,null,null,null,null,null,null,null,null,null,"CM","ERN",null,null,null,"CM"]
[null,null,null,null,null,null,null,null,null,null,null,null,null,null,null,null,null,null,null,null,"CN","ETB",null,null,null,"CN"]
[null,null,null,null,null,null,null,null,null,null,null,null,null,null,null,null,null,null,null,null,"CO","EUR",null,null,null,"CO"]
[null,null,null,null,null,null,null,null,null,null,null,null,null,null,null,null,null,null,null,null,"CR","FJD",null,null,null,"CR"]
[null,null,null,null,null,null,null,null,null,null,null,null,null,null,null,null,null,null,null,null,"CU","FKP",null,null,null,"CU"]
[null,null,null,null,null,null,null,null,null,null,null,null,null,null,null,null,null,null,null,null,"CV","GBP",null,null,null,"CV"]
[null,null,null,null,null,null,null,null,null,null,null,null,null,null,null,null,null,null,null,null,"CW","GEL",null,null,null,"CW"]
[null,null,null,null,null,null,null,null,null,null,null,null,null,null,null,null,null,null,null,null,"CX","GHS",null,null,null,"CX"]
[null,null,null,null,null,null,null,null,null,null,null,null,null,null,null,null,null,null,null,null,"CY","GIP",null,null,null,"CY"]
[null,null,null,null,null,null,null,null,null,null,null,null,null,null,null,null,null,null,null,null,"CZ","GMD",null,null,null,"CZ"]
[null,null,null,null,null,null,null,null,null,null,null,null,null,null,null,null,null,null,null,null,"DE","GNF",null,null,null,"DE"]
[null,null,null,null,null,null,null,null,null,null,null,null,null,null,null,null,null,null,null,null,"DJ","GTQ",null,null,null,"DJ"]
[null,null,null,null,null,null,null,null,null,null,null,null,null,null,null,null,null,null,null,null,"DK","GYD",null,null,null,"DK"]
[null,null,null,null,null,null,null,null,null,null,null,null,null,null,null,null,null,null,null,null,"DM","HKD",null,null,null,"DM"]
[null,null,null,null,null,null,null,null,null,null,null,null,null,null,null,null,null,null,null,null,"DO","HNL",null,null,null,"DO"]
[null,null,null,null,null,null,null,null,null,null,null,null,null,null,null,null,null,null,null,null,"DZ","HTG",null,null,null,"DZ"]
[null,null,null,null,null,null,null,null,null,null,null,null,null,null,null,null,null,null,null,null,"EC","HUF",null,null,null,"EC"]
[null,null,null,null,null,null,null,null,null,null,null,null,null,null,null,null,null,null,null,null,"EE","IDR",null,null,null,"EE"]
[null,null,null,null,null,null,null,null,null,null,null,null,null,null,null,null,null,null,null,null,"EG","ILS",null,null,null,"EG"]
[null,null,null,null,null,null,null,null,null,null,null,null,null,null,null,null,null,null,null,null,"EH","INR",null,null,null,"EH"]
[null,null,null,null,null,null,null,null,null,null,null,null,null,null,null,null,null,null,null,null,"ER","IQD",null,null,null,"ER"]
[null,null,null,null,null,null,null,null,null,null,null,null,null,null,null,null,null,null,null,null,"ES","IRR",null,null,null,"ES"]
[null,null,null,null,null,null,null,null,null,null,null,null,null,null,null,null,null,null,null,null,"ET","ISK",null,null,null,"ET"]
[null,null,null,null,null,null,null,null,null,null,null,null,null,null,null,null,null,null,null,null,"FI","JMD",null,null,null,"FI"]
[null,null,null,null,null,null,null,null,null,null,null,null,null,null,null,null,null,null,null,null,"FJ","JOD",null,null,null,"FJ"]
[null,null,null,null,null,null,null,null,null,null,null,null,null,null,null,null,null,null,null,null,"FK","JPY",null,null,null,"FK"]
[null,null,null,null,null,null,null,null,null,null,null,null,null,null,null,null,null,null,null,null,"FM","KES",null,null,null,"FM"]
[null,null,null,null,null,null,null,null,null,null,null,null,null,null,null,null,null,null,null,null,"FO","KGS",null,null,null,"FO"]
[null,null,null,null,null,null,null,null,null,null,null,null,null,null,null,null,null,null,null,null,"FR","KHR",null,null,null,"FR"]
[null,null,null,null,null,null,null,null,null,null,null,null,null,null,null,null,null,null,null,null,"FX","KMF",null,null,null,"FX"]
[null,null,null,null,null,null,null,null,null,null,null,null,null,null,null,null,null,null,null,null,"GA","KPW",null,null,null,"GA"]
[null,null,null,null,null,null,null,null,null,null,null,null,null,null,null,null,null,null,null,null,"GB","KRW",null,null,null,"GB"]
[null,null,null,null,null,null,null,null,null,null,null,null,null,null,null,null,null,null,null,null,"GD","KWD",null,null,null,"GD"]
[null,null,null,null,null,null,null,null,null,null,null,null,null,null,null,null,null,null,null,null,"GE","KYD",null,null,null,"GE"]
[null,null,null,null,null,null,null,null,null,null,null,null,null,null,null,null,null,null,null,null,"GF","KZT",null,null,null,"GF"]
[null,null,null,null,null,null,null,null,null,null,null,null,null,null,null,null,null,null,null,null,"GG","LAK",null,null,null,"GG"]
[null,null,null,null,null,null,null,null,null,null,null,null,null,null,null,null,null,null,null,null,"GH","LBP",null,null,null,"GH"]
[null,null,null,null,null,null,null,null,null,null,null,null,null,null,null,null,null,null,null,null,"GI","LKR",null,null,null,"GI"]
[null,null,null,null,null,null,null,null,null,null,null,null,null,null,null,null,null,null,null,null,"GL","LRD",null,null,null,"GL"]
[null,null,null,null,null,null,null,null,null,null,null,null,null,null,null,null,null,null,null,null,"GM","LSL",null,null,null,"GM"]
[null,null,null,null,null,null,null,null,null,null,null,null,null,null,null,null,null,null,null,null,"GN","LYD",null,null,null,"GN"]
[null,null,null,null,null,null,null,null,null,null,null,null,null,null,null,null,null,null,null,null,"GP","MAD",null,null,null,"GP"]
[null,null,null,null,null,null,null,null,null,null,null,null,null,null,null,null,null,null,null,null,"GQ","MDL",null,null,null,"GQ"]
[null,null,null,null,null,null,null,null,null,null,null,null,null,null,null,null,null,null,null,null,"GR","MGA",null,null,null,"GR"]
[null,null,null,null,null,null,null,null,null,null,null,null,null,null,null,null,null,null,null,null,"GS","MKD",null,null,null,"GS"]
[null,null,null,null,null,null,null,null,null,null,null,null,null,null,null,null,null,null,null,null,"GT","MMK",null,null,null,"GT"]
[null,null,null,null,null,null,null,null,null,null,null,null,null,null,null,null,null,null,null,null,"GU","MNT",null,null,null,"GU"]
[null,null,null,null,null,null,null,null,null,null,null,null,null,null,null,null,null,null,null,null,"GW","MOP",null,null,null,"GW"]
[null,null,null,null,null,null,null,null,null,null,null,null,null,null,null,null,null,null,null,null,"GY","MRO",null,null,null,"GY"]
[null,null,null,null,null,null,null,null,null,null,null,null,null,null,null,null,null,null,null,null,"HK","MUR",null,null,null,"HK"]
[null,null,null,null,null,null,null,null,null,null,null,null,null,null,null,null,null,null,null,null,"HM","MVR",null,null,null,"HM"]
[null,null,null,null,null,null,null,null,null,null,null,null,null,null,null,null,null,null,null,null,"HN","MWK",null,null,null,"HN"]
[null,null,null,null,null,null,null,null,null,null,null,null,null,null,null,null,null,null,null,null,"HR","MXN",null,null,null,"HR"]
[null,null,null,null,null,null,null,null,null,null,null,null,null,null,null,null,null,null,null,null,"HT","MXV",null,null,null,"HT"]
[null,null,null,null,null,null,null,null,null,null,null,null,null,null,null,null,null,null,null,null,"HU","MYR",null,null,null,"HU"]
[null,null,null,null,null,null,null,null,null,null,null,null,null,null,null,null,null,null,null,null,"ID","MZN",null,null,null,"ID"]
[null,null,null,null,null,null,null,null,null,null,null,null,null,null,null,null,null,null,null,null,"IE","NAD",null,null,null,"IE"]
[null,null,null,null,null,null,null,null,null,null,null,null,null,null,null,null,null,null,null,null,"IL","NGN",null,null,null,"IL"]
[null,null,null,null,null,null,null,null,null,null,null,null,null,null,null,null,null,null,null,null,"IM","NIO",null,null,null,"IM"]
[null,null,null,null,null,null,null,null,null,null,null,null,null,null,null,null,null,null,null,null,"IN","NOK",null,null,null,"IN"]
[null,null,null,null,null,null,null,null,null,null,null,null,null,null,null,null,null,null,null,null,"IO","NPR",null,null,null,"IO"]
[null,null,null,null,null,null,null,null,null,null,null,null,null,null,null,null,null,null,null,null,"IQ","NZD",null,null,null,"IQ"]
[null,null,null,null,null,null,null,null,null,null,null,null,null,null,null,null,null,null,null,null,"IR","OMR",null,null,null,"IR"]
[null,null,null,null,null,null,null,null,null,null,null,null,null,null,null,null,null,null,null,null,"IS","PAB",null,null,null,"IS"]
[null,null,null,null,null,null,null,null,null,null,null,null,null,null,null,null,null,null,null,null,"IT","PEN",null,null,null,"IT"]
[null,null,null,null,null,null,null,null,null,null,null,null,null,null,null,null,null,null,null,null,"JE","PGK",null,null,null,"JE"]
[null,null,null,null,null,null,null,null,null,null,null,null,null,null,null,null,null,null,null,null,"JM","PHP",null,null,null,"JM"]
[null,null,null,null,null,null,null,null,null,null,null,null,null,null,null,null,null,null,null,null,"JO","PKR",null,null,null,"JO"]
[null,null,null,null,null,null,null,null,null,null,null,null,null,null,null,null,null,null,null,null,"JP","PLN",null,null,null,"JP"]
[null,null,null,null,null,null,null,null,null,null,null,null,null,null,null,null,null,null,null,null,"KE","PTE",null,null,null,"KE"]
[null,null,null,null,null,null,null,null,null,null,null,null,null,null,null,null,null,null,null,null,"KG","PYG",null,null,null,"KG"]
[null,null,null,null,null,null,null,null,null,null,null,null,null,null,null,null,null,null,null,null,"KH","QAR",null,null,null,"KH"]
[null,null,null,null,null,null,null,null,null,null,null,null,null,null,null,null,null,null,null,null,"KI","RON",null,null,null,"KI"]
[null,null,null,null,null,null,null,null,null,null,null,null,null,null,null,null,null,null,null,null,"KM","RSD",null,null,null,"KM"]
[null,null,null,null,null,null,null,null,null,null,null,null,null,null,null,null,null,null,null,null,"KN","RUB",null,null,null,"KN"]
[null,null,null,null,null,null,null,null,null,null,null,null,null,null,null,null,null,null,null,null,"KP","RWF",null,null,null,"KP"]
[null,null,null,null,null,null,null,null,null,null,null,null,null,null,null,null,null,null,null,null,"KR","SAR",null,null,null,"KR"]
[null,null,null,null,null,null,null,null,null,null,null,null,null,null,null,null,null,null,null,null,"KW","SBD",null,null,null,"KW"]
[null,null,null,null,null,null,null,null,null,null,null,null,null,null,null,null,null,null,null,null,"KY","SCR",null,null,null,"KY"]
[null,null,null,null,null,null,null,null,null,null,null,null,null,null,null,null,null,null,null,null,"KZ","SDG",null,null,null,"KZ"]
[null,null,null,null,null,null,null,null,null,null,null,null,null,null,null,null,null,null,null,null,"LA","SEK",null,null,null,"LA"]
[null,null,null,null,null,null,null,null,null,null,null,null,null,null,null,null,null,null,null,null,"LB","SGD",null,null,null,"LB"]
[null,null,null,null,null,null,null,null,null,null,null,null,null,null,null,null,null,null,null,null,"LC","SHP",null,null,null,"LC"]
[null,null,null,null,null,null,null,null,null,null,null,null,null,null,null,null,null,null,null,null,"LI","SLL",null,null,null,"LI"]
[null,null,null,null,null,null,null,null,null,null,null,null,null,null,null,null,null,null,null,null,"LK","SOS",null,null,null,"LK"]
[null,null,null,null,null,null,null,null,null,null,null,null,null,null,null,null,null,null,null,null,"LR","SRD",null,null,null,"LR"]
[null,null,null,null,null,null,null,null,null,null,null,null,null,null,null,null,null,null,null,null,"LS","SSP",null,null,null,"LS"]
[null,null,null,null,null,null,null,null,null,null,null,null,null,null,null,null,null,null,null,null,"LT","STD",null,null,null,"LT"]
[null,null,null,null,null,null,null,null,null,null,null,null,null,null,null,null,null,null,null,null,"LU","SVC",null,null,null,"LU"]
[null,null,null,null,null,null,null,null,null,null,null,null,null,null,null,null,null,null,null,null,"LV","SYP",null,null,null,"LV"]
[null,null,null,null,null,null,null,null,null,null,null,null,null,null,null,null,null,null,null,null,"LY","SZL",null,null,null,"LY"]
[null,null,null,null,null,null,null,null,null,null,null,null,null,null,null,null,null,null,null,null,"MA","THB",null,null,null,"MA"]
[null,null,null,null,null,null,null,null,null,null,null,null,null,null,null,null,null,null,null,null,"MC","TJS",null,null,null,"MC"]
[null,null,null,null,null,null,null,null,null,null,null,null,null,null,null,null,null,null,null,null,"MD","TMT",null,null,null,"MD"]
[null,null,null,null,null,null,null,null,null,null,null,null,null,null,null,null,null,null,null,null,"ME","TND",null,null,null,"ME"]
[null,null,null,null,null,null,null,null,null,null,null,null,null,null,null,null,null,null,null,null,"MF","TOP",null,null,null,"MF"]
[null,null,null,null,null,null,null,null,null,null,null,null,null,null,null,null,null,null,null,null,"MG","TPE",null,null,null,"MG"]
[null,null,null,null,null,null,null,null,null,null,null,null,null,null,null,null,null,null,null,null,"MH","TRY",null,null,null,"MH"]
[null,null,null,null,null,null,null,null,null,null,null,null,null,null,null,null,null,null,null,null,"MK","TTD",null,null,null,"MK"]
[null,null,null,null,null,null,null,null,null,null,null,null,null,null,null,null,null,null,null,null,"ML","TWD",null,null,null,"ML"]
[null,null,null,null,null,null,null,null,null,null,null,null,null,null,null,null,null,null,null,null,"MM","TZS",null,null,null,"MM"]
[null,null,null,null,null,null,null,null,null,null,null,null,null,null,null,null,null,null,null,null,"MN","UAH",null,null,null,"MN"]
[null,null,null,null,null,null,null,null,null,null,null,null,null,null,null,null,null,null,null,null,"MO","UGX",null,null,null,"MO"]
[null,null,null,null,null,null,null,null,null,null,null,null,null,null,null,null,null,null,null,null,"MP","USD",null,null,null,"MP"]
[null,null,null,null,null,null,null,null,null,null,null,null,null,null,null,null,null,null,null,null,"MQ","USN",null,null,null,"MQ"]
[null,null,null,null,null,null,null,null,null,null,null,null,null,null,null,null,null,null,null,null,"MR","USS",null,null,null,"MR"]
[null,null,null,null,null,null,null,null,null,null,null,null,null,null,null,null,null,null,null,null,"MS","UYI",null,null,null,"MS"]
[null,null,null,null,null,null,null,null,null,null,null,null,null,null,null,null,null,null,null,null,"MT","UYU",null,null,null,"MT"]
[null,null,null,null,null,null,null,null,null,null,null,null,null,null,null,null,null,null,null,null,"MU","UZS",null,null,null,"MU"]
[null,null,null,null,null,null,null,null,null,null,null,null,null,null,null,null,null,null,null,null,"MV","VEF",null,null,null,"MV"]
[null,null,null,null,null,null,null,null,null,null,null,null,null,null,null,null,null,null,null,null,"MW","VND",null,null,null,"MW"]
[null,null,null,null,null,null,null,null,null,null,null,null,null,null,null,null,null,null,null,null,"MX","VUV",null,null,null,"MX"]
[null,null,null,null,null,null,null,null,null,null,null,null,null,null,null,null,null,null,null,null,"MY","WST",null,null,null,"MY"]
[null,null,null,null,null,null,null,null,null,null,null,null,null,null,null,null,null,null,null,null,"MZ","XAF",null,null,null,"MZ"]
[null,null,null,null,null,null,null,null,null,null,null,null,null,null,null,null,null,null,null,null,"NA","XAG",null,null,null,"NA"]
[null,null,null,null,null,null,null,null,null,null,null,null,null,null,null,null,null,null,null,null,"NC","XAT",null,null,null,"NC"]
[null,null,null,null,null,null,null,null,null,null,null,null,null,null,null,null,null,null,null,null,"NE","XAU",null,null,null,"NE"]
[null,null,null,null,null,null,null,null,null,null,null,null,null,null,null,null,null,null,null,null,"NF","XBA",null,null,null,"NF"]
[null,null,null,null,null,null,null,null,null,null,null,null,null,null,null,null,null,null,null,null,"NG","XBB",null,null,null,"NG"]
[null,null,null,null,null,null,null,null,null,null,null,null,null,null,null,null,null,null,null,null,"NI","XBC",null,null,null,"NI"]
[null,null,null,null,null,null,null,null,null,null,null,null,null,null,null,null,null,null,null,null,"NL","XBD",null,null,null,"NL"]
[null,null,null,null,null,null,null,null,null,null,null,null,null,null,null,null,null,null,null,null,"NO","XCD",null,null,null,"NO"]
[null,null,null,null,null,null,null,null,null,null,null,null,null,null,null,null,null,null,null,null,"NP","XDR",null,null,null,"NP"]
[null,null,null,null,null,null,null,null,null,null,null,null,null,null,null,null,null,null,null,null,"NR","XOF",null,null,null,"NR"]
[null,null,null,null,null,null,null,null,null,null,null,null,null,null,null,null,null,null,null,null,"NU","XPD",null,null,null,"NU"]
[null,null,null,null,null,null,null,null,null,null,null,null,null,null,null,null,null,null,null,null,"NZ","XPF",null,null,null,"NZ"]
[null,null,null,null,null,null,null,null,null,null,null,null,null,null,null,null,null,null,null,null,"OM","XPT",null,null,null,"OM"]
[null,null,null,null,null,null,null,null,null,null,null,null,null,null,null,null,null,null,null,null,"PA","XSU",null,null,null,"PA"]
[null,null,null,null,null,null,null,null,null,null,null,null,null,null,null,null,null,null,null,null,"PE","XUA",null,null,null,"PE"]
[null,null,null,null,null,null,null,null,null,null,null,null,null,null,null,null,null,null,null,null,"PF","XXX",null,null,null,"PF"]
[null,null,null,null,null,null,null,null,null,null,null,null,null,null,null,null,null,null,null,null,"PG","YER",null,null,null,"PG"]
[null,null,null,null,null,null,null,null,null,null,null,null,null,null,null,null,null,null,null,null,"PH","ZAR",null,null,null,"PH"]
[null,null,null,null,null,null,null,null,null,null,null,null,null,null,null,null,null,null,null,null,"PK","ZMW",null,null,null,"PK"]
[null,null,null,null,null,null,null,null,null,null,null,null,null,null,null,null,null,null,null,null,"PL","ZWL",null,null,null,"PL"]
[null,null,null,null,null,null,null,null,null,null,null,null,null,null,null,null,null,null,null,null,"PM",null,null,null,null,"PM"]
[null,null,null,null,null,null,null,null,null,null,null,null,null,null,null,null,null,null,null,null,"PN",null,null,null,null,"PN"]
[null,null,null,null,null,null,null,null,null,null,null,null,null,null,null,null,null,null,null,null,"PR",null,null,null,null,"PR"]
[null,null,null,null,null,null,null,null,null,null,null,null,null,null,null,null,null,null,null,null,"PS",null,null,null,null,"PS"]
[null,null,null,null,null,null,null,null,null,null,null,null,null,null,null,null,null,null,null,null,"PT",null,null,null,null,"PT"]
[null,null,null,null,null,null,null,null,null,null,null,null,null,null,null,null,null,null,null,null,"PW",null,null,null,null,"PW"]
[null,null,null,null,null,null,null,null,null,null,null,null,null,null,null,null,null,null,null,null,"PY",null,null,null,null,"PY"]
[null,null,null,null,null,null,null,null,null,null,null,null,null,null,null,null,null,null,null,null,"QA",null,null,null,null,"QA"]
[null,null,null,null,null,null,null,null,null,null,null,null,null,null,null,null,null,null,null,null,"RE",null,null,null,null,"RE"]
[null,null,null,null,null,null,null,null,null,null,null,null,null,null,null,null,null,null,null,null,"RO",null,null,null,null,"RO"]
[null,null,null,null,null,null,null,null,null,null,null,null,null,null,null,null,null,null,null,null,"RS",null,null,null,null,"RS"]
[null,null,null,null,null,null,null,null,null,null,null,null,null,null,null,null,null,null,null,null,"RU",null,null,null,null,"RU"]
[null,null,null,null,null,null,null,null,null,null,null,null,null,null,null,null,null,null,null,null,"RW",null,null,null,null,"RW"]
[null,null,null,null,null,null,null,null,null,null,null,null,null,null,null,null,null,null,null,null,"SA",null,null,null,null,"SA"]
[null,null,null,null,null,null,null,null,null,null,null,null,null,null,null,null,null,null,null,null,"SB",null,null,null,null,"SB"]
[null,null,null,null,null,null,null,null,null,null,null,null,null,null,null,null,null,null,null,null,"SC",null,null,null,null,"SC"]
[null,null,null,null,null,null,null,null,null,null,null,null,null,null,null,null,null,null,null,null,"SD",null,null,null,null,"SD"]
[null,null,null,null,null,null,null,null,null,null,null,null,null,null,null,null,null,null,null,null,"SE",null,null,null,null,"SE"]
[null,null,null,null,null,null,null,null,null,null,null,null,null,null,null,null,null,null,null,null,"SG",null,null,null,null,"SG"]
[null,null,null,null,null,null,null,null,null,null,null,null,null,null,null,null,null,null,null,null,"SH",null,null,null,null,"SH"]
[null,null,null,null,null,null,null,null,null,null,null,null,null,null,null,null,null,null,null,null,"SI",null,null,null,null,"SI"]
[null,null,null,null,null,null,null,null,null,null,null,null,null,null,null,null,null,null,null,null,"SJ",null,null,null,null,"SJ"]
[null,null,null,null,null,null,null,null,null,null,null,null,null,null,null,null,null,null,null,null,"SK",null,null,null,null,"SK"]
[null,null,null,null,null,null,null,null,null,null,null,null,null,null,null,null,null,null,null,null,"SL",null,null,null,null,"SL"]
[null,null,null,null,null,null,null,null,null,null,null,null,null,null,null,null,null,null,null,null,"SM",null,null,null,null,"SM"]
[null,null,null,null,null,null,null,null,null,null,null,null,null,null,null,null,null,null,null,null,"SN",null,null,null,null,"SN"]
[null,null,null,null,null,null,null,null,null,null,null,null,null,null,null,null,null,null,null,null,"SO",null,null,null,null,"SO"]
[null,null,null,null,null,null,null,null,null,null,null,null,null,null,null,null,null,null,null,null,"SR",null,null,null,null,"SR"]
[null,null,null,null,null,null,null,null,null,null,null,null,null,null,null,null,null,null,null,null,"SS",null,null,null,null,"SS"]
[null,null,null,null,null,null,null,null,null,null,null,null,null,null,null,null,null,null,null,null,"ST",null,null,null,null,"ST"]
[null,null,null,null,null,null,null,null,null,null,null,null,null,null,null,null,null,null,null,null,"SV",null,null,null,null,"SV"]
[null,null,null,null,null,null,null,null,null,null,null,null,null,null,null,null,null,null,null,null,"SX",null,null,null,null,"SX"]
[null,null,null,null,null,null,null,null,null,null,null,null,null,null,null,null,null,null,null,null,"SY",null,null,null,null,"SY"]
[null,null,null,null,null,null,null,null,null,null,null,null,null,null,null,null,null,null,null,null,"SZ",null,null,null,null,"SZ"]
[null,null,null,null,null,null,null,null,null,null,null,null,null,null,null,null,null,null,null,null,"TC",null,null,null,null,"TC"]
[null,null,null,null,null,null,null,null,null,null,null,null,null,null,null,null,null,null,null,null,"TD",null,null,null,null,"TD"]
[null,null,null,null,null,null,null,null,null,null,null,null,null,null,null,null,null,null,null,null,"TF",null,null,null,null,"TF"]
[null,null,null,null,null,null,null,null,null,null,null,null,null,null,null,null,null,null,null,null,"TG",null,null,null,null,"TG"]
[null,null,null,null,null,null,null,null,null,null,null,null,null,null,null,null,null,null,null,null,"TH",null,null,null,null,"TH"]
[null,null,null,null,null,null,null,null,null,null,null,null,null,null,null,null,null,null,null,null,"TJ",null,null,null,null,"TJ"]
[null,null,null,null,null,null,null,null,null,null,null,null,null,null,null,null,null,null,null,null,"TK",null,null,null,null,"TK"]
[null,null,null,null,null,null,null,null,null,null,null,null,null,null,null,null,null,null,null,null,"TL",null,null,null,null,"TL"]
[null,null,null,null,null,null,null,null,null,null,null,null,null,null,null,null,null,null,null,null,"TM",null,null,null,null,"TM"]
[null,null,null,null,null,null,null,null,null,null,null,null,null,null,null,null,null,null,null,null,"TN",null,null,null,null,"TN"]
[null,null,null,null,null,null,null,null,null,null,null,null,null,null,null,null,null,null,null,null,"TO",null,null,null,null,"TO"]
[null,null,null,null,null,null,null,null,null,null,null,null,null,null,null,null,null,null,null,null,"TR",null,null,null,null,"TR"]
[null,null,null,null,null,null,null,null,null,null,null,null,null,null,null,null,null,null,null,null,"TT",null,null,null,null,"TT"]
[null,null,null,null,null,null,null,null,null,null,null,null,null,null,null,null,null,null,null,null,"TV",null,null,null,null,"TV"]
[null,null,null,null,null,null,null,null,null,null,null,null,null,null,null,null,null,null,null,null,"TW",null,null,null,null,"TW"]
[null,null,null,null,null,null,null,null,null,null,null,null,null,null,null,null,null,null,null,null,"TZ",null,null,null,null,"TZ"]
[null,null,null,null,null,null,null,null,null,null,null,null,null,null,null,null,null,null,null,null,"UA",null,null,null,null,"UA"]
[null,null,null,null,null,null,null,null,null,null,null,null,null,null,null,null,null,null,null,null,"UG",null,null,null,null,"UG"]
[null,null,null,null,null,null,null,null,null,null,null,null,null,null,null,null,null,null,null,null,"UM",null,null,null,null,"UM"]
[null,null,null,null,null,null,null,null,null,null,null,null,null,null,null,null,null,null,null,null,"US",null,null,null,null,"US"]
[null,null,null,null,null,null,null,null,null,null,null,null,null,null,null,null,null,null,null,null,"UY",null,null,null,null,"UY"]
[null,null,null,null,null,null,null,null,null,null,null,null,null,null,null,null,null,null,null,null,"UZ",null,null,null,null,"UZ"]
[null,null,null,null,null,null,null,null,null,null,null,null,null,null,null,null,null,null,null,null,"VA",null,null,null,null,"VA"]
[null,null,null,null,null,null,null,null,null,null,null,null,null,null,null,null,null,null,null,null,"VC",null,null,null,null,"VC"]
[null,null,null,null,null,null,null,null,null,null,null,null,null,null,null,null,null,null,null,null,"VE",null,null,null,null,"VE"]
[null,null,null,null,null,null,null,null,null,null,null,null,null,null,null,null,null,null,null,null,"VG",null,null,null,null,"VG"]
[null,null,null,null,null,null,null,null,null,null,null,null,null,null,null,null,null,null,null,null,"VI",null,null,null,null,"VI"]
[null,null,null,null,null,null,null,null,null,null,null,null,null,null,null,null,null,null,null,null,"VN",null,null,null,null,"VN"]
[null,null,null,null,null,null,null,null,null,null,null,null,null,null,null,null,null,null,null,null,"VU",null,null,null,null,"VU"]
[null,null,null,null,null,null,null,null,null,null,null,null,null,null,null,null,null,null,null,null,"WF",null,null,null,null,"WF"]
[null,null,null,null,null,null,null,null,null,null,null,null,null,null,null,null,null,null,null,null,"WS",null,null,null,null,"WS"]
[null,null,null,null,null,null,null,null,null,null,null,null,null,null,null,null,null,null,null,null,"XK",null,null,null,null,"XK"]
[null,null,null,null,null,null,null,null,null,null,null,null,null,null,null,null,null,null,null,null,"YE",null,null,null,null,"YE"]
[null,null,null,null,null,null,null,null,null,null,null,null,null,null,null,null,null,null,null,null,"YT",null,null,null,null,"YT"]
[null,null,null,null,null,null,null,null,null,null,null,null,null,null,null,null,null,null,null,null,"ZA",null,null,null,null,"ZA"]
[null,null,null,null,null,null,null,null,null,null,null,null,null,null,null,null,null,null,null,null,"ZM",null,null,null,null,"ZM"]
[null,null,null,null,null,null,null,null,null,null,null,null,null,null,null,null,null,null,null,null,"ZW",null,null,null,null,"ZW"]
[null,null,null,null,null,null,null,null,null,null,null,null,null,null,null,null,null,null,null,null,"4B"]
[null,null,null,null,null,null,null,null,null,null,null,null,null,null,null,null,null,null,null,null,"4C"]
[null,null,null,null,null,null,null,null,null,null,null,null,null,null,null,null,null,null,null,null,"4D"]
[null,null,null,null,null,null,null,null,null,null,null,null,null,null,null,null,null,null,null,null,"4DJ"]
[null,null,null,null,null,null,null,null,null,null,null,null,null,null,null,null,null,null,null,null,"4E"]
[null,null,null,null,null,null,null,null,null,null,null,null,null,null,null,null,null,null,null,null,"4F"]
[null,null,null,null,null,null,null,null,null,null,null,null,null,null,null,null,null,null,null,null,"4G"]
[null,null,null,null,null,null,null,null,null,null,null,null,null,null,null,null,null,null,null,null,"4H"]
[null,null,null,null,null,null,null,null,null,null,null,null,null,null,null,null,null,null,null,null,"4I"]
[null,null,null,null,null,null,null,null,null,null,null,null,null,null,null,null,null,null,null,null,"4J"]
[null,null,null,null,null,null,null,null,null,null,null,null,null,null,null,null,null,null,null,null,"4J1"]
[null,null,null,null,null,null,null,null,null,null,null,null,null,null,null,null,null,null,null,null,"4J2"]
[null,null,null,null,null,null,null,null,null,null,null,null,null,null,null,null,null,null,null,null,"4J3"]
[null,null,null,null,null,null,null,null,null,null,null,null,null,null,null,null,null,null,null,null,"4J4"]
[null,null,null,null,null,null,null,null,null,null,null,null,null,null,null,null,null,null,null,null,"4J5"]
[null,null,null,null,null,null,null,null,null,null,null,null,null,null,null,null,null,null,null,null,"4J6"]
[null,null,null,null,null,null,null,null,null,null,null,null,null,null,null,null,null,null,null,null,"4J7"]
[null,null,null,null,null,null,null,null,null,null,null,null,null,null,null,null,null,null,null,null,"4J8"]
[null,null,null,null,null,null,null,null,null,null,null,null,null,null,null,null,null,null,null,null,"4J81"]
[null,null,null,null,null,null,null,null,null,null,null,null,null,null,null,null,null,null,null,null,"4J810"]
[null,null,null,null,null,null,null,null,null,null,null,null,null,null,null,null,null,null,null,null,"4J811"]
[null,null,null,null,null,null,null,null,null,null,null,null,null,null,null,null,null,null,null,null,"4J812"]
[null,null,null,null,null,null,null,null,null,null,null,null,null,null,null,null,null,null,null,null,"4J813"]
[null,null,null,null,null,null,null,null,null,null,null,null,null,null,null,null,null,null,null,null,"4J814"]
[null,null,null,null,null,null,null,null,null,null,null,null,null,null,null,null,null,null,null,null,"4J815"]
[null,null,null,null,null,null,null,null,null,null,null,null,null,null,null,null,null,null,null,null,"4J816"]
[null,null,null,null,null,null,null,null,null,null,null,null,null,null,null,null,null,null,null,null,"4J817"]
[null,null,null,null,null,null,null,null,null,null,null,null,null,null,null,null,null,null,null,null,"4J818"]
[null,null,null,null,null,null,null,null,null,null,null,null,null,null,null,null,null,null,null,null,"4J819"]
[null,null,null,null,null,null,null,null,null,null,null,null,null,null,null,null,null,null,null,null,"4J82"]
[null,null,null,null,null,null,null,null,null,null,null,null,null,null,null,null,null,null,null,null,"4J820"]
[null,null,null,null,null,null,null,null,null,null,null,null,null,null,null,null,null,null,null,null,"4J821"]
[null,null,null,null,null,null,null,null,null,null,null,null,null,null,null,null,null,null,null,null,"4J822"]
[null,null,null,null,null,null,null,null,null,null,null,null,null,null,null,null,null,null,null,null,"4J823"]
[null,null,null,null,null,null,null,null,null,null,null,null,null,null,null,null,null,null,null,null,"4J824"]
[null,null,null,null,null,null,null,null,null,null,null,null,null,null,null,null,null,null,null,null,"4J825"]
[null,null,null,null,null,null,null,null,null,null,null,null,null,null,null,null,null,null,null,null,"4J826"]
[null,null,null,null,null,null,null,null,null,null,null,null,null,null,null,null,null,null,null,null,"4J827"]
[null,null,null,null,null,null,null,null,null,null,null,null,null,null,null,null,null,null,null,null,"4J828"]
[null,null,null,null,null,null,null,null,null,null,null,null,null,null,null,null,null,null,null,null,"4J829"]
[null,null,null,null,null,null,null,null,null,null,null,null,null,null,null,null,null,null,null,null,"4J83"]
[null,null,null,null,null,null,null,null,null,null,null,null,null,null,null,null,null,null,null,null,"4J830"]
[null,null,null,null,null,null,null,null,null,null,null,null,null,null,null,null,null,null,null,null,"4J831"]
[null,null,null,null,null,null,null,null,null,null,null,null,null,null,null,null,null,null,null,null,"4J832"]
[null,null,null,null,null,null,null,null,null,null,null,null,null,null,null,null,null,null,null,null,"4J833"]
[null,null,null,null,null,null,null,null,null,null,null,null,null,null,null,null,null,null,null,null,"4J834"]
[null,null,null,null,null,null,null,null,null,null,null,null,null,null,null,null,null,null,null,null,"4J835"]
[null,null,null,null,null,null,null,null,null,null,null,null,null,null,null,null,null,null,null,null,"4J836"]
[null,null,null,null,null,null,null,null,null,null,null,null,null,null,null,null,null,null,null,null,"4J837"]
[null,null,null,null,null,null,null,null,null,null,null,null,null,null,null,null,null,null,null,null,"4J838"]
[null,null,null,null,null,null,null,null,null,null,null,null,null,null,null,null,null,null,null,null,"4J839"]
[null,null,null,null,null,null,null,null,null,null,null,null,null,null,null,null,null,null,null,null,"4J84"]
[null,null,null,null,null,null,null,null,null,null,null,null,null,null,null,null,null,null,null,null,"4J840"]
[null,null,null,null,null,null,null,null,null,null,null,null,null,null,null,null,null,null,null,null,"4J841"]
[null,null,null,null,null,null,null,null,null,null,null,null,null,null,null,null,null,null,null,null,"4J842"]
[null,null,null,null,null,null,null,null,null,null,null,null,null,null,null,null,null,null,null,null,"4J85"]
[null,null,null,null,null,null,null,null,null,null,null,null,null,null,null,null,null,null,null,null,"4J86"]
[null,null,null,null,null,null,null,null,null,null,null,null,null,null,null,null,null,null,null,null,"4J87"]
[null,null,null,null,null,null,null,null,null,null,null,null,null,null,null,null,null,null,null,null,"4J88"]
[null,null,null,null,null,null,null,null,null,null,null,null,null,null,null,null,null,null,null,null,"4J89"]
[null,null,null,null,null,null,null,null,null,null,null,null,null,null,null,null,null,null,null,null,"4J90"]
[null,null,null,null,null,null,null,null,null,null,null,null,null,null,null,null,null,null,null,null,"4M"]
[null,null,null,null,null,null,null,null,null,null,null,null,null,null,null,null,null,null,null,null,"4R"]
[null,null,null,null,null,null,null,null,null,null,null,null,null,null,null,null,null,null,null,null,"4S"]
[null,null,null,null,null,null,null,null,null,null,null,null,null,null,null,null,null,null,null,null,"4T"]
[null,null,null,null,null,null,null,null,null,null,null,null,null,null,null,null,null,null,null,null,"4T1"]
[null,null,null,null,null,null,null,null,null,null,null,null,null,null,null,null,null,null,null,null,"4T2"]
[null,null,null,null,null,null,null,null,null,null,null,null,null,null,null,null,null,null,null,null,"4T3"]
[null,null,null,null,null,null,null,null,null,null,null,null,null,null,null,null,null,null,null,null,"4U"]
[null,null,null,null,null,null,null,null,null,null,null,null,null,null,null,null,null,null,null,null,"4V"]
[null,null,null,null,null,null,null,null,null,null,null,null,null,null,null,null,null,null,null,null,"4W"]
[null,null,null,null,null,null,null,null,null,null,null,null,null,null,null,null,null,null,null,null,"4X"]
[null,null,null,null,null,null,null,null,null,null,null,null,null,null,null,null,null,null,null,null,"4Y"]
[null,null,null,null,null,null,null,null,null,null,null,null,null,null,null,null,null,null,null,null,"1B"]
[null,null,null,null,null,null,null,null,null,null,null,null,null,null,null,null,null,null,null,null,"1C"]
[null,null,null,null,null,null,null,null,null,null,null,null,null,null,null,null,null,null,null,null,"1D"]
[null,null,null,null,null,null,null,null,null,null,null,null,null,null,null,null,null,null,null,null,"1E"]
[null,null,null,null,null,null,null,null,null,null,null,null,null,null,null,null,null,null,null,null,"1F"]
[null,null,null,null,null,null,null,null,null,null,null,null,null,null,null,null,null,null,null,null,"1G"]
[null,null,null,null,null,null,null,null,null,null,null,null,null,null,null,null,null,null,null,null,"1H"]
[null,null,null,null,null,null,null,null,null,null,null,null,null,null,null,null,null,null,null,null,"1J"]
[null,null,null,null,null,null,null,null,null,null,null,null,null,null,null,null,null,null,null,null,"1K"]
[null,null,null,null,null,null,null,null,null,null,null,null,null,null,null,null,null,null,null,null,"1L"]
[null,null,null,null,null,null,null,null,null,null,null,null,null,null,null,null,null,null,null,null,"1M"]
[null,null,null,null,null,null,null,null,null,null,null,null,null,null,null,null,null,null,null,null,"1N"]
[null,null,null,null,null,null,null,null,null,null,null,null,null,null,null,null,null,null,null,null,"1O"]
[null,null,null,null,null,null,null,null,null,null,null,null,null,null,null,null,null,null,null,null,"1P"]
[null,null,null,null,null,null,null,null,null,null,null,null,null,null,null,null,null,null,null,null,"1Q"]
[null,null,null,null,null,null,null,null,null,null,null,null,null,null,null,null,null,null,null,null,"1R"]
[null,null,null,null,null,null,null,null,null,null,null,null,null,null,null,null,null,null,null,null,"1S"]
[null,null,null,null,null,null,null,null,null,null,null,null,null,null,null,null,null,null,null,null,"1T"]
[null,null,null,null,null,null,null,null,null,null,null,null,null,null,null,null,null,null,null,null,"1U"]
[null,null,null,null,null,null,null,null,null,null,null,null,null,null,null,null,null,null,null,null,"1U1"]
[null,null,null,null,null,null,null,null,null,null,null,null,null,null,null,null,null,null,null,null,"1U2"]
[null,null,null,null,null,null,null,null,null,null,null,null,null,null,null,null,null,null,null,null,"1V"]
[null,null,null,null,null,null,null,null,null,null,null,null,null,null,null,null,null,null,null,null,"1W"]
[null,null,null,null,null,null,null,null,null,null,null,null,null,null,null,null,null,null,null,null,"5A"]
[null,null,null,null,null,null,null,null,null,null,null,null,null,null,null,null,null,null,null,null,"5AA"]
[null,null,null,null,null,null,null,null,null,null,null,null,null,null,null,null,null,null,null,null,"5B"]
[null,null,null,null,null,null,null,null,null,null,null,null,null,null,null,null,null,null,null,null,"5C"]
[null,null,null,null,null,null,null,null,null,null,null,null,null,null,null,null,null,null,null,null,"5D"]
[null,null,null,null,null,null,null,null,null,null,null,null,null,null,null,null,null,null,null,null,"5E"]
[null,null,null,null,null,null,null,null,null,null,null,null,null,null,null,null,null,null,null,null,"5F"]
[null,null,null,null,null,null,null,null,null,null,null,null,null,null,null,null,null,null,null,null,"5G"]
[null,null,null,null,null,null,null,null,null,null,null,null,null,null,null,null,null,null,null,null,"5H"]
[null,null,null,null,null,null,null,null,null,null,null,null,null,null,null,null,null,null,null,null,"5I"]
[null,null,null,null,null,null,null,null,null,null,null,null,null,null,null,null,null,null,null,null,"5J"]
[null,null,null,null,null,null,null,null,null,null,null,null,null,null,null,null,null,null,null,null,"5K"]
[null,null,null,null,null,null,null,null,null,null,null,null,null,null,null,null,null,null,null,null,"5L"]
[null,null,null,null,null,null,null,null,null,null,null,null,null,null,null,null,null,null,null,null,"5M"]
[null,null,null,null,null,null,null,null,null,null,null,null,null,null,null,null,null,null,null,null,"5N"]
[null,null,null,null,null,null,null,null,null,null,null,null,null,null,null,null,null,null,null,null,"5O"]
[null,null,null,null,null,null,null,null,null,null,null,null,null,null,null,null,null,null,null,null,"5P"]
[null,null,null,null,null,null,null,null,null,null,null,null,null,null,null,null,null,null,null,null,"5Q"]
[null,null,null,null,null,null,null,null,null,null,null,null,null,null,null,null,null,null,null,null,"5R"]
[null,null,null,null,null,null,null,null,null,null,null,null,null,null,null,null,null,null,null,null,"5S"]
[null,null,null,null,null,null,null,null,null,null,null,null,null,null,null,null,null,null,null,null,"5T"]
[null,null,null,null,null,null,null,null,null,null,null,null,null,null,null,null,null,null,null,null,"5U"]
[null,null,null,null,null,null,null,null,null,null,null,null,null,null,null,null,null,null,null,null,"5W"]
[null,null,null,null,null,null,null,null,null,null,null,null,null,null,null,null,null,null,null,null,"5X"]
[null,null,null,null,null,null,null,null,null,null,null,null,null,null,null,null,null,null,null,null,"5Z"]
[null,null,null,null,null,null,null,null,null,null,null,null,null,null,null,null,null,null,null,null,"5Z1"]
[null,null,null,null,null,null,null,null,null,null,null,null,null,null,null,null,null,null,null,null,"5Z10"]
[null,null,null,null,null,null,null,null,null,null,null,null,null,null,null,null,null,null,null,null,"5Z11"]
[null,null,null,null,null,null,null,null,null,null,null,null,null,null,null,null,null,null,null,null,"5Z12"]
[null,null,null,null,null,null,null,null,null,null,null,null,null,null,null,null,null,null,null,null,"5Z13"]
[null,null,null,null,null,null,null,null,null,null,null,null,null,null,null,null,null,null,null,null,"5Z14"]
[null,null,null,null,null,null,null,null,null,null,null,null,null,null,null,null,null,null,null,null,"5Z15"]
[null,null,null,null,null,null,null,null,null,null,null,null,null,null,null,null,null,null,null,null,"5Z16"]
[null,null,null,null,null,null,null,null,null,null,null,null,null,null,null,null,null,null,null,null,"5Z17"]
[null,null,null,null,null,null,null,null,null,null,null,null,null,null,null,null,null,null,null,null,"5Z18"]
[null,null,null,null,null,null,null,null,null,null,null,null,null,null,null,null,null,null,null,null,"5Z19"]
[null,null,null,null,null,null,null,null,null,null,null,null,null,null,null,null,null,null,null,null,"5Z2"]
[null,null,null,null,null,null,null,null,null,null,null,null,null,null,null,null,null,null,null,null,"5Z20"]
[null,null,null,null,null,null,null,null,null,null,null,null,null,null,null,null,null,null,null,null,"5Z21"]
[null,null,null,null,null,null,null,null,null,null,null,null,null,null,null,null,null,null,null,null,"5Z22"]
[null,null,null,null,null,null,null,null,null,null,null,null,null,null,null,null,null,null,null,null,"5Z23"]
[null,null,null,null,null,null,null,null,null,null,null,null,null,null,null,null,null,null,null,null,"5Z24"]
[null,null,null,null,null,null,null,null,null,null,null,null,null,null,null,null,null,null,null,null,"5Z25"]
[null,null,null,null,null,null,null,null,null,null,null,null,null,null,null,null,null,null,null,null,"5Z26"]
[null,null,null,null,null,null,null,null,null,null,null,null,null,null,null,null,null,null,null,null,"5Z27"]
[null,null,null,null,null,null,null,null,null,null,null,null,null,null,null,null,null,null,null,null,"5Z28"]
[null,null,null,null,null,null,null,null,null,null,null,null,null,null,null,null,null,null,null,null,"5Z29"]
[null,null,null,null,null,null,null,null,null,null,null,null,null,null,null,null,null,null,null,null,"5Z3"]
[null,null,null,null,null,null,null,null,null,null,null,null,null,null,null,null,null,null,null,null,"5Z30"]
[null,null,null,null,null,null,null,null,null,null,null,null,null,null,null,null,null,null,null,null,"5Z31"]
[null,null,null,null,null,null,null,null,null,null,null,null,null,null,null,null,null,null,null,null,"5Z33"]
[null,null,null,null,null,null,null,null,null,null,null,null,null,null,null,null,null,null,null,null,"5Z34"]
[null,null,null,null,null,null,null,null,null,null,null,null,null,null,null,null,null,null,null,null,"5Z35"]
[null,null,null,null,null,null,null,null,null,null,null,null,null,null,null,null,null,null,null,null,"5Z36"]
[null,null,null,null,null,null,null,null,null,null,null,null,null,null,null,null,null,null,null,null,"5Z37"]
[null,null,null,null,null,null,null,null,null,null,null,null,null,null,null,null,null,null,null,null,"5Z38"]
[null,null,null,null,null,null,null,null,null,null,null,null,null,null,null,null,null,null,null,null,"5Z39"]
[null,null,null,null,null,null,null,null,null,null,null,null,null,null,null,null,null,null,null,null,"5Z4"]
[null,null,null,null,null,null,null,null,null,null,null,null,null,null,null,null,null,null,null,null,"5Z40"]
[null,null,null,null,null,null,null,null,null,null,null,null,null,null,null,null,null,null,null,null,"5Z41"]
[null,null,null,null,null,null,null,null,null,null,null,null,null,null,null,null,null,null,null,null,"5Z42"]
[null,null,null,null,null,null,null,null,null,null,null,null,null,null,null,null,null,null,null,null,"5Z43"]
[null,null,null,null,null,null,null,null,null,null,null,null,null,null,null,null,null,null,null,null,"5Z44"]
[null,null,null,null,null,null,null,null,null,null,null,null,null,null,null,null,null,null,null,null,"5Z45"]
[null,null,null,null,null,null,null,null,null,null,null,null,null,null,null,null,null,null,null,null,"5Z46"]
[null,null,null,null,null,null,null,null,null,null,null,null,null,null,null,null,null,null,null,null,"5Z5"]
[null,null,null,null,null,null,null,null,null,null,null,null,null,null,null,null,null,null,null,null,"5Z6"]
[null,null,null,null,null,null,null,null,null,null,null,null,null,null,null,null,null,null,null,null,"5Z7"]
[null,null,null,null,null,null,null,null,null,null,null,null,null,null,null,null,null,null,null,null,"5Z8"]
[null,null,null,null,null,null,null,null,null,null,null,null,null,null,null,null,null,null,null,null,"5Z9"]
[null,null,null,null,null,null,null,null,null,null,null,null,null,null,null,null,null,null,null,null,"6A"]
[null,null,null,null,null,null,null,null,null,null,null,null,null,null,null,null,null,null,null,null,"6A1"]
[null,null,null,null,null,null,null,null,null,null,null,null,null,null,null,null,null,null,null,null,"6A2"]
[null,null,null,null,null,null,null,null,null,null,null,null,null,null,null,null,null,null,null,null,"6A3"]
[null,null,null,null,null,null,null,null,null,null,null,null,null,null,null,null,null,null,null,null,"6A4"]
[null,null,null,null,null,null,null,null,null,null,null,null,null,null,null,null,null,null,null,null,"6A5"]
[null,null,null,null,null,null,null,null,null,null,null,null,null,null,null,null,null,null,null,null,"6A6"]
[null,null,null,null,null,null,null,null,null,null,null,null,null,null,null,null,null,null,null,null,"6A7"]
[null,null,null,null,null,null,null,null,null,null,null,null,null,null,null,null,null,null,null,null,"6A8"]
[null,null,null,null,null,null,null,null,null,null,null,null,null,null,null,null,null,null,null,null,"6A9"]
[null,null,null,null,null,null,null,null,null,null,null,null,null,null,null,null,null,null,null,null,"6A10"]
[null,null,null,null,null,null,null,null,null,null,null,null,null,null,null,null,null,null,null,null,"6A11"]
[null,null,null,null,null,null,null,null,null,null,null,null,null,null,null,null,null,null,null,null,"6B"]
[null,null,null,null,null,null,null,null,null,null,null,null,null,null,null,null,null,null,null,null,"6C"]
[null,null,null,null,null,null,null,null,null,null,null,null,null,null,null,null,null,null,null,null,"6D"]
[null,null,null,null,null,null,null,null,null,null,null,null,null,null,null,null,null,null,null,null,"6E"]
[null,null,null,null,null,null,null,null,null,null,null,null,null,null,null,null,null,null,null,null,"6F"]
[null,null,null,null,null,null,null,null,null,null,null,null,null,null,null,null,null,null,null,null,"6G"]
[null,null,null,null,null,null,null,null,null,null,null,null,null,null,null,null,null,null,null,null,"6H"]
[null,null,null,null,null,null,null,null,null,null,null,null,null,null,null,null,null,null,null,null,"6I"]
[null,null,null,null,null,null,null,null,null,null,null,null,null,null,null,null,null,null,null,null,"6J"]
[null,null,null,null,null,null,null,null,null,null,null,null,null,null,null,null,null,null,null,null,"6K"]
[null,null,null,null,null,null,null,null,null,null,null,null,null,null,null,null,null,null,null,null,"6L"]
[null,null,null,null,null,null,null,null,null,null,null,null,null,null,null,null,null,null,null,null,"6M"]
[null,null,null,null,null,null,null,null,null,null,null,null,null,null,null,null,null,null,null,null,"6N"]
[null,null,null,null,null,null,null,null,null,null,null,null,null,null,null,null,null,null,null,null,"6O"]
[null,null,null,null,null,null,null,null,null,null,null,null,null,null,null,null,null,null,null,null,"6P"]
[null,null,null,null,null,null,null,null,null,null,null,null,null,null,null,null,null,null,null,null,"6Q"]
[null,null,null,null,null,null,null,null,null,null,null,null,null,null,null,null,null,null,null,null,"6Z"]
[null,null,null,null,null,null,null,null,null,null,null,null,null,null,null,null,null,null,null,null,"6Z1"]
[null,null,null,null,null,null,null,null,null,null,null,null,null,null,null,null,null,null,null,null,"6Z2"]
[null,null,null,null,null,null,null,null,null,null,null,null,null,null,null,null,null,null,null,null,"7A"]
[null,null,null,null,null,null,null,null,null,null,null,null,null,null,null,null,null,null,null,null,"7B"]
[null,null,null,null,null,null,null,null,null,null,null,null,null,null,null,null,null,null,null,null,"7C"]
[null,null,null,null,null,null,null,null,null,null,null,null,null,null,null,null,null,null,null,null,"7D"]
[null,null,null,null,null,null,null,null,null,null,null,null,null,null,null,null,null,null,null,null,"7E"]
[null,null,null,null,null,null,null,null,null,null,null,null,null,null,null,null,null,null,null,null,"7F"]
[null,null,null,null,null,null,null,null,null,null,null,null,null,null,null,null,null,null,null,null,"7G"]
[null,null,null,null,null,null,null,null,null,null,null,null,null,null,null,null,null,null,null,null,"7H"]
[null,null,null,null,null,null,null,null,null,null,null,null,null,null,null,null,null,null,null,null,"7I"]
[null,null,null,null,null,null,null,null,null,null,null,null,null,null,null,null,null,null,null,null,"7J"]
[null,null,null,null,null,null,null,null,null,null,null,null,null,null,null,null,null,null,null,null,"7K"]
[null,null,null,null,null,null,null,null,null,null,null,null,null,null,null,null,null,null,null,null,"7L"]
[null,null,null,null,null,null,null,null,null,null,null,null,null,null,null,null,null,null,null,null,"7M"]
[null,null,null,null,null,null,null,null,null,null,null,null,null,null,null,null,null,null,null,null,"7O"]
[null,null,null,null,null,null,null,null,null,null,null,null,null,null,null,null,null,null,null,null,"9A"]
[null,null,null,null,null,null,null,null,null,null,null,null,null,null,null,null,null,null,null,null,"9B"]

{"sheet":"pomocna2","index":9,"n_rows":465,"n_cols":2,"rows_kept":465,"cut":false,"hidden":true,"merged":[]}
["NAZIV_HR","SIFRASLOV2"]
["AFGANISTAN","AF"]
["ALBANIJA","AL"]
["ALŽIR","DZ"]
["AMERIČKA SAMOA","AS"]
["ANDORA","AD"]
["ANGOLA","AO"]
["ANGUILLA","AI"]
["ANTARKTIKA","AQ"]
["ANTIGVA I BARBUDA","AG"]
["ARGENTINA","AR"]
["ARMENIJA","AM"]
["ARUBA","AW"]
["AUSTRALIJA","AU"]
["AUSTRIJA","AT"]
["AZERBAJDŽAN","AZ"]
["BAHAMI","BS"]
["BAHREIN","BH"]
["BANGLADEŠ","BD"]
["BARBADOS","BB"]
["BELGIJA","BE"]
["BELIZE","BZ"]
["BENIN","BJ"]
["BERMUDI","BM"]
["BJELOKOSNA OBALA","CI"]
["BJELORUSIJA","BY"]
["BOCVANA","BW"]
["BOLIVIJA (PLURINACIONALNA DRŽAVA)","BO"]
["BONAIRE, SVETI EUSTAZIJE I SABA","BQ"]
["BOSNA I HERCEGOVINA","BA"]
["BOŽIĆNI OTOK","CX"]
["BRAZIL","BR"]
["BRITANSKI INDIJSKOOCEANSKI TERITORIJ","IO"]
["BRUNEJ","BN"]
["BUGARSKA","BG"]
["BURKINA FASO","BF"]
["BURUNDI","BI"]
["BUTAN","BT"]
["CIPAR","CY"]
["CRNA GORA","ME"]
["CURAÇAO","CW"]
["ČAD","TD"]
["ČEŠKA","CZ"]
["ČILE","CL"]
["DANSKA","DK"]
["DJEVIČANSKI OTOCI (AMERIČKI)","VI"]
["DJEVIČANSKI OTOCI (BRITANSKI)","VG"]
["DOMINIKA","DM"]
["DOMINIKANSKA REPUBLIKA","DO"]
["DŽIBUTI","DJ"]
["EGIPAT","EG"]
["EKVADOR","EC"]
["EKVATORSKA GVINEJA","GQ"]
["ERITREJA","ER"]
["ESTONIJA","EE"]
["ESVATINI","SZ"]
["ETIOPIJA","ET"]
["FALKLANDI (MALVINI)","FK"]
["FEROJSKI (OVČJI) OTOCI","FO"]
["FIDŽI","FJ"]
["FILIPINI","PH"]
["FINSKA","FI"]
["FRANCUSKA","FR"]
["FRANCUSKA GVAJANA","GF"]
["FRANCUSKA POLINEZIJA","PF"]
["FRANCUSKI JUŽNI TERITORIJI","TF"]
["GABON","GA"]
["GAMBIJA","GM"]
["GANA","GH"]
["GIBRALTAR","GI"]
["GRČKA","GR"]
["GRENADA","GD"]
["GRENLAND","GL"]
["GRUZIJA","GE"]
["GUADELOUPE","GP"]
["GUAM","GU"]
["GUERNSEY","GG"]
["GVAJANA","GY"]
["GVATEMALA","GT"]
["GVINEJA","GN"]
["GVINEJA BISAU","GW"]
["HAITI","HT"]
["HONDURAS","HN"]
["HONG KONG","HK"]
["HRVATSKA","HR"]
["INDIJA","IN"]
["INDONEZIJA","ID"]
["IRAK","IQ"]
["IRAN (ISLAMSKA REPUBLIKA)","IR"]
["IRSKA","IE"]
["ISLAND","IS"]
["ITALIJA","IT"]
["IZRAEL","IL"]
["JAMAJKA","JM"]
["JAPAN","JP"]
["JEMEN","YE"]
["JERSEY","JE"]
["JORDAN","JO"]
["JUŽNA DŽORDŽIJA I OTOCI JUŽNI SENDVIČ","GS"]
["JUŽNI SUDAN","SS"]
["JUŽNOAFRIČKA REPUBLIKA","ZA"]
["KAJMANSKI OTOCI","KY"]
["KAMBODŽA","KH"]
["KAMERUN","CM"]
["KANADA","CA"]
["KATAR","QA"]
["KAZAHSTAN","KZ"]
["KENIJA","KE"]
["KINA","CN"]
["KIRGISTAN","KG"]
["KIRIBATI","KI"]
["KOKOSOVI OTOCI (KEELING)","CC"]
["KOLUMBIJA","CO"]
["KOMORI","KM"]
["KONGO","CG"]
["KONGO, DEMOKRATSKA REPUBLIKA ","CD"]
["KOREJA (DEMOKRATSKA NARODNA REPUBLIKA) ","KP"]
["KOREJA, REPUBLIKA","KR"]
["KOSTARIKA","CR"]
["KUBA","CU"]
["KUKOVI OTOCI","CK"]
["KUVAJT","KW"]
["LAOS, NARODNA DEMOKRATSKA REPUBLIKA","LA"]
["LATVIJA","LV"]
["LESOTO","LS"]
["LIBANON","LB"]
["LIBERIJA","LR"]
["LIBIJA","LY"]
["LIHTENŠTAJN","LI"]
["LITVA","LT"]
["LUKSEMBURG","LU"]
["MADAGASKAR","MG"]
["MAĐARSKA","HU"]
["MAKAO","MO"]
["MALAVI","MW"]
["MALDIVI","MV"]
["MALEZIJA","MY"]
["MALI","ML"]
["MALTA","MT"]
["MAROKO","MA"]
["MARŠALOVI OTOCI","MH"]
["MARTINIQUE","MQ"]
["MAURICIJUS","MU"]
["MAURITANIJA","MR"]
["MAYOTTE","YT"]
["MEKSIKO","MX"]
["MIJANMAR","MM"]
["MIKRONEZIJA (SAVEZNE DRŽAVE)","FM"]
["MOLDAVIJA, REPUBLIKA","MD"]
["MONAKO","MC"]
["MONGOLIJA","MN"]
["MONTSERRAT","MS"]
["MOZAMBIK","MZ"]
["NAMIBIJA","NA"]
["NAURU","NR"]
["NEPAL","NP"]
["NIGER","NE"]
["NIGERIJA","NG"]
["NIKARAGVA","NI"]
["NIUE","NU"]
["NIZOZEMSKA","NL"]
["NORVEŠKA","NO"]
["NOVA KALEDONIJA","NC"]
["NOVI ZELAND","NZ"]
["NJEMAČKA","DE"]
["OMAN","OM"]
["OTOCI ǺLAND","AX"]
["OTOCI TURKS I CAICOS","TC"]
["OTOK BOUVET","BV"]
["OTOK HEARD I OTOCI MCDONALD","HM"]
["OTOK MAN","IM"]
["OTOK NORFOLK","NF"]
["PAKISTAN","PK"]
["PALAU","PW"]
["PALESTINA, DRŽAVA","PS"]
["PANAMA","PA"]
["PAPUA NOVA GVINEJA","PG"]
["PARAGVAJ","PY"]
["PERU","PE"]
["PITCAIRN","PN"]
["POLJSKA","PL"]
["PORTORIKO","PR"]
["PORTUGAL","PT"]
["RÉUNION","RE"]
["RUANDA","RW"]
["RUMUNJSKA","RO"]
["RUSIJA","RU"]
["SALVADOR","SV"]
["SAMOA","WS"]
["SAN MARINO","SM"]
["SAUDIJSKA ARABIJA","SA"]
["SEJŠELI","SC"]
["SENEGAL","SN"]
["SIJERA LEONE","SL"]
["SINGAPUR","SG"]
["SIRIJA","SY"]
["SJEDINJENE AMERIČKE DRŽAVE","US"]
["SJEVERNA MAKEDONIJA","MK"]
["SJEVERNI MARIJANSKI OTOCI","MP"]
["SLOVAČKA","SK"]
["SLOVENIJA","SI"]
["SOLOMONSKI OTOCI","SB"]
["SOMALIJA","SO"]
["SRBIJA ","RS"]
["SREDNJOAFRIČKA REPUBLIKA","CF"]
["SUDAN","SD"]
["SURINAM","SR"]
["SVALBARD I JAN MAYEN","SJ"]
["SVETA HELENA, ASCENSION I TRISTAN DA CUNHA","SH"]
["SVETA LUCIJA","LC"]
["SVETA STOLICA","VA"]
["SVETI BARTOLOMEJ ","BL"]
["SVETI KRISTOFOR I NEVIS","KN"]
["SVETI MARTIN (francuski dio)","MF"]
["SVETI MARTIN (nizozemski dio)","SX"]
["SVETI PETAR I MIKELON","PM"]
["SVETI TOMA I PRINSIPE","ST"]
["SVETI VINCENT I GRENADINI","VC"]
["ŠPANJOLSKA","ES"]
["ŠRI LANKA","LK"]
["ŠVEDSKA","SE"]
["ŠVICARSKA","CH"]
["TADŽIKISTAN","TJ"]
["TAJLAND","TH"]
["TAJVAN, KINESKA PROVINCIJA","TW"]
["TANZANIJA, UJEDINJENA REPUBLIKA","TZ"]
["TIMOR LESTE","TL"]
["TOGO","TG"]
["TOKELAU","TK"]
["TONGA","TO"]
["TRINIDAD I TOBAGO","TT"]
["TUNIS","TN"]
["TURKMENISTAN","TM"]
["TURSKA","TR"]
["TUVALU","TV"]
["UGANDA","UG"]
["UJEDINJENE DRŽAVE MANJIH PACIFIČKIH OTOKA","UM"]
["UJEDINJENI ARAPSKI EMIRATI","AE"]
["UJEDINJENO KRALJEVSTVO VELIKE BRITANIJE I SJEVERNE IRSKE","GB"]
["UKRAJINA","UA"]
["URUGVAJ","UY"]
["UZBEKISTAN","UZ"]
["VANUATU","VU"]
["VENEZUELA (BOLIVARIJANSKA REPUBLIKA)","VE"]
["VIJETNAM","VN"]
["WALLIS I FUTUNA","WF"]
["ZAMBIJA","ZM"]
["ZAPADNA SAHARA","EH"]
["ZELENORTSKA REPUBLIKA","CV"]
["ZIMBABVE","ZW"]
["ADC (Andska razvojna korporacija – Razvojna banka Latinske Amerike)","5U"]
["AfDB (Afrička razvojna banka)","5D"]
["AFREXIMBANK (Afrička izvozno-uvozna banka)","7H"]
["Afrička financijska korporacija","5Z1"]
["Afrička unija","6A1"]
["Afrički razvojni fond","5Q"]
["Agencija Europske unije za temeljna prava","4J835"]
["Agencija za opskrbu Euratoma","4U2"]
["Agencija za suradnju energetskih regulatora","4J81"]
["AMF (Arapski monetarni fond)","5M"]
["Arapski fond za gospodarski i socijalni razvoj","5Z3"]
["AsDB (Azijska razvojna banka)","5E"]
["Azijska infrastrukturna investicijska banka","5X"]
["Azijska klirinška unija","5Z4"]
["Azijski razvojni fond","5R"]
["BADEA (Arapska banka za gospodarski razvoj u Africi)","5N"]
["Banka ECOWAS-a za ulaganja i razvoj","6A6"]
["BCEAO (Središnja banka zapadnoafričkih država)","5O"]
["BEAC (Banka srednjoafričkih država)","5W"]
["Belgijsko-kongolski fond za amortizaciju i upravljanje","7K"]
["BIS (Banka za međunarodna poravnanja)","5B"]
["BLADEX (Latinskoamerička banka za vanjsku trgovinu)","7I"]
["brisano","5Z8"]
["CABEI (Srednjoamerička banka za ekonomsku integraciju)","5T"]
["CASDB (Razvojna banka srednjoafričkih država)","5P"]
["CDB (Karipska razvojna banka)","5L"]
["CEB (Razvojna banka Vijeća Europe)","7E"]
["CERN (Europska organizacija za nuklearna istraživanja)","6P"]
["Crnomorska banka za trgovinu i razvoj","7G"]
["EBA (Europsko nadzorno tijelo za bankarstvo)","4T1"]
["EBRD (Europska banka za obnovu i razvoj)","5F"]
["EBU/UER (Europska radiodifuzijska unija / Europska unija radija i televizije)","6K"]
["ECB (Europska središnja banka)","4F"]
["ECCB (Središnja banka istočnih Kariba)","5I"]
["ECMWF (Europski centar za srednjoročne vremenske prognoze)","6N"]
["EDB (Euroazijska razvojna banka)","7C"]
["EDF (Europski razvojni fond)","4E"]
["EFSF (Europski instrument financijske stabilnosti)","4W"]
["EIB (Europska investicijska banka)","4C"]
["EIF (Europski investicijski fond)","4G"]
["EIOPA (Europsko nadzorno tijelo za osiguranje i strukovne mirovine)","4T3"]
["Ekonomska zajednica zapadnoafričkih država","5Z6"]
["EMBL (Europski laboratorij za molekularnu biologiju)","6I"]
["EPO (Europski patentni ured)","6F"]
["ESA (Europska svemirska agencija)","6E"]
["ESM (Europski stabilizacijski mehanizam)","4S"]
["ESMA (Europsko nadzorno tijelo za vrijednosne papire i tržišta kapitala)","4T2"]
["ESO (Europski južni opservatorij)","6M"]
["EUMETSAT (Europska organizacija za iskorištavanje meteoroloških satelita)","6L"]
["EURATOM","4U"]
["Euroazijska gospodarska komisija","6A11"]
["EUROCONTROL (Europska organizacija za sigurnost zračne plovidbe)","6G"]
["EUROFIMA (Europsko društvo za financiranje željezničkih voznih sredstava)","7M"]
["Europska agencija za GNSS","4J820"]
["Europska agencija za graničnu i obalnu stražu (Frontex)","4J86"]
["Europska agencija za kemikalije","4J812"]
["Europska agencija za kontrolu ribarstva","4J817"]
["Europska agencija za lijekove","4J824"]
["Europska agencija za mrežnu i informacijsku sigurnost","4J826"]
["Europska agencija za okoliš","4J815"]
["Europska agencija za operativno upravljanje opsežnim informacijskim sustavima u području slobode, sigurnosti i pravde","4J87"]
["Europska agencija za pomorsku sigurnost","4J823"]
["Europska agencija za sigurnost hrane","4J818"]
["Europska agencija za sigurnost i zdravlje na radu","4J85"]
["Europska agencija za sigurnost zračnog prometa","4J89"]
["Europska komisija","4D"]
["Europska obrambena agencija","4J814"]
["Europska služba za vanjsko djelovanje","4J816"]
["Europska škola za upravu","4J833"]
["Europska zajednica za ugljen i čelik","4H"]
["Europska zaklada za osposobljavanje","4J834"]
["Europska zaklada za poboljšanje životnih i radnih uvjeta","4J819"]
["Europska željeznička agencija","4J832"]
["Europski centar za praćenje droga i ovisnosti o drogama","4J825"]
["Europski centar za razvoj strukovnog osposobljavanja","4J811"]
["Europski centar za sprečavanje i kontrolu bolesti","4J810"]
["Europski institut za inovacije i tehnologiju","4J822"]
["Europski institut za ravnopravnost spolova","4J821"]
["Europski instrument mirovne pomoći","4J842"]
["Europski nadzornik za zaštitu podataka","4J813"]
["Europski ombudsman","4J827"]
["Europski parlament","4J1"]
["Europski policijski koledž","4J829"]
["Europski policijski ured","4J830"]
["Europski revizorski sud","4J4"]
["Europski ured za odabir osoblja","4J828"]
["Europski ured za potporu azilu","4J88"]
["Europsko udruženje slobodne trgovine","5Z7"]
["Europsko vijeće","4J5"]
["EUTELSAT (Europska organizacija za telekomunikacijske satelite)","6H"]
["FAO (Organizacija za hranu i poljoprivredu)","1J"]
["FEMIP (Instrument za euro-mediteranska ulaganja i partnerstvo)","4V"]
["FLAR (Latinskoamerički rezervni fond)","7J"]
["Fond OPEC-a za međunarodni razvoj","6A8"]
["Fusion for Energy (bivša šifra 5Z8)","4U1"]
["Globalni fond za borbu protiv AIDS-a, tuberkuloze i malarije","6Z1"]
["Gospodarski i socijalni odbor","4J6"]
["IADB (Međuamerička razvojna banka)","5C"]
["IAEA (Međunarodna agencija za atomsku energiju)","1R"]
["IBEC (Međunarodna banka za gospodarsku suradnju)","5J"]
["IBRD (Međunarodna banka za obnovu i razvoj)","1E"]
["ICRC (Međunarodni odbor Crvenog križa)","6D"]
["ICSID (Međunarodni centar za rješavanje investicijskih sporova)","1G"]
["IDA (Međunarodno udruženje za razvoj)","1F"]
["IDB (Islamska razvojna banka)","7B"]
["IEA (Međunarodna energetska agencija)","6A10"]
["IFAD (Međunarodni fond za poljoprivredni razvoj)","1L"]
["IFC (Međunarodna financijska korporacija)","1M"]
["IFFIm (Međunarodni instrument financiranja imunizacije)","7L"]
["IIB (Međunarodna investicijska banka)","5K"]
["IIC (Međuamerička investicijska korporacija)","5G"]
["ILO (Međunarodna organizacija rada)","1S"]
["IMF (Međunarodni monetarni fond)","1C"]
["Institut Europske unije za sigurnosne studije","4J836"]
["Instrument za ulaganja u susjedstvu","4I"]
["IOM (Međunarodna organizacija za migracije)","6Q"]
["Islamska korporacija za osiguranje ulaganja i izvoznih kredita (ICIEC)","7B2"]
["Istočno- i južnoafrička banka za trgovinu i razvoj","7O"]
["Istočnoafrička razvojna banka","6A5"]
["ITSO (Međunarodna organizacija za telekomunikacijske satelite)","6J"]
["ITU (Međunarodna telekomunikacijska unija)","1T"]
["Jedinica Europske unije za pravosudnu suradnju","4J840"]
["Jedinstveni posebni razvojni fond","5S"]
["Južnoazijsko udruženje za regionalnu suradnju","5Z33"]
["Karipska zajednica i zajedničko tržište","6A3"]
["Kolombo plan","5Z5"]
["Konferencija Ujedinjenih naroda o trgovini i razvoju","5Z34"]
["Latinskoamerička energetska organizacija","5Z24"]
["Latinskoamerički i karipski gospodarski sustav","5Z23"]
["Latinskoameričko integracijsko udruženje","5Z25"]
["Latinskoameričko udruženje institucija za financiranje razvoja","6A7"]
["Liga arapskih država","5Z26"]
["Međunarodna islamska korporacija za financiranje trgovine","7B1"]
["Međunarodna organizacija civilnog zrakoplovstva","5Z10"]
["Međunarodna organizacija za kakao","5Z11"]
["Međunarodna organizacija za kavu","5Z12"]
["Međunarodna organizacija za pomorske satelite","5Z19"]
["Međunarodna organizacija za šećer","5Z22"]
["Međunarodna pomorska organizacija","5Z18"]
["Međunarodna studijska skupina za bakar","5Z13"]
["Međunarodna studijska skupina za gumu","5Z21"]
["Međunarodna studijska skupina za jutu","5Z16"]
["Međunarodna studijska skupina za olovo i cink","5Z17"]
["Međunarodna unija osiguravatelja kredita i ulaganja","7F"]
["Međunarodni centar za razvoj migracijske politike","6Z2"]
["Međunarodni iberijski laboratorij za nanotehnologiju","6R"]
["Međunarodni kazneni sud (ICC)","6A12"]
["Međunarodni savjetodavni odbor za pamuk","5Z14"]
["Međunarodno vijeće za istraživanje mora (ICES)","5Z45"]
["Međunarodno vijeće za masline","5Z20"]
["Međunarodno vijeće za žitarice","5Z15"]
["Međuvladino vijeće zemalja izvoznica bakra","5Z9"]
["MIGA (Multilateralna agencija za jamstva ulaganja)","1N"]
["Multilateralne kreditne agencije","5AA"]
["Nadzorno tijelo EFTA-e (ESA)","6Z3"]
["NATO (Organizacija Sjevernoatlantskog ugovora)","6B"]
["NATO-ova organizacija za potporu i nabavu","6B1"]
["NDB (Nova razvojna banka)","5Z47"]
["NIB (Nordijska investicijska banka)","5H"]
["Nordijski razvojni fond","5Z43"]
["Odbor regija","4J7"]
["OECD (Organizacija za gospodarsku suradnju i razvoj)","6O"]
["Organizacija američkih država","5Z28"]
["Organizacija arapskih zemalja izvoznica nafte","5Z29"]
["Organizacija istočnokaripskih država","5Z27"]
["Organizacija srednjoameričkih država","5Z30"]
["Organizacija za zabranu kemijskog oružja (OPCW)","6Z5"]
["Organizacija zemalja izvoznica nafte","5Z31"]
["Ostala tijela, međuinstitucijske službe i agencije Europske unije","4J8"]
["Ostale međunarodne financijske organizacije, koje nisu drugdje svrstane","5Z"]
["Ostale međunarodne nefinancijske organizacije, koje nisu drugdje svrstane","6Z"]
["Ostale organizacije Ujedinjenih naroda, koje nisu drugdje svrstane","1U"]
["Prevoditeljski centar za tijela Europske unije","4J841"]
["Regionalni centar za okoliš za srednju i istočnu Europu","5Z46"]
["Satelitski centar Europske unije","4J838"]
["Sjevernoamerička razvojna banka","5Z44"]
["Skupina Afričke razvojne banke","5Z2"]
["SRB (Jedinstveni sanacijski odbor)","4M"]
["Srednjoameričko zajedničko tržište","6A4"]
["Stalni arbitražni sud","6A9"]
["Sud Europskog udruženja slobodne trgovine","5Z71"]
["Sud pravde","4J3"]
["Svjetska metereološka organizacija","5Z41"]
["Svjetska organizacija za intelektualno vlasništvo","5Z40"]
["Svjetska poštanska unija","1V"]
["Svjetska turistička organizacija","5Z42"]
["Svjetsko vijeće crkvi","5Z39"]
["Tijelo europskih regulatora za elektroničke komunikacije","4J82"]
["Tim za odgovor na računalne sigurnosne incidente","4J84"]
["Udruženje država jugoistočne Azije","6A2"]
["UNECE (Gospodarska komisija Ujedinjenih naroda za Europu)","1U1"]
["UNESCO (Organizacija Ujedinjenih naroda za obrazovanje, znanost i kulturu)","1H"]
["UNFCCC (Okvirna konvencija Ujedinjenih naroda o klimatskim promjenama)","1U2"]
["UNHCR (Visoki povjerenik Ujedinjenih naroda za izbjeglice)","1P"]
["UNICEF (Fond Ujedinjenih naroda za djecu)","1O"]
["UNODC (Ured Ujedinjenih naroda za droge i kriminal)","1X"]
["UNOPS (Ured Ujedinjenih naroda za projektne usluge)","1U3"]
["UNRWA (Agencija Ujedinjenih naroda za pomoć palestinskim izbjeglicama i organizaciju radova)","1Q"]
["Ured Europske unije za intelektualno vlasništvo","4J837"]
["Ured europskog javnog tužitelja","4J831"]
["Ured za publikacije Europske unije","4J839"]
["Ured Zajednice za biljne sorte","4J83"]
["Uzajamni fond EU-a i Afrike za infrastrukturu","4R"]
["Vijeće Europe","6C"]
["Vijeće Europske unije","4J2"]
["Vjerovničke institucije Pariškog kluba","7D"]
["WAEMU (Zapadnoafrička ekonomska i monetarna unija)","7A"]
["WFP (Svjetski program za hranu Ujedinjenih naroda)","1Y"]
["WHO (Svjetska zdravstvena organizacija)","1K"]
["WTO (Svjetska trgovinska organizacija)","1D"]
["Zajedničko poduzeće za europsko računalstvo visokih performansi","4J90"]
["Zapadnoafrička ekonomska zajednica","5Z35"]
["Zapadnoafrička monetarna agencija","5Z37"]
["Zapadnoafrička zdravstvena organizacija","5Z36"]
["Zapadnoafrički monetarni institut","5Z38"]

{"sheet":"pomocna3","index":10,"n_rows":182,"n_cols":7,"rows_kept":182,"cut":false,"hidden":true,"merged":[]}
["NAZIV_HR","SIFRASLOV2"]
["UAE DIRHAM","AED",null,null,"01 - Rezident je izravni ulagač u nerezidenta (ima vlasnički udjel u nerezidentu od 10% ili više)",{"$f":"+MID(E2,6,100)","v":"Rezident je izravni ulagač u nerezidenta (ima vlasnički udjel u nerezidentu od 10% ili više)"},{"$f":"+LEFT(E2,2)","v":"01"}]
["AFGAN","AFN",null,null,"02 - Nerezident je izravni ulagač u rezidenta ( ima vlasnički udjel u rezidentu od 10% ili više)",{"$f":"+MID(E3,6,100)","v":"Nerezident je izravni ulagač u rezidenta ( ima vlasnički udjel u rezidentu od 10% ili više)"},{"$f":"+LEFT(E3,2)","v":"02"}]
["LEK","ALL",null,null,"03 - Rezident je posredni izravni ulagač u nerezidenta","Rezident je posredni izravni ulagač u nerezidenta","03"]
["ARMENSKI DRAM","AMD",null,null,"04 - Nerezident je posredni izravni ulagač u rezidenta","Nerezident je posredni izravni ulagač u rezidenta","04"]
["NIZOZEMSKOANTILSKI GULDEN","ANG",null,null,"06 - Horizontalno povezana poduzeća",{"$f":"+MID(E6,6,100)","v":"Horizontalno povezana poduzeća"},{"$f":"+LEFT(E6,2)","v":"06"}]
["KVANZA","AOA",null,null,"05 - Ne postoji vlasnička povezanost",{"$f":"+MID(E7,6,100)","v":"Ne postoji vlasnička povezanost"},{"$f":"+LEFT(E7,2)","v":"05"}]
["ARGENTINSKI PEZO","ARS"]
["AUSTRALSKI DOLAR","AUD"]
["ARUPSKI FLORIN","AWG"]
["NOVI AZERBAJDZANSKI MANAT","AZM"]
["AZERBAJDZANSKI MANAT","AZN"]
["KONVERTIBILNA MARKA","BAM"]
["BARBADOSKI DOLAR","BBD"]
["TAKA","BDT"]
["BUGARSKI LEV","BGN"]
["BAHREINSKI DINAR","BHD"]
["BURUNDSKI FRANAK","BIF"]
["BERMUDSKI DOLAR","BMD"]
["BRUNEJSKI DOLAR","BND"]
["BRAZILSKI REAL","BRL"]
["BAHAMSKI DOLAR","BSD"]
["NGULTRUM","BTN"]
["PULA","BWP"]
["BJELORUSKI RUBALJ","BYN"]
["BELIZEANSKI DOLAR","BZD"]
["KANADSKI DOLAR","CAD"]
["KONGOANSKI FRANAK","CDF"]
["WIR EURO","CHE"]
["SVICARSKI FRANAK","CHF"]
["WIR FRANAK","CHW"]
["UNIDADES DE FOMENTO","CLF"]
["CILEANSKI PEZO","CLP"]
["JUAN RENMINBI","CNY"]
["KOLUMBIJSKI PEZO","COP"]
["UNIDAD DE VALOR REAL","COU"]
["KOSTARIKANSKI KOLON","CRC"]
["KONVERTIBILNI PEZO","CUC"]
["KUBANSKI PEZO","CUP"]
["ZELENORTSKI ESKUDO","CVE"]
["CESKA KRUNA","CZK"]
["DZIBUTSKI FRANAK","DJF"]
["DANSKA KRUNA","DKK"]
["DOMINIKANSKI PEZO","DOP"]
["ALZIRSKI DINAR","DZD"]
["STALNA NOVCANA JEDINICA (UVC)","ECV"]
["EGIPATSKA FUNTA","EGP"]
["NAKFA","ERN"]
["ETIOPSKI BIR","ETB"]
["EURO","EUR"]
["FIDZIJSKI DOLAR","FJD"]
["FALKLANDSKA FUNTA","FKP"]
["FUNTA STERLINGA","GBP"]
["LARI","GEL"]
["GANSKI CEDI","GHS"]
["GIBRALTARSKA FUNTA","GIP"]
["DALASI","GMD"]
["GVINEJSKI FRANAK","GNF"]
["KVECAL","GTQ"]
["GVAJANSKI DOLAR","GYD"]
["HONGKONSKI DOLAR","HKD"]
["LEMPIRA","HNL"]
["KUNA","HRK"]
["GOURD","HTG"]
["FORINTA","HUF"]
["RUPIJA","IDR"]
["NOVI IZRAELSKI SEKEL","ILS"]
["INDIJSKA RUPIJA","INR"]
["IRACKI DINAR","IQD"]
["IRANSKI RIJAL","IRR"]
["ISLANDSKA KRUNA","ISK"]
["JAMAJCANSKI DOLAR","JMD"]
["JORDANSKI DINAR","JOD"]
["JEN","JPY"]
["KENIJSKI SILING","KES"]
["SOM","KGS"]
["RIJAL","KHR"]
["KOMORSKI FRANAK","KMF"]
["SJEVERNOKOREJSKI VON","KPW"]
["VON","KRW"]
["KUVAJTSKI DINAR","KWD"]
["KAJMANSKI DOLAR","KYD"]
["TENGE","KZT"]
["KIP","LAK"]
["LIBANONSKA FUNTA","LBP"]
["SRILANSKA RUPIJA","LKR"]
["LIBERIJSKI DOLAR","LRD"]
["LOTI","LSL"]
["LIBIJSKI DINAR","LYD"]
["MAROKANSKI DIRHAM","MAD"]
["MOLDAVSKI LEJ","MDL"]
["MALGASKI ARIJARI","MGA"]
["DENAR","MKD"]
["KJAT","MMK"]
["TUGRIK","MNT"]
["PATAKA","MOP"]
["OUGUJA","MRO"]
["MAURICIJSKA RUPIJA","MUR"]
["RUFIJA","MVR"]
["MALAVI KVACA","MWK"]
["MEKSICKI PEZO","MXN"]
["MEXICAN UNIDAD DE INVERSION","MXV"]
["MALEZIJSKI RINGIT","MYR"]
["METIKAL","MZN"]
["NAMIBIJSKI DOLAR","NAD"]
["NAIRA","NGN"]
["KORDOBA ORO","NIO"]
["NORVESKA KRUNA","NOK"]
["NEPALSKA RUPIJA","NPR"]
["NOVOZELANDSKI DOLAR","NZD"]
["OMANSKI RIJAL","OMR"]
["BALBOA","PAB"]
["SOL","PEN"]
["KINA","PGK"]
["FILIPINSKI PEZO","PHP"]
["PAKISTANSKA RUPIJA","PKR"]
["ZLOTI","PLN"]
["PORTUGALSKI ESKUDO","PTE"]
["GVARANI","PYG"]
["KATARSKI RIJAL","QAR"]
["RUMUNJSKI LEU","RON"]
["SRPSKI DINAR","RSD"]
["RUSKI RUBALJ","RUB"]
["RUANDSKI FRANAK","RWF"]
["SAUDIJSKI RIJAL","SAR"]
["SOLOMONSKOOTOCNI DOLAR","SBD"]
["SEJSELSKA RUPIJA","SCR"]
["SUDANSKA FUNTA","SDG"]
["SVEDSKA KRUNA","SEK"]
["SINGAPURSKI DOLAR","SGD"]
["SVETOHELENSKA FUNTA","SHP"]
["LEONE","SLL"]
["SOMALIJSKI SILING","SOS"]
["SURINAMSKI DOLAR","SRD"]
["JUZNOSUDANSKA FUNTA","SSP"]
["DOBRA","STD"]
["SALVADORSKI KOLON","SVC"]
["SIRIJSKA FUNTA","SYP"]
["LILANGENI","SZL"]
["BAHT","THB"]
["SOMONI","TJS"]
["TURKMENISTANSKI NOVI MANAT","TMT"]
["TUNISKI DINAR","TND"]
["PA'ANGA","TOP"]
["TIMORSKI ESKUDO","TPE"]
["TURSKA LIRA","TRY"]
["TRINIDADTOBASKI DOLAR","TTD"]
["NOVOTAJVANSKI DOLAR","TWD"]
["TANZANIJSKI SILING","TZS"]
["HRIVNJA","UAH"]
["UGANDSKI SILING","UGX"]
["AMERICKI DOLAR","USD"]
["SLJEDECI DAN","USN"]
["ISTI DAN","USS"]
["URUGUAY PESO DE UNIDADES INDE.","UYI"]
["URUGVAJSKI PEZO","UYU"]
["UZBEKISTANSKI SUM","UZS"]
["BOLIVAR","VEF"]
["DONG","VND"]
["VATU","VUV"]
["TALA","WST"]
["CFA FRANAK BEAC","XAF"]
["SREBRO","XAG"]
["SILING (SAJAM.ARAN.)","XAT"]
["ZLATO","XAU"]
["EUROPSKA SLOZENA JEDINI. EURCO","XBA"]
["EUROPSKA MONETARNA JED. EMU-6","XBB"]
["EUROPSKA JEDINICA ZA RACUN 9","XBC"]
["EUROPSKA JEDINICA ZA RACUN 17","XBD"]
["ISTOCNOKARIPSKI DOLAR","XCD"]
["POSEBNA PRAVA VUCENJA SDR","XDR"]
["CFA FRANAK BCEAO","XOF"]
["PALADIJ","XPD"]
["CFP FRANAK","XPF"]
["PLATINA","XPT"]
["SUCRE","XSU"]
["OBRACUNSKA JEDINICA ADB","XUA"]
["NENOVCANA JEDINICA","XXX"]
["JEMENSKI RIJAL","YER"]
["RAND","ZAR"]
["ZAMBIJSKA KVACA","ZMW"]
["ZIMBABVEANSKI DOLAR","ZWL"]